Workbook

Sheet Instructions
A1: Instructions - Fleet Procurement Analysis Tool
B2: ="Version " & TEXT(MAX(Version[Version]), "#,##0.00") -> Version 1.12
B3: ="Last Updated: " & TEXT(MAX(Version[Date]), "m/d/yyyy") -> Last Updated: 4/12/2019
A5: Input Definitions | E5: Model Overview
C7: User-entered inputs
C9: Default assumptions that can be overridden by user
C11: Calculations or assumptions that cannot be altered
A13: Ownership Structure Definitions
B15: Purchase (Cash) - Vehicles purchased with cash
B16: Purchase (Loan) - Vehicles purchased with debt financing
B17: FMV (Closed-End) Lease - Vehicles leased with Fair Market Value lease structure. Vehicles not purchased at end of lease term.
B18: FMV (Closed-End) Lease w/ Cash Purchase - Vehicles leased with Fair Market Value lease structure. Vehicles purchased at end of lease term with cash.
B19: FMV (Closed-End) Lease w/ Loan Purchase - Vehicles leased with Fair Market Value lease structure. Vehicles purchased at end of lease term with debt financing.
B20: TRAC (Open-End) Lease - Vehicles leased with Terminal Rental Adjustment Clause lease structure. Vehicles not purchased at end of lease term.
B21: TRAC (Open-End) Lease w/ Cash Purchase - Vehicles leased with Terminal Rental Adjustment Clause lease structure. Vehicles purchased at end of lease term with cash.
B22: TRAC (Open-End) Lease w/ Loan Purchase - Vehicles leased with Terminal Rental Adjustment Clause lease structure. Vehicles purchased at end of lease term with debt financing.
B23: Tax-Exempt Lease Purchase (Cash) - Vehicles leased with tax-exempt lease-purchase structure. Vehicles purchased at end of lease term with cash, typically a nominal amount ($1).

Sheet Solicitation Inputs (hidden)
A1: Quick Inputs - Fleet Procurement Analysis Tool
B2: *Coming soon*
B4: Market Inputs
B6: ZIP Code | C6: 20001
B7: Include Cost of Carbon? | C7: No
B10: Vehicle Inputs
B11: Procurement 1 (Baseline) | K11: Procurement 2 (Comparison)
B12: Vehicle Type #1 | K12: Vehicle Type #1
B13: Vehicle Drivetrain Type | E13: BEV | K13: Vehicle Drivetrain Type | N13: BEV
B14: Vehicle Year | E14: 2017 | K14: Vehicle Year | N14: 2017
B15: Vehicle Make | E15: Chevy | K15: Vehicle Make | N15: Ford
B16: Vehicle Model | E16: Bolt | K16: Vehicle Model | N16: Focus Electric
B19: Vehicle Procurement Inputs
B20: Procurement 1 (Baseline) | K20: Procurement 2 (Comparison)
B21: Vehicle Type #1 | K21: Vehicle Type #1
B22: Ownership Structure | E22: TRAC (Open-End) Lease w/ Cash Purchase | K22: Ownership Structure | N22: TRAC (Open-End) Lease w/ Cash Purchase
B23: Tax Credits Can Be Monetized? (Y/N) | E23: Yes | K23: Tax Credits Can Be Monetized? (Y/N) | N23: Yes

Sheet Initital Settings
A1: Initial Settings - Fleet Procurement Analysis Tool | H1: *HIDDEN* | I1: *HIDDEN* | J1: *HIDDEN* | K1: *HIDDEN* | L1: *HIDDEN* | M1: *HIDDEN*
B3: Save/Load
B5: Procurement Name | C5: Demo Fleet Procurement
B7: Load values from external file
B9: Save all current user inputs to an external file
B12: Sensitivity Settings
B14: Update sensitivity analysis results if Calculation Options is set to Manual or Automatic Excerpt for Tables
B16: Variable | C16: Input Field | D16: Min Value | E16: Max Value | F16: Current Baseline Value | G16: Current Comparison Value | H16: Base Field Code | I16: Base Field Reference | J16: Sensitivity Reference | K16: Comp Field Code | L16: Comp Field Reference | M16: Sensitivity Reference
B17: Market Variables
B18: 1 | C18: Electricity Cost ($/kWh) | D18: 0.09 | E18: 0.22 | F18: =INDIRECT(H18,FALSE) -> 0.12 | G18: =INDIRECT(K18,FALSE) -> 0.12 | H18: =VLOOKUP(sensitivity_01_input_field,DB_Sensitivity_Codes,2,FALSE) -> Electricity_Price | I18: =MID(CELL("filename",INDIRECT(H18)),FIND("]", CELL("filename",INDIRECT(H18)))+1,32) & "!" & ADDRESS(ROW(INDIRECT(H18)),COLUMN(INDIRECT(H18)),4,1) -> Inputs!K6 | J18: =CELL("address", OFFSET('Sensitivity Tables'!A$9, 16*(B18-1), 0)) -> '[Fleet-Procurement-Analysis-Tool_v1.12_Canada.xlsm]Sensitivity Tables'!$A$9 | K18: =VLOOKUP(sensitivity_01_input_field,DB_Sensitivity_Codes,3,FALSE) -> Electricity_Price | L18: =MID(CELL("filename",INDIRECT(K18)),FIND("]", CELL("filename",INDIRECT(K18)))+1,32) & "!" & ADDRESS(ROW(INDIRECT(K18)),COLUMN(INDIRECT(K18)),4,1) -> Inputs!K6 | M18: =CELL("address", OFFSET('Sensitivity Tables'!A$9, 16*(B18-1), 0)) -> '[Fleet-Procurement-Analysis-Tool_v1.12_Canada.xlsm]Sensitivity Tables'!$A$9
B19: Vehicle, Procurement, and Charging Variables
B20: 2 | C20: Number of Vehicles to Procure (#) | D20: 5 | E20: 30 | F20: =INDIRECT(H20,FALSE) -> 19 | G20: =INDIRECT(K20,FALSE) -> 19 | H20: =VLOOKUP(sensitivity_02_input_field,DB_Sensitivity_Codes,2,FALSE) -> Base_V1_Num_Vehicles | I20: =MID(CELL("filename",INDIRECT(H20)),FIND("]", CELL("filename",INDIRECT(H20)))+1,32) & "!" & ADDRESS(ROW(INDIRECT(H20)),COLUMN(INDIRECT(H20)),4,1) -> Inputs!E45 | J20: =CELL("address", OFFSET('Sensitivity Tables'!A$9, 16*(B20-1), 0)) -> '[Fleet-Procurement-Analysis-Tool_v1.12_Canada.xlsm]Sensitivity Tables'!$A$25 | K20: =VLOOKUP(sensitivity_02_input_field,DB_Sensitivity_Codes,3,FALSE) -> Comp_V1_Num_Vehicles | L20: =MID(CELL("filename",INDIRECT(K20)),FIND("]", CELL("filename",INDIRECT(K20)))+1,32) & "!" & ADDRESS(ROW(INDIRECT(K20)),COLUMN(INDIRECT(K20)),4,1) -> Inputs!N45 | M20: =CELL("address", OFFSET('Sensitivity Tables'!E$9, 16*(B20-1), 0)) -> '[Fleet-Procurement-Analysis-Tool_v1.12_Canada.xlsm]Sensitivity Tables'!$E$25
B21: 3 | C21: Annual Vehicle Mileage (VKT/Year) | D21: 5000 | E21: 25000 | F21: =INDIRECT(H21,FALSE) -> 24135 | G21: =INDIRECT(K21,FALSE) -> 24135 | H21: =VLOOKUP(sensitivity_03_input_field,DB_Sensitivity_Codes,2,FALSE) -> Base_V1_VMT | I21: =MID(CELL("filename",INDIRECT(H21)),FIND("]", CELL("filename",INDIRECT(H21)))+1,32) & "!" & ADDRESS(ROW(INDIRECT(H21)),COLUMN(INDIRECT(H21)),4,1) -> Inputs!E25 | J21: =CELL("address", OFFSET('Sensitivity Tables'!A$9, 16*(B21-1), 0)) -> '[Fleet-Procurement-Analysis-Tool_v1.12_Canada.xlsm]Sensitivity Tables'!$A$41 | K21: =VLOOKUP(sensitivity_03_input_field,DB_Sensitivity_Codes,3,FALSE) -> Comp_V1_VMT | L21: =MID(CELL("filename",INDIRECT(K21)),FIND("]", CELL("filename",INDIRECT(K21)))+1,32) & "!" & ADDRESS(ROW(INDIRECT(K21)),COLUMN(INDIRECT(K21)),4,1) -> Inputs!N25 | M21: =CELL("address", OFFSET('Sensitivity Tables'!E$9, 16*(B21-1), 0)) -> '[Fleet-Procurement-Analysis-Tool_v1.12_Canada.xlsm]Sensitivity Tables'!$E$41
B22: 4 | C22: Expected Years of Use/Ownership (Years) | D22: 3 | E22: 10 | F22: =INDIRECT(H22,FALSE) -> 7 | G22: =INDIRECT(K22,FALSE) -> 7 | H22: =VLOOKUP(sensitivity_04_input_field,DB_Sensitivity_Codes,2,FALSE) -> Base_V1_Years_Usage | I22: =MID(CELL("filename",INDIRECT(H22)),FIND("]", CELL("filename",INDIRECT(H22)))+1,32) & "!" & ADDRESS(ROW(INDIRECT(H22)),COLUMN(INDIRECT(H22)),4,1) -> Inputs!E24 | J22: =CELL("address", OFFSET('Sensitivity Tables'!A$9, 16*(B22-1), 0)) -> '[Fleet-Procurement-Analysis-Tool_v1.12_Canada.xlsm]Sensitivity Tables'!$A$57 | K22: =VLOOKUP(sensitivity_04_input_field,DB_Sensitivity_Codes,3,FALSE) -> Comp_V1_Years_Usage | L22: =MID(CELL("filename",INDIRECT(K22)),FIND("]", CELL("filename",INDIRECT(K22)))+1,32) & "!" & ADDRESS(ROW(INDIRECT(K22)),COLUMN(INDIRECT(K22)),4,1) -> Inputs!N24 | M22: =CELL("address", OFFSET('Sensitivity Tables'!E$9, 16*(B22-1), 0)) -> '[Fleet-Procurement-Analysis-Tool_v1.12_Canada.xlsm]Sensitivity Tables'!$E$57

Sheet Inputs
A1: Inputs - Fleet Procurement Analysis Tool | F1: *HIDDEN* | G1: *HIDDEN* | H1: *HIDDEN* | O1: *HIDDEN* | P1: *HIDDEN* | Q1: *HIDDEN*
F2: Autofill Values | G2: Sensitivity Values (to model) | H2: Validation Calcs | O2: Autofill Values | P2: Sensitivity Values (to model) | Q2: Validation Calcs
B3: Market Inputs
B5: Market | C5: Canada | F5: =IF(_Market="U.S.",VLOOKUP(State_Ex,DB_Fuel_Prices[],3,FALSE),VLOOKUP(Province_Ex,DB_Gasoline_Prices_Canada[],2,FALSE)) -> 1.501083 | G5: =IFERROR(INDIRECT(VLOOKUP(MID(CELL("filename",K5),FIND("]", CELL("filename",K5))+1,32) & "!" & ADDRESS(ROW(K5),COLUMN(K5),4,1), DB_Sensitivity_Indirect_Reference_Base,2, FALSE)), K5) -> 1.5011 | J5: ="Gasoline Cost ($/" & Constant_Volume_Metric & ")" -> Gasoline Cost ($/Liter) | K5: 1.5011
B6: ZIP Code | C6: 98101 | F6: =IF(_Market="U.S.",VLOOKUP(State_Ex,DB_Fuel_Prices[],2,FALSE),VLOOKUP(Province_Ex,DB_Electricity_Prices_Canada[],2,FALSE)) -> 0.12 | G6: =IFERROR(INDIRECT(VLOOKUP(MID(CELL("filename",K6),FIND("]", CELL("filename",K6))+1,32) & "!" & ADDRESS(ROW(K6),COLUMN(K6),4,1), DB_Sensitivity_Indirect_Reference_Base,2, FALSE)), K6) -> 0.12 | J6: Electricity Cost ($/kWh) | K6: 0.12
B7: U.S. State | C7: =VLOOKUP(_Zip_Code,ZipCodeLookup[],3,FALSE) -> WA | F7: =IF(_Market="U.S.", DB_General_Inflation[Inflation (U.S.)], DB_General_Inflation[Inflation (Canada)]) -> 0.0144 | G7: =IFERROR(INDIRECT(VLOOKUP(MID(CELL("filename",K7),FIND("]", CELL("filename",K7))+1,32) & "!" & ADDRESS(ROW(K7),COLUMN(K7),4,1), DB_Sensitivity_Indirect_Reference_Base,2, FALSE)), K7) -> 0.02 | J7: Inflation Rate (Excluding Fuel) (%/Year) | K7: 0.02
B8: PADD Region | C8: =VLOOKUP(_Zip_Code,ZipCodeLookup[],5,FALSE) -> 5
B9: eGRID Region | C9: =VLOOKUP(_Zip_Code,ZipCodeLookup[],6,FALSE) -> NWPP | J9: Include Cost of Carbon? | K9: No
B10: Canadian Province | C10: British Columbia | F10: =IF(_Market="U.S.", DB_Carbon_Price_US, DB_Carbon_Price_Canada) -> 20 | G10: =IFERROR(INDIRECT(VLOOKUP(MID(CELL("filename",K10),FIND("]", CELL("filename",K10))+1,32) & "!" & ADDRESS(ROW(K10),COLUMN(K10),4,1), DB_Sensitivity_Indirect_Reference_Base,2, FALSE)), K10) -> 0 | J10: ="Cost of Carbon " & IF(_Market="U.S.", "($/Ton)", "($/Tonne)") -> Cost of Carbon ($/Tonne) | K10: 0
B13: Vehicle Inputs
B14: Procurement 1 (Baseline) | K14: Procurement 2 (Comparison)
B15: Vehicle Type #1 | K15: Vehicle Type #1
B16: Vehicle Drivetrain Type | E16: BEV | K16: Vehicle Drivetrain Type | N16: ICE
B17: Vehicle Year | E17: 2018 | K17: Vehicle Year | N17: 2018
B18: Vehicle Make | E18: CHEVROLET | K18: Vehicle Make | N18: CHEVROLET
B19: Vehicle Model | E19: BOLT EV | H19: =_Base_V1_Vehicle_Year&" "&_Base_V1_Vehicle_Make&" "&_Base_V1_Vehicle_Model&" "&_Base_V1_Vehicle_Drivetrain -> 2018 CHEVROLET BOLT EV BEV | K19: Vehicle Model | N19: CRUZE | Q19: =_Comp_V1_Vehicle_Year&" "&_Comp_V1_Vehicle_Make&" "&_Comp_V1_Vehicle_Model&" "&_Comp_V1_Vehicle_Drivetrain -> 2018 CHEVROLET CRUZE ICE
B20: =IF(_Market="U.S.", DB_Vehicles[[#Headers],[Fuel Economy Gas City (MPG)]], DB_Vehicles__Canada[[#Headers],[Fuel Consumption Gas City (L/100 km)]]) -> Fuel Consumption Gas City (L/100 km) | E20: 0 | F20: =IF(_Market="U.S.", VLOOKUP(Base_V1_Type_Ex,DB_Vehicles[], COLUMN(DB_Vehicles[[#Headers],[Fuel Economy Gas City (MPG)]]),FALSE), VLOOKUP(Base_V1_Type_Ex,DB_Vehicles__Canada[],COLUMN(DB_Vehicles__Canada[[#Headers],[Fuel Consumption Gas City (L/100 km)]])-COLUMN(DB_Vehicles__Canada[[#Headers],[Selection Name]])+1,FALSE)) -> 0 | G20: =IFERROR(INDIRECT(VLOOKUP(MID(CELL("filename",E20),FIND("]", CELL("filename",E20))+1,32) & "!" & ADDRESS(ROW(E20),COLUMN(E20),4,1), DB_Sensitivity_Indirect_Reference_Base,2, FALSE)), E20) -> 0 | K20: =IF(_Market="U.S.", DB_Vehicles[[#Headers],[Fuel Economy Gas City (MPG)]], DB_Vehicles__Canada[[#Headers],[Fuel Consumption Gas City (L/100 km)]]) -> Fuel Consumption Gas City (L/100 km) | N20: 8.6 | O20: =IF(_Market="U.S.", VLOOKUP(Comp_V1_Type_Ex,DB_Vehicles[], COLUMN(DB_Vehicles[[#Headers],[Fuel Economy Gas City (MPG)]]),FALSE), VLOOKUP(Comp_V1_Type_Ex,DB_Vehicles__Canada[],COLUMN(DB_Vehicles__Canada[[#Headers],[Fuel Consumption Gas City (L/100 km)]])-COLUMN(DB_Vehicles__Canada[[#Headers],[Selection Name]])+1,FALSE)) -> 8.6 | P20: =IFERROR(INDIRECT(VLOOKUP(MID(CELL("filename",N20),FIND("]", CELL("filename",N20))+1,32) & "!" & ADDRESS(ROW(N20),COLUMN(N20),4,1), DB_Sensitivity_Indirect_Reference_Comp,2, FALSE)), N20) -> 8.6
B21: =IF(_Market="U.S.", DB_Vehicles[[#Headers],[Fuel Economy Gas Hwy (MPG)]], DB_Vehicles__Canada[[#Headers],[Fuel Consumption Gas Hwy (L/100 km)]]) -> Fuel Consumption Gas Hwy (L/100 km) | E21: 0 | F21: =IF(_Market="U.S.", VLOOKUP(Base_V1_Type_Ex,DB_Vehicles[], COLUMN(DB_Vehicles[[#Headers],[Fuel Economy Gas Hwy (MPG)]]),FALSE), VLOOKUP(Base_V1_Type_Ex,DB_Vehicles__Canada[],COLUMN(DB_Vehicles__Canada[[#Headers],[Fuel Consumption Gas Hwy (L/100 km)]])-COLUMN(DB_Vehicles__Canada[[#Headers],[Selection Name]])+1,FALSE)) -> 0 | G21: =IFERROR(INDIRECT(VLOOKUP(MID(CELL("filename",E21),FIND("]", CELL("filename",E21))+1,32) & "!" & ADDRESS(ROW(E21),COLUMN(E21),4,1), DB_Sensitivity_Indirect_Reference_Base,2, FALSE)), E21) -> 0 | K21: =IF(_Market="U.S.", DB_Vehicles[[#Headers],[Fuel Economy Gas Hwy (MPG)]], DB_Vehicles__Canada[[#Headers],[Fuel Consumption Gas Hwy (L/100 km)]]) -> Fuel Consumption Gas Hwy (L/100 km) | N21: 5.8 | O21: =IF(_Market="U.S.", VLOOKUP(Comp_V1_Type_Ex,DB_Vehicles[], COLUMN(DB_Vehicles[[#Headers],[Fuel Economy Gas Hwy (MPG)]]),FALSE), VLOOKUP(Comp_V1_Type_Ex,DB_Vehicles__Canada[],COLUMN(DB_Vehicles__Canada[[#Headers],[Fuel Consumption Gas Hwy (L/100 km)]])-COLUMN(DB_Vehicles__Canada[[#Headers],[Selection Name]])+1,FALSE)) -> 5.8 | P21: 5.8
B22: =IF(_Market="U.S.", DB_Vehicles[[#Headers],[Fuel Economy Electric City (MPGe)]], DB_Vehicles__Canada[[#Headers],[Fuel Consumption Electric City (Le/100 km)]]) -> Fuel Consumption Electric City (Le/100 km) | E22: 1.842696629 | F22: =IF(_Market="U.S.", VLOOKUP(Base_V1_Type_Ex,DB_Vehicles[], COLUMN(DB_Vehicles[[#Headers],[Fuel Economy Electric City (MPGe)]]),FALSE), VLOOKUP(Base_V1_Type_Ex,DB_Vehicles__Canada[],COLUMN(DB_Vehicles__Canada[[#Headers],[Fuel Consumption Electric City (Le/100 km)]])-COLUMN(DB_Vehicles__Canada[[#Headers],[Selection Name]])+1,FALSE)) -> 1.842696629 | G22: 1.842696629 | K22: =IF(_Market="U.S.", DB_Vehicles[[#Headers],[Fuel Economy Electric City (MPGe)]], DB_Vehicles__Canada[[#Headers],[Fuel Consumption Electric City (Le/100 km)]]) -> Fuel Consumption Electric City (Le/100 km) | N22: 0 | O22: =IF(_Market="U.S.", VLOOKUP(Comp_V1_Type_Ex,DB_Vehicles[], COLUMN(DB_Vehicles[[#Headers],[Fuel Economy Electric City (MPGe)]]),FALSE), VLOOKUP(Comp_V1_Type_Ex,DB_Vehicles__Canada[],COLUMN(DB_Vehicles__Canada[[#Headers],[Fuel Consumption Electric City (Le/100 km)]])-COLUMN(DB_Vehicles__Canada[[#Headers],[Selection Name]])+1,FALSE)) -> 0 | P22: 0
B23: =IF(_Market="U.S.", DB_Vehicles[[#Headers],[Fuel Economy Electric Hwy (MPGe)]], DB_Vehicles__Canada[[#Headers],[Fuel Consumption Electric Hwy (Le/100 km)]]) -> Fuel Consumption Electric Hwy (Le/100 km) | E23: 2.134831461 | F23: =IF(_Market="U.S.", VLOOKUP(Base_V1_Type_Ex,DB_Vehicles[], COLUMN(DB_Vehicles[[#Headers],[Fuel Economy Electric Hwy (MPGe)]]),FALSE), VLOOKUP(Base_V1_Type_Ex,DB_Vehicles__Canada[],COLUMN(DB_Vehicles__Canada[[#Headers],[Fuel Consumption Electric Hwy (Le/100 km)]])-COLUMN(DB_Vehicles__Canada[[#Headers],[Selection Name]])+1,FALSE)) -> 2.134831461 | G23: =IFERROR(INDIRECT(VLOOKUP(MID(CELL("filename",E23),FIND("]", CELL("filename",E23))+1,32) & "!" & ADDRESS(ROW(E23),COLUMN(E23),4,1), DB_Sensitivity_Indirect_Reference_Base,2, FALSE)), E23) -> 2.134831461 | K23: =IF(_Market="U.S.", DB_Vehicles[[#Headers],[Fuel Economy Electric Hwy (MPGe)]], DB_Vehicles__Canada[[#Headers],[Fuel Consumption Electric Hwy (Le/100 km)]]) -> Fuel Consumption Electric Hwy (Le/100 km) | N23: 0 | O23: =IF(_Market="U.S.", VLOOKUP(Comp_V1_Type_Ex,DB_Vehicles[], COLUMN(DB_Vehicles[[#Headers],[Fuel Economy Electric Hwy (MPGe)]]),FALSE), VLOOKUP(Comp_V1_Type_Ex,DB_Vehicles__Canada[],COLUMN(DB_Vehicles__Canada[[#Headers],[Fuel Consumption Electric Hwy (Le/100 km)]])-COLUMN(DB_Vehicles__Canada[[#Headers],[Selection Name]])+1,FALSE)) -> 0 | P23: 0
B24: Expected Years of Use/Ownership (Years) | E24: 7 | F24: =DB_Expected_Years_Of_Use_Ownership -> 7 | G24: 7 | K24: Expected Years of Use/Ownership (Years) | N24: 7 | O24: =DB_Expected_Years_Of_Use_Ownership -> 7 | P24: 7
B25: ="Annual Vehicle Mileage (V"&LEFT(Constant_Distance_Metric,1)&"T/Year)" -> Annual Vehicle Mileage (VKT/Year) | E25: 24135 | F25: =IF(_Market="U.S.", DB_Annual_Mileage_US, DB_Annual_Mileage_Canada) -> 24135 | G25: 24135 | K25: ="Annual Vehicle Mileage (V"&LEFT(Constant_Distance_Metric,1)&"T/Year)" -> Annual Vehicle Mileage (VKT/Year) | N25: 24135 | O25: =IF(_Market="U.S.", DB_Annual_Mileage_US, DB_Annual_Mileage_Canada) -> 24135 | P25: 24135
B26: ="% of Annual " & Constant_Distance_Metric & "s on Gasoline" -> % of Annual Kilometers on Gasoline | E26: 0 | F26: =MAX((Base_V1_VMT/365)-IF(_Market="U.S.", VLOOKUP(Base_V1_Type_Ex,DB_Vehicles[], COLUMN(DB_Vehicles[[#Headers],[Electric Range]]),FALSE), VLOOKUP(Base_V1_Type_Ex,DB_Vehicles__Canada[], COLUMN(DB_Vehicles__Canada[[#Headers],[Electric Range]])-COLUMN(DB_Vehicles__Canada[[#Headers],[Selection Name]])+1,FALSE)),0)/(Base_V1_VMT/365) -> 0 | G26: 0 | K26: ="% of Annual " & Constant_Distance_Metric & "s on Gasoline" -> % of Annual Kilometers on Gasoline | N26: 1 | O26: =MAX((Comp_V1_VMT/365)-IF(_Market="U.S.", VLOOKUP(Comp_V1_Type_Ex,DB_Vehicles[], COLUMN(DB_Vehicles[[#Headers],[Electric Range]]),FALSE), VLOOKUP(Comp_V1_Type_Ex,DB_Vehicles__Canada[], COLUMN(DB_Vehicles__Canada[[#Headers],[Electric Range]])-COLUMN(DB_Vehicles__Canada[[#Headers],[Selection Name]])+1,FALSE)),0)/(Comp_V1_VMT/365) -> 1 | P26: 1
B27: ="% of Annual " & Constant_Distance_Metric & "s City Driving" -> % of Annual Kilometers City Driving | E27: 0.55 | F27: =DB_Percent_Annual_Miles_City_Driving -> 0.55 | G27: 0.55 | K27: ="% of Annual " & Constant_Distance_Metric & "s City Driving" -> % of Annual Kilometers City Driving | N27: 0.55 | O27: =Data!C150 -> 0.55 | P27: 0.55
B28: Cost to Insure ($/Year) | E28: 1062.3 | F28: =IF(_Market="U.S.", DB_Annual_Insurance_Cost_US, DB_Annual_Insurance_Cost_Canada) -> 1062.3 | G28: 1062.3 | K28: Cost to Insure ($/Year) | N28: 1062.3 | O28: =IF(_Market="U.S.", DB_Annual_Insurance_Cost_US, DB_Annual_Insurance_Cost_Canada) -> 1062.3 | P28: 1062.3
B29: Use Drivetrain Default Maintenance and Repair Costs? | E29: Yes | K29: Use Drivetrain Default Maintenance and Repair Costs? | N29: Yes
B30: ="Maintenance and Repair Cost - Years 1 - 5 ($/" & Constant_Distance_Metric & ")" -> Maintenance and Repair Cost - Years 1 - 5 ($/Kilometer) | E30: 0.0644 | F30: =SUMIFS(DB_Maint_Repair_Costs[[Year 1 ]], DB_Maint_Repair_Costs[Market], _Market, DB_Maint_Repair_Costs[Vehicle Type], _Base_V1_Vehicle_Drivetrain) -> 0.064372 | G30: 0.0644 | K30: ="Maintenance and Repair Cost - Years 1 - 5 ($/" & Constant_Distance_Metric & ")" -> Maintenance and Repair Cost - Years 1 - 5 ($/Kilometer) | N30: 0.1287 | O30: =SUMIFS(DB_Maint_Repair_Costs[[Year 1 ]], DB_Maint_Repair_Costs[Market], _Market, DB_Maint_Repair_Costs[Vehicle Type], _Comp_V1_Vehicle_Drivetrain) -> 0.128744 | P30: =IFERROR(INDIRECT(VLOOKUP(MID(CELL("filename",N30),FIND("]", CELL("filename",N30))+1,32) & "!" & ADDRESS(ROW(N30),COLUMN(N30),4,1), DB_Sensitivity_Indirect_Reference_Comp,2, FALSE)), N30) -> 0.1287
B31: ="Maintenance and Repair Cost - Years 5+ ($/" & Constant_Distance_Metric & ")" -> Maintenance and Repair Cost - Years 5+ ($/Kilometer) | E31: 0.0837 | F31: =SUMIFS(DB_Maint_Repair_Costs[Year 6], DB_Maint_Repair_Costs[Market], _Market, DB_Maint_Repair_Costs[Vehicle Type], _Base_V1_Vehicle_Drivetrain) -> 0.0836836 | G31: =IFERROR(INDIRECT(VLOOKUP(MID(CELL("filename",E31),FIND("]", CELL("filename",E31))+1,32) & "!" & ADDRESS(ROW(E31),COLUMN(E31),4,1), DB_Sensitivity_Indirect_Reference_Base,2, FALSE)), E31) -> 0.0837 | K31: ="Maintenance and Repair Cost - Years 5+ ($/" & Constant_Distance_Metric & ")" -> Maintenance and Repair Cost - Years 5+ ($/Kilometer) | N31: 0.1674 | O31: =SUMIFS(DB_Maint_Repair_Costs[Year 6], DB_Maint_Repair_Costs[Market], _Market, DB_Maint_Repair_Costs[Vehicle Type], _Comp_V1_Vehicle_Drivetrain) -> 0.1673672 | P31: =IFERROR(INDIRECT(VLOOKUP(MID(CELL("filename",N31),FIND("]", CELL("filename",N31))+1,32) & "!" & ADDRESS(ROW(N31),COLUMN(N31),4,1), DB_Sensitivity_Indirect_Reference_Comp,2, FALSE)), N31) -> 0.1674
B32: Recurring Taxes and Fees ($/Year) | E32: 10 | G32: 10 | K32: Recurring Taxes and Fees ($/Year) | N32: 10 | P32: =IFERROR(INDIRECT(VLOOKUP(MID(CELL("filename",N32),FIND("]", CELL("filename",N32))+1,32) & "!" & ADDRESS(ROW(N32),COLUMN(N32),4,1), DB_Sensitivity_Indirect_Reference_Comp,2, FALSE)), N32) -> 10
C33: =IF(_Market="U.S.", "Vehicle details from fueleconomy.gov", "") ->  | G33: =IF(_Market="U.S.", VLOOKUP(Base_V1_Type_Ex,DB_Vehicles[],COLUMN(DB_Vehicles[[#Headers],[Fueleconomy.gov Link]]),FALSE), VLOOKUP(Base_V1_Type_Ex,DB_Vehicles__Canada[],COLUMN(DB_Vehicles__Canada[[#Headers],[Link]])-COLUMN(DB_Vehicles__Canada[[#Headers],[Selection Name]])+1,FALSE)) ->  | M33: =IF(_Market="U.S.", "Vehicle details from fueleconomy.gov", "") ->  | P33: =IF(_Market="U.S.", VLOOKUP(Comp_V1_Type_Ex,DB_Vehicles[],COLUMN(DB_Vehicles[[#Headers],[Fueleconomy.gov Link]]),FALSE), VLOOKUP(Comp_V1_Type_Ex,DB_Vehicles__Canada[],COLUMN(DB_Vehicles__Canada[[#Headers],[Link]])-COLUMN(DB_Vehicles__Canada[[#Headers],[Selection Name]])+1,FALSE)) -> 
B34: Vehicle Type #2 | K34: Vehicle Type #2
B35: Etc…etc. | K35: Etc…etc.
B39: Vehicle Procurement Inputs
B40: Procurement 1 (Baseline) | K40: Procurement 2 (Comparison)
B42: Discount Rate for NPV Calculations (%) | E42: 0 | G42: =IFERROR(INDIRECT(VLOOKUP(MID(CELL("filename",E42),FIND("]", CELL("filename",E42))+1,32) & "!" & ADDRESS(ROW(E42),COLUMN(E42),4,1), DB_Sensitivity_Indirect_Reference_Base,2, FALSE)), E42) -> 0 | K42: Discount Rate for NPV Calculations (%) | N42: 0 | P42: =IFERROR(INDIRECT(VLOOKUP(MID(CELL("filename",N42),FIND("]", CELL("filename",N42))+1,32) & "!" & ADDRESS(ROW(N42),COLUMN(N42),4,1), DB_Sensitivity_Indirect_Reference_Comp,2, FALSE)), N42) -> 0
B44: Vehicle Type #1 | K44: Vehicle Type #1
B45: Number of Vehicles to Procure (#) | E45: 19 | G45: =IFERROR(INDIRECT(VLOOKUP(MID(CELL("filename",E45),FIND("]", CELL("filename",E45))+1,32) & "!" & ADDRESS(ROW(E45),COLUMN(E45),4,1), DB_Sensitivity_Indirect_Reference_Base,2, FALSE)), E45) -> 19 | K45: Number of Vehicles to Procure (#) | N45: 19 | P45: =IFERROR(INDIRECT(VLOOKUP(MID(CELL("filename",N45),FIND("]", CELL("filename",N45))+1,32) & "!" & ADDRESS(ROW(N45),COLUMN(N45),4,1), DB_Sensitivity_Indirect_Reference_Comp,2, FALSE)), N45) -> 19
B46: Pricing Approach (select one) | E46: MSRP Less Discounts | H46: =IF(IFERROR(FIND("MSRP",_Base_V1_Pricing_Approach,1),0)>0,TRUE,FALSE) -> TRUE | K46: Pricing Approach (select one) | N46: Dealer Cost Plus Markup | Q46: =IF(IFERROR(FIND("MSRP",_Comp_V1_Pricing_Approach,1),0)>0,TRUE,FALSE) -> FALSE
B47: MSRP ($/Vehicle) | E47: 44300 | F47: =IF(_Market="U.S.", VLOOKUP(Base_V1_Type_Ex,DB_Vehicles[],COLUMN(DB_Vehicles[[#Headers],[MSRP]]),FALSE), VLOOKUP(Base_V1_Type_Ex, DB_Vehicles__Canada[], COLUMN(DB_Vehicles__Canada[[#Headers],[MSRP]])-COLUMN(DB_Vehicles__Canada[[#Headers],[Selection Name]])+1,FALSE)) -> 44300 | G47: =IFERROR(INDIRECT(VLOOKUP(MID(CELL("filename",E47),FIND("]", CELL("filename",E47))+1,32) & "!" & ADDRESS(ROW(E47),COLUMN(E47),4,1), DB_Sensitivity_Indirect_Reference_Base,2, FALSE)), E47) -> 44300 | K47: MSRP ($) | N47: 16295 | O47: =IF(_Market="U.S.", VLOOKUP(Comp_V1_Type_Ex,DB_Vehicles[],COLUMN(DB_Vehicles[[#Headers],[MSRP]]),FALSE), VLOOKUP(Comp_V1_Type_Ex, DB_Vehicles__Canada[], COLUMN(DB_Vehicles__Canada[[#Headers],[MSRP]])-COLUMN(DB_Vehicles__Canada[[#Headers],[Selection Name]])+1,FALSE)) -> 16295 | P47: =IFERROR(INDIRECT(VLOOKUP(MID(CELL("filename",N47),FIND("]", CELL("filename",N47))+1,32) & "!" & ADDRESS(ROW(N47),COLUMN(N47),4,1), DB_Sensitivity_Indirect_Reference_Comp,2, FALSE)), N47) -> 16295
B48: Value of Negotiated Discounts off MSRP ($/Vehicle) | E48: 0 | G48: =IFERROR(INDIRECT(VLOOKUP(MID(CELL("filename",E48),FIND("]", CELL("filename",E48))+1,32) & "!" & ADDRESS(ROW(E48),COLUMN(E48),4,1), DB_Sensitivity_Indirect_Reference_Base,2, FALSE)), E48) -> 0 | K48: Value of Negotiated Discounts off MSRP ($/Vehicle) | N48: 0 | P48: =IFERROR(INDIRECT(VLOOKUP(MID(CELL("filename",N48),FIND("]", CELL("filename",N48))+1,32) & "!" & ADDRESS(ROW(N48),COLUMN(N48),4,1), DB_Sensitivity_Indirect_Reference_Comp,2, FALSE)), N48) -> 0
B49: Dealer Triple Net Price ($/Vehicle) | E49: 18024 | G49: =IFERROR(INDIRECT(VLOOKUP(MID(CELL("filename",E49),FIND("]", CELL("filename",E49))+1,32) & "!" & ADDRESS(ROW(E49),COLUMN(E49),4,1), DB_Sensitivity_Indirect_Reference_Base,2, FALSE)), E49) -> 18024 | K49: Dealer Triple Net Price ($/Vehicle) | N49: 33226 | P49: =IFERROR(INDIRECT(VLOOKUP(MID(CELL("filename",N49),FIND("]", CELL("filename",N49))+1,32) & "!" & ADDRESS(ROW(N49),COLUMN(N49),4,1), DB_Sensitivity_Indirect_Reference_Comp,2, FALSE)), N49) -> 33226
B50: Dealer Markup ($/Vehicle) | E50: 200 | G50: =IFERROR(INDIRECT(VLOOKUP(MID(CELL("filename",E50),FIND("]", CELL("filename",E50))+1,32) & "!" & ADDRESS(ROW(E50),COLUMN(E50),4,1), DB_Sensitivity_Indirect_Reference_Base,2, FALSE)), E50) -> 200 | K50: Dealer Markup ($/Vehicle) | N50: 300 | P50: =IFERROR(INDIRECT(VLOOKUP(MID(CELL("filename",N50),FIND("]", CELL("filename",N50))+1,32) & "!" & ADDRESS(ROW(N50),COLUMN(N50),4,1), DB_Sensitivity_Indirect_Reference_Comp,2, FALSE)), N50) -> 300
B51: Total Base Price | E51: =IF(IFERROR(FIND("MSRP",_Base_V1_Pricing_Approach,1),0)>0,Base_V1_MSRP_Modeled-Base_V1_Discounts_Modeled,Base_V1_List_Price_Modeled+Base_V1_List_Price_Markup_Modeled) -> 44300 | K51: Total Base Price | N51: =IF(IFERROR(FIND("MSRP",_Comp_V1_Pricing_Approach,1),0)>0,Comp_V1_MSRP_Modeled-Comp_V1_Discounts_Modeled,Comp_V1_List_Price_Modeled+Comp_V1_List_Price_Markup_Modeled) -> 33526
B52: Value of Federal Tax Incentives ($/Vehicle) | E52: 0 | F52: =IFERROR(IF(_Market="U.S.", VLOOKUP(Base_V1_Type_Ex, DB_Vehicle_Incentives[], MATCH("Federal Tax Credit", DB_Vehicle_Incentives[#Headers],0),FALSE), 0), 0) -> 0 | G52: =IFERROR(INDIRECT(VLOOKUP(MID(CELL("filename",E52),FIND("]", CELL("filename",E52))+1,32) & "!" & ADDRESS(ROW(E52),COLUMN(E52),4,1), DB_Sensitivity_Indirect_Reference_Base,2, FALSE)), E52) -> 0 | K52: Value of Federal Tax Credits ($/Vehicle) | N52: 0 | O52: =IFERROR(IF(_Market="U.S.", VLOOKUP(Comp_V1_Type_Ex, DB_Vehicle_Incentives[], MATCH("Federal Tax Credit", DB_Vehicle_Incentives[#Headers],0),FALSE), 0), 0) -> 0 | P52: =IFERROR(INDIRECT(VLOOKUP(MID(CELL("filename",N52),FIND("]", CELL("filename",N52))+1,32) & "!" & ADDRESS(ROW(N52),COLUMN(N52),4,1), DB_Sensitivity_Indirect_Reference_Comp,2, FALSE)), N52) -> 0
B53: Value of State Tax Incentives ($/Vehicle) | E53: 0 | F53: =IFERROR(IF(_Market="U.S.", IF(VLOOKUP("Incentive Type", DB_Vehicle_Incentives[], MATCH(State_Ex, DB_Vehicle_Incentives[#Headers], 0), FALSE)="Tax", VLOOKUP(Base_V1_Type_Ex, DB_Vehicle_Incentives[], MATCH(State_Ex, DB_Vehicle_Incentives[#Headers], 0),FALSE),0), IF(VLOOKUP("Incentive Type", DB_Vehicle_Incentives__Canada[], MATCH(Province_Ex, DB_Vehicle_Incentives__Canada[#Headers], 0), FALSE)="Tax", VLOOKUP(Base_V1_Type_Ex, DB_Vehicle_Incentives__Canada[], MATCH(Province_Ex, DB_Vehicle_Incentives__Canada[#Headers], 0),FALSE),0)), 0) -> 0 | G53: 0 | K53: Value of State Tax Incentives ($/Vehicle) | N53: 0 | O53: =IFERROR(IF(_Market="U.S.", IF(VLOOKUP("Incentive Type", DB_Vehicle_Incentives[], MATCH(State_Ex, DB_Vehicle_Incentives[#Headers], 0), FALSE)="Tax", VLOOKUP(Comp_V1_Type_Ex, DB_Vehicle_Incentives[], MATCH(State_Ex, DB_Vehicle_Incentives[#Headers], 0),FALSE),0), IF(VLOOKUP("Incentive Type", DB_Vehicle_Incentives__Canada[], MATCH(Province_Ex, DB_Vehicle_Incentives__Canada[#Headers], 0), FALSE)="Tax", VLOOKUP(Comp_V1_Type_Ex, DB_Vehicle_Incentives__Canada[], MATCH(Province_Ex, DB_Vehicle_Incentives__Canada[#Headers], 0),FALSE),0)), 0) -> 0 | P53: 0
B54: State Tax Incentive Cap ($) | E54: 0 | G54: 0 | K54: State Tax Incentive Cap ($) | N54: 0 | P54: 0
B55: Value of Non-tax Incentives ($/Vehicle) | E55: 5000 | F55: =IFERROR(IF(_Market="U.S.", IF(VLOOKUP("Incentive Type", DB_Vehicle_Incentives[], MATCH(State_Ex, DB_Vehicle_Incentives[#Headers], 0), FALSE)<>"Tax", VLOOKUP(Base_V1_Type_Ex, DB_Vehicle_Incentives[], MATCH(State_Ex, DB_Vehicle_Incentives[#Headers], 0),FALSE),0), IF(VLOOKUP("Incentive Type", DB_Vehicle_Incentives__Canada[], MATCH(Province_Ex, DB_Vehicle_Incentives__Canada[#Headers], 0), FALSE)<>"Tax", VLOOKUP(Base_V1_Type_Ex, DB_Vehicle_Incentives__Canada[], MATCH(Province_Ex, DB_Vehicle_Incentives__Canada[#Headers], 0),FALSE),0)), 0) -> 5000 | G55: 5000 | K55: Value of Non-tax Incentives ($/Vehicle) | N55: 0 | O55: =IFERROR(IF(_Market="U.S.", IF(VLOOKUP("Incentive Type", DB_Vehicle_Incentives[], MATCH(State_Ex, DB_Vehicle_Incentives[#Headers], 0), FALSE)<>"Tax", VLOOKUP(Comp_V1_Type_Ex, DB_Vehicle_Incentives[], MATCH(State_Ex, DB_Vehicle_Incentives[#Headers], 0),FALSE),0), IF(VLOOKUP("Incentive Type", DB_Vehicle_Incentives__Canada[], MATCH(Province_Ex, DB_Vehicle_Incentives__Canada[#Headers], 0), FALSE)<>"Tax", VLOOKUP(Comp_V1_Type_Ex, DB_Vehicle_Incentives__Canada[], MATCH(Province_Ex, DB_Vehicle_Incentives__Canada[#Headers], 0),FALSE),0)), 0) -> 0 | P55: 0
B56: Initial Tax, Title, and Registration Cost ($/Vehicle) | E56: 1000 | G56: 1000 | K56: Initial Tax, Title, and Registration Cost ($/Vehicle) | N56: 1000 | P56: 1000
B57: Initial Fee as Percent of Vehicle Base Price (%) | E57: 0 | G57: 0 | K57: Initial Fee as Percent of Vehicle Base Price (%) | N57: 0 | P57: 0
B58: Ownership Structure | E58: Purchase (Cash) | H58: =IF(IFERROR(FIND("Cash",_Base_V1_Ownership_Structure,1),0)>0,TRUE,FALSE) -> TRUE | K58: Ownership Structure | N58: Purchase (Cash) | Q58: =IF(IFERROR(FIND("Cash",_Comp_V1_Ownership_Structure,1),0)>0,TRUE,FALSE) -> TRUE
B59: Tax Credits Can Be Monetized? (Y/N) | E59: Yes | H59: =IF(IFERROR(FIND("Loan",_Base_V1_Ownership_Structure,1),0)>0,TRUE,FALSE) -> FALSE | K59: Tax Credits Can Be Monetized? (Y/N) | N59: Yes | Q59: =IF(IFERROR(FIND("Loan",_Comp_V1_Ownership_Structure,1),0)>0,TRUE,FALSE) -> FALSE
H60: =IF(IFERROR(FIND("Lease",_Base_V1_Ownership_Structure,1),0)>0,TRUE,FALSE) -> FALSE | Q60: =IF(IFERROR(FIND("Lease",_Comp_V1_Ownership_Structure,1),0)>0,TRUE,FALSE) -> FALSE
B61: Down Payment ($/Vehicle) | E61: 0 | G61: =IFERROR(INDIRECT(VLOOKUP(MID(CELL("filename",E61),FIND("]", CELL("filename",E61))+1,32) & "!" & ADDRESS(ROW(E61),COLUMN(E61),4,1), DB_Sensitivity_Indirect_Reference_Base,2, FALSE)), E61) -> 0 | K61: Down Payment ($/Vehicle) | N61: 0 | P61: =IFERROR(INDIRECT(VLOOKUP(MID(CELL("filename",N61),FIND("]", CELL("filename",N61))+1,32) & "!" & ADDRESS(ROW(N61),COLUMN(N61),4,1), DB_Sensitivity_Indirect_Reference_Comp,2, FALSE)), N61) -> 0
B62: Lease | K62: Lease
B63: Lease Term (Years) | E63: 3 | G63: =IFERROR(INDIRECT(VLOOKUP(MID(CELL("filename",E63),FIND("]", CELL("filename",E63))+1,32) & "!" & ADDRESS(ROW(E63),COLUMN(E63),4,1), DB_Sensitivity_Indirect_Reference_Base,2, FALSE)), E63) -> 3 | H63: Data validation handled in VBA | K63: Lease Term (Years) | N63: 0 | P63: =IFERROR(INDIRECT(VLOOKUP(MID(CELL("filename",N63),FIND("]", CELL("filename",N63))+1,32) & "!" & ADDRESS(ROW(N63),COLUMN(N63),4,1), DB_Sensitivity_Indirect_Reference_Comp,2, FALSE)), N63) -> 0 | Q63: Data validation handled in VBA
B64: Lease Interest Rate (APR - %) | E64: 0.1 | G64: =IFERROR(INDIRECT(VLOOKUP(MID(CELL("filename",E64),FIND("]", CELL("filename",E64))+1,32) & "!" & ADDRESS(ROW(E64),COLUMN(E64),4,1), DB_Sensitivity_Indirect_Reference_Base,2, FALSE)), E64) -> 0.1 | K64: Lease Interest Rate (APR - %) | N64: 0 | P64: =IFERROR(INDIRECT(VLOOKUP(MID(CELL("filename",N64),FIND("]", CELL("filename",N64))+1,32) & "!" & ADDRESS(ROW(N64),COLUMN(N64),4,1), DB_Sensitivity_Indirect_Reference_Comp,2, FALSE)), N64) -> 0
B65: OR | K65: OR
B66: Money Factor (#) | E66: 0.004166666667 | G66: =IFERROR(INDIRECT(VLOOKUP(MID(CELL("filename",E66),FIND("]", CELL("filename",E66))+1,32) & "!" & ADDRESS(ROW(E66),COLUMN(E66),4,1), DB_Sensitivity_Indirect_Reference_Base,2, FALSE)), E66) -> 0.004166666667 | K66: Money Factor (#) | N66: 0 | P66: =IFERROR(INDIRECT(VLOOKUP(MID(CELL("filename",N66),FIND("]", CELL("filename",N66))+1,32) & "!" & ADDRESS(ROW(N66),COLUMN(N66),4,1), DB_Sensitivity_Indirect_Reference_Comp,2, FALSE)), N66) -> 0
B67: Acquisition Fee ($/Vehicle) | E67: 0 | G67: 0 | K67: Acquisition Fee ($/Vehicle) | N67: 0 | P67: 0
B68: Disposition Charge ($/Vehicle) | E68: 0 | G68: 0 | K68: Disposition Charge ($/Vehicle) | N68: 0 | P68: 0
B69: Negotiated Residual Value ($/Vehicle) | E69: 17000 | G69: 17000 | H69: =IF(IFERROR(FIND("Tax-Exempt",_Base_V1_Ownership_Structure,1),0)>0,IF(Base_V1_Lease_Residual_Price=1,TRUE,FALSE),TRUE) -> TRUE | K69: Negotiated Residual Value ($/Vehicle) | N69: 0 | P69: 0 | Q69: =IF(IFERROR(FIND("Tax-Exempt",_Comp_V1_Ownership_Structure,1),0)>0,IF(Comp_V1_Lease_Residual_Price=1,TRUE,FALSE),TRUE) -> TRUE
B70: Mileage Included (Closed-End Only) | E70: 0 | G70: 0 | K70: Mileage Included (Closed-End Only) | N70: 0 | P70: 0
B71: ="Excess Mileage Cost ($/" & Constant_Distance_Metric & ")" -> Excess Mileage Cost ($/Kilometer) | E71: 0 | G71: 0 | K71: ="Excess Mileage Cost ($/" & Constant_Distance_Metric & ")" -> Excess Mileage Cost ($/Kilometer) | N71: 0 | P71: 0
B72: Loan | K72: Loan
B73: Loan Term (Years) | E73: 4 | G73: =IFERROR(INDIRECT(VLOOKUP(MID(CELL("filename",E73),FIND("]", CELL("filename",E73))+1,32) & "!" & ADDRESS(ROW(E73),COLUMN(E73),4,1), DB_Sensitivity_Indirect_Reference_Base,2, FALSE)), E73) -> 4 | H73: Data validation handled in VBA | K73: Loan Term (Years) | N73: 4 | P73: =IFERROR(INDIRECT(VLOOKUP(MID(CELL("filename",N73),FIND("]", CELL("filename",N73))+1,32) & "!" & ADDRESS(ROW(N73),COLUMN(N73),4,1), DB_Sensitivity_Indirect_Reference_Comp,2, FALSE)), N73) -> 4 | Q73: Data validation handled in VBA
B74: Loan Interest Rate (APR - %) | E74: 0.05 | G74: =IFERROR(INDIRECT(VLOOKUP(MID(CELL("filename",E74),FIND("]", CELL("filename",E74))+1,32) & "!" & ADDRESS(ROW(E74),COLUMN(E74),4,1), DB_Sensitivity_Indirect_Reference_Base,2, FALSE)), E74) -> 0.05 | K74: Loan Interest Rate (APR - %) | N74: 0.05 | P74: =IFERROR(INDIRECT(VLOOKUP(MID(CELL("filename",N74),FIND("]", CELL("filename",N74))+1,32) & "!" & ADDRESS(ROW(N74),COLUMN(N74),4,1), DB_Sensitivity_Indirect_Reference_Comp,2, FALSE)), N74) -> 0.05
B76: Vehicle Type #2 | K76: Vehicle Type #2
B77: Etc…etc. | K77: Etc…etc.
B81: EV Infrastructure Inputs
B82: Procurement 1 (Baseline) | K82: Procurement 2 (Comparison)
B83: Procurement Includes EV Charging? | E83: No | K83: Procurement Includes EV Charging? | N83: No
B84: Number of Level 2 EV Stations Needed (#) | E84: 0 | G84: =IFERROR(INDIRECT(VLOOKUP(MID(CELL("filename",E84),FIND("]", CELL("filename",E84))+1,32) & "!" & ADDRESS(ROW(E84),COLUMN(E84),4,1), DB_Sensitivity_Indirect_Reference_Base,2, FALSE)), E84) -> 0 | K84: Number of Level 2 EV Stations Needed (#) | N84: 0 | P84: =IFERROR(INDIRECT(VLOOKUP(MID(CELL("filename",N84),FIND("]", CELL("filename",N84))+1,32) & "!" & ADDRESS(ROW(N84),COLUMN(N84),4,1), DB_Sensitivity_Indirect_Reference_Comp,2, FALSE)), N84) -> 0
B85: Equipment and Installation Cost ($/Station) | E85: 0 | F85: =IF(_Market="U.S.", DB_Charging_Station_Cost_US, DB_Charging_Station_Cost_Canada) -> 5000 | G85: =IFERROR(INDIRECT(VLOOKUP(MID(CELL("filename",E85),FIND("]", CELL("filename",E85))+1,32) & "!" & ADDRESS(ROW(E85),COLUMN(E85),4,1), DB_Sensitivity_Indirect_Reference_Base,2, FALSE)), E85) -> 0 | K85: Equipment and Installation Cost ($/Station) | N85: 0 | O85: =IF(_Market="U.S.", DB_Charging_Station_Cost_US, DB_Charging_Station_Cost_Canada) -> 5000 | P85: =IFERROR(INDIRECT(VLOOKUP(MID(CELL("filename",N85),FIND("]", CELL("filename",N85))+1,32) & "!" & ADDRESS(ROW(N85),COLUMN(N85),4,1), DB_Sensitivity_Indirect_Reference_Comp,2, FALSE)), N85) -> 0
B86: Maintenance Cost ($/Station/Year) | E86: 0 | F86: =IF(_Market="U.S.", DB_Charging_Station_Maint_Cost_US, DB_Charging_Station_Maint_Cost_Canada) -> 75 | G86: =IFERROR(INDIRECT(VLOOKUP(MID(CELL("filename",E86),FIND("]", CELL("filename",E86))+1,32) & "!" & ADDRESS(ROW(E86),COLUMN(E86),4,1), DB_Sensitivity_Indirect_Reference_Base,2, FALSE)), E86) -> 0 | K86: Maintenance Cost ($/Station/Year) | N86: 0 | O86: =IF(_Market="U.S.", DB_Charging_Station_Maint_Cost_US, DB_Charging_Station_Maint_Cost_Canada) -> 75 | P86: =IFERROR(INDIRECT(VLOOKUP(MID(CELL("filename",N86),FIND("]", CELL("filename",N86))+1,32) & "!" & ADDRESS(ROW(N86),COLUMN(N86),4,1), DB_Sensitivity_Indirect_Reference_Comp,2, FALSE)), N86) -> 0
B87: Ownership Structure | E87: Purchase (Cash) | H87: =IF(IFERROR(FIND("Cash",_Base_Inf_Ownership_Structure,1),0)>0,TRUE,FALSE) -> TRUE | K87: Ownership Structure | N87: Purchase (Cash) | Q87: =IF(IFERROR(FIND("Cash",_Comp_Inf_Ownership_Structure,1),0)>0,TRUE,FALSE) -> TRUE
B88: Loan | K88: Loan
B89: Cash Upfront / Down Payment ($) | E89: 0 | G89: =IFERROR(INDIRECT(VLOOKUP(MID(CELL("filename",E89),FIND("]", CELL("filename",E89))+1,32) & "!" & ADDRESS(ROW(E89),COLUMN(E89),4,1), DB_Sensitivity_Indirect_Reference_Base,2, FALSE)), E89) -> 0 | K89: Cash Upfront / Down Payment ($) | N89: 0 | P89: =IFERROR(INDIRECT(VLOOKUP(MID(CELL("filename",N89),FIND("]", CELL("filename",N89))+1,32) & "!" & ADDRESS(ROW(N89),COLUMN(N89),4,1), DB_Sensitivity_Indirect_Reference_Comp,2, FALSE)), N89) -> 0
B90: Loan Term (Years) | E90: 0 | G90: =IFERROR(INDIRECT(VLOOKUP(MID(CELL("filename",E90),FIND("]", CELL("filename",E90))+1,32) & "!" & ADDRESS(ROW(E90),COLUMN(E90),4,1), DB_Sensitivity_Indirect_Reference_Base,2, FALSE)), E90) -> 0 | K90: Loan Term (Years) | N90: 0 | P90: =IFERROR(INDIRECT(VLOOKUP(MID(CELL("filename",N90),FIND("]", CELL("filename",N90))+1,32) & "!" & ADDRESS(ROW(N90),COLUMN(N90),4,1), DB_Sensitivity_Indirect_Reference_Comp,2, FALSE)), N90) -> 0
B91: Interest Rate (APR - %) | E91: 0 | G91: =IFERROR(INDIRECT(VLOOKUP(MID(CELL("filename",E91),FIND("]", CELL("filename",E91))+1,32) & "!" & ADDRESS(ROW(E91),COLUMN(E91),4,1), DB_Sensitivity_Indirect_Reference_Base,2, FALSE)), E91) -> 0 | K91: Interest Rate (APR - %) | N91: 0 | P91: =IFERROR(INDIRECT(VLOOKUP(MID(CELL("filename",N91),FIND("]", CELL("filename",N91))+1,32) & "!" & ADDRESS(ROW(N91),COLUMN(N91),4,1), DB_Sensitivity_Indirect_Reference_Comp,2, FALSE)), N91) -> 0

Sheet Results
A1: Results - Fleet Procurement Analysis Tool
A2: ="Procurement Name: " & Procurement_Name -> Procurement Name: Demo Fleet Procurement
B3: Procurement Summary
L4: Procurement Details
B5: ="Vehicle Cost per " & Constant_Distance_Metric & " (Nominal)" -> Vehicle Cost per Kilometer (Nominal) | M5: =Base_V1_Type_Ex&" (Baseline)" -> 2018 CHEVROLET BOLT EV BEV (Baseline) | N5: =Comp_V1_Type_Ex&" (Comparison)" -> 2018 CHEVROLET CRUZE ICE (Comparison)
L6: Procurement Type | M6: =_Base_V1_Ownership_Structure -> Purchase (Cash) | N6: =_Comp_V1_Ownership_Structure -> Purchase (Cash)
L7: Number of Vehicles Procured | M7: =Base_V1_Num_Vehicles_Modeled -> 19 | N7: =Comp_V1_Num_Vehicles_Modeled -> 19
L8: Years of Use/Ownership | M8: =Base_V1_Years_Usage_Modeled -> 7 | N8: =Comp_V1_Years_Usage_Modeled -> 7
L9: =Constant_Distance_Metric & "s Procured" -> Kilometers Procured | M9: =Base_V1_Years_Usage_Modeled*Base_V1_VMT_Modeled*Base_V1_Num_Vehicles_Modeled -> 3209955 | N9: =Comp_V1_Years_Usage_Modeled*Comp_V1_VMT_Modeled*Comp_V1_Num_Vehicles_Modeled -> 3209955
L10: Total NPV Vehicle and Operating Cost | M10: =SUM(M11:M14) -> 1226950.463 | N10: =SUM(N11:N14) -> 1313564.18
L11: Total Tax Incentives Captured | M11: =IF(Base_V1_Tax_Incentives_Monetized="Yes",(Base_V1_Federal_Tax_Incentives_Modeled*Base_V1_Num_Vehicles_Modeled)+IF(Base_V1_State_Tax_Incentive_Cap_Modeled=0,Base_V1_State_Tax_Incentives_Modeled*Base_V1_Num_Vehicles_Modeled,MIN(Base_V1_State_Tax_Incentive_Cap_Modeled,Base_V1_State_Tax_Incentives_Modeled*Base_V1_Num_Vehicles_Modeled)),0) -> 0 | N11: =IF(Comp_V1_Tax_Incentives_Monetized="Yes",(Comp_V1_Federal_Tax_Incentives_Modeled*Comp_V1_Num_Vehicles_Modeled)+IF(Comp_V1_State_Tax_Incentive_Cap_Modeled=0,Comp_V1_State_Tax_Incentives_Modeled*Comp_V1_Num_Vehicles_Modeled,MIN(Comp_V1_State_Tax_Incentive_Cap_Modeled,Comp_V1_State_Tax_Incentives_Modeled*Comp_V1_Num_Vehicles_Modeled)),0) -> 0
L12: Total Non-Tax Incentive Captured | M12: =Base_V1_Other_Incentives_Modeled*Base_V1_Num_Vehicles_Modeled -> 95000 | N12: =Comp_V1_Other_Incentives_Modeled*Comp_V1_Num_Vehicles_Modeled -> 0
L13: Total Discounts Captured | M13: =IF(_Base_V1_Pricing_Approach="MSRP Less Discounts",Base_V1_Discounts_Modeled*Base_V1_Num_Vehicles_Modeled,0) -> 0 | N13: =IF(_Comp_V1_Pricing_Approach="MSRP Less Discounts",Comp_V1_Discounts_Modeled*Comp_V1_Num_Vehicles_Modeled,0) -> 0
L14: NPV Vehicle Total Cost less Incentives and Discounts | M14: =-Base_V1_Annualized_Cost_Ownership_Ex*Base_V1_Years_Usage_Modeled*Base_V1_Num_Vehicles_Modeled -> 1131950.463 | N14: =-Comp_V1_Annualized_Cost_Ownership_Ex*Comp_V1_Years_Usage_Modeled*Comp_V1_Num_Vehicles_Modeled -> 1313564.18
L15: NPV Total Cost of Infrastructure | M15: =-Base_Inf_Annualized_Cost_Ownership_Ex*Base_V1_Years_Usage_Modeled -> 0 | N15: =-Comp_Inf_Annualized_Cost_Ownership_Ex*Comp_V1_Years_Usage_Modeled -> 0
L16: Total NPV Cost | M16: =SUM(M14:M15) -> 1131950.463 | N16: =SUM(N14:N15) -> 1313564.18
B17: ="The baseline is "& ABS(ROUND(('Results Tables'!C29-'Results Tables'!D29)/'Results Tables'!C29*100,2))&"% "&IF(ROUND(('Results Tables'!C29-'Results Tables'!D29)/'Results Tables'!C29*100,2)>0,"more","less")&" expensive than the comparison vehicle" -> The baseline is 16.04% less expensive than the comparison vehicle | L17: ="Total NPV Cost / " & Constant_Distance_Metric -> Total NPV Cost / Kilometer | M17: =M16/M9 -> 0.3526374864 | N17: =N16/N9 -> 0.4092157616
B19: Societal Benefit Summary
B30: Fleet Gasoline Use (Total All Vehicles)
B32: =Base_V1_Type_Ex&" Based Fleet" -> 2018 CHEVROLET BOLT EV BEV Based Fleet | F32: VS | G32: =Comp_V1_Type_Ex&" Based Fleet" -> 2018 CHEVROLET CRUZE ICE Based Fleet | K32: = | L32: ="The baseline fleet uses "& TEXT(ABS(ROUND(B33-G33,0)),"#,##0")&" "&IF(ROUND(B33-G33,0)>0,"more ","fewer ")& LOWER(Constant_Volume_Metric) & "s of gasoline than the comparison fleet" -> The baseline fleet uses 235,611 fewer liters of gasoline than the comparison fleet
B33: ='Results Tables'!C36 -> 0 | D33: =LOWER(Constant_Volume_Metric) & "s" -> liters | G33: ='Results Tables'!D36 -> 235610.697 | I33: =LOWER(Constant_Volume_Metric) & "s" -> liters
B35: Cash Flow Summary
B56: Sensitivity Analysis

Sheet Financial Model
A1: Financial Models - Fleet Procurement Analysis Tool
D2: Year 0 | E2: Year 1 | F2: Year 2 | G2: Year 3 | H2: Year 4 | I2: Year 5 | J2: Year 6 | K2: Year 7 | L2: Year 8 | M2: Year 9 | N2: Year 10 | O2: Year 11 | P2: Year 12 | Q2: Year 13 | R2: Year 14 | S2: Year 15 | T2: Year 16 | U2: Year 17 | V2: Year 18 | W2: Year 19 | X2: Year 20 | Y2: Year 21 | Z2: Year 22 | AA2: Year 23 | AB2: Year 24 | AC2: Year 25
B3: Baseline Vehicle 1
D4: Year 0 | E4: Year 1 | F4: Year 2 | G4: Year 3 | H4: Year 4 | I4: Year 5 | J4: Year 6 | K4: Year 7 | L4: Year 8 | M4: Year 9 | N4: Year 10 | O4: Year 11 | P4: Year 12 | Q4: Year 13 | R4: Year 14 | S4: Year 15 | T4: Year 16 | U4: Year 17 | V4: Year 18 | W4: Year 19 | X4: Year 20 | Y4: Year 21 | Z4: Year 22 | AA4: Year 23 | AB4: Year 24 | AC4: Year 25
B5: Depreciation Calculations
B6: Fair Market Value - BEV | D6: =IF(_Base_V1_Vehicle_Drivetrain="BEV",Base_V1_Base_Price_Ex,0) -> 44300 | E6: =IF(_Base_V1_Vehicle_Drivetrain="BEV",MAX(IF(_Base_V1_Vehicle_Drivetrain="BEV",Reg_BEV_Const_Ex+Reg_BEV_Age_Coef_Ex*(COLUMN(E4)-COLUMN($D4))+Reg_BEV_Agesq_Coef_Ex*((COLUMN(E4)-COLUMN($D4))^2)+Reg_BEV_MSRP_Coef_Ex*Base_V1_Base_Price_Ex+Reg_BEV_Range_Coef_Ex*Constant_Baseline_Electric_Range+Reg_BEV_Mileage_Coef_Ex*Base_V1_VMT_Modeled*(COLUMN(E4)-COLUMN($D4)),0),300),0) -> 30195.29745 | F6: =IF(_Base_V1_Vehicle_Drivetrain="BEV",MAX(IF(_Base_V1_Vehicle_Drivetrain="BEV",Reg_BEV_Const_Ex+Reg_BEV_Age_Coef_Ex*(COLUMN(F4)-COLUMN($D4))+Reg_BEV_Agesq_Coef_Ex*((COLUMN(F4)-COLUMN($D4))^2)+Reg_BEV_MSRP_Coef_Ex*Base_V1_Base_Price_Ex+Reg_BEV_Range_Coef_Ex*Constant_Baseline_Electric_Range+Reg_BEV_Mileage_Coef_Ex*Base_V1_VMT_Modeled*(COLUMN(F4)-COLUMN($D4)),0),300),0) -> 24210.8293 | G6: =IF(_Base_V1_Vehicle_Drivetrain="BEV",MAX(IF(_Base_V1_Vehicle_Drivetrain="BEV",Reg_BEV_Const_Ex+Reg_BEV_Age_Coef_Ex*(COLUMN(G4)-COLUMN($D4))+Reg_BEV_Agesq_Coef_Ex*((COLUMN(G4)-COLUMN($D4))^2)+Reg_BEV_MSRP_Coef_Ex*Base_V1_Base_Price_Ex+Reg_BEV_Range_Coef_Ex*Constant_Baseline_Electric_Range+Reg_BEV_Mileage_Coef_Ex*Base_V1_VMT_Modeled*(COLUMN(G4)-COLUMN($D4)),0),300),0) -> 17963.79515 | H6: =IF(_Base_V1_Vehicle_Drivetrain="BEV",MAX(IF(_Base_V1_Vehicle_Drivetrain="BEV",Reg_BEV_Const_Ex+Reg_BEV_Age_Coef_Ex*(COLUMN(H4)-COLUMN($D4))+Reg_BEV_Agesq_Coef_Ex*((COLUMN(H4)-COLUMN($D4))^2)+Reg_BEV_MSRP_Coef_Ex*Base_V1_Base_Price_Ex+Reg_BEV_Range_Coef_Ex*Constant_Baseline_Electric_Range+Reg_BEV_Mileage_Coef_Ex*Base_V1_VMT_Modeled*(COLUMN(H4)-COLUMN($D4)),0),300),0) -> 11454.195 | I6: =IF(_Base_V1_Vehicle_Drivetrain="BEV",MAX(IF(_Base_V1_Vehicle_Drivetrain="BEV",Reg_BEV_Const_Ex+Reg_BEV_Age_Coef_Ex*(COLUMN(I4)-COLUMN($D4))+Reg_BEV_Agesq_Coef_Ex*((COLUMN(I4)-COLUMN($D4))^2)+Reg_BEV_MSRP_Coef_Ex*Base_V1_Base_Price_Ex+Reg_BEV_Range_Coef_Ex*Constant_Baseline_Electric_Range+Reg_BEV_Mileage_Coef_Ex*Base_V1_VMT_Modeled*(COLUMN(I4)-COLUMN($D4)),0),300),0) -> 4682.02885 | J6: =IF($H6-$I6=0,0,MAX((1-($H6-$I6)/$H6)*I6,300)) -> 1913.831059 | K6: =IF($H6-$I6=0,0,MAX((1-($H6-$I6)/$H6)*J6,300)) -> 782.2996059 | L6: 319.7736134 | M6: 300 | N6: 300 | O6: 300 | P6: 300 | Q6: 300 | R6: 300 | S6: 300 | T6: 300 | U6: 300 | V6: 300 | W6: 300 | X6: 300 | Y6: 300 | Z6: 300 | AA6: 300 | AB6: 300 | AC6: 300
B7: Fair Market Value - PHEV | D7: =IF(_Base_V1_Vehicle_Drivetrain="PHEV",Base_V1_Base_Price_Ex,0) -> 0 | E7: =IF(_Base_V1_Vehicle_Drivetrain="PHEV",MAX(IF(_Base_V1_Vehicle_Drivetrain="PHEV",Reg_PHEV_Const_Ex+Reg_PHEV_Age_Coef_Ex*(COLUMN(E4)-COLUMN($D4))+Reg_PHEV_Agesq_Coef_Ex*((COLUMN(E4)-COLUMN($D4))^2)+Reg_PHEV_MSRP_Coef_Ex*Base_V1_Base_Price_Ex+Reg_PHEV_Range_Coef_Ex*Constant_Baseline_Electric_Range+Reg_PHEV_Mileage_Coef_Ex*Base_V1_VMT_Modeled*(COLUMN(E4)-COLUMN($D4)),0),300),0) -> 0 | F7: =IF(_Base_V1_Vehicle_Drivetrain="PHEV",MAX(IF(_Base_V1_Vehicle_Drivetrain="PHEV",Reg_PHEV_Const_Ex+Reg_PHEV_Age_Coef_Ex*(COLUMN(F4)-COLUMN($D4))+Reg_PHEV_Agesq_Coef_Ex*((COLUMN(F4)-COLUMN($D4))^2)+Reg_PHEV_MSRP_Coef_Ex*Base_V1_Base_Price_Ex+Reg_PHEV_Range_Coef_Ex*Constant_Baseline_Electric_Range+Reg_PHEV_Mileage_Coef_Ex*Base_V1_VMT_Modeled*(COLUMN(F4)-COLUMN($D4)),0),300),0) -> 0 | G7: =IF(_Base_V1_Vehicle_Drivetrain="PHEV",MAX(IF(_Base_V1_Vehicle_Drivetrain="PHEV",Reg_PHEV_Const_Ex+Reg_PHEV_Age_Coef_Ex*(COLUMN(G4)-COLUMN($D4))+Reg_PHEV_Agesq_Coef_Ex*((COLUMN(G4)-COLUMN($D4))^2)+Reg_PHEV_MSRP_Coef_Ex*Base_V1_Base_Price_Ex+Reg_PHEV_Range_Coef_Ex*Constant_Baseline_Electric_Range+Reg_PHEV_Mileage_Coef_Ex*Base_V1_VMT_Modeled*(COLUMN(G4)-COLUMN($D4)),0),300),0) -> 0 | H7: =IF(_Base_V1_Vehicle_Drivetrain="PHEV",MAX(IF(_Base_V1_Vehicle_Drivetrain="PHEV",Reg_PHEV_Const_Ex+Reg_PHEV_Age_Coef_Ex*(COLUMN(H4)-COLUMN($D4))+Reg_PHEV_Agesq_Coef_Ex*((COLUMN(H4)-COLUMN($D4))^2)+Reg_PHEV_MSRP_Coef_Ex*Base_V1_Base_Price_Ex+Reg_PHEV_Range_Coef_Ex*Constant_Baseline_Electric_Range+Reg_PHEV_Mileage_Coef_Ex*Base_V1_VMT_Modeled*(COLUMN(H4)-COLUMN($D4)),0),300),0) -> 0 | I7: =IF(_Base_V1_Vehicle_Drivetrain="PHEV",MAX(IF(_Base_V1_Vehicle_Drivetrain="PHEV",Reg_PHEV_Const_Ex+Reg_PHEV_Age_Coef_Ex*(COLUMN(I4)-COLUMN($D4))+Reg_PHEV_Agesq_Coef_Ex*((COLUMN(I4)-COLUMN($D4))^2)+Reg_PHEV_MSRP_Coef_Ex*Base_V1_Base_Price_Ex+Reg_PHEV_Range_Coef_Ex*Constant_Baseline_Electric_Range+Reg_PHEV_Mileage_Coef_Ex*Base_V1_VMT_Modeled*(COLUMN(I4)-COLUMN($D4)),0),300),0) -> 0 | J7: =IF($H7-$I7=0,0,MAX((1-($H7-$I7)/$H7)*I7,300)) -> 0 | K7: 0 | L7: 0 | M7: 0 | N7: 0 | O7: 0 | P7: 0 | Q7: 0 | R7: 0 | S7: 0 | T7: 0 | U7: 0 | V7: 0 | W7: 0 | X7: 0 | Y7: 0 | Z7: 0 | AA7: 0 | AB7: 0 | AC7: 0
B8: Fair Market Value - ICE | D8: =IF(_Base_V1_Vehicle_Drivetrain="ICE",Base_V1_Base_Price_Ex,0) -> 0 | E8: =IF(_Base_V1_Vehicle_Drivetrain="ICE",MAX(IF(_Base_V1_Vehicle_Drivetrain="ICE",Reg_ICE_Const_Ex+Reg_ICE_Age_Coef_Ex*(COLUMN(E4)-COLUMN($D4))+Reg_ICE_Agesq_Coef_Ex*(COLUMN(E4)-COLUMN($D4))^2+Reg_ICE_MSRP_Coef_Ex*Base_V1_Base_Price_Ex+Reg_ICE_MPG_Coef_Ex*Constant_Baseline_Fuel_Economy_Gas_City+Reg_ICE_Mileage_Coef_Ex*Base_V1_VMT_Modeled*(COLUMN(E4)-COLUMN($D4)),0),300),0) -> 0 | F8: =IF(_Base_V1_Vehicle_Drivetrain="ICE",MAX(IF(_Base_V1_Vehicle_Drivetrain="ICE",Reg_ICE_Const_Ex+Reg_ICE_Age_Coef_Ex*(COLUMN(F4)-COLUMN($D4))+Reg_ICE_Agesq_Coef_Ex*(COLUMN(F4)-COLUMN($D4))^2+Reg_ICE_MSRP_Coef_Ex*Base_V1_Base_Price_Ex+Reg_ICE_MPG_Coef_Ex*Constant_Baseline_Fuel_Economy_Gas_City+Reg_ICE_Mileage_Coef_Ex*Base_V1_VMT_Modeled*(COLUMN(F4)-COLUMN($D4)),0),300),0) -> 0 | G8: =IF(_Base_V1_Vehicle_Drivetrain="ICE",MAX(IF(_Base_V1_Vehicle_Drivetrain="ICE",Reg_ICE_Const_Ex+Reg_ICE_Age_Coef_Ex*(COLUMN(G4)-COLUMN($D4))+Reg_ICE_Agesq_Coef_Ex*(COLUMN(G4)-COLUMN($D4))^2+Reg_ICE_MSRP_Coef_Ex*Base_V1_Base_Price_Ex+Reg_ICE_MPG_Coef_Ex*Constant_Baseline_Fuel_Economy_Gas_City+Reg_ICE_Mileage_Coef_Ex*Base_V1_VMT_Modeled*(COLUMN(G4)-COLUMN($D4)),0),300),0) -> 0 | H8: =IF(_Base_V1_Vehicle_Drivetrain="ICE",MAX(IF(_Base_V1_Vehicle_Drivetrain="ICE",Reg_ICE_Const_Ex+Reg_ICE_Age_Coef_Ex*(COLUMN(H4)-COLUMN($D4))+Reg_ICE_Agesq_Coef_Ex*(COLUMN(H4)-COLUMN($D4))^2+Reg_ICE_MSRP_Coef_Ex*Base_V1_Base_Price_Ex+Reg_ICE_MPG_Coef_Ex*Constant_Baseline_Fuel_Economy_Gas_City+Reg_ICE_Mileage_Coef_Ex*Base_V1_VMT_Modeled*(COLUMN(H4)-COLUMN($D4)),0),300),0) -> 0 | I8: =IF(_Base_V1_Vehicle_Drivetrain="ICE",MAX(IF(_Base_V1_Vehicle_Drivetrain="ICE",Reg_ICE_Const_Ex+Reg_ICE_Age_Coef_Ex*(COLUMN(I4)-COLUMN($D4))+Reg_ICE_Agesq_Coef_Ex*(COLUMN(I4)-COLUMN($D4))^2+Reg_ICE_MSRP_Coef_Ex*Base_V1_Base_Price_Ex+Reg_ICE_MPG_Coef_Ex*Constant_Baseline_Fuel_Economy_Gas_City+Reg_ICE_Mileage_Coef_Ex*Base_V1_VMT_Modeled*(COLUMN(I4)-COLUMN($D4)),0),300),0) -> 0 | J8: =IF($H8-$I8=0,0,MAX((1-($H8-$I8)/$H8)*I8,300)) -> 0 | K8: 0 | L8: 0 | M8: 0 | N8: 0 | O8: 0 | P8: 0 | Q8: 0 | R8: 0 | S8: 0 | T8: 0 | U8: 0 | V8: 0 | W8: 0 | X8: 0 | Y8: 0 | Z8: 0 | AA8: 0 | AB8: 0 | AC8: 0
B10: Capital and Financing Costs
B11: Cash
B12: Cash Payment | D12: =IF(AND(Base_V1_Has_Cash_Purchase_Ex=TRUE,Base_V1_Has_Loan_Ex=FALSE,Base_V1_Has_Lease_Ex=FALSE,COLUMN(D4)-COLUMN($D4)=0),-(Base_V1_Base_Price_Ex-IF(Base_V1_Tax_Incentives_Monetized="Yes",Base_V1_Federal_Tax_Incentives_Modeled+IF(Base_V1_State_Tax_Incentive_Cap_Modeled=0,Base_V1_State_Tax_Incentives_Modeled,MIN(Base_V1_State_Tax_Incentive_Cap_Modeled,Base_V1_State_Tax_Incentives_Modeled*Base_V1_Num_Vehicles_Modeled)/Base_V1_Num_Vehicles_Modeled),0)-Base_V1_Other_Incentives_Modeled),IF(AND(Base_V1_Has_Cash_Purchase_Ex=TRUE,OR(Base_V1_Has_Loan_Ex=TRUE,Base_V1_Has_Lease_Ex=TRUE),COLUMN(D4)-COLUMN($D4)=Base_V1_Lease_Term_Modeled),IF(ISERROR(FIND("Tax",_Base_V1_Ownership_Structure,1)),-SUM(D6:D8),-Base_V1_Lease_Residual_Price_Modeled),0)) -> -39300 | E12: 0 | F12: 0 | G12: 0 | H12: 0 | I12: 0 | J12: 0 | K12: 0 | L12: 0 | M12: 0 | N12: 0 | O12: 0 | P12: 0 | Q12: 0 | R12: 0 | S12: 0 | T12: 0 | U12: 0 | V12: 0 | W12: 0 | X12: 0 | Y12: 0 | Z12: 0 | AA12: 0 | AB12: 0 | AC12: 0
B13: Lease
B14: Down Payment | D14: =IF(Base_V1_Has_Lease_Ex=TRUE,-Base_V1_Down_Payment_Modeled,0) -> 0
B15: Acquisition Fee | D15: =IF(Base_V1_Has_Lease_Ex=TRUE,-Base_V1_Lease_Acquisition_Fee_Modeled,0) -> 0
B16: Disposition Charge | D16: =IF(AND(Base_V1_Has_Lease_Ex=TRUE,((COLUMN(D4)-COLUMN($D4))=Base_V1_Lease_Term_Modeled)),-Base_V1_Lease_Disposition_Fee_Modeled,0) -> 0 | E16: 0 | F16: 0 | G16: 0 | H16: 0 | I16: 0 | J16: 0 | K16: 0 | L16: 0 | M16: 0 | N16: 0 | O16: 0 | P16: 0 | Q16: 0 | R16: 0 | S16: 0 | T16: 0 | U16: 0 | V16: 0 | W16: 0 | X16: 0 | Y16: 0 | Z16: 0 | AA16: 0 | AB16: 0 | AC16: 0
B17: Lease Payments | E17: =IF(Base_V1_Has_Lease_Ex=TRUE,IF((COLUMN(E4)-COLUMN($E4))<Base_V1_Lease_Term_Modeled,-PMT(Base_V1_Lease_APR_Modeled/12,Base_V1_Lease_Term_Modeled*12,-(Base_V1_Base_Price_Ex-IF(Base_V1_Tax_Incentives_Monetized="Yes",Base_V1_Federal_Tax_Incentives_Modeled+IF(Base_V1_State_Tax_Incentive_Cap_Modeled=0,Base_V1_State_Tax_Incentives_Modeled,MIN(Base_V1_State_Tax_Incentive_Cap_Modeled,Base_V1_State_Tax_Incentives_Modeled*Base_V1_Num_Vehicles_Modeled)/Base_V1_Num_Vehicles_Modeled),0)-Base_V1_Other_Incentives_Modeled-Base_V1_Down_Payment_Modeled)+Base_V1_Lease_Residual_Price_Modeled,0)*12,0),0) -> 0 | F17: 0 | G17: 0 | H17: 0 | I17: 0 | J17: 0 | K17: 0 | L17: 0 | M17: 0 | N17: 0 | O17: 0 | P17: 0 | Q17: 0 | R17: 0 | S17: 0 | T17: 0 | U17: 0 | V17: 0 | W17: 0 | X17: 0 | Y17: 0 | Z17: 0 | AA17: 0 | AB17: 0 | AC17: 0
B18: Principal Payments | E18: =IF(Base_V1_Has_Lease_Ex=TRUE,IF((COLUMN(E4)-COLUMN($E4))<Base_V1_Lease_Term_Modeled,-PPMT(Base_V1_Lease_APR_Modeled/12,(COLUMN(E4)-COLUMN($D4))*12,Base_V1_Lease_Term_Modeled*12,-(Base_V1_Base_Price_Ex-IF(Base_V1_Tax_Incentives_Monetized="Yes",Base_V1_Federal_Tax_Incentives_Modeled+IF(Base_V1_State_Tax_Incentive_Cap_Modeled=0,Base_V1_State_Tax_Incentives_Modeled,MIN(Base_V1_State_Tax_Incentive_Cap_Modeled,Base_V1_State_Tax_Incentives_Modeled*Base_V1_Num_Vehicles_Modeled)/Base_V1_Num_Vehicles_Modeled),0)-Base_V1_Other_Incentives_Modeled-Base_V1_Down_Payment_Modeled)+Base_V1_Lease_Residual_Price_Modeled,0)*12,0),0) -> 0 | F18: 0 | G18: 0 | H18: 0 | I18: 0 | J18: 0 | K18: 0 | L18: 0 | M18: 0 | N18: 0 | O18: 0 | P18: 0 | Q18: 0 | R18: 0 | S18: 0 | T18: 0 | U18: 0 | V18: 0 | W18: 0 | X18: 0 | Y18: 0 | Z18: 0 | AA18: 0 | AB18: 0 | AC18: 0
B19: Interest Payments | E19: =IF(Base_V1_Has_Lease_Ex=TRUE,IF((COLUMN(E4)-COLUMN($E4))<Base_V1_Lease_Term_Modeled,-IPMT(Base_V1_Lease_APR_Modeled/12,(COLUMN(E4)-COLUMN($D4))*12,Base_V1_Lease_Term_Modeled*12,-(Base_V1_Base_Price_Ex-IF(Base_V1_Tax_Incentives_Monetized="Yes",Base_V1_Federal_Tax_Incentives_Modeled+IF(Base_V1_State_Tax_Incentive_Cap_Modeled=0,Base_V1_State_Tax_Incentives_Modeled,MIN(Base_V1_State_Tax_Incentive_Cap_Modeled,Base_V1_State_Tax_Incentives_Modeled*Base_V1_Num_Vehicles_Modeled)/Base_V1_Num_Vehicles_Modeled),0)-Base_V1_Other_Incentives_Modeled-Base_V1_Down_Payment_Modeled)+Base_V1_Lease_Residual_Price_Modeled,0)*12,0),0) -> 0 | F19: 0 | G19: 0 | H19: 0 | I19: 0 | J19: 0 | K19: 0 | L19: 0 | M19: 0 | N19: 0 | O19: 0 | P19: 0 | Q19: 0 | R19: 0 | S19: 0 | T19: 0 | U19: 0 | V19: 0 | W19: 0 | X19: 0 | Y19: 0 | Z19: 0 | AA19: 0 | AB19: 0 | AC19: 0
B20: TRAC Value Adjustment | E20: =IF(ISERROR(FIND("TRAC",_Base_V1_Ownership_Structure,1)),0,IF(Base_V1_Has_Loan_Ex=TRUE,0,IF((COLUMN(E4)-COLUMN($D4))=Base_V1_Lease_Term_Modeled,SUM(E6:E8)-Base_V1_Lease_Residual_Price_Modeled,0))) -> 0 | F20: 0 | G20: 0 | H20: 0 | I20: 0 | J20: 0 | K20: 0 | L20: 0 | M20: 0 | N20: 0 | O20: 0 | P20: 0 | Q20: 0 | R20: 0 | S20: 0 | T20: 0 | U20: 0 | V20: 0 | W20: 0 | X20: 0 | Y20: 0 | Z20: 0 | AA20: 0 | AB20: 0 | AC20: 0
B21: FMV Mileage Adjustment | E21: =MIN(0,MAX(-Base_V1_Lease_Residual_Price_Modeled+SUM(E6:E8),IF(IFERROR(IF(FIND("FMV",_Base_V1_Ownership_Structure,1)>0,TRUE,FALSE),FALSE),IF((COLUMN(E4)-COLUMN($D4))=Base_V1_Lease_Term_Modeled,(Base_V1_Lease_Mileage_Inc_Modeled-Base_V1_VMT_Modeled)*(COLUMN(E4)-COLUMN($D4))*Base_V1_Lease_Mileage_Cost_Modeled,0),0))) -> 0 | F21: 0 | G21: 0 | H21: 0 | I21: 0 | J21: 0 | K21: 0 | L21: 0 | M21: 0 | N21: 0 | O21: 0 | P21: 0 | Q21: 0 | R21: 0 | S21: 0 | T21: 0 | U21: 0 | V21: 0 | W21: 0 | X21: 0 | Y21: 0 | Z21: 0 | AA21: 0 | AB21: 0 | AC21: 0
B22: Subtotal Lease Cash Flows | D22: =SUM(D14:D17)+SUM(D20:D21) -> 0 | E22: =SUM(E14:E17)+SUM(E20:E21) -> 0 | F22: 0 | G22: 0 | H22: 0 | I22: 0 | J22: 0 | K22: 0 | L22: 0 | M22: 0 | N22: 0 | O22: 0 | P22: 0 | Q22: 0 | R22: 0 | S22: 0 | T22: 0 | U22: 0 | V22: 0 | W22: 0 | X22: 0 | Y22: 0 | Z22: 0 | AA22: 0 | AB22: 0 | AC22: 0
B23: Loan
B24: Down Payment | D24: =IF(AND(Base_V1_Has_Loan_Ex=TRUE,Base_V1_Has_Lease_Ex=FALSE),-Base_V1_Down_Payment_Modeled,0) -> 0
B25: Loan Payments | E25: =IF(Base_V1_Has_Loan_Ex=TRUE,IF(AND((COLUMN(E4)-COLUMN($E4))<Base_V1_Loan_Term_Modeled+Base_V1_Lease_Term_Modeled,(COLUMN(E4)-COLUMN($E4))>=Base_V1_Lease_Term_Modeled),PMT(Base_V1_Loan_APR_Modeled/12,Base_V1_Loan_Term_Modeled*12,IF(Base_V1_Has_Lease_Ex=TRUE,SUM(OFFSET($D4,0,Comp_V1_Lease_Term_Modeled,3,1)),Base_V1_Base_Price_Ex-IF(Base_V1_Tax_Incentives_Monetized="Yes",Base_V1_Federal_Tax_Incentives_Modeled+IF(Base_V1_State_Tax_Incentive_Cap_Modeled=0,Base_V1_State_Tax_Incentives_Modeled,MIN(Base_V1_State_Tax_Incentive_Cap_Modeled,Base_V1_State_Tax_Incentives_Modeled*Base_V1_Num_Vehicles_Modeled)/Base_V1_Num_Vehicles_Modeled),0)-Base_V1_Other_Incentives_Modeled-Base_V1_Down_Payment_Modeled),0)*12,0),0) -> 0 | F25: 0 | G25: 0 | H25: 0 | I25: 0 | J25: 0 | K25: 0 | L25: 0 | M25: 0 | N25: 0 | O25: 0 | P25: 0 | Q25: 0 | R25: 0 | S25: 0 | T25: 0 | U25: 0 | V25: 0 | W25: 0 | X25: 0 | Y25: 0 | Z25: 0 | AA25: 0 | AB25: 0 | AC25: 0
B26: Principal Payments | E26: =IF(Base_V1_Has_Loan_Ex=TRUE,IF(AND((COLUMN(E4)-COLUMN($E4))<Base_V1_Loan_Term_Modeled+Base_V1_Lease_Term_Modeled,(COLUMN(E4)-COLUMN($E4))>=Base_V1_Lease_Term_Modeled),PPMT(Base_V1_Loan_APR_Modeled/12,IF(Base_V1_Has_Lease_Ex=TRUE,(COLUMN(E4)-COLUMN($D4)-Base_V1_Lease_Term_Modeled)*12,(COLUMN(E4)-COLUMN($D4))*12),Base_V1_Loan_Term_Modeled*12,IF(Base_V1_Has_Lease_Ex=TRUE,SUM(OFFSET($D4,0,Comp_V1_Lease_Term_Modeled,3,1)),Base_V1_Base_Price_Ex-IF(Base_V1_Tax_Incentives_Monetized="Yes",Base_V1_Federal_Tax_Incentives_Modeled+IF(Base_V1_State_Tax_Incentive_Cap_Modeled=0,Base_V1_State_Tax_Incentives_Modeled,MIN(Base_V1_State_Tax_Incentive_Cap_Modeled,Base_V1_State_Tax_Incentives_Modeled*Base_V1_Num_Vehicles_Modeled)/Base_V1_Num_Vehicles_Modeled),0)-Base_V1_Other_Incentives_Modeled-Base_V1_Down_Payment_Modeled),0)*12,0),0) -> 0 | F26: 0 | G26: 0 | H26: 0 | I26: 0 | J26: 0 | K26: 0 | L26: 0 | M26: 0 | N26: 0 | O26: 0 | P26: 0 | Q26: 0 | R26: 0 | S26: 0 | T26: 0 | U26: 0 | V26: 0 | W26: 0 | X26: 0 | Y26: 0 | Z26: 0 | AA26: 0 | AB26: 0 | AC26: 0
B27: Interest Payments | E27: =IF(Base_V1_Has_Loan_Ex=TRUE,IF(AND((COLUMN(E4)-COLUMN($E4))<Base_V1_Loan_Term_Modeled+Base_V1_Lease_Term_Modeled,(COLUMN(E4)-COLUMN($E4))>=Base_V1_Lease_Term_Modeled),IPMT(Base_V1_Loan_APR_Modeled/12,IF(Base_V1_Has_Lease_Ex=TRUE,(COLUMN(E4)-COLUMN($D4)-Base_V1_Lease_Term)*12,(COLUMN(E4)-COLUMN($D4))*12),Base_V1_Loan_Term_Modeled*12,IF(Base_V1_Has_Lease_Ex=TRUE,SUM(OFFSET($D4,0,Comp_V1_Lease_Term_Modeled,3,1)),Base_V1_Base_Price_Ex-IF(Base_V1_Tax_Incentives_Monetized="Yes",Base_V1_Federal_Tax_Incentives_Modeled+IF(Base_V1_State_Tax_Incentive_Cap_Modeled=0,Base_V1_State_Tax_Incentives_Modeled,MIN(Base_V1_State_Tax_Incentive_Cap_Modeled,Base_V1_State_Tax_Incentives_Modeled*Base_V1_Num_Vehicles_Modeled)/Base_V1_Num_Vehicles_Modeled),0)-Base_V1_Other_Incentives_Modeled-Base_V1_Down_Payment_Modeled),0)*12,0),0) -> 0 | F27: 0 | G27: 0 | H27: 0 | I27: 0 | J27: 0 | K27: 0 | L27: 0 | M27: 0 | N27: 0 | O27: 0 | P27: 0 | Q27: 0 | R27: 0 | S27: 0 | T27: 0 | U27: 0 | V27: 0 | W27: 0 | X27: 0 | Y27: 0 | Z27: 0 | AA27: 0 | AB27: 0 | AC27: 0
B28: Subtotal Loan Cash Flows | D28: =SUM(D24:D25) -> 0 | E28: =SUM(E24:E25) -> 0 | F28: 0 | G28: 0 | H28: 0 | I28: 0 | J28: 0 | K28: 0 | L28: 0 | M28: 0 | N28: 0 | O28: 0 | P28: 0 | Q28: 0 | R28: 0 | S28: 0 | T28: 0 | U28: 0 | V28: 0 | W28: 0 | X28: 0 | Y28: 0 | Z28: 0 | AA28: 0 | AB28: 0 | AC28: 0
B29: Terminal Value | E29: =IF(OR(Base_V1_Has_Loan_Ex=TRUE,Base_V1_Has_Cash_Purchase_Ex=TRUE),IF((COLUMN(E4)-COLUMN($D4))=Base_V1_Years_Usage_Modeled,SUM(E6:E8),0),0) -> 0 | F29: 0 | G29: 0 | H29: 0 | I29: 0 | J29: 0 | K29: 782.2996059 | L29: 0 | M29: 0 | N29: 0 | O29: 0 | P29: 0 | Q29: 0 | R29: 0 | S29: 0 | T29: 0 | U29: 0 | V29: 0 | W29: 0 | X29: 0 | Y29: 0 | Z29: 0 | AA29: 0 | AB29: 0 | AC29: 0
B31: Total Capital and Financing Costs | D31: =D12+D22+D28+D29 -> -39300 | E31: =E12+E22+E28+E29 -> 0 | F31: =F12+F22+F28+F29 -> 0 | G31: 0 | H31: 0 | I31: 0 | J31: 0 | K31: 782.2996059 | L31: 0 | M31: 0 | N31: 0 | O31: 0 | P31: 0 | Q31: 0 | R31: 0 | S31: 0 | T31: 0 | U31: 0 | V31: 0 | W31: 0 | X31: 0 | Y31: 0 | Z31: 0 | AA31: 0 | AB31: 0 | AC31: 0
B33: Fuel and Operating Costs
B34: Fuel Cost | E34: =IF(COLUMN(E4)-COLUMN($E4)<Base_V1_Years_Usage_Modeled,-((Base_V1_Gas_Usage_Ex*Gasoline_Price_Modeled*IF(_Market="U.S.", Data!D$72, Data!D$75))+(Base_V1_Electricity_Usage_Ex*Electricity_Price_Modeled*IF(_Market="U.S.", Data!D$74, Data!D$76))),0) -> -508.86234 | F34: =IF(COLUMN(F4)-COLUMN($E4)<Base_V1_Years_Usage_Modeled,-((Base_V1_Gas_Usage_Ex*Gasoline_Price_Modeled*IF(_Market="U.S.", Data!E$72, Data!E$75))+(Base_V1_Electricity_Usage_Ex*Electricity_Price_Modeled*IF(_Market="U.S.", Data!E$74, Data!E$76))),0) -> -582.0582731 | G34: =IF(COLUMN(G4)-COLUMN($E4)<Base_V1_Years_Usage_Modeled,-((Base_V1_Gas_Usage_Ex*Gasoline_Price_Modeled*IF(_Market="U.S.", Data!F$72, Data!F$75))+(Base_V1_Electricity_Usage_Ex*Electricity_Price_Modeled*IF(_Market="U.S.", Data!F$74, Data!F$76))),0) -> -617.2798794 | H34: =IF(COLUMN(H4)-COLUMN($E4)<Base_V1_Years_Usage_Modeled,-((Base_V1_Gas_Usage_Ex*Gasoline_Price_Modeled*IF(_Market="U.S.", Data!G$72, Data!G$75))+(Base_V1_Electricity_Usage_Ex*Electricity_Price_Modeled*IF(_Market="U.S.", Data!G$74, Data!G$76))),0) -> -623.4694 | I34: =IF(COLUMN(I4)-COLUMN($E4)<Base_V1_Years_Usage_Modeled,-((Base_V1_Gas_Usage_Ex*Gasoline_Price_Modeled*IF(_Market="U.S.", Data!H$72, Data!H$75))+(Base_V1_Electricity_Usage_Ex*Electricity_Price_Modeled*IF(_Market="U.S.", Data!H$74, Data!H$76))),0) -> -631.8695811 | J34: =IF(COLUMN(J4)-COLUMN($E4)<Base_V1_Years_Usage_Modeled,-((Base_V1_Gas_Usage_Ex*Gasoline_Price_Modeled*IF(_Market="U.S.", Data!I$72, Data!I$75))+(Base_V1_Electricity_Usage_Ex*Electricity_Price_Modeled*IF(_Market="U.S.", Data!I$74, Data!I$76))),0) -> -644.6226088 | K34: =IF(COLUMN(K4)-COLUMN($E4)<Base_V1_Years_Usage_Modeled,-((Base_V1_Gas_Usage_Ex*Gasoline_Price_Modeled*IF(_Market="U.S.", Data!J$72, Data!J$75))+(Base_V1_Electricity_Usage_Ex*Electricity_Price_Modeled*IF(_Market="U.S.", Data!J$74, Data!J$76))),0) -> -655.7153768 | L34: =IF(COLUMN(L4)-COLUMN($E4)<Base_V1_Years_Usage_Modeled,-((Base_V1_Gas_Usage_Ex*Gasoline_Price_Modeled*IF(_Market="U.S.", Data!K$72, Data!K$75))+(Base_V1_Electricity_Usage_Ex*Electricity_Price_Modeled*IF(_Market="U.S.", Data!K$74, Data!K$76))),0) -> 0 | M34: =IF(COLUMN(M4)-COLUMN($E4)<Base_V1_Years_Usage_Modeled,-((Base_V1_Gas_Usage_Ex*Gasoline_Price_Modeled*IF(_Market="U.S.", Data!L$72, Data!L$75))+(Base_V1_Electricity_Usage_Ex*Electricity_Price_Modeled*IF(_Market="U.S.", Data!L$74, Data!L$76))),0) -> 0 | N34: =IF(COLUMN(N4)-COLUMN($E4)<Base_V1_Years_Usage_Modeled,-((Base_V1_Gas_Usage_Ex*Gasoline_Price_Modeled*IF(_Market="U.S.", Data!M$72, Data!M$75))+(Base_V1_Electricity_Usage_Ex*Electricity_Price_Modeled*IF(_Market="U.S.", Data!M$74, Data!M$76))),0) -> 0 | O34: =IF(COLUMN(O4)-COLUMN($E4)<Base_V1_Years_Usage_Modeled,-((Base_V1_Gas_Usage_Ex*Gasoline_Price_Modeled*IF(_Market="U.S.", Data!N$72, Data!N$75))+(Base_V1_Electricity_Usage_Ex*Electricity_Price_Modeled*IF(_Market="U.S.", Data!N$74, Data!N$76))),0) -> 0 | P34: =IF(COLUMN(P4)-COLUMN($E4)<Base_V1_Years_Usage_Modeled,-((Base_V1_Gas_Usage_Ex*Gasoline_Price_Modeled*IF(_Market="U.S.", Data!O$72, Data!O$75))+(Base_V1_Electricity_Usage_Ex*Electricity_Price_Modeled*IF(_Market="U.S.", Data!O$74, Data!O$76))),0) -> 0 | Q34: =IF(COLUMN(Q4)-COLUMN($E4)<Base_V1_Years_Usage_Modeled,-((Base_V1_Gas_Usage_Ex*Gasoline_Price_Modeled*IF(_Market="U.S.", Data!P$72, Data!P$75))+(Base_V1_Electricity_Usage_Ex*Electricity_Price_Modeled*IF(_Market="U.S.", Data!P$74, Data!P$76))),0) -> 0 | R34: =IF(COLUMN(R4)-COLUMN($E4)<Base_V1_Years_Usage_Modeled,-((Base_V1_Gas_Usage_Ex*Gasoline_Price_Modeled*IF(_Market="U.S.", Data!Q$72, Data!Q$75))+(Base_V1_Electricity_Usage_Ex*Electricity_Price_Modeled*IF(_Market="U.S.", Data!Q$74, Data!Q$76))),0) -> 0 | S34: =IF(COLUMN(S4)-COLUMN($E4)<Base_V1_Years_Usage_Modeled,-((Base_V1_Gas_Usage_Ex*Gasoline_Price_Modeled*IF(_Market="U.S.", Data!R$72, Data!R$75))+(Base_V1_Electricity_Usage_Ex*Electricity_Price_Modeled*IF(_Market="U.S.", Data!R$74, Data!R$76))),0) -> 0 | T34: =IF(COLUMN(T4)-COLUMN($E4)<Base_V1_Years_Usage_Modeled,-((Base_V1_Gas_Usage_Ex*Gasoline_Price_Modeled*IF(_Market="U.S.", Data!S$72, Data!S$75))+(Base_V1_Electricity_Usage_Ex*Electricity_Price_Modeled*IF(_Market="U.S.", Data!S$74, Data!S$76))),0) -> 0 | U34: =IF(COLUMN(U4)-COLUMN($E4)<Base_V1_Years_Usage_Modeled,-((Base_V1_Gas_Usage_Ex*Gasoline_Price_Modeled*IF(_Market="U.S.", Data!T$72, Data!T$75))+(Base_V1_Electricity_Usage_Ex*Electricity_Price_Modeled*IF(_Market="U.S.", Data!T$74, Data!T$76))),0) -> 0 | V34: =IF(COLUMN(V4)-COLUMN($E4)<Base_V1_Years_Usage_Modeled,-((Base_V1_Gas_Usage_Ex*Gasoline_Price_Modeled*IF(_Market="U.S.", Data!U$72, Data!U$75))+(Base_V1_Electricity_Usage_Ex*Electricity_Price_Modeled*IF(_Market="U.S.", Data!U$74, Data!U$76))),0) -> 0 | W34: =IF(COLUMN(W4)-COLUMN($E4)<Base_V1_Years_Usage_Modeled,-((Base_V1_Gas_Usage_Ex*Gasoline_Price_Modeled*IF(_Market="U.S.", Data!V$72, Data!V$75))+(Base_V1_Electricity_Usage_Ex*Electricity_Price_Modeled*IF(_Market="U.S.", Data!V$74, Data!V$76))),0) -> 0 | X34: =IF(COLUMN(X4)-COLUMN($E4)<Base_V1_Years_Usage_Modeled,-((Base_V1_Gas_Usage_Ex*Gasoline_Price_Modeled*IF(_Market="U.S.", Data!W$72, Data!W$75))+(Base_V1_Electricity_Usage_Ex*Electricity_Price_Modeled*IF(_Market="U.S.", Data!W$74, Data!W$76))),0) -> 0 | Y34: =IF(COLUMN(Y4)-COLUMN($E4)<Base_V1_Years_Usage_Modeled,-((Base_V1_Gas_Usage_Ex*Gasoline_Price_Modeled*IF(_Market="U.S.", Data!X$72, Data!X$75))+(Base_V1_Electricity_Usage_Ex*Electricity_Price_Modeled*IF(_Market="U.S.", Data!X$74, Data!X$76))),0) -> 0 | Z34: =IF(COLUMN(Z4)-COLUMN($E4)<Base_V1_Years_Usage_Modeled,-((Base_V1_Gas_Usage_Ex*Gasoline_Price_Modeled*IF(_Market="U.S.", Data!Y$72, Data!Y$75))+(Base_V1_Electricity_Usage_Ex*Electricity_Price_Modeled*IF(_Market="U.S.", Data!Y$74, Data!Y$76))),0) -> 0 | AA34: =IF(COLUMN(AA4)-COLUMN($E4)<Base_V1_Years_Usage_Modeled,-((Base_V1_Gas_Usage_Ex*Gasoline_Price_Modeled*IF(_Market="U.S.", Data!Z$72, Data!Z$75))+(Base_V1_Electricity_Usage_Ex*Electricity_Price_Modeled*IF(_Market="U.S.", Data!Z$74, Data!Z$76))),0) -> 0 | AB34: =IF(COLUMN(AB4)-COLUMN($E4)<Base_V1_Years_Usage_Modeled,-((Base_V1_Gas_Usage_Ex*Gasoline_Price_Modeled*IF(_Market="U.S.", Data!AA$72, Data!AA$75))+(Base_V1_Electricity_Usage_Ex*Electricity_Price_Modeled*IF(_Market="U.S.", Data!AA$74, Data!AA$76))),0) -> 0 | AC34: =IF(COLUMN(AC4)-COLUMN($E4)<Base_V1_Years_Usage_Modeled,-((Base_V1_Gas_Usage_Ex*Gasoline_Price_Modeled*IF(_Market="U.S.", Data!#REF!, Data!#REF!))+(Base_V1_Electricity_Usage_Ex*Electricity_Price_Modeled*IF(_Market="U.S.", Data!#REF!, Data!#REF!))),0) -> 0
B35: Maintenance and Repair Cost | E35: =-IF(_Base_V1_Maint_Repair_Cost_Use_Default="Yes",IF(COLUMN(E4)-COLUMN($E4)<Base_V1_Years_Usage_Modeled,VLOOKUP(_Base_V1_Vehicle_Drivetrain,DB_Maint_Repair_Costs[],COLUMN(E4)-COLUMN($E4)+COLUMN(DB_Maint_Repair_Costs[[#Headers],[Year 1 ]]),FALSE)*Base_V1_VMT_Modeled,0),IF(AND(COLUMN(E4)-COLUMN($E4)<Base_V1_Years_Usage_Modeled,COLUMN(E4)-COLUMN($E4)<5),Base_V1_Maint_Repair_Cost_Year_1_Modeled*Base_V1_VMT_Modeled,IF(AND(COLUMN(E4)-COLUMN($E4)<Base_V1_Years_Usage_Modeled,COLUMN(E4)-COLUMN($E4)>=5),Base_V1_Maint_Repair_Cost_Year_5_Modeled*Base_V1_VMT_Modeled,0)))*Data!D$83 -> -965.4 | F35: =-IF(_Base_V1_Maint_Repair_Cost_Use_Default="Yes",IF(COLUMN(F4)-COLUMN($E4)<Base_V1_Years_Usage_Modeled,VLOOKUP(_Base_V1_Vehicle_Drivetrain,DB_Maint_Repair_Costs[],COLUMN(F4)-COLUMN($E4)+COLUMN(DB_Maint_Repair_Costs[[#Headers],[Year 1 ]]),FALSE)*Base_V1_VMT_Modeled,0),IF(AND(COLUMN(F4)-COLUMN($E4)<Base_V1_Years_Usage_Modeled,COLUMN(F4)-COLUMN($E4)<5),Base_V1_Maint_Repair_Cost_Year_1_Modeled*Base_V1_VMT_Modeled,IF(AND(COLUMN(F4)-COLUMN($E4)<Base_V1_Years_Usage_Modeled,COLUMN(F4)-COLUMN($E4)>=5),Base_V1_Maint_Repair_Cost_Year_5_Modeled*Base_V1_VMT_Modeled,0)))*Data!E$83 -> -984.708 | G35: =-IF(_Base_V1_Maint_Repair_Cost_Use_Default="Yes",IF(COLUMN(G4)-COLUMN($E4)<Base_V1_Years_Usage_Modeled,VLOOKUP(_Base_V1_Vehicle_Drivetrain,DB_Maint_Repair_Costs[],COLUMN(G4)-COLUMN($E4)+COLUMN(DB_Maint_Repair_Costs[[#Headers],[Year 1 ]]),FALSE)*Base_V1_VMT_Modeled,0),IF(AND(COLUMN(G4)-COLUMN($E4)<Base_V1_Years_Usage_Modeled,COLUMN(G4)-COLUMN($E4)<5),Base_V1_Maint_Repair_Cost_Year_1_Modeled*Base_V1_VMT_Modeled,IF(AND(COLUMN(G4)-COLUMN($E4)<Base_V1_Years_Usage_Modeled,COLUMN(G4)-COLUMN($E4)>=5),Base_V1_Maint_Repair_Cost_Year_5_Modeled*Base_V1_VMT_Modeled,0)))*Data!F$83 -> -1004.40216 | H35: =-IF(_Base_V1_Maint_Repair_Cost_Use_Default="Yes",IF(COLUMN(H4)-COLUMN($E4)<Base_V1_Years_Usage_Modeled,VLOOKUP(_Base_V1_Vehicle_Drivetrain,DB_Maint_Repair_Costs[],COLUMN(H4)-COLUMN($E4)+COLUMN(DB_Maint_Repair_Costs[[#Headers],[Year 1 ]]),FALSE)*Base_V1_VMT_Modeled,0),IF(AND(COLUMN(H4)-COLUMN($E4)<Base_V1_Years_Usage_Modeled,COLUMN(H4)-COLUMN($E4)<5),Base_V1_Maint_Repair_Cost_Year_1_Modeled*Base_V1_VMT_Modeled,IF(AND(COLUMN(H4)-COLUMN($E4)<Base_V1_Years_Usage_Modeled,COLUMN(H4)-COLUMN($E4)>=5),Base_V1_Maint_Repair_Cost_Year_5_Modeled*Base_V1_VMT_Modeled,0)))*Data!G$83 -> -1024.490203 | I35: =-IF(_Base_V1_Maint_Repair_Cost_Use_Default="Yes",IF(COLUMN(I4)-COLUMN($E4)<Base_V1_Years_Usage_Modeled,VLOOKUP(_Base_V1_Vehicle_Drivetrain,DB_Maint_Repair_Costs[],COLUMN(I4)-COLUMN($E4)+COLUMN(DB_Maint_Repair_Costs[[#Headers],[Year 1 ]]),FALSE)*Base_V1_VMT_Modeled,0),IF(AND(COLUMN(I4)-COLUMN($E4)<Base_V1_Years_Usage_Modeled,COLUMN(I4)-COLUMN($E4)<5),Base_V1_Maint_Repair_Cost_Year_1_Modeled*Base_V1_VMT_Modeled,IF(AND(COLUMN(I4)-COLUMN($E4)<Base_V1_Years_Usage_Modeled,COLUMN(I4)-COLUMN($E4)>=5),Base_V1_Maint_Repair_Cost_Year_5_Modeled*Base_V1_VMT_Modeled,0)))*Data!H$83 -> -1044.980007 | J35: =-IF(_Base_V1_Maint_Repair_Cost_Use_Default="Yes",IF(COLUMN(J4)-COLUMN($E4)<Base_V1_Years_Usage_Modeled,VLOOKUP(_Base_V1_Vehicle_Drivetrain,DB_Maint_Repair_Costs[],COLUMN(J4)-COLUMN($E4)+COLUMN(DB_Maint_Repair_Costs[[#Headers],[Year 1 ]]),FALSE)*Base_V1_VMT_Modeled,0),IF(AND(COLUMN(J4)-COLUMN($E4)<Base_V1_Years_Usage_Modeled,COLUMN(J4)-COLUMN($E4)<5),Base_V1_Maint_Repair_Cost_Year_1_Modeled*Base_V1_VMT_Modeled,IF(AND(COLUMN(J4)-COLUMN($E4)<Base_V1_Years_Usage_Modeled,COLUMN(J4)-COLUMN($E4)>=5),Base_V1_Maint_Repair_Cost_Year_5_Modeled*Base_V1_VMT_Modeled,0)))*Data!I$83 -> -1385.64349 | K35: =-IF(_Base_V1_Maint_Repair_Cost_Use_Default="Yes",IF(COLUMN(K4)-COLUMN($E4)<Base_V1_Years_Usage_Modeled,VLOOKUP(_Base_V1_Vehicle_Drivetrain,DB_Maint_Repair_Costs[],COLUMN(K4)-COLUMN($E4)+COLUMN(DB_Maint_Repair_Costs[[#Headers],[Year 1 ]]),FALSE)*Base_V1_VMT_Modeled,0),IF(AND(COLUMN(K4)-COLUMN($E4)<Base_V1_Years_Usage_Modeled,COLUMN(K4)-COLUMN($E4)<5),Base_V1_Maint_Repair_Cost_Year_1_Modeled*Base_V1_VMT_Modeled,IF(AND(COLUMN(K4)-COLUMN($E4)<Base_V1_Years_Usage_Modeled,COLUMN(K4)-COLUMN($E4)>=5),Base_V1_Maint_Repair_Cost_Year_5_Modeled*Base_V1_VMT_Modeled,0)))*Data!J$83 -> -1413.356359 | L35: =-IF(_Base_V1_Maint_Repair_Cost_Use_Default="Yes",IF(COLUMN(L4)-COLUMN($E4)<Base_V1_Years_Usage_Modeled,VLOOKUP(_Base_V1_Vehicle_Drivetrain,DB_Maint_Repair_Costs[],COLUMN(L4)-COLUMN($E4)+COLUMN(DB_Maint_Repair_Costs[[#Headers],[Year 1 ]]),FALSE)*Base_V1_VMT_Modeled,0),IF(AND(COLUMN(L4)-COLUMN($E4)<Base_V1_Years_Usage_Modeled,COLUMN(L4)-COLUMN($E4)<5),Base_V1_Maint_Repair_Cost_Year_1_Modeled*Base_V1_VMT_Modeled,IF(AND(COLUMN(L4)-COLUMN($E4)<Base_V1_Years_Usage_Modeled,COLUMN(L4)-COLUMN($E4)>=5),Base_V1_Maint_Repair_Cost_Year_5_Modeled*Base_V1_VMT_Modeled,0)))*Data!K$83 -> 0 | M35: =-IF(_Base_V1_Maint_Repair_Cost_Use_Default="Yes",IF(COLUMN(M4)-COLUMN($E4)<Base_V1_Years_Usage_Modeled,VLOOKUP(_Base_V1_Vehicle_Drivetrain,DB_Maint_Repair_Costs[],COLUMN(M4)-COLUMN($E4)+COLUMN(DB_Maint_Repair_Costs[[#Headers],[Year 1 ]]),FALSE)*Base_V1_VMT_Modeled,0),IF(AND(COLUMN(M4)-COLUMN($E4)<Base_V1_Years_Usage_Modeled,COLUMN(M4)-COLUMN($E4)<5),Base_V1_Maint_Repair_Cost_Year_1_Modeled*Base_V1_VMT_Modeled,IF(AND(COLUMN(M4)-COLUMN($E4)<Base_V1_Years_Usage_Modeled,COLUMN(M4)-COLUMN($E4)>=5),Base_V1_Maint_Repair_Cost_Year_5_Modeled*Base_V1_VMT_Modeled,0)))*Data!L$83 -> 0 | N35: =-IF(_Base_V1_Maint_Repair_Cost_Use_Default="Yes",IF(COLUMN(N4)-COLUMN($E4)<Base_V1_Years_Usage_Modeled,VLOOKUP(_Base_V1_Vehicle_Drivetrain,DB_Maint_Repair_Costs[],COLUMN(N4)-COLUMN($E4)+COLUMN(DB_Maint_Repair_Costs[[#Headers],[Year 1 ]]),FALSE)*Base_V1_VMT_Modeled,0),IF(AND(COLUMN(N4)-COLUMN($E4)<Base_V1_Years_Usage_Modeled,COLUMN(N4)-COLUMN($E4)<5),Base_V1_Maint_Repair_Cost_Year_1_Modeled*Base_V1_VMT_Modeled,IF(AND(COLUMN(N4)-COLUMN($E4)<Base_V1_Years_Usage_Modeled,COLUMN(N4)-COLUMN($E4)>=5),Base_V1_Maint_Repair_Cost_Year_5_Modeled*Base_V1_VMT_Modeled,0)))*Data!M$83 -> 0 | O35: =-IF(_Base_V1_Maint_Repair_Cost_Use_Default="Yes",IF(COLUMN(O4)-COLUMN($E4)<Base_V1_Years_Usage_Modeled,VLOOKUP(_Base_V1_Vehicle_Drivetrain,DB_Maint_Repair_Costs[],COLUMN(O4)-COLUMN($E4)+COLUMN(DB_Maint_Repair_Costs[[#Headers],[Year 1 ]]),FALSE)*Base_V1_VMT_Modeled,0),IF(AND(COLUMN(O4)-COLUMN($E4)<Base_V1_Years_Usage_Modeled,COLUMN(O4)-COLUMN($E4)<5),Base_V1_Maint_Repair_Cost_Year_1_Modeled*Base_V1_VMT_Modeled,IF(AND(COLUMN(O4)-COLUMN($E4)<Base_V1_Years_Usage_Modeled,COLUMN(O4)-COLUMN($E4)>=5),Base_V1_Maint_Repair_Cost_Year_5_Modeled*Base_V1_VMT_Modeled,0)))*Data!N$83 -> 0 | P35: =-IF(_Base_V1_Maint_Repair_Cost_Use_Default="Yes",IF(COLUMN(P4)-COLUMN($E4)<Base_V1_Years_Usage_Modeled,VLOOKUP(_Base_V1_Vehicle_Drivetrain,DB_Maint_Repair_Costs[],COLUMN(P4)-COLUMN($E4)+COLUMN(DB_Maint_Repair_Costs[[#Headers],[Year 1 ]]),FALSE)*Base_V1_VMT_Modeled,0),IF(AND(COLUMN(P4)-COLUMN($E4)<Base_V1_Years_Usage_Modeled,COLUMN(P4)-COLUMN($E4)<5),Base_V1_Maint_Repair_Cost_Year_1_Modeled*Base_V1_VMT_Modeled,IF(AND(COLUMN(P4)-COLUMN($E4)<Base_V1_Years_Usage_Modeled,COLUMN(P4)-COLUMN($E4)>=5),Base_V1_Maint_Repair_Cost_Year_5_Modeled*Base_V1_VMT_Modeled,0)))*Data!O$83 -> 0 | Q35: =-IF(_Base_V1_Maint_Repair_Cost_Use_Default="Yes",IF(COLUMN(Q4)-COLUMN($E4)<Base_V1_Years_Usage_Modeled,VLOOKUP(_Base_V1_Vehicle_Drivetrain,DB_Maint_Repair_Costs[],COLUMN(Q4)-COLUMN($E4)+COLUMN(DB_Maint_Repair_Costs[[#Headers],[Year 1 ]]),FALSE)*Base_V1_VMT_Modeled,0),IF(AND(COLUMN(Q4)-COLUMN($E4)<Base_V1_Years_Usage_Modeled,COLUMN(Q4)-COLUMN($E4)<5),Base_V1_Maint_Repair_Cost_Year_1_Modeled*Base_V1_VMT_Modeled,IF(AND(COLUMN(Q4)-COLUMN($E4)<Base_V1_Years_Usage_Modeled,COLUMN(Q4)-COLUMN($E4)>=5),Base_V1_Maint_Repair_Cost_Year_5_Modeled*Base_V1_VMT_Modeled,0)))*Data!P$83 -> 0 | R35: =-IF(_Base_V1_Maint_Repair_Cost_Use_Default="Yes",IF(COLUMN(R4)-COLUMN($E4)<Base_V1_Years_Usage_Modeled,VLOOKUP(_Base_V1_Vehicle_Drivetrain,DB_Maint_Repair_Costs[],COLUMN(R4)-COLUMN($E4)+COLUMN(DB_Maint_Repair_Costs[[#Headers],[Year 1 ]]),FALSE)*Base_V1_VMT_Modeled,0),IF(AND(COLUMN(R4)-COLUMN($E4)<Base_V1_Years_Usage_Modeled,COLUMN(R4)-COLUMN($E4)<5),Base_V1_Maint_Repair_Cost_Year_1_Modeled*Base_V1_VMT_Modeled,IF(AND(COLUMN(R4)-COLUMN($E4)<Base_V1_Years_Usage_Modeled,COLUMN(R4)-COLUMN($E4)>=5),Base_V1_Maint_Repair_Cost_Year_5_Modeled*Base_V1_VMT_Modeled,0)))*Data!Q$83 -> 0 | S35: =-IF(_Base_V1_Maint_Repair_Cost_Use_Default="Yes",IF(COLUMN(S4)-COLUMN($E4)<Base_V1_Years_Usage_Modeled,VLOOKUP(_Base_V1_Vehicle_Drivetrain,DB_Maint_Repair_Costs[],COLUMN(S4)-COLUMN($E4)+COLUMN(DB_Maint_Repair_Costs[[#Headers],[Year 1 ]]),FALSE)*Base_V1_VMT_Modeled,0),IF(AND(COLUMN(S4)-COLUMN($E4)<Base_V1_Years_Usage_Modeled,COLUMN(S4)-COLUMN($E4)<5),Base_V1_Maint_Repair_Cost_Year_1_Modeled*Base_V1_VMT_Modeled,IF(AND(COLUMN(S4)-COLUMN($E4)<Base_V1_Years_Usage_Modeled,COLUMN(S4)-COLUMN($E4)>=5),Base_V1_Maint_Repair_Cost_Year_5_Modeled*Base_V1_VMT_Modeled,0)))*Data!R$83 -> 0 | T35: =-IF(_Base_V1_Maint_Repair_Cost_Use_Default="Yes",IF(COLUMN(T4)-COLUMN($E4)<Base_V1_Years_Usage_Modeled,VLOOKUP(_Base_V1_Vehicle_Drivetrain,DB_Maint_Repair_Costs[],COLUMN(T4)-COLUMN($E4)+COLUMN(DB_Maint_Repair_Costs[[#Headers],[Year 1 ]]),FALSE)*Base_V1_VMT_Modeled,0),IF(AND(COLUMN(T4)-COLUMN($E4)<Base_V1_Years_Usage_Modeled,COLUMN(T4)-COLUMN($E4)<5),Base_V1_Maint_Repair_Cost_Year_1_Modeled*Base_V1_VMT_Modeled,IF(AND(COLUMN(T4)-COLUMN($E4)<Base_V1_Years_Usage_Modeled,COLUMN(T4)-COLUMN($E4)>=5),Base_V1_Maint_Repair_Cost_Year_5_Modeled*Base_V1_VMT_Modeled,0)))*Data!S$83 -> 0 | U35: =-IF(_Base_V1_Maint_Repair_Cost_Use_Default="Yes",IF(COLUMN(U4)-COLUMN($E4)<Base_V1_Years_Usage_Modeled,VLOOKUP(_Base_V1_Vehicle_Drivetrain,DB_Maint_Repair_Costs[],COLUMN(U4)-COLUMN($E4)+COLUMN(DB_Maint_Repair_Costs[[#Headers],[Year 1 ]]),FALSE)*Base_V1_VMT_Modeled,0),IF(AND(COLUMN(U4)-COLUMN($E4)<Base_V1_Years_Usage_Modeled,COLUMN(U4)-COLUMN($E4)<5),Base_V1_Maint_Repair_Cost_Year_1_Modeled*Base_V1_VMT_Modeled,IF(AND(COLUMN(U4)-COLUMN($E4)<Base_V1_Years_Usage_Modeled,COLUMN(U4)-COLUMN($E4)>=5),Base_V1_Maint_Repair_Cost_Year_5_Modeled*Base_V1_VMT_Modeled,0)))*Data!T$83 -> 0 | V35: =-IF(_Base_V1_Maint_Repair_Cost_Use_Default="Yes",IF(COLUMN(V4)-COLUMN($E4)<Base_V1_Years_Usage_Modeled,VLOOKUP(_Base_V1_Vehicle_Drivetrain,DB_Maint_Repair_Costs[],COLUMN(V4)-COLUMN($E4)+COLUMN(DB_Maint_Repair_Costs[[#Headers],[Year 1 ]]),FALSE)*Base_V1_VMT_Modeled,0),IF(AND(COLUMN(V4)-COLUMN($E4)<Base_V1_Years_Usage_Modeled,COLUMN(V4)-COLUMN($E4)<5),Base_V1_Maint_Repair_Cost_Year_1_Modeled*Base_V1_VMT_Modeled,IF(AND(COLUMN(V4)-COLUMN($E4)<Base_V1_Years_Usage_Modeled,COLUMN(V4)-COLUMN($E4)>=5),Base_V1_Maint_Repair_Cost_Year_5_Modeled*Base_V1_VMT_Modeled,0)))*Data!U$83 -> 0 | W35: =-IF(_Base_V1_Maint_Repair_Cost_Use_Default="Yes",IF(COLUMN(W4)-COLUMN($E4)<Base_V1_Years_Usage_Modeled,VLOOKUP(_Base_V1_Vehicle_Drivetrain,DB_Maint_Repair_Costs[],COLUMN(W4)-COLUMN($E4)+COLUMN(DB_Maint_Repair_Costs[[#Headers],[Year 1 ]]),FALSE)*Base_V1_VMT_Modeled,0),IF(AND(COLUMN(W4)-COLUMN($E4)<Base_V1_Years_Usage_Modeled,COLUMN(W4)-COLUMN($E4)<5),Base_V1_Maint_Repair_Cost_Year_1_Modeled*Base_V1_VMT_Modeled,IF(AND(COLUMN(W4)-COLUMN($E4)<Base_V1_Years_Usage_Modeled,COLUMN(W4)-COLUMN($E4)>=5),Base_V1_Maint_Repair_Cost_Year_5_Modeled*Base_V1_VMT_Modeled,0)))*Data!V$83 -> 0 | X35: =-IF(_Base_V1_Maint_Repair_Cost_Use_Default="Yes",IF(COLUMN(X4)-COLUMN($E4)<Base_V1_Years_Usage_Modeled,VLOOKUP(_Base_V1_Vehicle_Drivetrain,DB_Maint_Repair_Costs[],COLUMN(X4)-COLUMN($E4)+COLUMN(DB_Maint_Repair_Costs[[#Headers],[Year 1 ]]),FALSE)*Base_V1_VMT_Modeled,0),IF(AND(COLUMN(X4)-COLUMN($E4)<Base_V1_Years_Usage_Modeled,COLUMN(X4)-COLUMN($E4)<5),Base_V1_Maint_Repair_Cost_Year_1_Modeled*Base_V1_VMT_Modeled,IF(AND(COLUMN(X4)-COLUMN($E4)<Base_V1_Years_Usage_Modeled,COLUMN(X4)-COLUMN($E4)>=5),Base_V1_Maint_Repair_Cost_Year_5_Modeled*Base_V1_VMT_Modeled,0)))*Data!W$83 -> 0 | Y35: =-IF(_Base_V1_Maint_Repair_Cost_Use_Default="Yes",IF(COLUMN(Y4)-COLUMN($E4)<Base_V1_Years_Usage_Modeled,VLOOKUP(_Base_V1_Vehicle_Drivetrain,DB_Maint_Repair_Costs[],COLUMN(Y4)-COLUMN($E4)+COLUMN(DB_Maint_Repair_Costs[[#Headers],[Year 1 ]]),FALSE)*Base_V1_VMT_Modeled,0),IF(AND(COLUMN(Y4)-COLUMN($E4)<Base_V1_Years_Usage_Modeled,COLUMN(Y4)-COLUMN($E4)<5),Base_V1_Maint_Repair_Cost_Year_1_Modeled*Base_V1_VMT_Modeled,IF(AND(COLUMN(Y4)-COLUMN($E4)<Base_V1_Years_Usage_Modeled,COLUMN(Y4)-COLUMN($E4)>=5),Base_V1_Maint_Repair_Cost_Year_5_Modeled*Base_V1_VMT_Modeled,0)))*Data!X$83 -> 0 | Z35: =-IF(_Base_V1_Maint_Repair_Cost_Use_Default="Yes",IF(COLUMN(Z4)-COLUMN($E4)<Base_V1_Years_Usage_Modeled,VLOOKUP(_Base_V1_Vehicle_Drivetrain,DB_Maint_Repair_Costs[],COLUMN(Z4)-COLUMN($E4)+COLUMN(DB_Maint_Repair_Costs[[#Headers],[Year 1 ]]),FALSE)*Base_V1_VMT_Modeled,0),IF(AND(COLUMN(Z4)-COLUMN($E4)<Base_V1_Years_Usage_Modeled,COLUMN(Z4)-COLUMN($E4)<5),Base_V1_Maint_Repair_Cost_Year_1_Modeled*Base_V1_VMT_Modeled,IF(AND(COLUMN(Z4)-COLUMN($E4)<Base_V1_Years_Usage_Modeled,COLUMN(Z4)-COLUMN($E4)>=5),Base_V1_Maint_Repair_Cost_Year_5_Modeled*Base_V1_VMT_Modeled,0)))*Data!Y$83 -> 0 | AA35: =-IF(_Base_V1_Maint_Repair_Cost_Use_Default="Yes",IF(COLUMN(AA4)-COLUMN($E4)<Base_V1_Years_Usage_Modeled,VLOOKUP(_Base_V1_Vehicle_Drivetrain,DB_Maint_Repair_Costs[],COLUMN(AA4)-COLUMN($E4)+COLUMN(DB_Maint_Repair_Costs[[#Headers],[Year 1 ]]),FALSE)*Base_V1_VMT_Modeled,0),IF(AND(COLUMN(AA4)-COLUMN($E4)<Base_V1_Years_Usage_Modeled,COLUMN(AA4)-COLUMN($E4)<5),Base_V1_Maint_Repair_Cost_Year_1_Modeled*Base_V1_VMT_Modeled,IF(AND(COLUMN(AA4)-COLUMN($E4)<Base_V1_Years_Usage_Modeled,COLUMN(AA4)-COLUMN($E4)>=5),Base_V1_Maint_Repair_Cost_Year_5_Modeled*Base_V1_VMT_Modeled,0)))*Data!Z$83 -> 0 | AB35: =-IF(_Base_V1_Maint_Repair_Cost_Use_Default="Yes",IF(COLUMN(AB4)-COLUMN($E4)<Base_V1_Years_Usage_Modeled,VLOOKUP(_Base_V1_Vehicle_Drivetrain,DB_Maint_Repair_Costs[],COLUMN(AB4)-COLUMN($E4)+COLUMN(DB_Maint_Repair_Costs[[#Headers],[Year 1 ]]),FALSE)*Base_V1_VMT_Modeled,0),IF(AND(COLUMN(AB4)-COLUMN($E4)<Base_V1_Years_Usage_Modeled,COLUMN(AB4)-COLUMN($E4)<5),Base_V1_Maint_Repair_Cost_Year_1_Modeled*Base_V1_VMT_Modeled,IF(AND(COLUMN(AB4)-COLUMN($E4)<Base_V1_Years_Usage_Modeled,COLUMN(AB4)-COLUMN($E4)>=5),Base_V1_Maint_Repair_Cost_Year_5_Modeled*Base_V1_VMT_Modeled,0)))*Data!AA$83 -> 0 | AC35: =-IF(_Base_V1_Maint_Repair_Cost_Use_Default="Yes",IF(COLUMN(AC4)-COLUMN($E4)<Base_V1_Years_Usage_Modeled,VLOOKUP(_Base_V1_Vehicle_Drivetrain,DB_Maint_Repair_Costs[],COLUMN(AC4)-COLUMN($E4)+COLUMN(DB_Maint_Repair_Costs[[#Headers],[Year 1 ]]),FALSE)*Base_V1_VMT_Modeled,0),IF(AND(COLUMN(AC4)-COLUMN($E4)<Base_V1_Years_Usage_Modeled,COLUMN(AC4)-COLUMN($E4)<5),Base_V1_Maint_Repair_Cost_Year_1_Modeled*Base_V1_VMT_Modeled,IF(AND(COLUMN(AC4)-COLUMN($E4)<Base_V1_Years_Usage_Modeled,COLUMN(AC4)-COLUMN($E4)>=5),Base_V1_Maint_Repair_Cost_Year_5_Modeled*Base_V1_VMT_Modeled,0)))*Data!AB$83 -> 0
B36: Taxes and Fees | D36: =-Base_V1_Initial_Taxes_Fees_Modeled-(Base_V1_Initial_Percent_Base_Price_Modeled*Base_V1_Base_Price_Ex) -> -1000 | E36: =-IF(COLUMN(E4)-COLUMN($E4)<Base_V1_Years_Usage_Modeled,Base_V1_Taxes_Fees_Modeled,0)*Data!D$83 -> -10 | F36: =-IF(COLUMN(F4)-COLUMN($E4)<Base_V1_Years_Usage_Modeled,Base_V1_Taxes_Fees_Modeled,0)*Data!E$83 -> -10.2 | G36: =-IF(COLUMN(G4)-COLUMN($E4)<Base_V1_Years_Usage_Modeled,Base_V1_Taxes_Fees_Modeled,0)*Data!F$83 -> -10.404 | H36: =-IF(COLUMN(H4)-COLUMN($E4)<Base_V1_Years_Usage_Modeled,Base_V1_Taxes_Fees_Modeled,0)*Data!G$83 -> -10.61208 | I36: =-IF(COLUMN(I4)-COLUMN($E4)<Base_V1_Years_Usage_Modeled,Base_V1_Taxes_Fees_Modeled,0)*Data!H$83 -> -10.8243216 | J36: =-IF(COLUMN(J4)-COLUMN($E4)<Base_V1_Years_Usage_Modeled,Base_V1_Taxes_Fees_Modeled,0)*Data!I$83 -> -11.04080803 | K36: =-IF(COLUMN(K4)-COLUMN($E4)<Base_V1_Years_Usage_Modeled,Base_V1_Taxes_Fees_Modeled,0)*Data!J$83 -> -11.26162419 | L36: =-IF(COLUMN(L4)-COLUMN($E4)<Base_V1_Years_Usage_Modeled,Base_V1_Taxes_Fees_Modeled,0)*Data!K$83 -> 0 | M36: =-IF(COLUMN(M4)-COLUMN($E4)<Base_V1_Years_Usage_Modeled,Base_V1_Taxes_Fees_Modeled,0)*Data!L$83 -> 0 | N36: =-IF(COLUMN(N4)-COLUMN($E4)<Base_V1_Years_Usage_Modeled,Base_V1_Taxes_Fees_Modeled,0)*Data!M$83 -> 0 | O36: =-IF(COLUMN(O4)-COLUMN($E4)<Base_V1_Years_Usage_Modeled,Base_V1_Taxes_Fees_Modeled,0)*Data!N$83 -> 0 | P36: =-IF(COLUMN(P4)-COLUMN($E4)<Base_V1_Years_Usage_Modeled,Base_V1_Taxes_Fees_Modeled,0)*Data!O$83 -> 0 | Q36: =-IF(COLUMN(Q4)-COLUMN($E4)<Base_V1_Years_Usage_Modeled,Base_V1_Taxes_Fees_Modeled,0)*Data!P$83 -> 0 | R36: =-IF(COLUMN(R4)-COLUMN($E4)<Base_V1_Years_Usage_Modeled,Base_V1_Taxes_Fees_Modeled,0)*Data!Q$83 -> 0 | S36: =-IF(COLUMN(S4)-COLUMN($E4)<Base_V1_Years_Usage_Modeled,Base_V1_Taxes_Fees_Modeled,0)*Data!R$83 -> 0 | T36: =-IF(COLUMN(T4)-COLUMN($E4)<Base_V1_Years_Usage_Modeled,Base_V1_Taxes_Fees_Modeled,0)*Data!S$83 -> 0 | U36: =-IF(COLUMN(U4)-COLUMN($E4)<Base_V1_Years_Usage_Modeled,Base_V1_Taxes_Fees_Modeled,0)*Data!T$83 -> 0 | V36: =-IF(COLUMN(V4)-COLUMN($E4)<Base_V1_Years_Usage_Modeled,Base_V1_Taxes_Fees_Modeled,0)*Data!U$83 -> 0 | W36: =-IF(COLUMN(W4)-COLUMN($E4)<Base_V1_Years_Usage_Modeled,Base_V1_Taxes_Fees_Modeled,0)*Data!V$83 -> 0 | X36: =-IF(COLUMN(X4)-COLUMN($E4)<Base_V1_Years_Usage_Modeled,Base_V1_Taxes_Fees_Modeled,0)*Data!W$83 -> 0 | Y36: =-IF(COLUMN(Y4)-COLUMN($E4)<Base_V1_Years_Usage_Modeled,Base_V1_Taxes_Fees_Modeled,0)*Data!X$83 -> 0 | Z36: =-IF(COLUMN(Z4)-COLUMN($E4)<Base_V1_Years_Usage_Modeled,Base_V1_Taxes_Fees_Modeled,0)*Data!Y$83 -> 0 | AA36: =-IF(COLUMN(AA4)-COLUMN($E4)<Base_V1_Years_Usage_Modeled,Base_V1_Taxes_Fees_Modeled,0)*Data!Z$83 -> 0 | AB36: =-IF(COLUMN(AB4)-COLUMN($E4)<Base_V1_Years_Usage_Modeled,Base_V1_Taxes_Fees_Modeled,0)*Data!AA$83 -> 0 | AC36: =-IF(COLUMN(AC4)-COLUMN($E4)<Base_V1_Years_Usage_Modeled,Base_V1_Taxes_Fees_Modeled,0)*Data!AB$83 -> 0
B37: Insurance Cost | E37: =-IF(COLUMN(E4)-COLUMN($E4)<Base_V1_Years_Usage_Modeled,Base_V1_Insurance_Cost_Modeled,0)*Data!D$83 -> -1062.3 | F37: =-IF(COLUMN(F4)-COLUMN($E4)<Base_V1_Years_Usage_Modeled,Base_V1_Insurance_Cost_Modeled,0)*Data!E$83 -> -1083.546 | G37: =-IF(COLUMN(G4)-COLUMN($E4)<Base_V1_Years_Usage_Modeled,Base_V1_Insurance_Cost_Modeled,0)*Data!F$83 -> -1105.21692 | H37: =-IF(COLUMN(H4)-COLUMN($E4)<Base_V1_Years_Usage_Modeled,Base_V1_Insurance_Cost_Modeled,0)*Data!G$83 -> -1127.321258 | I37: =-IF(COLUMN(I4)-COLUMN($E4)<Base_V1_Years_Usage_Modeled,Base_V1_Insurance_Cost_Modeled,0)*Data!H$83 -> -1149.867684 | J37: =-IF(COLUMN(J4)-COLUMN($E4)<Base_V1_Years_Usage_Modeled,Base_V1_Insurance_Cost_Modeled,0)*Data!I$83 -> -1172.865037 | K37: =-IF(COLUMN(K4)-COLUMN($E4)<Base_V1_Years_Usage_Modeled,Base_V1_Insurance_Cost_Modeled,0)*Data!J$83 -> -1196.322338 | L37: =-IF(COLUMN(L4)-COLUMN($E4)<Base_V1_Years_Usage_Modeled,Base_V1_Insurance_Cost_Modeled,0)*Data!K$83 -> 0 | M37: =-IF(COLUMN(M4)-COLUMN($E4)<Base_V1_Years_Usage_Modeled,Base_V1_Insurance_Cost_Modeled,0)*Data!L$83 -> 0 | N37: =-IF(COLUMN(N4)-COLUMN($E4)<Base_V1_Years_Usage_Modeled,Base_V1_Insurance_Cost_Modeled,0)*Data!M$83 -> 0 | O37: =-IF(COLUMN(O4)-COLUMN($E4)<Base_V1_Years_Usage_Modeled,Base_V1_Insurance_Cost_Modeled,0)*Data!N$83 -> 0 | P37: =-IF(COLUMN(P4)-COLUMN($E4)<Base_V1_Years_Usage_Modeled,Base_V1_Insurance_Cost_Modeled,0)*Data!O$83 -> 0 | Q37: =-IF(COLUMN(Q4)-COLUMN($E4)<Base_V1_Years_Usage_Modeled,Base_V1_Insurance_Cost_Modeled,0)*Data!P$83 -> 0 | R37: =-IF(COLUMN(R4)-COLUMN($E4)<Base_V1_Years_Usage_Modeled,Base_V1_Insurance_Cost_Modeled,0)*Data!Q$83 -> 0 | S37: =-IF(COLUMN(S4)-COLUMN($E4)<Base_V1_Years_Usage_Modeled,Base_V1_Insurance_Cost_Modeled,0)*Data!R$83 -> 0 | T37: =-IF(COLUMN(T4)-COLUMN($E4)<Base_V1_Years_Usage_Modeled,Base_V1_Insurance_Cost_Modeled,0)*Data!S$83 -> 0 | U37: =-IF(COLUMN(U4)-COLUMN($E4)<Base_V1_Years_Usage_Modeled,Base_V1_Insurance_Cost_Modeled,0)*Data!T$83 -> 0 | V37: =-IF(COLUMN(V4)-COLUMN($E4)<Base_V1_Years_Usage_Modeled,Base_V1_Insurance_Cost_Modeled,0)*Data!U$83 -> 0 | W37: =-IF(COLUMN(W4)-COLUMN($E4)<Base_V1_Years_Usage_Modeled,Base_V1_Insurance_Cost_Modeled,0)*Data!V$83 -> 0 | X37: =-IF(COLUMN(X4)-COLUMN($E4)<Base_V1_Years_Usage_Modeled,Base_V1_Insurance_Cost_Modeled,0)*Data!W$83 -> 0 | Y37: =-IF(COLUMN(Y4)-COLUMN($E4)<Base_V1_Years_Usage_Modeled,Base_V1_Insurance_Cost_Modeled,0)*Data!X$83 -> 0 | Z37: =-IF(COLUMN(Z4)-COLUMN($E4)<Base_V1_Years_Usage_Modeled,Base_V1_Insurance_Cost_Modeled,0)*Data!Y$83 -> 0 | AA37: =-IF(COLUMN(AA4)-COLUMN($E4)<Base_V1_Years_Usage_Modeled,Base_V1_Insurance_Cost_Modeled,0)*Data!Z$83 -> 0 | AB37: =-IF(COLUMN(AB4)-COLUMN($E4)<Base_V1_Years_Usage_Modeled,Base_V1_Insurance_Cost_Modeled,0)*Data!AA$83 -> 0 | AC37: =-IF(COLUMN(AC4)-COLUMN($E4)<Base_V1_Years_Usage_Modeled,Base_V1_Insurance_Cost_Modeled,0)*Data!AB$83 -> 0
B38: Subtotal Fuel and Operating Costs | D38: =SUM(D34:D37) -> -1000 | E38: -2546.56234 | F38: -2660.512273 | G38: -2737.302959 | H38: -2785.892942 | I38: -2837.541594 | J38: -3214.171944 | K38: -3276.655698 | L38: 0 | M38: 0 | N38: 0 | O38: 0 | P38: 0 | Q38: 0 | R38: 0 | S38: 0 | T38: 0 | U38: 0 | V38: 0 | W38: 0 | X38: 0 | Y38: 0 | Z38: 0 | AA38: 0 | AB38: 0 | AC38: 0
B40: Other Costs
B41: Cost of Carbon | E41: =-IF(COLUMN(E4)-COLUMN($E4)<Base_V1_Years_Usage_Modeled,Base_V1_CO2_Ex/2204.62*Carbon_Price_Modeled,0) -> 0 | F41: 0 | G41: 0 | H41: 0 | I41: 0 | J41: 0 | K41: 0 | L41: 0 | M41: 0 | N41: 0 | O41: 0 | P41: 0 | Q41: 0 | R41: 0 | S41: 0 | T41: 0 | U41: 0 | V41: 0 | W41: 0 | X41: 0 | Y41: 0 | Z41: 0 | AA41: 0 | AB41: 0 | AC41: 0
B42: Subtotal Other Costs | D42: =SUM(D41:D41) -> 0 | E42: 0 | F42: 0 | G42: 0 | H42: 0 | I42: 0 | J42: 0 | K42: 0 | L42: 0 | M42: 0 | N42: 0 | O42: 0 | P42: 0 | Q42: 0 | R42: 0 | S42: 0 | T42: 0 | U42: 0 | V42: 0 | W42: 0 | X42: 0 | Y42: 0 | Z42: 0 | AA42: 0 | AB42: 0 | AC42: =SUM(AC41:AC41) -> 0
B44: Total Discounted Costs
B45: Total Annual Costs | D45: =D31+D38+D42 -> -40300 | E45: -2546.56234 | F45: -2660.512273 | G45: -2737.302959 | H45: -2785.892942 | I45: -2837.541594 | J45: -3214.171944 | K45: -2494.356092 | L45: 0 | M45: 0 | N45: 0 | O45: 0 | P45: 0 | Q45: 0 | R45: 0 | S45: 0 | T45: 0 | U45: 0 | V45: 0 | W45: 0 | X45: 0 | Y45: 0 | Z45: 0 | AA45: 0 | AB45: 0 | AC45: 0
B46: Discount Factor | C46: =Base_Discount_Rate_Modeled -> 0 | D46: =(1/(1+$C46))^(COLUMN(D4)-COLUMN($D4)) -> 1 | E46: 1 | F46: 1 | G46: 1 | H46: 1 | I46: 1 | J46: 1 | K46: 1 | L46: 1 | M46: 1 | N46: 1 | O46: 1 | P46: 1 | Q46: 1 | R46: 1 | S46: 1 | T46: 1 | U46: 1 | V46: 1 | W46: 1 | X46: 1 | Y46: 1 | Z46: 1 | AA46: 1 | AB46: 1 | AC46: 1
B47: Discounted Total | D47: =D45*D46 -> -40300 | E47: =E45*E46 -> -2546.56234 | F47: =F45*F46 -> -2660.512273 | G47: -2737.302959 | H47: -2785.892942 | I47: -2837.541594 | J47: -3214.171944 | K47: -2494.356092 | L47: 0 | M47: 0 | N47: 0 | O47: 0 | P47: 0 | Q47: 0 | R47: 0 | S47: 0 | T47: 0 | U47: 0 | V47: 0 | W47: 0 | X47: 0 | Y47: 0 | Z47: 0 | AA47: 0 | AB47: 0 | AC47: 0
B48: Cumulative Discounted Total | D48: =IF((COLUMN(D4)-COLUMN($D4))<=Base_V1_Years_Usage_Modeled,C48+D47,0) -> -40300 | E48: -42846.56234 | F48: -45507.07461 | G48: -48244.37757 | H48: -51030.27051 | I48: -53867.81211 | J48: -57081.98405 | K48: -59576.34014 | L48: 0 | M48: 0 | N48: 0 | O48: 0 | P48: 0 | Q48: 0 | R48: 0 | S48: 0 | T48: 0 | U48: 0 | V48: 0 | W48: 0 | X48: 0 | Y48: 0 | Z48: 0 | AA48: 0 | AB48: 0 | AC48: 0
B49: Annualized NPV Total Cost of Ownership | D49: =OFFSET($D48,0,Base_V1_Years_Usage_Modeled)/Base_V1_Years_Usage_Modeled -> -8510.905735
B51: Baseline EV Infrastructure
D52: Year 0 | E52: Year 1 | F52: Year 2 | G52: Year 3 | H52: Year 4 | I52: Year 5 | J52: Year 6 | K52: Year 7 | L52: Year 8 | M52: Year 9 | N52: Year 10 | O52: Year 11 | P52: Year 12 | Q52: Year 13 | R52: Year 14 | S52: Year 15 | T52: Year 16 | U52: Year 17 | V52: Year 18 | W52: Year 19 | X52: Year 20 | Y52: Year 21 | Z52: Year 22 | AA52: Year 23 | AB52: Year 24 | AC52: Year 25
B53: Capital and Financing Costs
B54: Cash
B55: Cash Payment | D55: =IF(AND(Base_Inf_Has_Cash_Purchase_Ex=TRUE,_Base_Include_Charging="Yes"),-Base_Num_Stations_Modeled*Base_Station_Cost_Modeled,0) -> 0
B56: Loan
B57: Down Payment | D57: =IF(AND(Base_Inf_Has_Cash_Purchase_Ex=FALSE,_Base_Include_Charging="Yes"),-Base_Inf_Down_Payment_Modeled,0) -> 0
B58: Loan Payments | E58: =IF(AND(Base_Inf_Has_Cash_Purchase_Ex=FALSE,_Base_Include_Charging="Yes",(COLUMN(E52)-COLUMN($E52))<Base_Inf_Loan_Term_Modeled),PMT(Base_Inf_Loan_APR_Modeled/12,Base_Inf_Loan_Term_Modeled*12,(Base_Num_Stations_Modeled*Base_Station_Cost_Modeled)-Base_Inf_Down_Payment_Modeled,0)*12,0) -> 0 | F58: 0 | G58: 0 | H58: 0 | I58: 0 | J58: 0 | K58: 0 | L58: 0 | M58: 0 | N58: 0 | O58: 0 | P58: 0 | Q58: 0 | R58: 0 | S58: 0 | T58: 0 | U58: 0 | V58: 0 | W58: 0 | X58: 0 | Y58: 0 | Z58: 0 | AA58: 0 | AB58: 0 | AC58: 0
B59: Subtotal Loan Cash Flows | D59: =SUM(D57:D58) -> 0 | E59: =SUM(E57:E58) -> 0 | F59: 0 | G59: 0 | H59: 0 | I59: 0 | J59: 0 | K59: 0 | L59: 0 | M59: 0 | N59: 0 | O59: 0 | P59: 0 | Q59: 0 | R59: 0 | S59: 0 | T59: 0 | U59: 0 | V59: 0 | W59: 0 | X59: 0 | Y59: 0 | Z59: 0 | AA59: 0 | AB59: 0 | AC59: 0
B61: Total Capital and Financing Costs | D61: =D55+D59 -> 0 | E61: =E55+E59 -> 0 | F61: 0 | G61: 0 | H61: 0 | I61: 0 | J61: 0 | K61: 0 | L61: 0 | M61: 0 | N61: 0 | O61: 0 | P61: 0 | Q61: 0 | R61: 0 | S61: 0 | T61: 0 | U61: 0 | V61: 0 | W61: 0 | X61: 0 | Y61: 0 | Z61: 0 | AA61: 0 | AB61: 0 | AC61: 0
B63: Operating Costs
B64: Maintenance Cost | E64: =-IF(AND(COLUMN(E52)-COLUMN($E52)<Base_V1_Years_Usage_Modeled,_Base_Include_Charging="Yes"),Base_Station_Maint_Cost_Modeled*Base_Num_Stations_Modeled,0)*Data!D$83 -> 0 | F64: =-IF(AND(COLUMN(F52)-COLUMN($E52)<Base_V1_Years_Usage_Modeled,_Base_Include_Charging="Yes"),Base_Station_Maint_Cost_Modeled*Base_Num_Stations_Modeled,0)*Data!E$83 -> 0 | G64: =-IF(AND(COLUMN(G52)-COLUMN($E52)<Base_V1_Years_Usage_Modeled,_Base_Include_Charging="Yes"),Base_Station_Maint_Cost_Modeled*Base_Num_Stations_Modeled,0)*Data!F$83 -> 0 | H64: =-IF(AND(COLUMN(H52)-COLUMN($E52)<Base_V1_Years_Usage_Modeled,_Base_Include_Charging="Yes"),Base_Station_Maint_Cost_Modeled*Base_Num_Stations_Modeled,0)*Data!G$83 -> 0 | I64: =-IF(AND(COLUMN(I52)-COLUMN($E52)<Base_V1_Years_Usage_Modeled,_Base_Include_Charging="Yes"),Base_Station_Maint_Cost_Modeled*Base_Num_Stations_Modeled,0)*Data!H$83 -> 0 | J64: =-IF(AND(COLUMN(J52)-COLUMN($E52)<Base_V1_Years_Usage_Modeled,_Base_Include_Charging="Yes"),Base_Station_Maint_Cost_Modeled*Base_Num_Stations_Modeled,0)*Data!I$83 -> 0 | K64: =-IF(AND(COLUMN(K52)-COLUMN($E52)<Base_V1_Years_Usage_Modeled,_Base_Include_Charging="Yes"),Base_Station_Maint_Cost_Modeled*Base_Num_Stations_Modeled,0)*Data!J$83 -> 0 | L64: =-IF(AND(COLUMN(L52)-COLUMN($E52)<Base_V1_Years_Usage_Modeled,_Base_Include_Charging="Yes"),Base_Station_Maint_Cost_Modeled*Base_Num_Stations_Modeled,0)*Data!K$83 -> 0 | M64: =-IF(AND(COLUMN(M52)-COLUMN($E52)<Base_V1_Years_Usage_Modeled,_Base_Include_Charging="Yes"),Base_Station_Maint_Cost_Modeled*Base_Num_Stations_Modeled,0)*Data!L$83 -> 0 | N64: =-IF(AND(COLUMN(N52)-COLUMN($E52)<Base_V1_Years_Usage_Modeled,_Base_Include_Charging="Yes"),Base_Station_Maint_Cost_Modeled*Base_Num_Stations_Modeled,0)*Data!M$83 -> 0 | O64: =-IF(AND(COLUMN(O52)-COLUMN($E52)<Base_V1_Years_Usage_Modeled,_Base_Include_Charging="Yes"),Base_Station_Maint_Cost_Modeled*Base_Num_Stations_Modeled,0)*Data!N$83 -> 0 | P64: =-IF(AND(COLUMN(P52)-COLUMN($E52)<Base_V1_Years_Usage_Modeled,_Base_Include_Charging="Yes"),Base_Station_Maint_Cost_Modeled*Base_Num_Stations_Modeled,0)*Data!O$83 -> 0 | Q64: =-IF(AND(COLUMN(Q52)-COLUMN($E52)<Base_V1_Years_Usage_Modeled,_Base_Include_Charging="Yes"),Base_Station_Maint_Cost_Modeled*Base_Num_Stations_Modeled,0)*Data!P$83 -> 0 | R64: =-IF(AND(COLUMN(R52)-COLUMN($E52)<Base_V1_Years_Usage_Modeled,_Base_Include_Charging="Yes"),Base_Station_Maint_Cost_Modeled*Base_Num_Stations_Modeled,0)*Data!Q$83 -> 0 | S64: =-IF(AND(COLUMN(S52)-COLUMN($E52)<Base_V1_Years_Usage_Modeled,_Base_Include_Charging="Yes"),Base_Station_Maint_Cost_Modeled*Base_Num_Stations_Modeled,0)*Data!R$83 -> 0 | T64: =-IF(AND(COLUMN(T52)-COLUMN($E52)<Base_V1_Years_Usage_Modeled,_Base_Include_Charging="Yes"),Base_Station_Maint_Cost_Modeled*Base_Num_Stations_Modeled,0)*Data!S$83 -> 0 | U64: =-IF(AND(COLUMN(U52)-COLUMN($E52)<Base_V1_Years_Usage_Modeled,_Base_Include_Charging="Yes"),Base_Station_Maint_Cost_Modeled*Base_Num_Stations_Modeled,0)*Data!T$83 -> 0 | V64: =-IF(AND(COLUMN(V52)-COLUMN($E52)<Base_V1_Years_Usage_Modeled,_Base_Include_Charging="Yes"),Base_Station_Maint_Cost_Modeled*Base_Num_Stations_Modeled,0)*Data!U$83 -> 0 | W64: =-IF(AND(COLUMN(W52)-COLUMN($E52)<Base_V1_Years_Usage_Modeled,_Base_Include_Charging="Yes"),Base_Station_Maint_Cost_Modeled*Base_Num_Stations_Modeled,0)*Data!V$83 -> 0 | X64: =-IF(AND(COLUMN(X52)-COLUMN($E52)<Base_V1_Years_Usage_Modeled,_Base_Include_Charging="Yes"),Base_Station_Maint_Cost_Modeled*Base_Num_Stations_Modeled,0)*Data!W$83 -> 0 | Y64: =-IF(AND(COLUMN(Y52)-COLUMN($E52)<Base_V1_Years_Usage_Modeled,_Base_Include_Charging="Yes"),Base_Station_Maint_Cost_Modeled*Base_Num_Stations_Modeled,0)*Data!X$83 -> 0 | Z64: =-IF(AND(COLUMN(Z52)-COLUMN($E52)<Base_V1_Years_Usage_Modeled,_Base_Include_Charging="Yes"),Base_Station_Maint_Cost_Modeled*Base_Num_Stations_Modeled,0)*Data!Y$83 -> 0 | AA64: =-IF(AND(COLUMN(AA52)-COLUMN($E52)<Base_V1_Years_Usage_Modeled,_Base_Include_Charging="Yes"),Base_Station_Maint_Cost_Modeled*Base_Num_Stations_Modeled,0)*Data!Z$83 -> 0 | AB64: =-IF(AND(COLUMN(AB52)-COLUMN($E52)<Base_V1_Years_Usage_Modeled,_Base_Include_Charging="Yes"),Base_Station_Maint_Cost_Modeled*Base_Num_Stations_Modeled,0)*Data!AA$83 -> 0 | AC64: =-IF(AND(COLUMN(AC52)-COLUMN($E52)<Base_V1_Years_Usage_Modeled,_Base_Include_Charging="Yes"),Base_Station_Maint_Cost_Modeled*Base_Num_Stations_Modeled,0)*Data!AB$83 -> 0
B65: Subtotal Operating Costs | E65: =SUM(E64:E64) -> 0 | F65: 0 | G65: 0 | H65: 0 | I65: 0 | J65: 0 | K65: 0 | L65: 0 | M65: 0 | N65: 0 | O65: 0 | P65: 0 | Q65: 0 | R65: 0 | S65: 0 | T65: 0 | U65: 0 | V65: 0 | W65: 0 | X65: 0 | Y65: 0 | Z65: 0 | AA65: 0 | AB65: 0 | AC65: 0
B66: Total Discounted Costs
B67: Total Annual Costs | D67: =D61+D65 -> 0 | E67: =E61+E65 -> 0 | F67: 0 | G67: 0 | H67: 0 | I67: 0 | J67: 0 | K67: 0 | L67: 0 | M67: 0 | N67: 0 | O67: 0 | P67: 0 | Q67: 0 | R67: 0 | S67: 0 | T67: 0 | U67: 0 | V67: 0 | W67: 0 | X67: 0 | Y67: 0 | Z67: 0 | AA67: 0 | AB67: 0 | AC67: 0
B68: Discount Factor | C68: =Base_Discount_Rate_Modeled -> 0 | D68: =(1/(1+$C68))^(COLUMN(D52)-COLUMN($D52)) -> 1 | E68: 1 | F68: 1 | G68: 1 | H68: 1 | I68: 1 | J68: 1 | K68: 1 | L68: 1 | M68: 1 | N68: 1 | O68: 1 | P68: 1 | Q68: 1 | R68: 1 | S68: 1 | T68: 1 | U68: 1 | V68: 1 | W68: 1 | X68: 1 | Y68: 1 | Z68: 1 | AA68: 1 | AB68: 1 | AC68: 1
B69: Discounted Total | D69: =D67*D68 -> 0 | E69: =E67*E68 -> 0 | F69: =F67*F68 -> 0 | G69: 0 | H69: 0 | I69: 0 | J69: 0 | K69: 0 | L69: 0 | M69: 0 | N69: 0 | O69: 0 | P69: 0 | Q69: 0 | R69: 0 | S69: 0 | T69: 0 | U69: 0 | V69: 0 | W69: 0 | X69: 0 | Y69: 0 | Z69: 0 | AA69: 0 | AB69: 0 | AC69: 0
B70: Cumulative Discounted Total | D70: =IF((COLUMN(D52)-COLUMN($D52))<=Base_V1_Years_Usage_Modeled,C70+D69,0) -> 0 | E70: 0 | F70: 0 | G70: 0 | H70: 0 | I70: 0 | J70: 0 | K70: 0 | L70: 0 | M70: 0 | N70: 0 | O70: 0 | P70: 0 | Q70: 0 | R70: 0 | S70: 0 | T70: 0 | U70: 0 | V70: 0 | W70: 0 | X70: 0 | Y70: 0 | Z70: 0 | AA70: 0 | AB70: 0 | AC70: 0
B71: Annualized NPV Total Cost of Ownership | D71: =OFFSET($D70,0,Base_V1_Years_Usage_Modeled)/Base_V1_Years_Usage_Modeled -> 0
B73: Comparison Vehicle 1
D74: Year 0 | E74: Year 1 | F74: Year 2 | G74: Year 3 | H74: Year 4 | I74: Year 5 | J74: Year 6 | K74: Year 7 | L74: Year 8 | M74: Year 9 | N74: Year 10 | O74: Year 11 | P74: Year 12 | Q74: Year 13 | R74: Year 14 | S74: Year 15 | T74: Year 16 | U74: Year 17 | V74: Year 18 | W74: Year 19 | X74: Year 20 | Y74: Year 21 | Z74: Year 22 | AA74: Year 23 | AB74: Year 24 | AC74: Year 25
B75: Depreciation Calculations
B76: Fair Market Value - BEV | D76: =IF(_Comp_V1_Vehicle_Drivetrain="BEV",Comp_V1_Base_Price_Ex,0) -> 0 | E76: =IF(_Comp_V1_Vehicle_Drivetrain="BEV",MAX(IF(_Comp_V1_Vehicle_Drivetrain="BEV",Reg_BEV_Const_Ex+Reg_BEV_Age_Coef_Ex*(COLUMN(E74)-COLUMN($D74))+Reg_BEV_Agesq_Coef_Ex*((COLUMN(E74)-COLUMN($D74))^2)+Reg_BEV_MSRP_Coef_Ex*Comp_V1_Base_Price_Ex+Reg_BEV_Range_Coef_Ex*Constant_Comparison_Electric_Range+Reg_BEV_Mileage_Coef_Ex*Comp_V1_VMT_Modeled*(COLUMN(E74)-COLUMN($D74)),0),300),0) -> 0 | F76: =IF(_Comp_V1_Vehicle_Drivetrain="BEV",MAX(IF(_Comp_V1_Vehicle_Drivetrain="BEV",Reg_BEV_Const_Ex+Reg_BEV_Age_Coef_Ex*(COLUMN(F74)-COLUMN($D74))+Reg_BEV_Agesq_Coef_Ex*((COLUMN(F74)-COLUMN($D74))^2)+Reg_BEV_MSRP_Coef_Ex*Comp_V1_Base_Price_Ex+Reg_BEV_Range_Coef_Ex*Constant_Comparison_Electric_Range+Reg_BEV_Mileage_Coef_Ex*Comp_V1_VMT_Modeled*(COLUMN(F74)-COLUMN($D74)),0),300),0) -> 0 | G76: =IF(_Comp_V1_Vehicle_Drivetrain="BEV",MAX(IF(_Comp_V1_Vehicle_Drivetrain="BEV",Reg_BEV_Const_Ex+Reg_BEV_Age_Coef_Ex*(COLUMN(G74)-COLUMN($D74))+Reg_BEV_Agesq_Coef_Ex*((COLUMN(G74)-COLUMN($D74))^2)+Reg_BEV_MSRP_Coef_Ex*Comp_V1_Base_Price_Ex+Reg_BEV_Range_Coef_Ex*Constant_Comparison_Electric_Range+Reg_BEV_Mileage_Coef_Ex*Comp_V1_VMT_Modeled*(COLUMN(G74)-COLUMN($D74)),0),300),0) -> 0 | H76: =IF(_Comp_V1_Vehicle_Drivetrain="BEV",MAX(IF(_Comp_V1_Vehicle_Drivetrain="BEV",Reg_BEV_Const_Ex+Reg_BEV_Age_Coef_Ex*(COLUMN(H74)-COLUMN($D74))+Reg_BEV_Agesq_Coef_Ex*((COLUMN(H74)-COLUMN($D74))^2)+Reg_BEV_MSRP_Coef_Ex*Comp_V1_Base_Price_Ex+Reg_BEV_Range_Coef_Ex*Constant_Comparison_Electric_Range+Reg_BEV_Mileage_Coef_Ex*Comp_V1_VMT_Modeled*(COLUMN(H74)-COLUMN($D74)),0),300),0) -> 0 | I76: =IF(_Comp_V1_Vehicle_Drivetrain="BEV",MAX(IF(_Comp_V1_Vehicle_Drivetrain="BEV",Reg_BEV_Const_Ex+Reg_BEV_Age_Coef_Ex*(COLUMN(I74)-COLUMN($D74))+Reg_BEV_Agesq_Coef_Ex*((COLUMN(I74)-COLUMN($D74))^2)+Reg_BEV_MSRP_Coef_Ex*Comp_V1_Base_Price_Ex+Reg_BEV_Range_Coef_Ex*Constant_Comparison_Electric_Range+Reg_BEV_Mileage_Coef_Ex*Comp_V1_VMT_Modeled*(COLUMN(I74)-COLUMN($D74)),0),300),0) -> 0 | J76: =IF($H76-$I76=0,0,MAX((1-($H76-$I76)/$H76)*I76,300)) -> 0 | K76: 0 | L76: 0 | M76: 0 | N76: 0 | O76: 0 | P76: 0 | Q76: 0 | R76: 0 | S76: 0 | T76: 0 | U76: 0 | V76: 0 | W76: 0 | X76: 0 | Y76: 0 | Z76: 0 | AA76: 0 | AB76: 0 | AC76: 0
B77: Fair Market Value - PHEV | D77: =IF(_Comp_V1_Vehicle_Drivetrain="PHEV",Comp_V1_Base_Price_Ex,0) -> 0 | E77: =IF(_Comp_V1_Vehicle_Drivetrain="PHEV",MAX(IF(_Comp_V1_Vehicle_Drivetrain="PHEV",Reg_PHEV_Const_Ex+Reg_PHEV_Age_Coef_Ex*(COLUMN(E74)-COLUMN($D74))+Reg_PHEV_Agesq_Coef_Ex*((COLUMN(E74)-COLUMN($D74))^2)+Reg_PHEV_MSRP_Coef_Ex*Comp_V1_Base_Price_Ex+Reg_PHEV_Range_Coef_Ex*Constant_Comparison_Electric_Range+Reg_PHEV_Mileage_Coef_Ex*Comp_V1_VMT_Modeled*(COLUMN(E74)-COLUMN($D74)),0),300),0) -> 0 | F77: =IF(_Comp_V1_Vehicle_Drivetrain="PHEV",MAX(IF(_Comp_V1_Vehicle_Drivetrain="PHEV",Reg_PHEV_Const_Ex+Reg_PHEV_Age_Coef_Ex*(COLUMN(F74)-COLUMN($D74))+Reg_PHEV_Agesq_Coef_Ex*((COLUMN(F74)-COLUMN($D74))^2)+Reg_PHEV_MSRP_Coef_Ex*Comp_V1_Base_Price_Ex+Reg_PHEV_Range_Coef_Ex*Constant_Comparison_Electric_Range+Reg_PHEV_Mileage_Coef_Ex*Comp_V1_VMT_Modeled*(COLUMN(F74)-COLUMN($D74)),0),300),0) -> 0 | G77: =IF(_Comp_V1_Vehicle_Drivetrain="PHEV",MAX(IF(_Comp_V1_Vehicle_Drivetrain="PHEV",Reg_PHEV_Const_Ex+Reg_PHEV_Age_Coef_Ex*(COLUMN(G74)-COLUMN($D74))+Reg_PHEV_Agesq_Coef_Ex*((COLUMN(G74)-COLUMN($D74))^2)+Reg_PHEV_MSRP_Coef_Ex*Comp_V1_Base_Price_Ex+Reg_PHEV_Range_Coef_Ex*Constant_Comparison_Electric_Range+Reg_PHEV_Mileage_Coef_Ex*Comp_V1_VMT_Modeled*(COLUMN(G74)-COLUMN($D74)),0),300),0) -> 0 | H77: =IF(_Comp_V1_Vehicle_Drivetrain="PHEV",MAX(IF(_Comp_V1_Vehicle_Drivetrain="PHEV",Reg_PHEV_Const_Ex+Reg_PHEV_Age_Coef_Ex*(COLUMN(H74)-COLUMN($D74))+Reg_PHEV_Agesq_Coef_Ex*((COLUMN(H74)-COLUMN($D74))^2)+Reg_PHEV_MSRP_Coef_Ex*Comp_V1_Base_Price_Ex+Reg_PHEV_Range_Coef_Ex*Constant_Comparison_Electric_Range+Reg_PHEV_Mileage_Coef_Ex*Comp_V1_VMT_Modeled*(COLUMN(H74)-COLUMN($D74)),0),300),0) -> 0 | I77: =IF(_Comp_V1_Vehicle_Drivetrain="PHEV",MAX(IF(_Comp_V1_Vehicle_Drivetrain="PHEV",Reg_PHEV_Const_Ex+Reg_PHEV_Age_Coef_Ex*(COLUMN(I74)-COLUMN($D74))+Reg_PHEV_Agesq_Coef_Ex*((COLUMN(I74)-COLUMN($D74))^2)+Reg_PHEV_MSRP_Coef_Ex*Comp_V1_Base_Price_Ex+Reg_PHEV_Range_Coef_Ex*Constant_Comparison_Electric_Range+Reg_PHEV_Mileage_Coef_Ex*Comp_V1_VMT_Modeled*(COLUMN(I74)-COLUMN($D74)),0),300),0) -> 0 | J77: =IF($H77-$I77=0,0,MAX((1-($H77-$I77)/$H77)*I77,300)) -> 0 | K77: 0 | L77: 0 | M77: 0 | N77: 0 | O77: 0 | P77: 0 | Q77: 0 | R77: 0 | S77: 0 | T77: 0 | U77: 0 | V77: 0 | W77: 0 | X77: 0 | Y77: 0 | Z77: 0 | AA77: 0 | AB77: 0 | AC77: 0
B78: Fair Market Value - ICE | D78: =IF(_Comp_V1_Vehicle_Drivetrain="ICE",Comp_V1_Base_Price_Ex,0) -> 33526 | E78: =IF(_Comp_V1_Vehicle_Drivetrain="ICE",MAX(IF(_Comp_V1_Vehicle_Drivetrain="ICE",Reg_ICE_Const_Ex+Reg_ICE_Age_Coef_Ex*(COLUMN(E74)-COLUMN($D74))+Reg_ICE_Agesq_Coef_Ex*(COLUMN(E74)-COLUMN($D74))^2+Reg_ICE_MSRP_Coef_Ex*Comp_V1_Base_Price_Ex+Reg_ICE_MPG_Coef_Ex*Constant_Comparison_Fuel_Economy_Gas_City+Reg_ICE_Mileage_Coef_Ex*Comp_V1_VMT_Modeled*(COLUMN(E74)-COLUMN($D74)),0),300),0) -> 28969.87484 | F78: =IF(_Comp_V1_Vehicle_Drivetrain="ICE",MAX(IF(_Comp_V1_Vehicle_Drivetrain="ICE",Reg_ICE_Const_Ex+Reg_ICE_Age_Coef_Ex*(COLUMN(F74)-COLUMN($D74))+Reg_ICE_Agesq_Coef_Ex*(COLUMN(F74)-COLUMN($D74))^2+Reg_ICE_MSRP_Coef_Ex*Comp_V1_Base_Price_Ex+Reg_ICE_MPG_Coef_Ex*Constant_Comparison_Fuel_Economy_Gas_City+Reg_ICE_Mileage_Coef_Ex*Comp_V1_VMT_Modeled*(COLUMN(F74)-COLUMN($D74)),0),300),0) -> 27255.43934 | G78: =IF(_Comp_V1_Vehicle_Drivetrain="ICE",MAX(IF(_Comp_V1_Vehicle_Drivetrain="ICE",Reg_ICE_Const_Ex+Reg_ICE_Age_Coef_Ex*(COLUMN(G74)-COLUMN($D74))+Reg_ICE_Agesq_Coef_Ex*(COLUMN(G74)-COLUMN($D74))^2+Reg_ICE_MSRP_Coef_Ex*Comp_V1_Base_Price_Ex+Reg_ICE_MPG_Coef_Ex*Constant_Comparison_Fuel_Economy_Gas_City+Reg_ICE_Mileage_Coef_Ex*Comp_V1_VMT_Modeled*(COLUMN(G74)-COLUMN($D74)),0),300),0) -> 25223.30384 | H78: =IF(_Comp_V1_Vehicle_Drivetrain="ICE",MAX(IF(_Comp_V1_Vehicle_Drivetrain="ICE",Reg_ICE_Const_Ex+Reg_ICE_Age_Coef_Ex*(COLUMN(H74)-COLUMN($D74))+Reg_ICE_Agesq_Coef_Ex*(COLUMN(H74)-COLUMN($D74))^2+Reg_ICE_MSRP_Coef_Ex*Comp_V1_Base_Price_Ex+Reg_ICE_MPG_Coef_Ex*Constant_Comparison_Fuel_Economy_Gas_City+Reg_ICE_Mileage_Coef_Ex*Comp_V1_VMT_Modeled*(COLUMN(H74)-COLUMN($D74)),0),300),0) -> 22873.46834 | I78: =IF(_Comp_V1_Vehicle_Drivetrain="ICE",MAX(IF(_Comp_V1_Vehicle_Drivetrain="ICE",Reg_ICE_Const_Ex+Reg_ICE_Age_Coef_Ex*(COLUMN(I74)-COLUMN($D74))+Reg_ICE_Agesq_Coef_Ex*(COLUMN(I74)-COLUMN($D74))^2+Reg_ICE_MSRP_Coef_Ex*Comp_V1_Base_Price_Ex+Reg_ICE_MPG_Coef_Ex*Constant_Comparison_Fuel_Economy_Gas_City+Reg_ICE_Mileage_Coef_Ex*Comp_V1_VMT_Modeled*(COLUMN(I74)-COLUMN($D74)),0),300),0) -> 20205.93284 | J78: =IF($H78-$I78=0,0,MAX((1-($H78-$I78)/$H78)*I78,300)) -> 17849.48902 | K78: 15767.85693 | L78: 13928.98766 | M78: 12304.56986 | N78: 10869.59391 | O78: 9601.966842 | P78: 8482.172194 | Q78: 7492.969546 | R78: 6619.129079 | S78: 5847.197095 | T78: 5165.288886 | U78: 4562.905755 | V78: 4030.773378 | W78: 3560.699014 | X78: 3145.445372 | Y78: 2778.619184 | Z78: 2454.572774 | AA78: 2168.317103 | AB78: 1915.444965 | AC78: 1692.063125
B80: Capital and Financing Costs
B81: Cash
B82: Cash Payment | D82: =IF(AND(Comp_V1_Has_Cash_Purchase_Ex=TRUE,Comp_V1_Has_Loan_Ex=FALSE,Comp_V1_Has_Lease_Ex=FALSE,COLUMN(D74)-COLUMN($D74)=0),-(Comp_V1_Base_Price_Ex-IF(Comp_V1_Tax_Incentives_Monetized="Yes",Comp_V1_Federal_Tax_Incentives_Modeled+IF(Comp_V1_State_Tax_Incentive_Cap_Modeled=0,Comp_V1_State_Tax_Incentives_Modeled,MIN(Comp_V1_State_Tax_Incentive_Cap_Modeled,Comp_V1_State_Tax_Incentives_Modeled*Comp_V1_Num_Vehicles_Modeled)/Comp_V1_Num_Vehicles_Modeled),0)-Comp_V1_Other_Incentives_Modeled),IF(AND(Comp_V1_Has_Cash_Purchase_Ex=TRUE,OR(Comp_V1_Has_Loan_Ex=TRUE,Comp_V1_Has_Lease_Ex=TRUE),COLUMN(D74)-COLUMN($D74)=Comp_V1_Lease_Term_Modeled),IF(ISERROR(FIND("Tax",_Comp_V1_Ownership_Structure,1)),-SUM(D76:D78),-Comp_V1_Lease_Residual_Price_Modeled),0)) -> -33526 | E82: 0 | F82: 0 | G82: 0 | H82: 0 | I82: 0 | J82: 0 | K82: 0 | L82: 0 | M82: 0 | N82: 0 | O82: 0 | P82: 0 | Q82: 0 | R82: 0 | S82: 0 | T82: 0 | U82: 0 | V82: 0 | W82: 0 | X82: 0 | Y82: 0 | Z82: 0 | AA82: 0 | AB82: 0 | AC82: 0
B83: Lease
B84: Down Payment | D84: =IF(Comp_V1_Has_Lease_Ex=TRUE,-Comp_V1_Down_Payment_Modeled,0) -> 0
B85: Acquisition Fee | D85: =IF(Comp_V1_Has_Lease_Ex=TRUE,-Comp_V1_Lease_Acquisition_Fee_Modeled,0) -> 0
B86: Disposition Charge | D86: =IF(AND(Comp_V1_Has_Lease_Ex=TRUE,((COLUMN(D74)-COLUMN($D74))=Comp_V1_Lease_Term_Modeled)),-Comp_V1_Lease_Disposition_Fee_Modeled,0) -> 0 | E86: 0 | F86: 0 | G86: 0 | H86: 0 | I86: 0 | J86: 0 | K86: 0 | L86: 0 | M86: 0 | N86: 0 | O86: 0 | P86: 0 | Q86: 0 | R86: 0 | S86: 0 | T86: 0 | U86: 0 | V86: 0 | W86: 0 | X86: 0 | Y86: 0 | Z86: 0 | AA86: 0 | AB86: 0 | AC86: 0
B87: Lease Payments | E87: =IF(Comp_V1_Has_Lease_Ex=TRUE,IF((COLUMN(E74)-COLUMN($E74))<Comp_V1_Lease_Term_Modeled,-PMT(Comp_V1_Lease_APR_Modeled/12,Comp_V1_Lease_Term_Modeled*12,-(Comp_V1_Base_Price_Ex-IF(Comp_V1_Tax_Incentives_Monetized="Yes",Comp_V1_Federal_Tax_Incentives_Modeled+IF(Comp_V1_State_Tax_Incentive_Cap_Modeled=0,Comp_V1_State_Tax_Incentives_Modeled,MIN(Comp_V1_State_Tax_Incentive_Cap_Modeled,Comp_V1_State_Tax_Incentives_Modeled*Comp_V1_Num_Vehicles_Modeled)/Comp_V1_Num_Vehicles_Modeled),0)-Comp_V1_Other_Incentives_Modeled-Comp_V1_Down_Payment_Modeled)+Comp_V1_Lease_Residual_Price_Modeled,0)*12,0),0) -> 0 | F87: 0 | G87: 0 | H87: 0 | I87: 0 | J87: 0 | K87: 0 | L87: 0 | M87: 0 | N87: 0 | O87: 0 | P87: 0 | Q87: 0 | R87: 0 | S87: 0 | T87: 0 | U87: 0 | V87: 0 | W87: 0 | X87: 0 | Y87: 0 | Z87: 0 | AA87: 0 | AB87: 0 | AC87: 0
B88: Principal Payments | E88: =IF(Comp_V1_Has_Lease_Ex=TRUE,IF((COLUMN(E74)-COLUMN($E74))<Comp_V1_Lease_Term_Modeled,-PPMT(Comp_V1_Lease_APR_Modeled/12,(COLUMN(E74)-COLUMN($D74))*12,Comp_V1_Lease_Term_Modeled*12,-(Comp_V1_Base_Price_Ex-IF(Comp_V1_Tax_Incentives_Monetized="Yes",Comp_V1_Federal_Tax_Incentives_Modeled+IF(Comp_V1_State_Tax_Incentive_Cap_Modeled=0,Comp_V1_State_Tax_Incentives_Modeled,MIN(Comp_V1_State_Tax_Incentive_Cap_Modeled,Comp_V1_State_Tax_Incentives_Modeled*Comp_V1_Num_Vehicles_Modeled)/Comp_V1_Num_Vehicles_Modeled),0)-Comp_V1_Other_Incentives_Modeled-Comp_V1_Down_Payment_Modeled)+Comp_V1_Lease_Residual_Price_Modeled,0)*12,0),0) -> 0 | F88: 0 | G88: 0 | H88: 0 | I88: 0 | J88: 0 | K88: 0 | L88: 0 | M88: 0 | N88: 0 | O88: 0 | P88: 0 | Q88: 0 | R88: 0 | S88: 0 | T88: 0 | U88: 0 | V88: 0 | W88: 0 | X88: 0 | Y88: 0 | Z88: 0 | AA88: 0 | AB88: 0 | AC88: 0
B89: Interest Payments | E89: =IF(Comp_V1_Has_Lease_Ex=TRUE,IF((COLUMN(E74)-COLUMN($E74))<Comp_V1_Lease_Term_Modeled,-IPMT(Comp_V1_Lease_APR_Modeled/12,(COLUMN(E74)-COLUMN($D74))*12,Comp_V1_Lease_Term_Modeled*12,-(Comp_V1_Base_Price_Ex-IF(Comp_V1_Tax_Incentives_Monetized="Yes",Comp_V1_Federal_Tax_Incentives_Modeled+IF(Comp_V1_State_Tax_Incentive_Cap_Modeled=0,Comp_V1_State_Tax_Incentives_Modeled,MIN(Comp_V1_State_Tax_Incentive_Cap_Modeled,Comp_V1_State_Tax_Incentives_Modeled*Comp_V1_Num_Vehicles_Modeled)/Comp_V1_Num_Vehicles_Modeled),0)-Comp_V1_Other_Incentives_Modeled-Comp_V1_Down_Payment_Modeled)+Comp_V1_Lease_Residual_Price_Modeled,0)*12,0),0) -> 0 | F89: 0 | G89: 0 | H89: 0 | I89: 0 | J89: 0 | K89: 0 | L89: 0 | M89: 0 | N89: 0 | O89: 0 | P89: 0 | Q89: 0 | R89: 0 | S89: 0 | T89: 0 | U89: 0 | V89: 0 | W89: 0 | X89: 0 | Y89: 0 | Z89: 0 | AA89: 0 | AB89: 0 | AC89: 0
B90: TRAC Value Adjustment | E90: =IF(ISERROR(FIND("TRAC",_Comp_V1_Ownership_Structure,1)),0,IF(Comp_V1_Has_Loan_Ex=TRUE,0,IF((COLUMN(E74)-COLUMN($D74))=Comp_V1_Lease_Term_Modeled,SUM(E76:E78)-Comp_V1_Lease_Residual_Price_Modeled,0))) -> 0 | F90: 0 | G90: 0 | H90: 0 | I90: 0 | J90: 0 | K90: 0 | L90: 0 | M90: 0 | N90: 0 | O90: 0 | P90: 0 | Q90: 0 | R90: 0 | S90: 0 | T90: 0 | U90: 0 | V90: 0 | W90: 0 | X90: 0 | Y90: 0 | Z90: 0 | AA90: 0 | AB90: 0 | AC90: 0
B91: FMV Mileage Adjustment | E91: =MIN(0,MAX(-Comp_V1_Lease_Residual_Price_Modeled+SUM(E76:E78),IF(IFERROR(IF(FIND("FMV",_Comp_V1_Ownership_Structure,1)>0,TRUE,FALSE),FALSE),IF((COLUMN(E74)-COLUMN($D74))=Comp_V1_Lease_Term_Modeled,(Comp_V1_Lease_Mileage_Inc_Modeled-Comp_V1_VMT_Modeled)*(COLUMN(E74)-COLUMN($D74))*Comp_V1_Lease_Mileage_Cost_Modeled,0),0))) -> 0 | F91: 0 | G91: 0 | H91: 0 | I91: 0 | J91: 0 | K91: 0 | L91: 0 | M91: 0 | N91: 0 | O91: 0 | P91: 0 | Q91: 0 | R91: 0 | S91: 0 | T91: 0 | U91: 0 | V91: 0 | W91: 0 | X91: 0 | Y91: 0 | Z91: 0 | AA91: 0 | AB91: 0 | AC91: 0
B92: Subtotal Lease Cash Flows | D92: =SUM(D84:D87)+SUM(D90:D91) -> 0 | E92: =SUM(E84:E87)+SUM(E90:E91) -> 0 | F92: 0 | G92: 0 | H92: 0 | I92: 0 | J92: 0 | K92: 0 | L92: 0 | M92: 0 | N92: 0 | O92: 0 | P92: 0 | Q92: 0 | R92: 0 | S92: 0 | T92: 0 | U92: 0 | V92: 0 | W92: 0 | X92: 0 | Y92: 0 | Z92: 0 | AA92: 0 | AB92: 0 | AC92: 0
B93: Loan
B94: Down Payment | D94: =IF(AND(Comp_V1_Has_Loan_Ex=TRUE,Comp_V1_Has_Lease_Ex=FALSE),-Comp_V1_Down_Payment_Modeled,0) -> 0
B95: Loan Payments | E95: =IF(Comp_V1_Has_Loan_Ex=TRUE,IF(AND((COLUMN(E74)-COLUMN($E74))<Comp_V1_Loan_Term_Modeled+Comp_V1_Lease_Term_Modeled,(COLUMN(E74)-COLUMN($E74))>=Comp_V1_Lease_Term_Modeled),PMT(Comp_V1_Loan_APR_Modeled/12,Comp_V1_Loan_Term_Modeled*12,IF(Comp_V1_Has_Lease_Ex=TRUE,SUM(OFFSET($D76,0,Comp_V1_Lease_Term_Modeled,3,1)),Comp_V1_Base_Price_Ex-IF(Comp_V1_Tax_Incentives_Monetized="Yes",Comp_V1_Federal_Tax_Incentives_Modeled+IF(Comp_V1_State_Tax_Incentive_Cap_Modeled=0,Comp_V1_State_Tax_Incentives_Modeled,MIN(Comp_V1_State_Tax_Incentive_Cap_Modeled,Comp_V1_State_Tax_Incentives_Modeled*Comp_V1_Num_Vehicles_Modeled)/Comp_V1_Num_Vehicles_Modeled),0)-Comp_V1_Other_Incentives_Modeled-Comp_V1_Down_Payment_Modeled),0)*12,0),0) -> 0 | F95: 0 | G95: 0 | H95: 0 | I95: 0 | J95: 0 | K95: 0 | L95: 0 | M95: 0 | N95: 0 | O95: 0 | P95: 0 | Q95: 0 | R95: 0 | S95: 0 | T95: 0 | U95: 0 | V95: 0 | W95: 0 | X95: 0 | Y95: 0 | Z95: 0 | AA95: 0 | AB95: 0 | AC95: 0
B96: Principal Payments | E96: =IF(Comp_V1_Has_Loan_Ex=TRUE,IF(AND((COLUMN(E74)-COLUMN($E74))<Comp_V1_Loan_Term_Modeled+Comp_V1_Lease_Term_Modeled,(COLUMN(E74)-COLUMN($E74))>=Comp_V1_Lease_Term_Modeled),PPMT(Comp_V1_Loan_APR_Modeled/12,IF(Comp_V1_Has_Lease_Ex=TRUE,(COLUMN(E74)-COLUMN($D74)-Comp_V1_Lease_Term_Modeled)*12,(COLUMN(E74)-COLUMN($D74))*12),Comp_V1_Loan_Term_Modeled*12,IF(Comp_V1_Has_Lease_Ex=TRUE,SUM(OFFSET($D76,0,Comp_V1_Lease_Term_Modeled,3,1)),Comp_V1_Base_Price_Ex-IF(Comp_V1_Tax_Incentives_Monetized="Yes",Comp_V1_Federal_Tax_Incentives_Modeled+IF(Comp_V1_State_Tax_Incentive_Cap_Modeled=0,Comp_V1_State_Tax_Incentives_Modeled,MIN(Comp_V1_State_Tax_Incentive_Cap_Modeled,Comp_V1_State_Tax_Incentives_Modeled*Comp_V1_Num_Vehicles_Modeled)/Comp_V1_Num_Vehicles_Modeled),0)-Comp_V1_Other_Incentives_Modeled-Comp_V1_Down_Payment_Modeled),0)*12,0),0) -> 0 | F96: 0 | G96: 0 | H96: 0 | I96: 0 | J96: 0 | K96: 0 | L96: 0 | M96: 0 | N96: 0 | O96: 0 | P96: 0 | Q96: 0 | R96: 0 | S96: 0 | T96: 0 | U96: 0 | V96: 0 | W96: 0 | X96: 0 | Y96: 0 | Z96: 0 | AA96: 0 | AB96: 0 | AC96: 0
B97: Interest Payments | E97: =IF(Comp_V1_Has_Loan_Ex=TRUE,IF(AND((COLUMN(E74)-COLUMN($E74))<Comp_V1_Loan_Term_Modeled+Comp_V1_Lease_Term_Modeled,(COLUMN(E74)-COLUMN($E74))>=Comp_V1_Lease_Term_Modeled),IPMT(Comp_V1_Loan_APR_Modeled/12,IF(Comp_V1_Has_Lease_Ex=TRUE,(COLUMN(E74)-COLUMN($D74)-Comp_V1_Lease_Term)*12,(COLUMN(E74)-COLUMN($D74))*12),Comp_V1_Loan_Term_Modeled*12,IF(Comp_V1_Has_Lease_Ex=TRUE,SUM(OFFSET($D76,0,Comp_V1_Lease_Term_Modeled,3,1)),Comp_V1_Base_Price_Ex-IF(Comp_V1_Tax_Incentives_Monetized="Yes",Comp_V1_Federal_Tax_Incentives_Modeled+IF(Comp_V1_State_Tax_Incentive_Cap_Modeled=0,Comp_V1_State_Tax_Incentives_Modeled,MIN(Comp_V1_State_Tax_Incentive_Cap_Modeled,Comp_V1_State_Tax_Incentives_Modeled*Comp_V1_Num_Vehicles_Modeled)/Comp_V1_Num_Vehicles_Modeled),0)-Comp_V1_Other_Incentives_Modeled-Comp_V1_Down_Payment_Modeled),0)*12,0),0) -> 0 | F97: 0 | G97: 0 | H97: 0 | I97: 0 | J97: 0 | K97: 0 | L97: 0 | M97: 0 | N97: 0 | O97: 0 | P97: 0 | Q97: 0 | R97: 0 | S97: 0 | T97: 0 | U97: 0 | V97: 0 | W97: 0 | X97: 0 | Y97: 0 | Z97: 0 | AA97: 0 | AB97: 0 | AC97: 0
B98: Subtotal Loan Cash Flows | D98: =SUM(D94:D95) -> 0 | E98: =SUM(E94:E95) -> 0 | F98: 0 | G98: 0 | H98: 0 | I98: 0 | J98: 0 | K98: 0 | L98: 0 | M98: 0 | N98: 0 | O98: 0 | P98: 0 | Q98: 0 | R98: 0 | S98: 0 | T98: 0 | U98: 0 | V98: 0 | W98: 0 | X98: 0 | Y98: 0 | Z98: 0 | AA98: 0 | AB98: 0 | AC98: 0
B99: Terminal Value | E99: =IF(OR(Comp_V1_Has_Loan_Ex=TRUE,Comp_V1_Has_Cash_Purchase_Ex=TRUE),IF((COLUMN(E74)-COLUMN($D74))=Comp_V1_Years_Usage_Modeled,SUM(E76:E78),0),0) -> 0 | F99: 0 | G99: 0 | H99: 0 | I99: 0 | J99: 0 | K99: 15767.85693 | L99: 0 | M99: 0 | N99: 0 | O99: 0 | P99: 0 | Q99: 0 | R99: 0 | S99: 0 | T99: 0 | U99: 0 | V99: 0 | W99: 0 | X99: 0 | Y99: 0 | Z99: 0 | AA99: 0 | AB99: 0 | AC99: 0
B101: Total Capital and Financing Costs | D101: =D82+D92+D98+D99 -> -33526 | E101: 0 | F101: 0 | G101: 0 | H101: 0 | I101: 0 | J101: 0 | K101: 15767.85693 | L101: 0 | M101: 0 | N101: 0 | O101: 0 | P101: 0 | Q101: 0 | R101: 0 | S101: 0 | T101: 0 | U101: 0 | V101: 0 | W101: 0 | X101: 0 | Y101: 0 | Z101: 0 | AA101: 0 | AB101: 0 | AC101: 0
B103: Fuel and Operating Costs
B104: Fuel Cost | E104: =IF(COLUMN(E74)-COLUMN($E74)<Comp_V1_Years_Usage_Modeled,-((Comp_V1_Gas_Usage_Ex*Gasoline_Price_Modeled*IF(_Market="U.S.", Data!D$72, Data!D$75))+(Comp_V1_Electricity_Usage_Ex*Electricity_Price_Modeled*IF(_Market="U.S.", Data!D$74, Data!D$76))),0) -> -2659.21216 | F104: =IF(COLUMN(F74)-COLUMN($E74)<Comp_V1_Years_Usage_Modeled,-((Comp_V1_Gas_Usage_Ex*Gasoline_Price_Modeled*IF(_Market="U.S.", Data!E$72, Data!E$75))+(Comp_V1_Electricity_Usage_Ex*Electricity_Price_Modeled*IF(_Market="U.S.", Data!E$74, Data!E$76))),0) -> -3228.596339 | G104: =IF(COLUMN(G74)-COLUMN($E74)<Comp_V1_Years_Usage_Modeled,-((Comp_V1_Gas_Usage_Ex*Gasoline_Price_Modeled*IF(_Market="U.S.", Data!F$72, Data!F$75))+(Comp_V1_Electricity_Usage_Ex*Electricity_Price_Modeled*IF(_Market="U.S.", Data!F$74, Data!F$76))),0) -> -4311.363039 | H104: =IF(COLUMN(H74)-COLUMN($E74)<Comp_V1_Years_Usage_Modeled,-((Comp_V1_Gas_Usage_Ex*Gasoline_Price_Modeled*IF(_Market="U.S.", Data!G$72, Data!G$75))+(Comp_V1_Electricity_Usage_Ex*Electricity_Price_Modeled*IF(_Market="U.S.", Data!G$74, Data!G$76))),0) -> -4128.549059 | I104: =IF(COLUMN(I74)-COLUMN($E74)<Comp_V1_Years_Usage_Modeled,-((Comp_V1_Gas_Usage_Ex*Gasoline_Price_Modeled*IF(_Market="U.S.", Data!H$72, Data!H$75))+(Comp_V1_Electricity_Usage_Ex*Electricity_Price_Modeled*IF(_Market="U.S.", Data!H$74, Data!H$76))),0) -> -4128.549059 | J104: =IF(COLUMN(J74)-COLUMN($E74)<Comp_V1_Years_Usage_Modeled,-((Comp_V1_Gas_Usage_Ex*Gasoline_Price_Modeled*IF(_Market="U.S.", Data!I$72, Data!I$75))+(Comp_V1_Electricity_Usage_Ex*Electricity_Price_Modeled*IF(_Market="U.S.", Data!I$74, Data!I$76))),0) -> -4128.549059 | K104: =IF(COLUMN(K74)-COLUMN($E74)<Comp_V1_Years_Usage_Modeled,-((Comp_V1_Gas_Usage_Ex*Gasoline_Price_Modeled*IF(_Market="U.S.", Data!J$72, Data!J$75))+(Comp_V1_Electricity_Usage_Ex*Electricity_Price_Modeled*IF(_Market="U.S.", Data!J$74, Data!J$76))),0) -> -4174.252554 | L104: =IF(COLUMN(L74)-COLUMN($E74)<Comp_V1_Years_Usage_Modeled,-((Comp_V1_Gas_Usage_Ex*Gasoline_Price_Modeled*IF(_Market="U.S.", Data!K$72, Data!K$75))+(Comp_V1_Electricity_Usage_Ex*Electricity_Price_Modeled*IF(_Market="U.S.", Data!K$74, Data!K$76))),0) -> 0 | M104: =IF(COLUMN(M74)-COLUMN($E74)<Comp_V1_Years_Usage_Modeled,-((Comp_V1_Gas_Usage_Ex*Gasoline_Price_Modeled*IF(_Market="U.S.", Data!L$72, Data!L$75))+(Comp_V1_Electricity_Usage_Ex*Electricity_Price_Modeled*IF(_Market="U.S.", Data!L$74, Data!L$76))),0) -> 0 | N104: =IF(COLUMN(N74)-COLUMN($E74)<Comp_V1_Years_Usage_Modeled,-((Comp_V1_Gas_Usage_Ex*Gasoline_Price_Modeled*IF(_Market="U.S.", Data!M$72, Data!M$75))+(Comp_V1_Electricity_Usage_Ex*Electricity_Price_Modeled*IF(_Market="U.S.", Data!M$74, Data!M$76))),0) -> 0 | O104: =IF(COLUMN(O74)-COLUMN($E74)<Comp_V1_Years_Usage_Modeled,-((Comp_V1_Gas_Usage_Ex*Gasoline_Price_Modeled*IF(_Market="U.S.", Data!N$72, Data!N$75))+(Comp_V1_Electricity_Usage_Ex*Electricity_Price_Modeled*IF(_Market="U.S.", Data!N$74, Data!N$76))),0) -> 0 | P104: =IF(COLUMN(P74)-COLUMN($E74)<Comp_V1_Years_Usage_Modeled,-((Comp_V1_Gas_Usage_Ex*Gasoline_Price_Modeled*IF(_Market="U.S.", Data!O$72, Data!O$75))+(Comp_V1_Electricity_Usage_Ex*Electricity_Price_Modeled*IF(_Market="U.S.", Data!O$74, Data!O$76))),0) -> 0 | Q104: =IF(COLUMN(Q74)-COLUMN($E74)<Comp_V1_Years_Usage_Modeled,-((Comp_V1_Gas_Usage_Ex*Gasoline_Price_Modeled*IF(_Market="U.S.", Data!P$72, Data!P$75))+(Comp_V1_Electricity_Usage_Ex*Electricity_Price_Modeled*IF(_Market="U.S.", Data!P$74, Data!P$76))),0) -> 0 | R104: =IF(COLUMN(R74)-COLUMN($E74)<Comp_V1_Years_Usage_Modeled,-((Comp_V1_Gas_Usage_Ex*Gasoline_Price_Modeled*IF(_Market="U.S.", Data!Q$72, Data!Q$75))+(Comp_V1_Electricity_Usage_Ex*Electricity_Price_Modeled*IF(_Market="U.S.", Data!Q$74, Data!Q$76))),0) -> 0 | S104: =IF(COLUMN(S74)-COLUMN($E74)<Comp_V1_Years_Usage_Modeled,-((Comp_V1_Gas_Usage_Ex*Gasoline_Price_Modeled*IF(_Market="U.S.", Data!R$72, Data!R$75))+(Comp_V1_Electricity_Usage_Ex*Electricity_Price_Modeled*IF(_Market="U.S.", Data!R$74, Data!R$76))),0) -> 0 | T104: =IF(COLUMN(T74)-COLUMN($E74)<Comp_V1_Years_Usage_Modeled,-((Comp_V1_Gas_Usage_Ex*Gasoline_Price_Modeled*IF(_Market="U.S.", Data!S$72, Data!S$75))+(Comp_V1_Electricity_Usage_Ex*Electricity_Price_Modeled*IF(_Market="U.S.", Data!S$74, Data!S$76))),0) -> 0 | U104: =IF(COLUMN(U74)-COLUMN($E74)<Comp_V1_Years_Usage_Modeled,-((Comp_V1_Gas_Usage_Ex*Gasoline_Price_Modeled*IF(_Market="U.S.", Data!T$72, Data!T$75))+(Comp_V1_Electricity_Usage_Ex*Electricity_Price_Modeled*IF(_Market="U.S.", Data!T$74, Data!T$76))),0) -> 0 | V104: =IF(COLUMN(V74)-COLUMN($E74)<Comp_V1_Years_Usage_Modeled,-((Comp_V1_Gas_Usage_Ex*Gasoline_Price_Modeled*IF(_Market="U.S.", Data!U$72, Data!U$75))+(Comp_V1_Electricity_Usage_Ex*Electricity_Price_Modeled*IF(_Market="U.S.", Data!U$74, Data!U$76))),0) -> 0 | W104: =IF(COLUMN(W74)-COLUMN($E74)<Comp_V1_Years_Usage_Modeled,-((Comp_V1_Gas_Usage_Ex*Gasoline_Price_Modeled*IF(_Market="U.S.", Data!V$72, Data!V$75))+(Comp_V1_Electricity_Usage_Ex*Electricity_Price_Modeled*IF(_Market="U.S.", Data!V$74, Data!V$76))),0) -> 0 | X104: =IF(COLUMN(X74)-COLUMN($E74)<Comp_V1_Years_Usage_Modeled,-((Comp_V1_Gas_Usage_Ex*Gasoline_Price_Modeled*IF(_Market="U.S.", Data!W$72, Data!W$75))+(Comp_V1_Electricity_Usage_Ex*Electricity_Price_Modeled*IF(_Market="U.S.", Data!W$74, Data!W$76))),0) -> 0 | Y104: =IF(COLUMN(Y74)-COLUMN($E74)<Comp_V1_Years_Usage_Modeled,-((Comp_V1_Gas_Usage_Ex*Gasoline_Price_Modeled*IF(_Market="U.S.", Data!X$72, Data!X$75))+(Comp_V1_Electricity_Usage_Ex*Electricity_Price_Modeled*IF(_Market="U.S.", Data!X$74, Data!X$76))),0) -> 0 | Z104: =IF(COLUMN(Z74)-COLUMN($E74)<Comp_V1_Years_Usage_Modeled,-((Comp_V1_Gas_Usage_Ex*Gasoline_Price_Modeled*IF(_Market="U.S.", Data!Y$72, Data!Y$75))+(Comp_V1_Electricity_Usage_Ex*Electricity_Price_Modeled*IF(_Market="U.S.", Data!Y$74, Data!Y$76))),0) -> 0 | AA104: =IF(COLUMN(AA74)-COLUMN($E74)<Comp_V1_Years_Usage_Modeled,-((Comp_V1_Gas_Usage_Ex*Gasoline_Price_Modeled*IF(_Market="U.S.", Data!Z$72, Data!Z$75))+(Comp_V1_Electricity_Usage_Ex*Electricity_Price_Modeled*IF(_Market="U.S.", Data!Z$74, Data!Z$76))),0) -> 0 | AB104: =IF(COLUMN(AB74)-COLUMN($E74)<Comp_V1_Years_Usage_Modeled,-((Comp_V1_Gas_Usage_Ex*Gasoline_Price_Modeled*IF(_Market="U.S.", Data!AA$72, Data!AA$75))+(Comp_V1_Electricity_Usage_Ex*Electricity_Price_Modeled*IF(_Market="U.S.", Data!AA$74, Data!AA$76))),0) -> 0 | AC104: =IF(COLUMN(AC74)-COLUMN($E74)<Comp_V1_Years_Usage_Modeled,-((Comp_V1_Gas_Usage_Ex*Gasoline_Price_Modeled*IF(_Market="U.S.", Data!#REF!, Data!#REF!))+(Comp_V1_Electricity_Usage_Ex*Electricity_Price_Modeled*IF(_Market="U.S.", Data!#REF!, Data!#REF!))),0) -> 0
B105: Maintenance and Repair Cost | E105: =-IF(_Comp_V1_Maint_Repair_Cost_Use_Default="Yes",IF(COLUMN(E74)-COLUMN($E74)<Comp_V1_Years_Usage_Modeled,VLOOKUP(_Comp_V1_Vehicle_Drivetrain,DB_Maint_Repair_Costs[],COLUMN(E74)-COLUMN($E74)+COLUMN(DB_Maint_Repair_Costs[[#Headers],[Year 1 ]]),FALSE)*Comp_V1_VMT_Modeled,0),IF(AND(COLUMN(E74)-COLUMN($E74)<Comp_V1_Years_Usage_Modeled,COLUMN(E74)-COLUMN($E74)<5),Comp_V1_Maint_Repair_Cost_Year_1_Modeled*Comp_V1_VMT_Modeled,IF(AND(COLUMN(E74)-COLUMN($E74)<Comp_V1_Years_Usage_Modeled,COLUMN(E74)-COLUMN($E74)>=5),Comp_V1_Maint_Repair_Cost_Year_5_Modeled*Comp_V1_VMT_Modeled,0)))*Data!D$83 -> -1930.8 | F105: =-IF(_Comp_V1_Maint_Repair_Cost_Use_Default="Yes",IF(COLUMN(F74)-COLUMN($E74)<Comp_V1_Years_Usage_Modeled,VLOOKUP(_Comp_V1_Vehicle_Drivetrain,DB_Maint_Repair_Costs[],COLUMN(F74)-COLUMN($E74)+COLUMN(DB_Maint_Repair_Costs[[#Headers],[Year 1 ]]),FALSE)*Comp_V1_VMT_Modeled,0),IF(AND(COLUMN(F74)-COLUMN($E74)<Comp_V1_Years_Usage_Modeled,COLUMN(F74)-COLUMN($E74)<5),Comp_V1_Maint_Repair_Cost_Year_1_Modeled*Comp_V1_VMT_Modeled,IF(AND(COLUMN(F74)-COLUMN($E74)<Comp_V1_Years_Usage_Modeled,COLUMN(F74)-COLUMN($E74)>=5),Comp_V1_Maint_Repair_Cost_Year_5_Modeled*Comp_V1_VMT_Modeled,0)))*Data!E$83 -> -1969.416 | G105: =-IF(_Comp_V1_Maint_Repair_Cost_Use_Default="Yes",IF(COLUMN(G74)-COLUMN($E74)<Comp_V1_Years_Usage_Modeled,VLOOKUP(_Comp_V1_Vehicle_Drivetrain,DB_Maint_Repair_Costs[],COLUMN(G74)-COLUMN($E74)+COLUMN(DB_Maint_Repair_Costs[[#Headers],[Year 1 ]]),FALSE)*Comp_V1_VMT_Modeled,0),IF(AND(COLUMN(G74)-COLUMN($E74)<Comp_V1_Years_Usage_Modeled,COLUMN(G74)-COLUMN($E74)<5),Comp_V1_Maint_Repair_Cost_Year_1_Modeled*Comp_V1_VMT_Modeled,IF(AND(COLUMN(G74)-COLUMN($E74)<Comp_V1_Years_Usage_Modeled,COLUMN(G74)-COLUMN($E74)>=5),Comp_V1_Maint_Repair_Cost_Year_5_Modeled*Comp_V1_VMT_Modeled,0)))*Data!F$83 -> -2008.80432 | H105: =-IF(_Comp_V1_Maint_Repair_Cost_Use_Default="Yes",IF(COLUMN(H74)-COLUMN($E74)<Comp_V1_Years_Usage_Modeled,VLOOKUP(_Comp_V1_Vehicle_Drivetrain,DB_Maint_Repair_Costs[],COLUMN(H74)-COLUMN($E74)+COLUMN(DB_Maint_Repair_Costs[[#Headers],[Year 1 ]]),FALSE)*Comp_V1_VMT_Modeled,0),IF(AND(COLUMN(H74)-COLUMN($E74)<Comp_V1_Years_Usage_Modeled,COLUMN(H74)-COLUMN($E74)<5),Comp_V1_Maint_Repair_Cost_Year_1_Modeled*Comp_V1_VMT_Modeled,IF(AND(COLUMN(H74)-COLUMN($E74)<Comp_V1_Years_Usage_Modeled,COLUMN(H74)-COLUMN($E74)>=5),Comp_V1_Maint_Repair_Cost_Year_5_Modeled*Comp_V1_VMT_Modeled,0)))*Data!G$83 -> -2048.980406 | I105: =-IF(_Comp_V1_Maint_Repair_Cost_Use_Default="Yes",IF(COLUMN(I74)-COLUMN($E74)<Comp_V1_Years_Usage_Modeled,VLOOKUP(_Comp_V1_Vehicle_Drivetrain,DB_Maint_Repair_Costs[],COLUMN(I74)-COLUMN($E74)+COLUMN(DB_Maint_Repair_Costs[[#Headers],[Year 1 ]]),FALSE)*Comp_V1_VMT_Modeled,0),IF(AND(COLUMN(I74)-COLUMN($E74)<Comp_V1_Years_Usage_Modeled,COLUMN(I74)-COLUMN($E74)<5),Comp_V1_Maint_Repair_Cost_Year_1_Modeled*Comp_V1_VMT_Modeled,IF(AND(COLUMN(I74)-COLUMN($E74)<Comp_V1_Years_Usage_Modeled,COLUMN(I74)-COLUMN($E74)>=5),Comp_V1_Maint_Repair_Cost_Year_5_Modeled*Comp_V1_VMT_Modeled,0)))*Data!H$83 -> -2089.960015 | J105: =-IF(_Comp_V1_Maint_Repair_Cost_Use_Default="Yes",IF(COLUMN(J74)-COLUMN($E74)<Comp_V1_Years_Usage_Modeled,VLOOKUP(_Comp_V1_Vehicle_Drivetrain,DB_Maint_Repair_Costs[],COLUMN(J74)-COLUMN($E74)+COLUMN(DB_Maint_Repair_Costs[[#Headers],[Year 1 ]]),FALSE)*Comp_V1_VMT_Modeled,0),IF(AND(COLUMN(J74)-COLUMN($E74)<Comp_V1_Years_Usage_Modeled,COLUMN(J74)-COLUMN($E74)<5),Comp_V1_Maint_Repair_Cost_Year_1_Modeled*Comp_V1_VMT_Modeled,IF(AND(COLUMN(J74)-COLUMN($E74)<Comp_V1_Years_Usage_Modeled,COLUMN(J74)-COLUMN($E74)>=5),Comp_V1_Maint_Repair_Cost_Year_5_Modeled*Comp_V1_VMT_Modeled,0)))*Data!I$83 -> -2771.286979 | K105: =-IF(_Comp_V1_Maint_Repair_Cost_Use_Default="Yes",IF(COLUMN(K74)-COLUMN($E74)<Comp_V1_Years_Usage_Modeled,VLOOKUP(_Comp_V1_Vehicle_Drivetrain,DB_Maint_Repair_Costs[],COLUMN(K74)-COLUMN($E74)+COLUMN(DB_Maint_Repair_Costs[[#Headers],[Year 1 ]]),FALSE)*Comp_V1_VMT_Modeled,0),IF(AND(COLUMN(K74)-COLUMN($E74)<Comp_V1_Years_Usage_Modeled,COLUMN(K74)-COLUMN($E74)<5),Comp_V1_Maint_Repair_Cost_Year_1_Modeled*Comp_V1_VMT_Modeled,IF(AND(COLUMN(K74)-COLUMN($E74)<Comp_V1_Years_Usage_Modeled,COLUMN(K74)-COLUMN($E74)>=5),Comp_V1_Maint_Repair_Cost_Year_5_Modeled*Comp_V1_VMT_Modeled,0)))*Data!J$83 -> -2826.712719 | L105: =-IF(_Comp_V1_Maint_Repair_Cost_Use_Default="Yes",IF(COLUMN(L74)-COLUMN($E74)<Comp_V1_Years_Usage_Modeled,VLOOKUP(_Comp_V1_Vehicle_Drivetrain,DB_Maint_Repair_Costs[],COLUMN(L74)-COLUMN($E74)+COLUMN(DB_Maint_Repair_Costs[[#Headers],[Year 1 ]]),FALSE)*Comp_V1_VMT_Modeled,0),IF(AND(COLUMN(L74)-COLUMN($E74)<Comp_V1_Years_Usage_Modeled,COLUMN(L74)-COLUMN($E74)<5),Comp_V1_Maint_Repair_Cost_Year_1_Modeled*Comp_V1_VMT_Modeled,IF(AND(COLUMN(L74)-COLUMN($E74)<Comp_V1_Years_Usage_Modeled,COLUMN(L74)-COLUMN($E74)>=5),Comp_V1_Maint_Repair_Cost_Year_5_Modeled*Comp_V1_VMT_Modeled,0)))*Data!K$83 -> 0 | M105: =-IF(_Comp_V1_Maint_Repair_Cost_Use_Default="Yes",IF(COLUMN(M74)-COLUMN($E74)<Comp_V1_Years_Usage_Modeled,VLOOKUP(_Comp_V1_Vehicle_Drivetrain,DB_Maint_Repair_Costs[],COLUMN(M74)-COLUMN($E74)+COLUMN(DB_Maint_Repair_Costs[[#Headers],[Year 1 ]]),FALSE)*Comp_V1_VMT_Modeled,0),IF(AND(COLUMN(M74)-COLUMN($E74)<Comp_V1_Years_Usage_Modeled,COLUMN(M74)-COLUMN($E74)<5),Comp_V1_Maint_Repair_Cost_Year_1_Modeled*Comp_V1_VMT_Modeled,IF(AND(COLUMN(M74)-COLUMN($E74)<Comp_V1_Years_Usage_Modeled,COLUMN(M74)-COLUMN($E74)>=5),Comp_V1_Maint_Repair_Cost_Year_5_Modeled*Comp_V1_VMT_Modeled,0)))*Data!L$83 -> 0 | N105: =-IF(_Comp_V1_Maint_Repair_Cost_Use_Default="Yes",IF(COLUMN(N74)-COLUMN($E74)<Comp_V1_Years_Usage_Modeled,VLOOKUP(_Comp_V1_Vehicle_Drivetrain,DB_Maint_Repair_Costs[],COLUMN(N74)-COLUMN($E74)+COLUMN(DB_Maint_Repair_Costs[[#Headers],[Year 1 ]]),FALSE)*Comp_V1_VMT_Modeled,0),IF(AND(COLUMN(N74)-COLUMN($E74)<Comp_V1_Years_Usage_Modeled,COLUMN(N74)-COLUMN($E74)<5),Comp_V1_Maint_Repair_Cost_Year_1_Modeled*Comp_V1_VMT_Modeled,IF(AND(COLUMN(N74)-COLUMN($E74)<Comp_V1_Years_Usage_Modeled,COLUMN(N74)-COLUMN($E74)>=5),Comp_V1_Maint_Repair_Cost_Year_5_Modeled*Comp_V1_VMT_Modeled,0)))*Data!M$83 -> 0 | O105: =-IF(_Comp_V1_Maint_Repair_Cost_Use_Default="Yes",IF(COLUMN(O74)-COLUMN($E74)<Comp_V1_Years_Usage_Modeled,VLOOKUP(_Comp_V1_Vehicle_Drivetrain,DB_Maint_Repair_Costs[],COLUMN(O74)-COLUMN($E74)+COLUMN(DB_Maint_Repair_Costs[[#Headers],[Year 1 ]]),FALSE)*Comp_V1_VMT_Modeled,0),IF(AND(COLUMN(O74)-COLUMN($E74)<Comp_V1_Years_Usage_Modeled,COLUMN(O74)-COLUMN($E74)<5),Comp_V1_Maint_Repair_Cost_Year_1_Modeled*Comp_V1_VMT_Modeled,IF(AND(COLUMN(O74)-COLUMN($E74)<Comp_V1_Years_Usage_Modeled,COLUMN(O74)-COLUMN($E74)>=5),Comp_V1_Maint_Repair_Cost_Year_5_Modeled*Comp_V1_VMT_Modeled,0)))*Data!N$83 -> 0 | P105: =-IF(_Comp_V1_Maint_Repair_Cost_Use_Default="Yes",IF(COLUMN(P74)-COLUMN($E74)<Comp_V1_Years_Usage_Modeled,VLOOKUP(_Comp_V1_Vehicle_Drivetrain,DB_Maint_Repair_Costs[],COLUMN(P74)-COLUMN($E74)+COLUMN(DB_Maint_Repair_Costs[[#Headers],[Year 1 ]]),FALSE)*Comp_V1_VMT_Modeled,0),IF(AND(COLUMN(P74)-COLUMN($E74)<Comp_V1_Years_Usage_Modeled,COLUMN(P74)-COLUMN($E74)<5),Comp_V1_Maint_Repair_Cost_Year_1_Modeled*Comp_V1_VMT_Modeled,IF(AND(COLUMN(P74)-COLUMN($E74)<Comp_V1_Years_Usage_Modeled,COLUMN(P74)-COLUMN($E74)>=5),Comp_V1_Maint_Repair_Cost_Year_5_Modeled*Comp_V1_VMT_Modeled,0)))*Data!O$83 -> 0 | Q105: =-IF(_Comp_V1_Maint_Repair_Cost_Use_Default="Yes",IF(COLUMN(Q74)-COLUMN($E74)<Comp_V1_Years_Usage_Modeled,VLOOKUP(_Comp_V1_Vehicle_Drivetrain,DB_Maint_Repair_Costs[],COLUMN(Q74)-COLUMN($E74)+COLUMN(DB_Maint_Repair_Costs[[#Headers],[Year 1 ]]),FALSE)*Comp_V1_VMT_Modeled,0),IF(AND(COLUMN(Q74)-COLUMN($E74)<Comp_V1_Years_Usage_Modeled,COLUMN(Q74)-COLUMN($E74)<5),Comp_V1_Maint_Repair_Cost_Year_1_Modeled*Comp_V1_VMT_Modeled,IF(AND(COLUMN(Q74)-COLUMN($E74)<Comp_V1_Years_Usage_Modeled,COLUMN(Q74)-COLUMN($E74)>=5),Comp_V1_Maint_Repair_Cost_Year_5_Modeled*Comp_V1_VMT_Modeled,0)))*Data!P$83 -> 0 | R105: =-IF(_Comp_V1_Maint_Repair_Cost_Use_Default="Yes",IF(COLUMN(R74)-COLUMN($E74)<Comp_V1_Years_Usage_Modeled,VLOOKUP(_Comp_V1_Vehicle_Drivetrain,DB_Maint_Repair_Costs[],COLUMN(R74)-COLUMN($E74)+COLUMN(DB_Maint_Repair_Costs[[#Headers],[Year 1 ]]),FALSE)*Comp_V1_VMT_Modeled,0),IF(AND(COLUMN(R74)-COLUMN($E74)<Comp_V1_Years_Usage_Modeled,COLUMN(R74)-COLUMN($E74)<5),Comp_V1_Maint_Repair_Cost_Year_1_Modeled*Comp_V1_VMT_Modeled,IF(AND(COLUMN(R74)-COLUMN($E74)<Comp_V1_Years_Usage_Modeled,COLUMN(R74)-COLUMN($E74)>=5),Comp_V1_Maint_Repair_Cost_Year_5_Modeled*Comp_V1_VMT_Modeled,0)))*Data!Q$83 -> 0 | S105: =-IF(_Comp_V1_Maint_Repair_Cost_Use_Default="Yes",IF(COLUMN(S74)-COLUMN($E74)<Comp_V1_Years_Usage_Modeled,VLOOKUP(_Comp_V1_Vehicle_Drivetrain,DB_Maint_Repair_Costs[],COLUMN(S74)-COLUMN($E74)+COLUMN(DB_Maint_Repair_Costs[[#Headers],[Year 1 ]]),FALSE)*Comp_V1_VMT_Modeled,0),IF(AND(COLUMN(S74)-COLUMN($E74)<Comp_V1_Years_Usage_Modeled,COLUMN(S74)-COLUMN($E74)<5),Comp_V1_Maint_Repair_Cost_Year_1_Modeled*Comp_V1_VMT_Modeled,IF(AND(COLUMN(S74)-COLUMN($E74)<Comp_V1_Years_Usage_Modeled,COLUMN(S74)-COLUMN($E74)>=5),Comp_V1_Maint_Repair_Cost_Year_5_Modeled*Comp_V1_VMT_Modeled,0)))*Data!R$83 -> 0 | T105: =-IF(_Comp_V1_Maint_Repair_Cost_Use_Default="Yes",IF(COLUMN(T74)-COLUMN($E74)<Comp_V1_Years_Usage_Modeled,VLOOKUP(_Comp_V1_Vehicle_Drivetrain,DB_Maint_Repair_Costs[],COLUMN(T74)-COLUMN($E74)+COLUMN(DB_Maint_Repair_Costs[[#Headers],[Year 1 ]]),FALSE)*Comp_V1_VMT_Modeled,0),IF(AND(COLUMN(T74)-COLUMN($E74)<Comp_V1_Years_Usage_Modeled,COLUMN(T74)-COLUMN($E74)<5),Comp_V1_Maint_Repair_Cost_Year_1_Modeled*Comp_V1_VMT_Modeled,IF(AND(COLUMN(T74)-COLUMN($E74)<Comp_V1_Years_Usage_Modeled,COLUMN(T74)-COLUMN($E74)>=5),Comp_V1_Maint_Repair_Cost_Year_5_Modeled*Comp_V1_VMT_Modeled,0)))*Data!S$83 -> 0 | U105: =-IF(_Comp_V1_Maint_Repair_Cost_Use_Default="Yes",IF(COLUMN(U74)-COLUMN($E74)<Comp_V1_Years_Usage_Modeled,VLOOKUP(_Comp_V1_Vehicle_Drivetrain,DB_Maint_Repair_Costs[],COLUMN(U74)-COLUMN($E74)+COLUMN(DB_Maint_Repair_Costs[[#Headers],[Year 1 ]]),FALSE)*Comp_V1_VMT_Modeled,0),IF(AND(COLUMN(U74)-COLUMN($E74)<Comp_V1_Years_Usage_Modeled,COLUMN(U74)-COLUMN($E74)<5),Comp_V1_Maint_Repair_Cost_Year_1_Modeled*Comp_V1_VMT_Modeled,IF(AND(COLUMN(U74)-COLUMN($E74)<Comp_V1_Years_Usage_Modeled,COLUMN(U74)-COLUMN($E74)>=5),Comp_V1_Maint_Repair_Cost_Year_5_Modeled*Comp_V1_VMT_Modeled,0)))*Data!T$83 -> 0 | V105: =-IF(_Comp_V1_Maint_Repair_Cost_Use_Default="Yes",IF(COLUMN(V74)-COLUMN($E74)<Comp_V1_Years_Usage_Modeled,VLOOKUP(_Comp_V1_Vehicle_Drivetrain,DB_Maint_Repair_Costs[],COLUMN(V74)-COLUMN($E74)+COLUMN(DB_Maint_Repair_Costs[[#Headers],[Year 1 ]]),FALSE)*Comp_V1_VMT_Modeled,0),IF(AND(COLUMN(V74)-COLUMN($E74)<Comp_V1_Years_Usage_Modeled,COLUMN(V74)-COLUMN($E74)<5),Comp_V1_Maint_Repair_Cost_Year_1_Modeled*Comp_V1_VMT_Modeled,IF(AND(COLUMN(V74)-COLUMN($E74)<Comp_V1_Years_Usage_Modeled,COLUMN(V74)-COLUMN($E74)>=5),Comp_V1_Maint_Repair_Cost_Year_5_Modeled*Comp_V1_VMT_Modeled,0)))*Data!U$83 -> 0 | W105: =-IF(_Comp_V1_Maint_Repair_Cost_Use_Default="Yes",IF(COLUMN(W74)-COLUMN($E74)<Comp_V1_Years_Usage_Modeled,VLOOKUP(_Comp_V1_Vehicle_Drivetrain,DB_Maint_Repair_Costs[],COLUMN(W74)-COLUMN($E74)+COLUMN(DB_Maint_Repair_Costs[[#Headers],[Year 1 ]]),FALSE)*Comp_V1_VMT_Modeled,0),IF(AND(COLUMN(W74)-COLUMN($E74)<Comp_V1_Years_Usage_Modeled,COLUMN(W74)-COLUMN($E74)<5),Comp_V1_Maint_Repair_Cost_Year_1_Modeled*Comp_V1_VMT_Modeled,IF(AND(COLUMN(W74)-COLUMN($E74)<Comp_V1_Years_Usage_Modeled,COLUMN(W74)-COLUMN($E74)>=5),Comp_V1_Maint_Repair_Cost_Year_5_Modeled*Comp_V1_VMT_Modeled,0)))*Data!V$83 -> 0 | X105: =-IF(_Comp_V1_Maint_Repair_Cost_Use_Default="Yes",IF(COLUMN(X74)-COLUMN($E74)<Comp_V1_Years_Usage_Modeled,VLOOKUP(_Comp_V1_Vehicle_Drivetrain,DB_Maint_Repair_Costs[],COLUMN(X74)-COLUMN($E74)+COLUMN(DB_Maint_Repair_Costs[[#Headers],[Year 1 ]]),FALSE)*Comp_V1_VMT_Modeled,0),IF(AND(COLUMN(X74)-COLUMN($E74)<Comp_V1_Years_Usage_Modeled,COLUMN(X74)-COLUMN($E74)<5),Comp_V1_Maint_Repair_Cost_Year_1_Modeled*Comp_V1_VMT_Modeled,IF(AND(COLUMN(X74)-COLUMN($E74)<Comp_V1_Years_Usage_Modeled,COLUMN(X74)-COLUMN($E74)>=5),Comp_V1_Maint_Repair_Cost_Year_5_Modeled*Comp_V1_VMT_Modeled,0)))*Data!W$83 -> 0 | Y105: =-IF(_Comp_V1_Maint_Repair_Cost_Use_Default="Yes",IF(COLUMN(Y74)-COLUMN($E74)<Comp_V1_Years_Usage_Modeled,VLOOKUP(_Comp_V1_Vehicle_Drivetrain,DB_Maint_Repair_Costs[],COLUMN(Y74)-COLUMN($E74)+COLUMN(DB_Maint_Repair_Costs[[#Headers],[Year 1 ]]),FALSE)*Comp_V1_VMT_Modeled,0),IF(AND(COLUMN(Y74)-COLUMN($E74)<Comp_V1_Years_Usage_Modeled,COLUMN(Y74)-COLUMN($E74)<5),Comp_V1_Maint_Repair_Cost_Year_1_Modeled*Comp_V1_VMT_Modeled,IF(AND(COLUMN(Y74)-COLUMN($E74)<Comp_V1_Years_Usage_Modeled,COLUMN(Y74)-COLUMN($E74)>=5),Comp_V1_Maint_Repair_Cost_Year_5_Modeled*Comp_V1_VMT_Modeled,0)))*Data!X$83 -> 0 | Z105: =-IF(_Comp_V1_Maint_Repair_Cost_Use_Default="Yes",IF(COLUMN(Z74)-COLUMN($E74)<Comp_V1_Years_Usage_Modeled,VLOOKUP(_Comp_V1_Vehicle_Drivetrain,DB_Maint_Repair_Costs[],COLUMN(Z74)-COLUMN($E74)+COLUMN(DB_Maint_Repair_Costs[[#Headers],[Year 1 ]]),FALSE)*Comp_V1_VMT_Modeled,0),IF(AND(COLUMN(Z74)-COLUMN($E74)<Comp_V1_Years_Usage_Modeled,COLUMN(Z74)-COLUMN($E74)<5),Comp_V1_Maint_Repair_Cost_Year_1_Modeled*Comp_V1_VMT_Modeled,IF(AND(COLUMN(Z74)-COLUMN($E74)<Comp_V1_Years_Usage_Modeled,COLUMN(Z74)-COLUMN($E74)>=5),Comp_V1_Maint_Repair_Cost_Year_5_Modeled*Comp_V1_VMT_Modeled,0)))*Data!Y$83 -> 0 | AA105: =-IF(_Comp_V1_Maint_Repair_Cost_Use_Default="Yes",IF(COLUMN(AA74)-COLUMN($E74)<Comp_V1_Years_Usage_Modeled,VLOOKUP(_Comp_V1_Vehicle_Drivetrain,DB_Maint_Repair_Costs[],COLUMN(AA74)-COLUMN($E74)+COLUMN(DB_Maint_Repair_Costs[[#Headers],[Year 1 ]]),FALSE)*Comp_V1_VMT_Modeled,0),IF(AND(COLUMN(AA74)-COLUMN($E74)<Comp_V1_Years_Usage_Modeled,COLUMN(AA74)-COLUMN($E74)<5),Comp_V1_Maint_Repair_Cost_Year_1_Modeled*Comp_V1_VMT_Modeled,IF(AND(COLUMN(AA74)-COLUMN($E74)<Comp_V1_Years_Usage_Modeled,COLUMN(AA74)-COLUMN($E74)>=5),Comp_V1_Maint_Repair_Cost_Year_5_Modeled*Comp_V1_VMT_Modeled,0)))*Data!Z$83 -> 0 | AB105: =-IF(_Comp_V1_Maint_Repair_Cost_Use_Default="Yes",IF(COLUMN(AB74)-COLUMN($E74)<Comp_V1_Years_Usage_Modeled,VLOOKUP(_Comp_V1_Vehicle_Drivetrain,DB_Maint_Repair_Costs[],COLUMN(AB74)-COLUMN($E74)+COLUMN(DB_Maint_Repair_Costs[[#Headers],[Year 1 ]]),FALSE)*Comp_V1_VMT_Modeled,0),IF(AND(COLUMN(AB74)-COLUMN($E74)<Comp_V1_Years_Usage_Modeled,COLUMN(AB74)-COLUMN($E74)<5),Comp_V1_Maint_Repair_Cost_Year_1_Modeled*Comp_V1_VMT_Modeled,IF(AND(COLUMN(AB74)-COLUMN($E74)<Comp_V1_Years_Usage_Modeled,COLUMN(AB74)-COLUMN($E74)>=5),Comp_V1_Maint_Repair_Cost_Year_5_Modeled*Comp_V1_VMT_Modeled,0)))*Data!AA$83 -> 0 | AC105: =-IF(_Comp_V1_Maint_Repair_Cost_Use_Default="Yes",IF(COLUMN(AC74)-COLUMN($E74)<Comp_V1_Years_Usage_Modeled,VLOOKUP(_Comp_V1_Vehicle_Drivetrain,DB_Maint_Repair_Costs[],COLUMN(AC74)-COLUMN($E74)+COLUMN(DB_Maint_Repair_Costs[[#Headers],[Year 1 ]]),FALSE)*Comp_V1_VMT_Modeled,0),IF(AND(COLUMN(AC74)-COLUMN($E74)<Comp_V1_Years_Usage_Modeled,COLUMN(AC74)-COLUMN($E74)<5),Comp_V1_Maint_Repair_Cost_Year_1_Modeled*Comp_V1_VMT_Modeled,IF(AND(COLUMN(AC74)-COLUMN($E74)<Comp_V1_Years_Usage_Modeled,COLUMN(AC74)-COLUMN($E74)>=5),Comp_V1_Maint_Repair_Cost_Year_5_Modeled*Comp_V1_VMT_Modeled,0)))*Data!AB$83 -> 0
B106: Taxes and Fees | D106: =-Comp_V1_Initial_Taxes_Fees_Modeled-(Comp_V1_Initial_Percent_Base_Price_Modeled*Comp_V1_Base_Price_Ex) -> -1000 | E106: =-IF(COLUMN(E74)-COLUMN($E74)<Comp_V1_Years_Usage_Modeled,Comp_V1_Taxes_Fees_Modeled,0)*Data!D$83 -> -10 | F106: =-IF(COLUMN(F74)-COLUMN($E74)<Comp_V1_Years_Usage_Modeled,Comp_V1_Taxes_Fees_Modeled,0)*Data!E$83 -> -10.2 | G106: =-IF(COLUMN(G74)-COLUMN($E74)<Comp_V1_Years_Usage_Modeled,Comp_V1_Taxes_Fees_Modeled,0)*Data!F$83 -> -10.404 | H106: =-IF(COLUMN(H74)-COLUMN($E74)<Comp_V1_Years_Usage_Modeled,Comp_V1_Taxes_Fees_Modeled,0)*Data!G$83 -> -10.61208 | I106: =-IF(COLUMN(I74)-COLUMN($E74)<Comp_V1_Years_Usage_Modeled,Comp_V1_Taxes_Fees_Modeled,0)*Data!H$83 -> -10.8243216 | J106: =-IF(COLUMN(J74)-COLUMN($E74)<Comp_V1_Years_Usage_Modeled,Comp_V1_Taxes_Fees_Modeled,0)*Data!I$83 -> -11.04080803 | K106: =-IF(COLUMN(K74)-COLUMN($E74)<Comp_V1_Years_Usage_Modeled,Comp_V1_Taxes_Fees_Modeled,0)*Data!J$83 -> -11.26162419 | L106: =-IF(COLUMN(L74)-COLUMN($E74)<Comp_V1_Years_Usage_Modeled,Comp_V1_Taxes_Fees_Modeled,0)*Data!K$83 -> 0 | M106: =-IF(COLUMN(M74)-COLUMN($E74)<Comp_V1_Years_Usage_Modeled,Comp_V1_Taxes_Fees_Modeled,0)*Data!L$83 -> 0 | N106: =-IF(COLUMN(N74)-COLUMN($E74)<Comp_V1_Years_Usage_Modeled,Comp_V1_Taxes_Fees_Modeled,0)*Data!M$83 -> 0 | O106: =-IF(COLUMN(O74)-COLUMN($E74)<Comp_V1_Years_Usage_Modeled,Comp_V1_Taxes_Fees_Modeled,0)*Data!N$83 -> 0 | P106: =-IF(COLUMN(P74)-COLUMN($E74)<Comp_V1_Years_Usage_Modeled,Comp_V1_Taxes_Fees_Modeled,0)*Data!O$83 -> 0 | Q106: =-IF(COLUMN(Q74)-COLUMN($E74)<Comp_V1_Years_Usage_Modeled,Comp_V1_Taxes_Fees_Modeled,0)*Data!P$83 -> 0 | R106: =-IF(COLUMN(R74)-COLUMN($E74)<Comp_V1_Years_Usage_Modeled,Comp_V1_Taxes_Fees_Modeled,0)*Data!Q$83 -> 0 | S106: =-IF(COLUMN(S74)-COLUMN($E74)<Comp_V1_Years_Usage_Modeled,Comp_V1_Taxes_Fees_Modeled,0)*Data!R$83 -> 0 | T106: =-IF(COLUMN(T74)-COLUMN($E74)<Comp_V1_Years_Usage_Modeled,Comp_V1_Taxes_Fees_Modeled,0)*Data!S$83 -> 0 | U106: =-IF(COLUMN(U74)-COLUMN($E74)<Comp_V1_Years_Usage_Modeled,Comp_V1_Taxes_Fees_Modeled,0)*Data!T$83 -> 0 | V106: =-IF(COLUMN(V74)-COLUMN($E74)<Comp_V1_Years_Usage_Modeled,Comp_V1_Taxes_Fees_Modeled,0)*Data!U$83 -> 0 | W106: =-IF(COLUMN(W74)-COLUMN($E74)<Comp_V1_Years_Usage_Modeled,Comp_V1_Taxes_Fees_Modeled,0)*Data!V$83 -> 0 | X106: =-IF(COLUMN(X74)-COLUMN($E74)<Comp_V1_Years_Usage_Modeled,Comp_V1_Taxes_Fees_Modeled,0)*Data!W$83 -> 0 | Y106: =-IF(COLUMN(Y74)-COLUMN($E74)<Comp_V1_Years_Usage_Modeled,Comp_V1_Taxes_Fees_Modeled,0)*Data!X$83 -> 0 | Z106: =-IF(COLUMN(Z74)-COLUMN($E74)<Comp_V1_Years_Usage_Modeled,Comp_V1_Taxes_Fees_Modeled,0)*Data!Y$83 -> 0 | AA106: =-IF(COLUMN(AA74)-COLUMN($E74)<Comp_V1_Years_Usage_Modeled,Comp_V1_Taxes_Fees_Modeled,0)*Data!Z$83 -> 0 | AB106: =-IF(COLUMN(AB74)-COLUMN($E74)<Comp_V1_Years_Usage_Modeled,Comp_V1_Taxes_Fees_Modeled,0)*Data!AA$83 -> 0 | AC106: =-IF(COLUMN(AC74)-COLUMN($E74)<Comp_V1_Years_Usage_Modeled,Comp_V1_Taxes_Fees_Modeled,0)*Data!AB$83 -> 0
B107: Insurance Cost | E107: =-IF(COLUMN(E74)-COLUMN($E74)<Comp_V1_Years_Usage_Modeled,Comp_V1_Insurance_Cost_Modeled,0)*Data!D$83 -> -1062.3 | F107: =-IF(COLUMN(F74)-COLUMN($E74)<Comp_V1_Years_Usage_Modeled,Comp_V1_Insurance_Cost_Modeled,0)*Data!E$83 -> -1083.546 | G107: =-IF(COLUMN(G74)-COLUMN($E74)<Comp_V1_Years_Usage_Modeled,Comp_V1_Insurance_Cost_Modeled,0)*Data!F$83 -> -1105.21692 | H107: =-IF(COLUMN(H74)-COLUMN($E74)<Comp_V1_Years_Usage_Modeled,Comp_V1_Insurance_Cost_Modeled,0)*Data!G$83 -> -1127.321258 | I107: =-IF(COLUMN(I74)-COLUMN($E74)<Comp_V1_Years_Usage_Modeled,Comp_V1_Insurance_Cost_Modeled,0)*Data!H$83 -> -1149.867684 | J107: =-IF(COLUMN(J74)-COLUMN($E74)<Comp_V1_Years_Usage_Modeled,Comp_V1_Insurance_Cost_Modeled,0)*Data!I$83 -> -1172.865037 | K107: =-IF(COLUMN(K74)-COLUMN($E74)<Comp_V1_Years_Usage_Modeled,Comp_V1_Insurance_Cost_Modeled,0)*Data!J$83 -> -1196.322338 | L107: =-IF(COLUMN(L74)-COLUMN($E74)<Comp_V1_Years_Usage_Modeled,Comp_V1_Insurance_Cost_Modeled,0)*Data!K$83 -> 0 | M107: =-IF(COLUMN(M74)-COLUMN($E74)<Comp_V1_Years_Usage_Modeled,Comp_V1_Insurance_Cost_Modeled,0)*Data!L$83 -> 0 | N107: =-IF(COLUMN(N74)-COLUMN($E74)<Comp_V1_Years_Usage_Modeled,Comp_V1_Insurance_Cost_Modeled,0)*Data!M$83 -> 0 | O107: =-IF(COLUMN(O74)-COLUMN($E74)<Comp_V1_Years_Usage_Modeled,Comp_V1_Insurance_Cost_Modeled,0)*Data!N$83 -> 0 | P107: =-IF(COLUMN(P74)-COLUMN($E74)<Comp_V1_Years_Usage_Modeled,Comp_V1_Insurance_Cost_Modeled,0)*Data!O$83 -> 0 | Q107: =-IF(COLUMN(Q74)-COLUMN($E74)<Comp_V1_Years_Usage_Modeled,Comp_V1_Insurance_Cost_Modeled,0)*Data!P$83 -> 0 | R107: =-IF(COLUMN(R74)-COLUMN($E74)<Comp_V1_Years_Usage_Modeled,Comp_V1_Insurance_Cost_Modeled,0)*Data!Q$83 -> 0 | S107: =-IF(COLUMN(S74)-COLUMN($E74)<Comp_V1_Years_Usage_Modeled,Comp_V1_Insurance_Cost_Modeled,0)*Data!R$83 -> 0 | T107: =-IF(COLUMN(T74)-COLUMN($E74)<Comp_V1_Years_Usage_Modeled,Comp_V1_Insurance_Cost_Modeled,0)*Data!S$83 -> 0 | U107: =-IF(COLUMN(U74)-COLUMN($E74)<Comp_V1_Years_Usage_Modeled,Comp_V1_Insurance_Cost_Modeled,0)*Data!T$83 -> 0 | V107: =-IF(COLUMN(V74)-COLUMN($E74)<Comp_V1_Years_Usage_Modeled,Comp_V1_Insurance_Cost_Modeled,0)*Data!U$83 -> 0 | W107: =-IF(COLUMN(W74)-COLUMN($E74)<Comp_V1_Years_Usage_Modeled,Comp_V1_Insurance_Cost_Modeled,0)*Data!V$83 -> 0 | X107: =-IF(COLUMN(X74)-COLUMN($E74)<Comp_V1_Years_Usage_Modeled,Comp_V1_Insurance_Cost_Modeled,0)*Data!W$83 -> 0 | Y107: =-IF(COLUMN(Y74)-COLUMN($E74)<Comp_V1_Years_Usage_Modeled,Comp_V1_Insurance_Cost_Modeled,0)*Data!X$83 -> 0 | Z107: =-IF(COLUMN(Z74)-COLUMN($E74)<Comp_V1_Years_Usage_Modeled,Comp_V1_Insurance_Cost_Modeled,0)*Data!Y$83 -> 0 | AA107: =-IF(COLUMN(AA74)-COLUMN($E74)<Comp_V1_Years_Usage_Modeled,Comp_V1_Insurance_Cost_Modeled,0)*Data!Z$83 -> 0 | AB107: =-IF(COLUMN(AB74)-COLUMN($E74)<Comp_V1_Years_Usage_Modeled,Comp_V1_Insurance_Cost_Modeled,0)*Data!AA$83 -> 0 | AC107: =-IF(COLUMN(AC74)-COLUMN($E74)<Comp_V1_Years_Usage_Modeled,Comp_V1_Insurance_Cost_Modeled,0)*Data!AB$83 -> 0
B108: Subtotal Fuel and Operating Costs | D108: =SUM(D104:D107) -> -1000 | E108: -5662.31216 | F108: -6291.758339 | G108: -7435.788279 | H108: -7315.462804 | I108: -7379.201079 | J108: -8083.741883 | K108: -8208.549235 | L108: 0 | M108: 0 | N108: 0 | O108: 0 | P108: 0 | Q108: 0 | R108: 0 | S108: 0 | T108: 0 | U108: 0 | V108: 0 | W108: 0 | X108: 0 | Y108: 0 | Z108: 0 | AA108: 0 | AB108: 0 | AC108: 0
B110: Other Costs
B111: Cost of Carbon | E111: =-IF(COLUMN(E74)-COLUMN($E74)<Comp_V1_Years_Usage_Modeled,Comp_V1_CO2_Ex/2204.62*Carbon_Price_Modeled,0) -> 0 | F111: 0 | G111: 0 | H111: 0 | I111: 0 | J111: 0 | K111: 0 | L111: 0 | M111: 0 | N111: 0 | O111: 0 | P111: 0 | Q111: 0 | R111: 0 | S111: 0 | T111: 0 | U111: 0 | V111: 0 | W111: 0 | X111: 0 | Y111: 0 | Z111: 0 | AA111: 0 | AB111: 0 | AC111: 0
B112: Subtotal Other Costs | D112: =SUM(D111:D111) -> 0 | E112: 0 | F112: 0 | G112: 0 | H112: 0 | I112: 0 | J112: 0 | K112: 0 | L112: 0 | M112: 0 | N112: 0 | O112: 0 | P112: 0 | Q112: 0 | R112: 0 | S112: 0 | T112: 0 | U112: 0 | V112: 0 | W112: 0 | X112: 0 | Y112: 0 | Z112: 0 | AA112: 0 | AB112: 0 | AC112: =SUM(AC111:AC111) -> 0
B114: Total Discounted Costs
B115: Total Annual Costs | D115: =D101+D108+D112 -> -34526 | E115: -5662.31216 | F115: -6291.758339 | G115: -7435.788279 | H115: -7315.462804 | I115: -7379.201079 | J115: -8083.741883 | K115: 7559.307695 | L115: 0 | M115: 0 | N115: 0 | O115: 0 | P115: 0 | Q115: 0 | R115: 0 | S115: 0 | T115: 0 | U115: 0 | V115: 0 | W115: 0 | X115: 0 | Y115: 0 | Z115: 0 | AA115: 0 | AB115: 0 | AC115: 0
B116: Discount Factor | C116: =Comp_Discount_Rate_Modeled -> 0 | D116: =(1/(1+$C116))^(COLUMN(D74)-COLUMN($D74)) -> 1 | E116: 1 | F116: 1 | G116: 1 | H116: 1 | I116: 1 | J116: 1 | K116: 1 | L116: 1 | M116: 1 | N116: 1 | O116: 1 | P116: 1 | Q116: 1 | R116: 1 | S116: 1 | T116: 1 | U116: 1 | V116: 1 | W116: 1 | X116: 1 | Y116: 1 | Z116: 1 | AA116: 1 | AB116: 1 | AC116: 1
B117: Discounted Total | D117: =D115*D116 -> -34526 | E117: =E115*E116 -> -5662.31216 | F117: =F115*F116 -> -6291.758339 | G117: -7435.788279 | H117: -7315.462804 | I117: -7379.201079 | J117: -8083.741883 | K117: 7559.307695 | L117: 0 | M117: 0 | N117: 0 | O117: 0 | P117: 0 | Q117: 0 | R117: 0 | S117: 0 | T117: 0 | U117: 0 | V117: 0 | W117: 0 | X117: 0 | Y117: 0 | Z117: 0 | AA117: 0 | AB117: 0 | AC117: 0
B118: Cumulative Discounted Total | D118: =IF((COLUMN(D74)-COLUMN($D74))<=Comp_V1_Years_Usage_Modeled,C118+D117,0) -> -34526 | E118: -40188.31216 | F118: -46480.0705 | G118: -53915.85878 | H118: -61231.32158 | I118: -68610.52266 | J118: -76694.26454 | K118: -69134.95685 | L118: 0 | M118: 0 | N118: 0 | O118: 0 | P118: 0 | Q118: 0 | R118: 0 | S118: 0 | T118: 0 | U118: 0 | V118: 0 | W118: 0 | X118: 0 | Y118: 0 | Z118: 0 | AA118: 0 | AB118: 0 | AC118: 0
B119: Annualized NPV Total Cost of Ownership | D119: =OFFSET($D118,0,Comp_V1_Years_Usage_Modeled)/Comp_V1_Years_Usage_Modeled -> -9876.422407
B121: Comparison EV Infrastructure
D122: Year 0 | E122: Year 1 | F122: Year 2 | G122: Year 3 | H122: Year 4 | I122: Year 5 | J122: Year 6 | K122: Year 7 | L122: Year 8 | M122: Year 9 | N122: Year 10 | O122: Year 11 | P122: Year 12 | Q122: Year 13 | R122: Year 14 | S122: Year 15 | T122: Year 16 | U122: Year 17 | V122: Year 18 | W122: Year 19 | X122: Year 20 | Y122: Year 21 | Z122: Year 22 | AA122: Year 23 | AB122: Year 24 | AC122: Year 25
B123: Capital and Financing Costs
B124: Cash
B125: Cash Payment | D125: =IF(AND(Comp_Inf_Has_Cash_Purchase_Ex=TRUE,_Comp_Include_Charging="Yes"),-Comp_Num_Stations_Modeled*Comp_Station_Cost_Modeled,0) -> 0
B126: Loan
B127: Down Payment | D127: =IF(AND(Comp_Inf_Has_Cash_Purchase_Ex=FALSE,_Comp_Include_Charging="Yes"),-Comp_Inf_Down_Payment_Modeled,0) -> 0
B128: Loan Payments | E128: =IF(AND(Comp_Inf_Has_Cash_Purchase_Ex=FALSE,_Comp_Include_Charging="Yes",(COLUMN(E122)-COLUMN($E122))<Comp_Inf_Loan_Term_Modeled),PMT(Comp_Inf_Loan_APR_Modeled/12,Comp_Inf_Loan_Term_Modeled*12,(Comp_Num_Stations_Modeled*Comp_Station_Cost_Modeled)-Comp_Inf_Down_Payment_Modeled,0)*12,0) -> 0 | F128: 0 | G128: 0 | H128: 0 | I128: 0 | J128: 0 | K128: 0 | L128: 0 | M128: 0 | N128: 0 | O128: 0 | P128: 0 | Q128: 0 | R128: 0 | S128: 0 | T128: 0 | U128: 0 | V128: 0 | W128: 0 | X128: 0 | Y128: 0 | Z128: 0 | AA128: 0 | AB128: 0 | AC128: 0
B129: Subtotal Loan Cash Flows | D129: =SUM(D127:D128) -> 0 | E129: 0 | F129: 0 | G129: 0 | H129: 0 | I129: 0 | J129: 0 | K129: 0 | L129: 0 | M129: 0 | N129: 0 | O129: 0 | P129: 0 | Q129: 0 | R129: 0 | S129: 0 | T129: 0 | U129: 0 | V129: 0 | W129: 0 | X129: 0 | Y129: 0 | Z129: 0 | AA129: 0 | AB129: 0 | AC129: 0
B131: Total Capital and Financing Costs | D131: =D125+D129 -> 0 | E131: =E125+E129 -> 0 | F131: 0 | G131: 0 | H131: 0 | I131: 0 | J131: 0 | K131: 0 | L131: 0 | M131: 0 | N131: 0 | O131: 0 | P131: 0 | Q131: 0 | R131: 0 | S131: 0 | T131: 0 | U131: 0 | V131: 0 | W131: 0 | X131: 0 | Y131: 0 | Z131: 0 | AA131: 0 | AB131: 0 | AC131: 0
B133: Operating Costs
B134: Maintenance Cost | E134: =-IF(AND(COLUMN(E122)-COLUMN($E122)<Comp_V1_Years_Usage_Modeled,_Comp_Include_Charging="Yes"),Comp_Station_Maint_Cost_Modeled*Comp_Num_Stations_Modeled,0)*Data!D$83 -> 0 | F134: =-IF(AND(COLUMN(F122)-COLUMN($E122)<Comp_V1_Years_Usage_Modeled,_Comp_Include_Charging="Yes"),Comp_Station_Maint_Cost_Modeled*Comp_Num_Stations_Modeled,0)*Data!E$83 -> 0 | G134: =-IF(AND(COLUMN(G122)-COLUMN($E122)<Comp_V1_Years_Usage_Modeled,_Comp_Include_Charging="Yes"),Comp_Station_Maint_Cost_Modeled*Comp_Num_Stations_Modeled,0)*Data!F$83 -> 0 | H134: =-IF(AND(COLUMN(H122)-COLUMN($E122)<Comp_V1_Years_Usage_Modeled,_Comp_Include_Charging="Yes"),Comp_Station_Maint_Cost_Modeled*Comp_Num_Stations_Modeled,0)*Data!G$83 -> 0 | I134: =-IF(AND(COLUMN(I122)-COLUMN($E122)<Comp_V1_Years_Usage_Modeled,_Comp_Include_Charging="Yes"),Comp_Station_Maint_Cost_Modeled*Comp_Num_Stations_Modeled,0)*Data!H$83 -> 0 | J134: =-IF(AND(COLUMN(J122)-COLUMN($E122)<Comp_V1_Years_Usage_Modeled,_Comp_Include_Charging="Yes"),Comp_Station_Maint_Cost_Modeled*Comp_Num_Stations_Modeled,0)*Data!I$83 -> 0 | K134: =-IF(AND(COLUMN(K122)-COLUMN($E122)<Comp_V1_Years_Usage_Modeled,_Comp_Include_Charging="Yes"),Comp_Station_Maint_Cost_Modeled*Comp_Num_Stations_Modeled,0)*Data!J$83 -> 0 | L134: =-IF(AND(COLUMN(L122)-COLUMN($E122)<Comp_V1_Years_Usage_Modeled,_Comp_Include_Charging="Yes"),Comp_Station_Maint_Cost_Modeled*Comp_Num_Stations_Modeled,0)*Data!K$83 -> 0 | M134: =-IF(AND(COLUMN(M122)-COLUMN($E122)<Comp_V1_Years_Usage_Modeled,_Comp_Include_Charging="Yes"),Comp_Station_Maint_Cost_Modeled*Comp_Num_Stations_Modeled,0)*Data!L$83 -> 0 | N134: =-IF(AND(COLUMN(N122)-COLUMN($E122)<Comp_V1_Years_Usage_Modeled,_Comp_Include_Charging="Yes"),Comp_Station_Maint_Cost_Modeled*Comp_Num_Stations_Modeled,0)*Data!M$83 -> 0 | O134: =-IF(AND(COLUMN(O122)-COLUMN($E122)<Comp_V1_Years_Usage_Modeled,_Comp_Include_Charging="Yes"),Comp_Station_Maint_Cost_Modeled*Comp_Num_Stations_Modeled,0)*Data!N$83 -> 0 | P134: =-IF(AND(COLUMN(P122)-COLUMN($E122)<Comp_V1_Years_Usage_Modeled,_Comp_Include_Charging="Yes"),Comp_Station_Maint_Cost_Modeled*Comp_Num_Stations_Modeled,0)*Data!O$83 -> 0 | Q134: =-IF(AND(COLUMN(Q122)-COLUMN($E122)<Comp_V1_Years_Usage_Modeled,_Comp_Include_Charging="Yes"),Comp_Station_Maint_Cost_Modeled*Comp_Num_Stations_Modeled,0)*Data!P$83 -> 0 | R134: =-IF(AND(COLUMN(R122)-COLUMN($E122)<Comp_V1_Years_Usage_Modeled,_Comp_Include_Charging="Yes"),Comp_Station_Maint_Cost_Modeled*Comp_Num_Stations_Modeled,0)*Data!Q$83 -> 0 | S134: =-IF(AND(COLUMN(S122)-COLUMN($E122)<Comp_V1_Years_Usage_Modeled,_Comp_Include_Charging="Yes"),Comp_Station_Maint_Cost_Modeled*Comp_Num_Stations_Modeled,0)*Data!R$83 -> 0 | T134: =-IF(AND(COLUMN(T122)-COLUMN($E122)<Comp_V1_Years_Usage_Modeled,_Comp_Include_Charging="Yes"),Comp_Station_Maint_Cost_Modeled*Comp_Num_Stations_Modeled,0)*Data!S$83 -> 0 | U134: =-IF(AND(COLUMN(U122)-COLUMN($E122)<Comp_V1_Years_Usage_Modeled,_Comp_Include_Charging="Yes"),Comp_Station_Maint_Cost_Modeled*Comp_Num_Stations_Modeled,0)*Data!T$83 -> 0 | V134: =-IF(AND(COLUMN(V122)-COLUMN($E122)<Comp_V1_Years_Usage_Modeled,_Comp_Include_Charging="Yes"),Comp_Station_Maint_Cost_Modeled*Comp_Num_Stations_Modeled,0)*Data!U$83 -> 0 | W134: =-IF(AND(COLUMN(W122)-COLUMN($E122)<Comp_V1_Years_Usage_Modeled,_Comp_Include_Charging="Yes"),Comp_Station_Maint_Cost_Modeled*Comp_Num_Stations_Modeled,0)*Data!V$83 -> 0 | X134: =-IF(AND(COLUMN(X122)-COLUMN($E122)<Comp_V1_Years_Usage_Modeled,_Comp_Include_Charging="Yes"),Comp_Station_Maint_Cost_Modeled*Comp_Num_Stations_Modeled,0)*Data!W$83 -> 0 | Y134: =-IF(AND(COLUMN(Y122)-COLUMN($E122)<Comp_V1_Years_Usage_Modeled,_Comp_Include_Charging="Yes"),Comp_Station_Maint_Cost_Modeled*Comp_Num_Stations_Modeled,0)*Data!X$83 -> 0 | Z134: =-IF(AND(COLUMN(Z122)-COLUMN($E122)<Comp_V1_Years_Usage_Modeled,_Comp_Include_Charging="Yes"),Comp_Station_Maint_Cost_Modeled*Comp_Num_Stations_Modeled,0)*Data!Y$83 -> 0 | AA134: =-IF(AND(COLUMN(AA122)-COLUMN($E122)<Comp_V1_Years_Usage_Modeled,_Comp_Include_Charging="Yes"),Comp_Station_Maint_Cost_Modeled*Comp_Num_Stations_Modeled,0)*Data!Z$83 -> 0 | AB134: =-IF(AND(COLUMN(AB122)-COLUMN($E122)<Comp_V1_Years_Usage_Modeled,_Comp_Include_Charging="Yes"),Comp_Station_Maint_Cost_Modeled*Comp_Num_Stations_Modeled,0)*Data!AA$83 -> 0 | AC134: =-IF(AND(COLUMN(AC122)-COLUMN($E122)<Comp_V1_Years_Usage_Modeled,_Comp_Include_Charging="Yes"),Comp_Station_Maint_Cost_Modeled*Comp_Num_Stations_Modeled,0)*Data!AB$83 -> 0
B135: Subtotal Operating Costs | E135: =SUM(E134:E134) -> 0 | F135: 0 | G135: 0 | H135: 0 | I135: 0 | J135: 0 | K135: 0 | L135: 0 | M135: 0 | N135: 0 | O135: 0 | P135: 0 | Q135: 0 | R135: 0 | S135: 0 | T135: 0 | U135: 0 | V135: 0 | W135: 0 | X135: 0 | Y135: 0 | Z135: 0 | AA135: 0 | AB135: 0 | AC135: =SUM(AC134:AC134) -> 0
B136: Total Discounted Costs
B137: Total Annual Costs | D137: =D131+D135 -> 0 | E137: =E131+E135 -> 0 | F137: 0 | G137: 0 | H137: 0 | I137: 0 | J137: 0 | K137: 0 | L137: 0 | M137: 0 | N137: 0 | O137: 0 | P137: 0 | Q137: 0 | R137: 0 | S137: 0 | T137: 0 | U137: 0 | V137: 0 | W137: 0 | X137: 0 | Y137: 0 | Z137: 0 | AA137: 0 | AB137: 0 | AC137: 0
B138: Discount Factor | C138: =Comp_Discount_Rate_Modeled -> 0 | D138: =(1/(1+$C138))^(COLUMN(D122)-COLUMN($D122)) -> 1 | E138: 1 | F138: 1 | G138: 1 | H138: 1 | I138: 1 | J138: 1 | K138: 1 | L138: 1 | M138: 1 | N138: 1 | O138: 1 | P138: 1 | Q138: 1 | R138: 1 | S138: 1 | T138: 1 | U138: 1 | V138: 1 | W138: 1 | X138: 1 | Y138: 1 | Z138: 1 | AA138: 1 | AB138: 1 | AC138: 1
B139: Discounted Total | D139: =D137*D138 -> 0 | E139: =E137*E138 -> 0 | F139: =F137*F138 -> 0 | G139: 0 | H139: 0 | I139: 0 | J139: 0 | K139: 0 | L139: 0 | M139: 0 | N139: 0 | O139: 0 | P139: 0 | Q139: 0 | R139: 0 | S139: 0 | T139: 0 | U139: 0 | V139: 0 | W139: 0 | X139: 0 | Y139: 0 | Z139: 0 | AA139: 0 | AB139: 0 | AC139: 0
B140: Cumulative Discounted Total | D140: =IF((COLUMN(D122)-COLUMN($D122))<=Comp_V1_Years_Usage_Modeled,C140+D139,0) -> 0 | E140: 0 | F140: 0 | G140: 0 | H140: 0 | I140: 0 | J140: 0 | K140: 0 | L140: 0 | M140: 0 | N140: 0 | O140: 0 | P140: 0 | Q140: 0 | R140: 0 | S140: 0 | T140: 0 | U140: 0 | V140: 0 | W140: 0 | X140: 0 | Y140: 0 | Z140: 0 | AA140: 0 | AB140: 0 | AC140: 0
B141: Annualized NPV Total Cost of Ownership | D141: =OFFSET($D140,0,Comp_V1_Years_Usage_Modeled)/Comp_V1_Years_Usage_Modeled -> 0

Sheet Environmental Model
A1: Environmental Models - Fleet Procurement Analysis Tool
C3: =Base_V1_Type_Ex&" (Baseline)" -> 2018 CHEVROLET BOLT EV BEV (Baseline) | D3: =Comp_V1_Type_Ex&" (Comparison)" -> 2018 CHEVROLET CRUZE ICE (Comparison)
B4: ="Annual V" & LEFT(Constant_Distance_Metric,1) & "T" -> Annual VKT | C4: =Base_V1_VMT_Modeled -> 24135 | D4: =Comp_V1_VMT_Modeled -> 24135
B5: =IF(_Market="U.S.", DB_Vehicles[[#Headers],[Fuel Economy Gas City (MPG)]], DB_Vehicles__Canada[[#Headers],[Fuel Consumption Gas City (L/100 km)]]) -> Fuel Consumption Gas City (L/100 km) | C5: =Base_V1_Fuel_Economy_Gas_City_Modeled -> 0 | D5: =Comp_V1_Fuel_Economy_Gas_City_Modeled -> 8.6
B6: =IF(_Market="U.S.", DB_Vehicles[[#Headers],[Fuel Economy Gas Hwy (MPG)]], DB_Vehicles__Canada[[#Headers],[Fuel Consumption Gas Hwy (L/100 km)]]) -> Fuel Consumption Gas Hwy (L/100 km) | C6: =Base_V1_Fuel_Economy_Gas_Hwy_Modeled -> 0 | D6: =Comp_V1_Fuel_Economy_Gas_Hwy_Modeled -> 5.8
B7: =IF(_Market="U.S.", DB_Vehicles[[#Headers],[Fuel Economy Electric City (MPGe)]], DB_Vehicles__Canada[[#Headers],[Fuel Consumption Electric City (Le/100 km)]]) -> Fuel Consumption Electric City (Le/100 km) | C7: =Base_V1_Fuel_Economy_Electric_City_Modeled -> 1.842696629 | D7: =Comp_V1_Fuel_Economy_Electric_City_Modeled -> 0
B8: =IF(_Market="U.S.", DB_Vehicles[[#Headers],[Fuel Economy Electric Hwy (MPGe)]], DB_Vehicles__Canada[[#Headers],[Fuel Consumption Electric Hwy (Le/100 km)]]) -> Fuel Consumption Electric Hwy (Le/100 km) | C8: =Base_V1_Fuel_Economy_Electric_Hwy_Modeled -> 2.134831461 | D8: =Comp_V1_Fuel_Economy_Electric_Hwy_Modeled -> 0
B9: ="% of Annual " & Constant_Distance_Metric & "s on Gasoline*" -> % of Annual Kilometers on Gasoline* | C9: =Base_V1_Miles_Gas_Modeled -> 0 | D9: =Comp_V1_Miles_Gas_Modeled -> 1
B10: ="% of Annual " & Constant_Distance_Metric & "s City Driving" -> % of Annual Kilometers City Driving | C10: =Base_V1_Miles_City_Modeled -> 0.55 | D10: =Comp_V1_Miles_City_Modeled -> 0.55
B11: =Constant_Volume_Metric & "s of Gasoline / Year" -> Liters of Gasoline / Year | C11: =IF(C5=0,0,(C4*C10*C9)/IF(_Market="U.S.", C5, 100/C5))+IF(C6=0,0,(C4*C9*(1-C10))/IF(_Market="U.S.", C6, 100/C6)) -> 0 | D11: =IF(D5=0,0,(D4*D10*D9)/IF(_Market="U.S.", D5, 100/D5))+IF(D6=0,0,(D4*D9*(1-D10))/IF(_Market="U.S.", D6, 100/D6)) -> 1771.509
B12: ="Lifecycle Carbon Intensity of " & Constant_Volume_Metric & " of Gasoline (" & Constant_Weight_Metric_Abbreviation & ")" -> Lifecycle Carbon Intensity of Liter of Gasoline (kg) | C12: =Data!$C$136*Constant_Megajoule_Per_Gasoline_Volume/Constant_Grams_Per_Weight -> 2.895452484 | D12: =Data!$C$136*Constant_Megajoule_Per_Gasoline_Volume/Constant_Grams_Per_Weight -> 2.895452484
B13: kWh Electricity / Year | C13: =IF(C7=0,0,((C4*(1-C9)*C10)/IF(_Market="U.S.", C7, 100/C7)*Constant_kWh_Per_Volume))+IF(C8=0,0,((C4*(1-C9)*(1-C10))/IF(_Market="U.S.", C8, 100/C8)*Constant_kWh_Per_Volume)) -> 4240.5195 | D13: =IF(D7=0,0,((D4*(1-D9)*D10)/IF(_Market="U.S.", D7, 100/D7)*Constant_kWh_Per_Volume))+IF(D8=0,0,((D4*(1-D9)*(1-D10))/IF(_Market="U.S.", D8, 100/D8)*Constant_kWh_Per_Volume)) -> 0
B14: =IF(_Market="U.S.", "eGrid Region", "Province") -> Province | C14: =IF(_Market="U.S.", eGrid_Region_Ex, Province_Ex) -> British Columbia | D14: =IF(_Market="U.S.", eGrid_Region_Ex, Province_Ex) -> British Columbia
B15: ="Lifecycle Carbon Intensity of kWh (" & Constant_Weight_Metric_Abbreviation & ")**" -> Lifecycle Carbon Intensity of kWh (kg)** | C15: =Constant_CO2_Intensity_Electricity -> 0.71072374 | D15: =Constant_CO2_Intensity_Electricity -> 0.71072374
B16: =IF(_Market="U.S.", "Electrical Transmission Line Loss", "") ->  | C16: =IF(_Market="U.S.", VLOOKUP(eGrid_Region_Ex,DB_Electricity_Emissions[],COLUMN(DB_Electricity_Emissions[[#Headers],[Grid gross loss '[Estimated losses/(Total disposition - Direct use)']]])-COLUMN(DB_Electricity_Emissions[[#Headers],[eGRID subregion acronym]])+1,FALSE), "") ->  | D16: =IF(_Market="U.S.", VLOOKUP(eGrid_Region_Ex,DB_Electricity_Emissions[],COLUMN(DB_Electricity_Emissions[[#Headers],[Grid gross loss '[Estimated losses/(Total disposition - Direct use)']]])-COLUMN(DB_Electricity_Emissions[[#Headers],[eGRID subregion acronym]])+1,FALSE), "") -> 
B17: ="Total Annual CO2 (" & Constant_Weight_Metric_Abbreviation & ")" -> Total Annual CO2 (kg) | C17: =(C11*C12)+(C13*(C15/(1-IF(_Market="U.S.", C16, 0)))) -> 3013.837879 | D17: =(D11*D12)+(D13*(D15/(1-IF(_Market="U.S.", D16, 0)))) -> 5129.320134
B18: ="Lifecycle CO2 (" & Constant_Weight_Metric_Abbreviation & "/" & Constant_Distance_Metric_Abbreviation & ")" -> Lifecycle CO2 (kg/km) | C18: =C17/C4 -> 0.1248741611 | D18: =D17/D4 -> 0.2125262123
B19: Other Lifecycle Emissions**
B20: ="NOX (mg/" & Constant_Distance_Metric_Abbreviation & ")" -> NOX (mg/km) | C20: =((Constant_NOX_Intensity_Electricity*Base_V1_Electricity_Usage_Ex)+(Constant_NOX_Intensity_Gasoline*Base_V1_Gas_Usage_Ex*Constant_Megajoule_Per_Gasoline_Volume))/Base_V1_VMT_Modeled -> 24.13285152 | D20: =((Constant_NOX_Intensity_Electricity*Comp_V1_Electricity_Usage_Ex)+(Constant_NOX_Intensity_Gasoline*Comp_V1_Gas_Usage_Ex*Constant_Megajoule_Per_Gasoline_Volume))/Comp_V1_VMT_Modeled -> 143.9731627
B21: ="SOX (mg/" & Constant_Distance_Metric_Abbreviation & ")" -> SOX (mg/km) | C21: =((Constant_SOX_Intensity_Electricity*Base_V1_Electricity_Usage_Ex)+(Constant_SOX_Intensity_Gasoline*Base_V1_Gas_Usage_Ex*Constant_Megajoule_Per_Gasoline_Volume))/Base_V1_VMT_Modeled -> 22.28319061 | D21: =((Constant_SOX_Intensity_Electricity*Comp_V1_Electricity_Usage_Ex)+(Constant_SOX_Intensity_Gasoline*Comp_V1_Gas_Usage_Ex*Constant_Megajoule_Per_Gasoline_Volume))/Comp_V1_VMT_Modeled -> 55.52444254
B22: ="VOC (mg/" & Constant_Distance_Metric_Abbreviation & ")" -> VOC (mg/km) | C22: =IF(AND(Constant_VOC_Intensity_Electricity=0, Base_V1_Gas_Usage_Ex=0),"Unknown",((Constant_VOC_Intensity_Electricity*Base_V1_Electricity_Usage_Ex)+(Constant_VOC_Intensity_Gasoline*Base_V1_Gas_Usage_Ex*Constant_Megajoule_Per_Gasoline_Volume))/Base_V1_VMT_Modeled) -> Unknown | D22: =IF(AND(Constant_VOC_Intensity_Electricity=0, Comp_V1_Gas_Usage_Ex=0),"Unknown", ((Constant_VOC_Intensity_Electricity*Comp_V1_Electricity_Usage_Ex)+(Constant_VOC_Intensity_Gasoline*Comp_V1_Gas_Usage_Ex*Constant_Megajoule_Per_Gasoline_Volume))/Comp_V1_VMT_Modeled) -> 127.5110239
B23: ="PM10 (mg/" & Constant_Distance_Metric_Abbreviation & ")" -> PM10 (mg/km) | C23: =((Constant_PM10_Intensity_Electricity*Base_V1_Electricity_Usage_Ex)+(Constant_PM10_Intensity_Gasoline*Base_V1_Gas_Usage_Ex*Constant_Megajoule_Per_Gasoline_Volume))/Base_V1_VMT_Modeled -> 7.576467171 | D23: =((Constant_PM10_Intensity_Electricity*Comp_V1_Electricity_Usage_Ex)+(Constant_PM10_Intensity_Gasoline*Comp_V1_Gas_Usage_Ex*Constant_Megajoule_Per_Gasoline_Volume))/Comp_V1_VMT_Modeled -> 10.86501163
B24: ="PM2.5 (mg/" & Constant_Distance_Metric_Abbreviation & ")" -> PM2.5 (mg/km) | C24: =((Constant_PM25_Intensity_Electricity*Base_V1_Electricity_Usage_Ex)+(Constant_PM25_Intensity_Gasoline*Base_V1_Gas_Usage_Ex*Constant_Megajoule_Per_Gasoline_Volume))/Base_V1_VMT_Modeled -> 6.527081286 | D24: =((Constant_PM25_Intensity_Electricity*Comp_V1_Electricity_Usage_Ex)+(Constant_PM25_Intensity_Gasoline*Comp_V1_Gas_Usage_Ex*Constant_Megajoule_Per_Gasoline_Volume))/Comp_V1_VMT_Modeled -> 7.92534398
B27: *For PHEV calculations, assumes an equal number of miles driven on a daily basis, 365 days per year. No charging during the day.
B28: ** Emissions are well-to-wheel from Argonne National Laboratory's GREET model and U.S. EPA's eGRID.

Sheet Data
A1: Data - Fleet Procurement Analysis Tool
A2: Electricity and Gasoline Prices
A3: Energy Inflation
A4: General Inflation (Maintenance, Insurance)
A5: Maintenance and Repair Costs
A6: Electricity Emissions
A7: Gasoline Emissions
A8: Other Default Values and Scalars
A9: Vehicles and Incentives
A11: Electricity and Gasoline Prices
A12: State Abbreviation | B12: Commerical Electricity Price ($/kWh) | C12: Gasoline Price | D12: Date | F12: Province | G12: Commercial Electricity Price ($/kWh) | H12: Date | J12: Province | K12: Gasoline Price | L12: Date
A13: AK | B13: 0.189 | C13: 3.378 | D13: 2018 | F13: Alberta | G13: 0.1398 | H13: 2018 | J13: Alberta | K13: 1.16875 | L13: 2018
A14: AL | B14: 0.116 | C14: 2.532 | D14: 2018 | F14: British Columbia | G14: 0.12 | H14: 2018 | J14: British Columbia | K14: 1.501083 | L14: 2018
A15: AR | B15: 0.085 | C15: 2.532 | D15: 2018 | F15: Canada Avg | G15: =AVERAGE(G13,G14,G16,G17,G18,G20,G22,G23,G24,G25) -> 0.14023 | H15: 2018 | J15: Canada Avg | K15: 1.288167 | L15: 2018
A16: AZ | B16: 0.105 | C16: 3.378 | D16: 2018 | F16: Manitoba | G16: 0.0977 | H16: 2018 | J16: Manitoba | K16: 1.130667 | L16: 2018
A17: CA | B17: 0.158 | C17: 3.551 | D17: 2018 | F17: New Brunswick | G17: 0.145 | H17: 2018 | J17: New Brunswick | K17: 1.203167 | L17: 2018
A18: CO | B18: 0.099 | C18: 2.748 | D18: 2018 | F18: Newfoundland and Labrador | G18: 0.1123 | H18: 2018 | J18: Newfoundland and Labrador | K18: 1.27075 | L18: 2018
A19: CT | B19: 0.161 | C19: 2.826 | D19: 2018 | F19: Northwest Territories | G19: 0.3 | H19: 2018 | J19: Northwest Territories | K19: 1.356833 | L19: 2018
A20: DC | B20: 0.117 | C20: 2.89 | D20: 2018 | F20: Nova Scotia | G20: 0.1715 | H20: 2018 | J20: Nova Scotia | K20: 1.19 | L20: 2018
A21: DE | B21: 0.099 | C21: 2.89 | D21: 2018 | F21: Nunavut | G21: 0.285 | H21: 2018 | J21: Nunavut | K21: 1.1 | L21: 2018
A22: FL | B22: 0.094 | C22: 2.704 | D22: 2018 | F22: Ontario | G22: 0.1483 | H22: 2018 | J22: Ontario | K22: 1.270083 | L22: 2018
A23: GA | B23: 0.101 | C23: 2.671 | D23: 2018 | F23: Prince Edward Island | G23: 0.1832 | H23: 2018 | J23: Prince Edward Island | K23: 1.2115 | L23: 2018
A24: HI | B24: 0.268 | C24: 3.378 | D24: 2018 | F24: Quebec | G24: 0.121 | H24: 2018 | J24: Quebec | K24: 1.31925 | L24: 2018
A25: IA | B25: 0.095 | C25: 2.667 | D25: 2018 | F25: Saskatchewan | G25: 0.1635 | H25: 2018 | J25: Saskatchewan | K25: 1.144417 | L25: 2018
A26: ID | B26: 0.08 | C26: 2.867 | D26: 2018 | F26: Yukon | G26: 0.1465 | H26: 2018 | J26: Yukon | K26: 1.355333 | L26: 2018
A27: IL | B27: 0.091 | C27: 2.667 | D27: 2018
A28: IN | B28: 0.105 | C28: 2.667 | D28: 2018 | F28: Source: http://www.hydroquebec.com/data/documents-donnees/pdf/comparison-electricity-prices.pdf (Use Medium Power up to 100,000 kWh) | J28: Source: http://www2.nrcan.gc.ca/eneene/sources/pripri/prices_bycity_e.cfm?productID=1&locationID=66&locationID=8&locationID=43&locationID=10&locationID=39&locationID=35&locationID=28&locationID=12&locationID=44&locationID=17&locationID=2&locationID=1&locationID=15&locationID=7&frequency=M&priceYear=2018&Redisplay=
A29: KS | B29: 0.106 | C29: 2.667 | D29: 2018 | F29: Source: https://www.neb-one.gc.ca/nrg/ntgrtd/mrkt/snpsht/2018/10-01-1cndffgrdcmmnts-eng.html (for territories) | J29: Source (Nunavut only): https://www.gov.nu.ca/community-and-government-services/news/retail-fuel-price-adjustments-0
A30: KY | B30: 0.098 | C30: 2.667 | D30: 2018
A31: LA | B31: 0.09 | C31: 2.532 | D31: 2018
A32: MA | B32: 0.159 | C32: 2.823 | D32: 2018
A33: MD | B33: 0.108 | C33: 2.89 | D33: 2018
A34: ME | B34: 0.121 | C34: 2.826 | D34: 2018
A35: MI | B35: 0.11 | C35: 2.667 | D35: 2018
A36: MN | B36: 0.105 | C36: 2.649 | D36: 2018
A37: MO | B37: 0.095 | C37: 2.667 | D37: 2018
A38: MS | B38: 0.102 | C38: 2.532 | D38: 2018
A39: MT | B39: 0.101 | C39: 2.867 | D39: 2018
A40: NC | B40: 0.084 | C40: 2.671 | D40: 2018
A41: ND | B41: 0.092 | C41: 2.667 | D41: 2018
A42: NE | B42: 0.088 | C42: 2.667 | D42: 2018
A43: NH | B43: 0.148 | C43: 2.826 | D43: 2018
A44: NJ | B44: 0.123 | C44: 2.89 | D44: 2018
A45: NM | B45: 0.102 | C45: 2.532 | D45: 2018
A46: NV | B46: 0.08 | C46: 3.378 | D46: 2018
A47: NY | B47: 0.148 | C47: 2.895 | D47: 2018
A48: OH | B48: 0.1 | C48: 2.615 | D48: 2018
A49: OK | B49: 0.081 | C49: 2.667 | D49: 2018
A50: OR | B50: 0.089 | C50: 3.378 | D50: 2018
A51: PA | B51: 0.09 | C51: 2.89 | D51: 2018
A52: RI | B52: 0.152 | C52: 2.826 | D52: 2018
A53: SC | B53: 0.106 | C53: 2.671 | D53: 2018
A54: SD | B54: 0.097 | C54: 2.667 | D54: 2018
A55: TN | B55: 0.106 | C55: 2.667 | D55: 2018
A56: TX | B56: 0.083 | C56: 2.527 | D56: 2018
A57: U.S. Avg | B57: 0.107 | C57: 2.813 | D57: 2018
A58: UT | B58: 0.086 | C58: 2.867 | D58: 2018
A59: VA | B59: 0.08 | C59: 2.671 | D59: 2018
A60: VT | B60: 0.146 | C60: 2.826 | D60: 2018
A61: WA | B61: 0.086 | C61: 3.269 | D61: 2018
A62: WI | B62: 0.109 | C62: 2.667 | D62: 2018
A63: WV | B63: 0.096 | C63: 2.671 | D63: 2018
A64: WY | B64: 0.097 | C64: 2.867 | D64: 2018
A66: Source: Electricity Prices, https://www.eia.gov/electricity/data/eia861m/index.html
A67: Source: Gasoline Prices, http://www.eia.gov/dnav/pet/pet_pri_gnd_a_epmr_pte_dpgal_w.htm
A69: Energy Inflation
A70: Market | B70: Field | C70: Units | D70: 2017 | E70: 2018 | F70: 2019 | G70: 2020 | H70: 2021 | I70: 2022 | J70: 2023 | K70: 2024 | L70: 2025 | M70: 2026 | N70: 2027 | O70: 2028 | P70: 2029 | Q70: 2030 | R70: 2031 | S70: 2032 | T70: 2033 | U70: 2034 | V70: 2035 | W70: 2036 | X70: 2037 | Y70: 2038 | Z70: 2039 | AA70: 2040 | AB70: 2041
A71: U.S. | B71: Motor Gasoline - Reference | C71: 2018 $/MMBtu | D71: 21.520517 | E71: 24.06465 | F71: 24.234852 | G71: 24.960867 | H71: 25.147348 | I71: 25.215456 | J71: 25.564999 | K71: 25.915911 | L71: 26.205999 | M71: 26.42157 | N71: 26.967485 | O71: 27.159895 | P71: 27.825689 | Q71: 27.940798 | R71: 28.244511 | S71: 28.481457 | T71: 28.597303 | U71: 28.805796 | V71: 28.990618 | W71: 29.231501 | X71: 29.229696 | Y71: 29.398031 | Z71: 29.585928 | AA71: 29.794043 | AB71: 29.794043
A72: U.S. | B72: Motor Gasoline - % over base | C72: % | D72: =D71/$D$71 -> 1 | E72: 1.118218954 | F72: 1.126127778 | G72: 1.159863724 | H72: 1.16852899 | I72: 1.171693784 | J72: 1.187936098 | K72: 1.204242026 | L72: 1.217721628 | M72: 1.227738627 | N72: 1.253105815 | O72: 1.262046586 | P72: 1.292984225 | Q72: 1.298333028 | R72: 1.312445747 | S72: 1.323455984 | T72: 1.328839033 | U72: 1.338527137 | V72: 1.347115313 | W72: 1.358308492 | X72: 1.358224619 | Y72: 1.366046689 | Z72: 1.374777753 | AA72: 1.384448292 | AB72: =AB71/$D$71 -> 1.384448292
A73: U.S. | B73: Electricity - Reference case | C73: 2018 $/MMBtu | D73: 29.101452 | E73: 33.287472 | F73: 35.301769 | G73: 35.655743 | H73: 36.136143 | I73: 36.865479 | J73: 37.499866 | K73: 37.917561 | L73: 38.429222 | M73: 38.868603 | N73: 38.934277 | O73: 38.963169 | P73: 38.951664 | Q73: 38.994389 | R73: 38.99868 | S73: 39.170242 | T73: 39.252037 | U73: 39.125347 | V73: 38.958588 | W73: 38.886948 | X73: 38.818939 | Y73: 38.574703 | Z73: 38.337807 | AA73: 38.110615 | AB73: 38.110615
A74: U.S. | B74: Electricity - % over base | C74: % | D74: =D73/$D$73 -> 1 | E74: 1.143842307 | F74: 1.213058682 | G74: 1.22522213 | H74: 1.241729897 | I74: 1.266791739 | J74: 1.288590892 | K74: 1.302943956 | L74: 1.320525931 | M74: 1.335624181 | N74: 1.337880907 | O74: 1.33887371 | P74: 1.338478369 | Q74: 1.339946509 | R74: 1.340093958 | S74: 1.345989265 | T74: 1.34879995 | U74: 1.344446559 | V74: 1.338716295 | W74: 1.336254562 | X74: 1.3339176 | Y74: 1.325525029 | Z74: 1.317384679 | AA74: 1.309577783 | AB74: =AB73/$D$73 -> 1.309577783
A75: Canada | B75: Motor Gasoline - % over base | C75: % | D75: 1 | E75: 1.21411762 | F75: 1.621293368 | G75: 1.552545946 | H75: 1.552545946 | I75: 1.552545946 | J75: 1.569732802 | K75: 1.609835465 | L75: 1.649938127 | M75: 1.684311838 | N75: 1.707227646 | O75: 1.718685549 | P75: 1.718685549 | Q75: 1.718685549 | R75: 1.718685549 | S75: 1.718685549 | T75: 1.718685549 | U75: 1.718685549 | V75: 1.718685549 | W75: 1.718685549 | X75: 1.718685549 | Y75: 1.718685549 | Z75: 1.718685549 | AA75: 1.718685549 | AB75: 1.718685549
A76: Canada | B76: Electricity - % over base | C76: % | D76: =D74 -> 1 | E76: 1.143842307 | F76: 1.213058682 | G76: 1.22522213 | H76: 1.241729897 | I76: 1.266791739 | J76: 1.288590892 | K76: 1.302943956 | L76: 1.320525931 | M76: 1.335624181 | N76: 1.337880907 | O76: 1.33887371 | P76: 1.338478369 | Q76: 1.339946509 | R76: 1.340093958 | S76: 1.345989265 | T76: 1.34879995 | U76: 1.344446559 | V76: 1.338716295 | W76: 1.336254562 | X76: 1.3339176 | Y76: 1.325525029 | Z76: 1.317384679 | AA76: 1.309577783 | AB76: =AB74 -> 1.309577783
A78: Source: https://www.eia.gov/outlooks/aeo/data/browser/#/?id=3-AEO2019&region=1-0&cases=ref2019&start=2017&end=2040&f=A&linechart=ref2019-d111618a.3-3-AEO2019.1-0&map=ref2019-d111618a.4-3-AEO2019.1-0&sourcekey=0
A79: Source: https://neb-one.gc.ca/nrg/ntgrtd/ftr/2018/pblctn-eng.html (Figure 2.2 Use Brent crude oil as proxy for gasoline prices)
A81: General Inflation (Maintenance, Insurance)
A82: Inflation (U.S.) | B82: Inflation (Canada) | D82: 2017 | E82: 2018 | F82: 2019 | G82: 2020 | H82: 2021 | I82: 2022 | J82: 2023 | K82: 2024 | L82: 2025 | M82: 2026 | N82: 2027 | O82: 2028 | P82: 2029 | Q82: 2030 | R82: 2031 | S82: 2032 | T82: 2033 | U82: 2034 | V82: 2035 | W82: 2036 | X82: 2037 | Y82: 2038 | Z82: 2039 | AA82: 2040 | AB82: 2041
A83: 0.022 | B83: 0.0144 | D83: =(1+Inflation_Rate_General_Modeled)^(D82-$D$82) -> 1 | E83: =(1+Inflation_Rate_General_Modeled)^(E82-$D$82) -> 1.02 | F83: 1.0404 | G83: 1.061208 | H83: 1.08243216 | I83: 1.104080803 | J83: 1.126162419 | K83: 1.148685668 | L83: 1.171659381 | M83: 1.195092569 | N83: 1.21899442 | O83: 1.243374308 | P83: 1.268241795 | Q83: 1.29360663 | R83: 1.319478763 | S83: 1.345868338 | T83: 1.372785705 | U83: 1.400241419 | V83: 1.428246248 | W83: 1.456811173 | X83: 1.485947396 | Y83: 1.515666344 | Z83: 1.545979671 | AA83: 1.576899264 | AB83: 1.608437249
A85: Source: https://www.philadelphiafed.org/-/media/research-and-data/real-time-center/survey-of-professional-forecasters/historical-data/inflation.xlsx?la=en (10-year ahead average inflation forecast)
A86: Source: https://apps.neb-one.gc.ca/ftrppndc/dflt.aspx?GoCTemplateCulture=en-CA (10-year average of 2017-2027)
A88: Maintenance and Repair Costs
A89: Vehicle Type | B89: Market | C89: Year 1 | D89: Year 2 | E89: Year 3 | F89: Year 4 | G89: Year 5 | H89: Year 6 | I89: Year 7 | J89: Year 8 | K89: Year 9 | L89: Year 10 | M89: Year 11 | N89: Year 12 | O89: Year 13 | P89: Year 14 | Q89: Year 15 | R89: Year 16 | S89: Year 17 | T89: Year 18 | U89: Year 19 | V89: Year 20 | W89: Year 21 | X89: Year 22 | Y89: Year 23 | Z89: Year 24 | AA89: Year 25
A90: ICE | B90: U.S. | C90: 0.08 | D90: 0.08 | E90: 0.08 | F90: 0.08 | G90: 0.08 | H90: =DB_Maint_Repair_Costs[[#This Row],[Year 5]]*1.3 -> 0.104 | I90: =DB_Maint_Repair_Costs[[#This Row],[Year 5]]*1.3 -> 0.104 | J90: =DB_Maint_Repair_Costs[[#This Row],[Year 5]]*1.3 -> 0.104 | K90: =DB_Maint_Repair_Costs[[#This Row],[Year 5]]*1.3 -> 0.104 | L90: =DB_Maint_Repair_Costs[[#This Row],[Year 5]]*1.3 -> 0.104 | M90: =DB_Maint_Repair_Costs[[#This Row],[Year 5]]*1.3 -> 0.104 | N90: =DB_Maint_Repair_Costs[[#This Row],[Year 5]]*1.3 -> 0.104 | O90: =DB_Maint_Repair_Costs[[#This Row],[Year 5]]*1.3 -> 0.104 | P90: =DB_Maint_Repair_Costs[[#This Row],[Year 5]]*1.3 -> 0.104 | Q90: =DB_Maint_Repair_Costs[[#This Row],[Year 5]]*1.3 -> 0.104 | R90: =DB_Maint_Repair_Costs[[#This Row],[Year 5]]*1.3 -> 0.104 | S90: =DB_Maint_Repair_Costs[[#This Row],[Year 5]]*1.3 -> 0.104 | T90: =DB_Maint_Repair_Costs[[#This Row],[Year 5]]*1.3 -> 0.104 | U90: =DB_Maint_Repair_Costs[[#This Row],[Year 5]]*1.3 -> 0.104 | V90: =DB_Maint_Repair_Costs[[#This Row],[Year 5]]*1.3 -> 0.104 | W90: =DB_Maint_Repair_Costs[[#This Row],[Year 5]]*1.3 -> 0.104 | X90: =DB_Maint_Repair_Costs[[#This Row],[Year 5]]*1.3 -> 0.104 | Y90: =DB_Maint_Repair_Costs[[#This Row],[Year 5]]*1.3 -> 0.104 | Z90: =DB_Maint_Repair_Costs[[#This Row],[Year 5]]*1.3 -> 0.104 | AA90: =DB_Maint_Repair_Costs[[#This Row],[Year 5]]*1.3 -> 0.104
A91: BEV | B91: U.S. | C91: 0.04 | D91: 0.04 | E91: 0.04 | F91: 0.04 | G91: 0.04 | H91: =DB_Maint_Repair_Costs[[#This Row],[Year 5]]*1.3 -> 0.052 | I91: =DB_Maint_Repair_Costs[[#This Row],[Year 5]]*1.3 -> 0.052 | J91: =DB_Maint_Repair_Costs[[#This Row],[Year 5]]*1.3 -> 0.052 | K91: =DB_Maint_Repair_Costs[[#This Row],[Year 5]]*1.3 -> 0.052 | L91: =DB_Maint_Repair_Costs[[#This Row],[Year 5]]*1.3 -> 0.052 | M91: =DB_Maint_Repair_Costs[[#This Row],[Year 5]]*1.3 -> 0.052 | N91: =DB_Maint_Repair_Costs[[#This Row],[Year 5]]*1.3 -> 0.052 | O91: =DB_Maint_Repair_Costs[[#This Row],[Year 5]]*1.3 -> 0.052 | P91: =DB_Maint_Repair_Costs[[#This Row],[Year 5]]*1.3 -> 0.052 | Q91: =DB_Maint_Repair_Costs[[#This Row],[Year 5]]*1.3 -> 0.052 | R91: =DB_Maint_Repair_Costs[[#This Row],[Year 5]]*1.3 -> 0.052 | S91: =DB_Maint_Repair_Costs[[#This Row],[Year 5]]*1.3 -> 0.052 | T91: =DB_Maint_Repair_Costs[[#This Row],[Year 5]]*1.3 -> 0.052 | U91: =DB_Maint_Repair_Costs[[#This Row],[Year 5]]*1.3 -> 0.052 | V91: =DB_Maint_Repair_Costs[[#This Row],[Year 5]]*1.3 -> 0.052 | W91: =DB_Maint_Repair_Costs[[#This Row],[Year 5]]*1.3 -> 0.052 | X91: =DB_Maint_Repair_Costs[[#This Row],[Year 5]]*1.3 -> 0.052 | Y91: =DB_Maint_Repair_Costs[[#This Row],[Year 5]]*1.3 -> 0.052 | Z91: =DB_Maint_Repair_Costs[[#This Row],[Year 5]]*1.3 -> 0.052 | AA91: =DB_Maint_Repair_Costs[[#This Row],[Year 5]]*1.3 -> 0.052
A92: PHEV | B92: U.S. | C92: 0.07 | D92: 0.07 | E92: 0.07 | F92: 0.07 | G92: 0.07 | H92: =DB_Maint_Repair_Costs[[#This Row],[Year 5]]*1.3 -> 0.091 | I92: =DB_Maint_Repair_Costs[[#This Row],[Year 5]]*1.3 -> 0.091 | J92: =DB_Maint_Repair_Costs[[#This Row],[Year 5]]*1.3 -> 0.091 | K92: =DB_Maint_Repair_Costs[[#This Row],[Year 5]]*1.3 -> 0.091 | L92: =DB_Maint_Repair_Costs[[#This Row],[Year 5]]*1.3 -> 0.091 | M92: =DB_Maint_Repair_Costs[[#This Row],[Year 5]]*1.3 -> 0.091 | N92: =DB_Maint_Repair_Costs[[#This Row],[Year 5]]*1.3 -> 0.091 | O92: =DB_Maint_Repair_Costs[[#This Row],[Year 5]]*1.3 -> 0.091 | P92: =DB_Maint_Repair_Costs[[#This Row],[Year 5]]*1.3 -> 0.091 | Q92: =DB_Maint_Repair_Costs[[#This Row],[Year 5]]*1.3 -> 0.091 | R92: =DB_Maint_Repair_Costs[[#This Row],[Year 5]]*1.3 -> 0.091 | S92: =DB_Maint_Repair_Costs[[#This Row],[Year 5]]*1.3 -> 0.091 | T92: =DB_Maint_Repair_Costs[[#This Row],[Year 5]]*1.3 -> 0.091 | U92: =DB_Maint_Repair_Costs[[#This Row],[Year 5]]*1.3 -> 0.091 | V92: =DB_Maint_Repair_Costs[[#This Row],[Year 5]]*1.3 -> 0.091 | W92: =DB_Maint_Repair_Costs[[#This Row],[Year 5]]*1.3 -> 0.091 | X92: =DB_Maint_Repair_Costs[[#This Row],[Year 5]]*1.3 -> 0.091 | Y92: =DB_Maint_Repair_Costs[[#This Row],[Year 5]]*1.3 -> 0.091 | Z92: =DB_Maint_Repair_Costs[[#This Row],[Year 5]]*1.3 -> 0.091 | AA92: =DB_Maint_Repair_Costs[[#This Row],[Year 5]]*1.3 -> 0.091
A93: ICE | B93: Canada | C93: =C90*Constant_Kilometers_Per_Mile -> 0.128744 | D93: 0.128744 | E93: 0.128744 | F93: 0.128744 | G93: 0.128744 | H93: 0.1673672 | I93: 0.1673672 | J93: 0.1673672 | K93: 0.1673672 | L93: 0.1673672 | M93: 0.1673672 | N93: 0.1673672 | O93: 0.1673672 | P93: 0.1673672 | Q93: 0.1673672 | R93: 0.1673672 | S93: 0.1673672 | T93: 0.1673672 | U93: 0.1673672 | V93: 0.1673672 | W93: 0.1673672 | X93: 0.1673672 | Y93: 0.1673672 | Z93: 0.1673672 | AA93: 0.1673672
A94: BEV | B94: Canada | C94: =C91*Constant_Kilometers_Per_Mile -> 0.064372 | D94: 0.064372 | E94: 0.064372 | F94: 0.064372 | G94: 0.064372 | H94: 0.0836836 | I94: 0.0836836 | J94: 0.0836836 | K94: 0.0836836 | L94: 0.0836836 | M94: 0.0836836 | N94: 0.0836836 | O94: 0.0836836 | P94: 0.0836836 | Q94: 0.0836836 | R94: 0.0836836 | S94: 0.0836836 | T94: 0.0836836 | U94: 0.0836836 | V94: 0.0836836 | W94: 0.0836836 | X94: 0.0836836 | Y94: 0.0836836 | Z94: 0.0836836 | AA94: 0.0836836
A95: PHEV | B95: Canada | C95: =C92*Constant_Kilometers_Per_Mile -> 0.112651 | D95: 0.112651 | E95: 0.112651 | F95: 0.112651 | G95: 0.112651 | H95: 0.1464463 | I95: 0.1464463 | J95: 0.1464463 | K95: 0.1464463 | L95: 0.1464463 | M95: 0.1464463 | N95: 0.1464463 | O95: 0.1464463 | P95: 0.1464463 | Q95: 0.1464463 | R95: 0.1464463 | S95: 0.1464463 | T95: 0.1464463 | U95: 0.1464463 | V95: 0.1464463 | W95: 0.1464463 | X95: 0.1464463 | Y95: 0.1464463 | Z95: 0.1464463 | AA95: 0.1464463
A97: Source: Alameda County, 2017
A99: Electricity Emissions
A100: eGRID subregion acronym | B100: eGRID subregion name | C100: eGRID subregion annual NOx total output emission rate (lb/MWh) | D100: eGRID subregion annual SO2 total output emission rate (lb/MWh) | E100: eGRID subregion annual CO2 total output emission rate (lb/MWh) | F100: eGRID subregion annual CH4 total output emission rate (lb/MWh) | G100: eGRID subregion annual N2O total output emission rate (lb/MWh) | H100: eGRID subregion annual CO2 equivalent total output emission rate (lb/MWh) | I100: Grid gross loss [Estimated losses/(Total disposition - Direct use)] | J100: Upstream Emissions After Transmission Loss (lb/MWh) | K100: EPA PM10 total direct plant output emission rate based on national average (lb/M | L100: EPA PM2.5 total direct plant output emission rate based on national average (lb/ | M100: EPA VOC total direct plant output emission rate based on national average (lb/MW | O100: Province | P100: CO2 | Q100: NOx as NO2 | R100: SOx | S100: PM10 | T100: PM2.5
A101: AKGD | B101: ASCC Alaska Grid | C101: 6.519 | D101: 0.525 | E101: 1072.28 | F101: 0.077 | G101: 0.011 | H101: 1077.27 | I101: 0.05252810522 | J101: 194.00656 | K101: 0.1263193791 | L101: 0.09847497742 | M101: 0.02054784003 | O101: Alberta | P101: 229660.9308 | Q101: 441.6532527 | R101: 356.1044762 | S101: 20.94195664 | T101: 11.80377245
A102: AKMS | B102: ASCC Miscellaneous | C102: 6.958 | D102: 0.63 | E102: 503.125 | F102: 0.023 | G102: 0.004 | H102: 504.854 | I102: 0.05252810522 | J102: 112.43562 | K102: 0.1263193791 | L102: 0.09847497742 | M102: 0.02054784003 | O102: British Columbia | P102: 7078.333564 | Q102: 38.15349953 | R102: 35.22922692 | S102: 11.97822546 | T102: 10.31916981
A103: AZNM | B103: WECC Southwest | C103: 0.961 | D103: 0.276 | E103: 1043.645 | F103: 0.079 | G103: 0.012 | H103: 1049.048 | I103: 0.04234720283 | J103: 125.66334 | K103: 0.1263193791 | L103: 0.09847497742 | M103: 0.02054784003 | O103: Canada Avg | P103: 48711.14958 | Q103: 82.9310631 | R103: 63.54457485 | S103: 5.765704581 | T103: 4.022608318
A104: ERCT | B104: ERCOT All | C104: 0.545 | D104: 1.035 | E104: 1009.156 | F104: 0.076 | G104: 0.011 | H104: 1014.076 | I104: 0.0488851548 | J104: 147.70954 | K104: 0.1263193791 | L104: 0.09847497742 | M104: 0.02054784003 | O104: Manitoba | P104: 7315.337035 | Q104: 3.864561885 | R104: 2.532458455 | S104: 0.3997530763 | T104: 0.3209228145
A105: CAMX | B105: WECC California | C105: 0.567 | D105: 0.052 | E105: 527.862 | F105: 0.033 | G105: 0.004 | H105: 529.889 | I105: 0.04234720283 | J105: 130.07258 | K105: 0.1263193791 | L105: 0.09847497742 | M105: 0.02054784003 | O105: New Brunswick | P105: 66784.54299 | Q105: 116.1035633 | R105: 101.6916204 | S105: 6.832625046 | T105: 4.200448217
A106: FRCC | B106: FRCC All | C106: 0.532 | D106: 0.372 | E106: 1011.683 | F106: 0.075 | G106: 0.01 | H106: 1016.353 | I106: 0.04487418383 | J106: 176.3696 | K106: 0.1263193791 | L106: 0.09847497742 | M106: 0.02054784003 | O106: Newfoundland and Labrador | P106: 66784.54299 | Q106: 116.1035633 | R106: 101.6916204 | S106: 6.832625046 | T106: 4.200448217
A107: HIMS | B107: HICC Miscellaneous | C107: 7.445 | D107: 4.5 | E107: 1152.016 | F107: 0.095 | G107: 0.015 | H107: 1158.708 | I107: 0.05349590733 | J107: 253.5313 | K107: 0.1263193791 | L107: 0.09847497742 | M107: 0.02054784003 | O107: Northwest Territories
A108: HIOA | B108: HICC Oahu | C108: 3.368 | D108: 8.648 | E108: 1662.888 | F108: 0.181 | G108: 0.028 | H108: 1675.224 | I108: 0.05349590733 | J108: 308.6468 | K108: 0.1263193791 | L108: 0.09847497742 | M108: 0.02054784003 | O108: Nova Scotia | P108: 66784.54299 | Q108: 116.1035633 | R108: 101.6916204 | S108: 6.832625046 | T108: 4.200448217
A109: MROE | B109: MRO East | C109: 1.046 | D109: 1.288 | E109: 1668.212 | F109: 0.156 | G109: 0.026 | H109: 1679.293 | I109: 0.04487418383 | J109: 123.45872 | K109: 0.1263193791 | L109: 0.09847497742 | M109: 0.02054784003 | O109: Nunavut
A110: MROW | B110: MRO West | C110: 1.043 | D110: 1.392 | E110: 1238.817 | F110: 0.115 | G110: 0.02 | H110: 1247.426 | I110: 0.04487418383 | J110: 105.82176 | K110: 0.1263193791 | L110: 0.09847497742 | M110: 0.02054784003 | O110: Ontario | P110: 29589.14785 | Q110: 25.14282993 | R110: 3.714692701 | S110: 2.280691243 | T110: 2.15293148
A111: NYLI | B111: NPCC Long Island | C111: 0.861 | D111: 0.157 | E111: 1178.322 | F111: 0.126 | G111: 0.016 | H111: 1185.992 | I111: 0.04487418383 | J111: 202.82504 | K111: 0.1263193791 | L111: 0.09847497742 | M111: 0.02054784003 | O111: Prince Edward Island | P111: 66784.54299 | Q111: 116.1035633 | R111: 101.6916204 | S111: 6.832625046 | T111: 4.200448217
A112: NEWE | B112: NPCC New England | C112: 0.389 | D112: 0.126 | E112: 558.156 | F112: 0.09 | G112: 0.012 | H112: 563.717 | I112: 0.04487418383 | J112: 130.07258 | K112: 0.1263193791 | L112: 0.09847497742 | M112: 0.02054784003 | O112: Quebec | P112: 5470.297741 | Q112: 3.250328434 | R112: 3.455501476 | S112: 0.9819170825 | T112: 0.8372661496
A113: NWPP | B113: WECC Northwest | C113: 0.612 | D113: 0.439 | E113: 651.199 | F113: 0.061 | G113: 0.009 | H113: 655.407 | I113: 0.04234720283 | J113: 59.52474 | K113: 0.1263193791 | L113: 0.09847497742 | M113: 0.02054784003 | O113: Saskatchewan | P113: 188497.8187 | Q113: 336.7583619 | R113: 254.6370728 | S113: 17.1145078 | T113: 10.53708133
A114: NYCW | B114: NPCC NYC/Westchester | C114: 0.258 | D114: 0.016 | E114: 635.81 | F114: 0.022 | G114: 0.003 | H114: 637.078 | I114: 0.04487418383 | J114: 138.89106 | K114: 0.1263193791 | L114: 0.09847497742 | M114: 0.02054784003 | O114: Yukon | P114: 7078.333564 | Q114: 38.15349953 | R114: 35.22922692 | S114: 11.97822546 | T114: 10.31916981
A115: NYUP | B115: NPCC Upstate NY | C115: 0.294 | D115: 0.188 | E115: 294.661 | F115: 0.021 | G115: 0.003 | H115: 295.942 | I115: 0.04487418383 | J115: 81.57094 | K115: 0.1263193791 | L115: 0.09847497742 | M115: 0.02054784003
A116: RFCE | B116: RFC East | C116: 0.59 | D116: 0.571 | E116: 758.178 | F116: 0.05 | G116: 0.009 | H116: 762.113 | I116: 0.04487418383 | J116: 114.64024 | K116: 0.1263193791 | L116: 0.09847497742 | M116: 0.02054784003 | O116: Source (g/GJ): https://ghgenius.ca v5.0d
A117: RFCM | B117: RFC Michigan | C117: 0.905 | D117: 1.71 | E117: 1272.045 | F117: 0.067 | G117: 0.018 | H117: 1278.896 | I117: 0.04487418383 | J117: 145.50492 | K117: 0.1263193791 | L117: 0.09847497742 | M117: 0.02054784003
A118: RFCW | B118: RFC West | C118: 0.945 | D118: 1.199 | E118: 1243.439 | F118: 0.108 | G118: 0.019 | H118: 1251.472 | I118: 0.04487418383 | J118: 121.2541 | K118: 0.1263193791 | L118: 0.09847497742 | M118: 0.02054784003
A119: SRMW | B119: SERC Midwest | C119: 1.135 | D119: 2.439 | E119: 1612.59 | F119: 0.082 | G119: 0.026 | H119: 1622.464 | I119: 0.04487418383 | J119: 132.2772 | K119: 0.1263193791 | L119: 0.09847497742 | M119: 0.02054784003
A120: RMPA | B120: WECC Rockies | C120: 1.016 | D120: 0.638 | E120: 1367.768 | F120: 0.137 | G120: 0.02 | H120: 1376.775 | I120: 0.04234720283 | J120: 134.48182 | K120: 0.1263193791 | L120: 0.09847497742 | M120: 0.02054784003
A121: SRMV | B121: SERC Mississippi Valley | C121: 0.8 | D121: 0.712 | E121: 838.889 | F121: 0.05 | G121: 0.007 | H121: 842.153 | I121: 0.04487418383 | J121: 154.3234 | K121: 0.1263193791 | L121: 0.09847497742 | M121: 0.02054784003
A122: SPNO | B122: SPP North | C122: 0.802 | D122: 0.459 | E122: 1412.35 | F122: 0.149 | G122: 0.022 | H122: 1422.17 | I122: 0.04487418383 | J122: 130.07258 | K122: 0.1263193791 | L122: 0.09847497742 | M122: 0.02054784003
A123: SRSO | B123: SERC South | C123: 0.51 | D123: 0.371 | E123: 1089.374 | F123: 0.087 | G123: 0.013 | H123: 1095.119 | I123: 0.04487418383 | J123: 145.50492 | K123: 0.1263193791 | L123: 0.09847497742 | M123: 0.02054784003
A124: SPSO | B124: SPP South | C124: 0.85 | D124: 1.66 | E124: 1248.329 | F124: 0.095 | G124: 0.015 | H124: 1254.856 | I124: 0.04487418383 | J124: 156.52802 | K124: 0.1263193791 | L124: 0.09847497742 | M124: 0.02054784003
A125: SRTV | B125: SERC Tennessee Valley | C125: 0.719 | D125: 1.004 | E125: 1185.433 | F125: 0.093 | G125: 0.017 | H125: 1192.638 | I125: 0.04487418383 | J125: 121.2541 | K125: 0.1263193791 | L125: 0.09847497742 | M125: 0.02054784003
A126: SRVC | B126: SERC Virginia/Carolina | C126: 0.478 | D126: 0.342 | E126: 805.285 | F126: 0.067 | G126: 0.011 | H126: 810.131 | I126: 0.04487418383 | J126: 108.02638 | K126: 0.1263193791 | L126: 0.09847497742 | M126: 0.02054784003
A127: U.S. Avg | B127: National Average | C127: 0.721 | D127: 0.798 | E127: 998.443 | F127: 0.08 | G127: 0.013 | H127: 1004.167 | I127: 0.04475860944 | J127: 117.7088522 | K127: 0.1263193791 | L127: 0.09847497742 | M127: 0.02054784003
A129: Source (eGRID and Grid Loss): http://www.epa.gov/cleanenergy/energy-resources/egrid/index.html
A130: Source (Upstream Emissions): http://www.ucsusa.org/sites/default/files/attach/2015/11/Cleaner-Cars-from-Cradle-to-Grave-full-report.pdf
A131: Source (VOC, PM10, and PM2.5): https://www.epa.gov/air-emissions-inventories/air-pollutant-emissions-trends-data
A134: Gasoline Emissions
A135: Pollutant | B135: Car Tailpipe Emissions | C135: Car Lifecycle Emissions | D135: Car Tailpipe Emissions (Canada) | E135: Canada Car Lifecycle Emissions (Canada)
A136: CO2 (g/MJ) | B136: 71.73 | C136: 90.37 | D136: 62.34278832 | E136: 89.73291607
A137: GHG-100 (g/MJ) | B137: 68.38 | C137: 92.65 | D137: 53.67898505 | E137: 82.44458468
A138: NOx (mg/MJ) | B138: 24.42 | C138: 61.22 | D138: 24.42 | E138: 61.22
A139: SOx (mg/MJ) | B139: 1.1 | C139: 23.61 | D139: 1.1 | E139: 23.61
A140: VOC (mg/MJ) | B140: 25.91 | C140: 54.22 | D140: 25.91 | E140: 54.22
A141: PM10 (mg/MJ) | B141: 1.17 | C141: 4.62 | D141: 1.17 | E141: 4.62
A142: PM2.5 (mg/MJ) | B142: 1.03 | C142: 3.37 | D142: 1.03 | E142: 3.37
A144: Source (Car: SI ICEV - E10, GREET v1.3.0.13395): https://greet.es.anl.gov
A145: Source (Canada for CO2 and GHG-100 only): https://ghgenius.ca v5.0d
A147: Other Default Values and Scalars
A148: Factor | B148: Market | C148: Value | D148: Source
A149: Expected Years of Use/Ownership | B149: All | C149: 7
A150: % of Annual Miles City Driving | B150: All | C150: 0.55 | D150: https://www.epa.gov/fueleconomy/plug-hybrid-electric-vehicle-learn-more-about-new-label
A151: Carbon Price | B151: U.S. | C151: 42 | D151: https://www.epa.gov/climatechange/social-cost-carbon
A152: Carbon Price | B152: Canada | C152: 20 | D152: https://www.canlii.org/en/ca/laws/stat/sc-2018-c-12-s-186/139160/sc-2018-c-12-s-186.html
A153: Level 2 Charging Station Cost | B153: U.S. | C153: 5000
A154: Level 2 Charging Station Cost | B154: Canada | C154: 5000
A155: Level 2 Charging Annual Maintenance Cost | B155: U.S. | C155: 75
A156: Level 2 Charging Annual Maintenance Cost | B156: Canada | C156: 75
A157: Annual Mileage | B157: U.S. | C157: 15000
A158: Annual Mileage | B158: Canada | C158: 24135
A159: Annual Insurance Cost ($/year) | B159: U.S. | C159: 1232 | D159: Average medium sedan insurance costs from AAA 2018 Your Driving Cost Study
A160: Annual Insurance Cost ($/year) | B160: Canada | C160: 1062.3 | D160: https://www.arcinsurance.ca/blog/average-car-insurance-rates-across-canadian-provinces/
A162: Vehicles and Incentives
A163: Selection Name | B163: Year | C163: Make | D163: Model | E163: Drivetrain Type | F163: Battery Size (kWh) | G163: Electric Range | H163: Fuel Economy Electric City (MPGe) | I163: Fuel Economy Electric Hwy (MPGe) | J163: Fuel Economy Gas City (MPG) | K163: Fuel Economy Gas Hwy (MPG) | L163: MSRP | M163: Fueleconomy.gov Link | O163: Selection Name | P163: Year | Q163: Make | R163: Model | S163: Drivetrain Type | T163: Battery Size (kWh) | U163: Electric Range | V163: Fuel Consumption Electric City (Le/100 km) | W163: Fuel Consumption Electric Hwy (Le/100 km) | X163: Fuel Consumption Gas City (L/100 km) | Y163: Fuel Consumption Gas Hwy (L/100 km) | Z163: MSRP | AA163: Link | AC163: State Abbreviation | AD163: Federal Tax Credit | AE163: DC | AF163: AK | AG163: AL | AH163: CA | AI163: AR | AJ163: AZ | AK163: CO | AL163: CT | AM163: DE | AN163: FL | AO163: GA | AP163: HI | AQ163: IA | AR163: ID | AS163: IL | AT163: IN | AU163: KS | AV163: KY | AW163: LA | AX163: MA | AY163: MD | AZ163: ME | BA163: MI | BB163: MN | BC163: MO | BD163: MS | BE163: MT | BF163: NC | BG163: ND | BH163: NE | BI163: NH | BJ163: NJ | BK163: NM | BL163: NV | BM163: NY | BN163: OH | BO163: OK | BP163: OR | BQ163: PA | BR163: RI | BS163: SC | BT163: SD | BU163: TN | BV163: TX | BW163: UT | BX163: VA | BY163: VT | BZ163: WA | CA163: WI | CB163: WV | CC163: WY | CE163: Province | CF163: British Columbia | CG163: Quebec
A164: *Custom Custom Custom BEV | B164: *Custom | C164: Custom | D164: Custom | E164: BEV | O164: *Custom Custom Custom BEV | P164: *Custom | Q164: Custom | R164: Custom | S164: BEV | AC164: Incentive Type | AE164: Other | AH164: Other | AK164: Tax | AL164: Other | AM164: Other | AW164: Tax | AX164: Other | AY164: Tax | BJ164: Other | BM164: Other | BP164: Other | BQ164: Other | BV164: Other | BY164: Other | CE164: Incentive Type | CF164: Rebate | CG164: Rebate
A165: *Custom Custom Custom ICE | B165: *Custom | C165: Custom | D165: Custom | E165: ICE | O165: *Custom Custom Custom ICE | P165: *Custom | Q165: Custom | R165: Custom | S165: ICE | AC165: 2017 Tesla Model S AWD - 100D BEV | AD165: 7500 | AH165: 2500 | AK165: 5000 | AL165: 0 | AM165: 1000 | AW165: 1500 | AX165: 7500 | AY165: 0 | BM165: 500 | BP165: 0 | BQ165: 1750 | BV165: 2500 | CE165: 2017 BMW i3 (94 Ah) BEV | CF165: 5000
A166: *Custom Custom Custom PHEV | B166: *Custom | C166: Custom | D166: Custom | E166: PHEV | O166: *Custom Custom Custom PHEV | P166: *Custom | Q166: Custom | R166: Custom | S166: PHEV | AC166: 2017 Tesla Model S AWD - 60D BEV | AD166: 7500 | AH166: 2500 | AK166: 5000 | AL166: 0 | AM166: 1000 | AW166: 1500 | AX166: 7500 | AY166: 0 | BM166: 500 | BP166: 0 | BQ166: 1750 | BV166: 2500 | CE166: 2017 CHEVROLET BOLT EV BEV | CF166: 5000
A167: 2016 Mazda 6 ICE | B167: 2016 | C167: Mazda | D167: 6 | E167: ICE | G167: 0 | J167: 26 | K167: 37 | L167: 21495 | M167: https://www.fueleconomy.gov/feg/Find.do?action=sbs&id=35981 | O167: 2017 BMW i3 (94 Ah) BEV | P167: 2017 | Q167: BMW | R167: i3 (94 Ah) | S167: BEV | T167: 33 | U167: 183 | V167: 1.820224719 | W167: 2.213483146 | X167: 0 | Y167: 0 | Z167: 48150 | AC167: 2017 Tesla Model S (60 kW-hr battery pack) BEV | AD167: 7500 | AH167: 2500 | AK167: 5000 | AL167: 0 | AM167: 1000 | AW167: 1500 | AX167: 7500 | AY167: 0 | BM167: 500 | BP167: 0 | BQ167: 1750 | BV167: 2500 | CE167: 2017 FORD FOCUS ELECTRIC BEV | CF167: 5000
A168: 2016 Mazda 6 ICE | B168: 2016 | C168: Mazda | D168: 6 | E168: ICE | G168: 0 | J168: 28 | K168: 38 | L168: 21495 | M168: https://www.fueleconomy.gov/feg/Find.do?action=sbs&id=35982 | O168: 2017 CHEVROLET SONIC ICE | P168: 2017 | Q168: CHEVROLET | R168: SONIC | S168: ICE | U168: 0 | V168: 0 | W168: 0 | X168: 8.4 | Y168: 6.3 | Z168: 18245 | AC168: 2017 Tesla Model S (75 kW-hr battery pack) BEV | AD168: 7500 | AH168: 2500 | AK168: 5000 | AL168: 0 | AM168: 1000 | AW168: 1500 | AX168: 7500 | AY168: 0 | BM168: 500 | BP168: 0 | BQ168: 1750 | BV168: 2500 | CE168: 2017 FORD FUSION ENERGI PHEV | CF168: 2500 | CG168: 4000
A169: 2016 Mazda 6 ICE | B169: 2016 | C169: Mazda | D169: 6 | E169: ICE | G169: 0 | J169: 25 | K169: 36 | L169: 21495 | M169: https://www.fueleconomy.gov/feg/Find.do?action=sbs&id=35983 | O169: 2017 CHEVROLET SONIC ICE | P169: 2017 | Q169: CHEVROLET | R169: SONIC | S169: ICE | U169: 0 | V169: 0 | W169: 0 | X169: 9.7 | Y169: 6.9 | Z169: 18245 | AC169: 2017 Tesla Model S AWD - P100D BEV | AD169: 7500 | AH169: 2500 | AK169: 5000 | AL169: 0 | AM169: 3500 | AW169: 1500 | AX169: 7500 | AY169: 3000 | BM169: 2000 | BP169: 2500 | BQ169: 1750 | BV169: 2500 | CE169: 2017 FORD C-MAX ENERGI PHEV | CF169: 2500 | CG169: 4000
A170: 2016 Kia Sorento FE AWD ICE | B170: 2016 | C170: Kia | D170: Sorento FE AWD | E170: ICE | G170: 0 | J170: 18 | K170: 25 | M170: https://www.fueleconomy.gov/feg/Find.do?action=sbs&id=35984 | O170: 2017 CHEVROLET SONIC ICE | P170: 2017 | Q170: CHEVROLET | R170: SONIC | S170: ICE | U170: 0 | V170: 0 | W170: 0 | X170: 8.8 | Y170: 6.6 | Z170: 18245 | AC170: 2017 Tesla Model S AWD - P90D BEV | AD170: 7500 | AH170: 2500 | AK170: 5000 | AL170: 0 | AM170: 1000 | AW170: 1500 | AX170: 7500 | AY170: 0 | BM170: 500 | BP170: 0 | BQ170: 1750 | BV170: 2500 | CE170: 2017 CHEVROLET VOLT PHEV | CG170: 8000
A171: 2016 Kia Sorento FWD ICE | B171: 2016 | C171: Kia | D171: Sorento FWD | E171: ICE | G171: 0 | J171: 20 | K171: 27 | L171: 25100 | M171: https://www.fueleconomy.gov/feg/Find.do?action=sbs&id=35985 | O171: 2017 CHEVROLET MALIBU ICE | P171: 2017 | Q171: CHEVROLET | R171: MALIBU | S171: ICE | U171: 0 | V171: 0 | W171: 0 | X171: 8.8 | Y171: 6.5 | Z171: 22145 | AC171: 2017 Tesla Model S AWD - 75D BEV | AD171: 7500 | AH171: 2500 | AK171: 5000 | AL171: 0 | AM171: 1000 | AW171: 1500 | AX171: 7500 | AY171: 0 | BM171: 500 | BP171: 0 | BQ171: 1750 | BV171: 2500 | CE171: 2017 CHRYSLER PACIFICA HYBRID PHEV | CG171: 8000
A172: 2016 Kia Sorento FWD ICE | B172: 2016 | C172: Kia | D172: Sorento FWD | E172: ICE | G172: 0 | J172: 21 | K172: 28 | L172: 25100 | M172: https://www.fueleconomy.gov/feg/Find.do?action=sbs&id=35986 | O172: 2017 CHEVROLET MALIBU ICE | P172: 2017 | Q172: CHEVROLET | R172: MALIBU | S172: ICE | U172: 0 | V172: 0 | W172: 0 | X172: 10.7 | Y172: 7.1 | Z172: 22145 | AC172: 2017 Tesla Model S AWD - 90D BEV | AD172: 7500 | AH172: 2500 | AK172: 5000 | AL172: 0 | AM172: 1000 | AW172: 1500 | AX172: 7500 | AY172: 0 | BM172: 500 | BP172: 0 | BQ172: 1750 | BV172: 2500 | CE172: 2017 HYUNDAI SONATA PLUG-IN PHEV | CF172: 2500 | CG172: 4000
A173: 2016 Kia Sorento FWD ICE | B173: 2016 | C173: Kia | D173: Sorento FWD | E173: ICE | G173: 0 | J173: 18 | K173: 25 | L173: 25100 | M173: https://www.fueleconomy.gov/feg/Find.do?action=sbs&id=35987 | O173: 2017 CHEVROLET SONIC ICE | P173: 2017 | Q173: CHEVROLET | R173: SONIC | S173: ICE | U173: 0 | V173: 0 | W173: 0 | X173: 9.2 | Y173: 7.1 | Z173: 18245 | AC173: 2017 Tesla Model 3 Long Range BEV | AD173: 7500 | AH173: 2500 | AK173: 5000 | AL173: 0 | AM173: 3500 | AW173: 1500 | AX173: 7500 | AY173: 3000 | BM173: 2000 | BP173: 2500 | BQ173: 1750 | BV173: 2500 | CE173: 2017 HYUNDAI IONIQ EV BEV | CF173: 5000
A174: 2016 Mazda CX-5 2WD ICE | B174: 2016 | C174: Mazda | D174: CX-5 2WD | E174: ICE | G174: 0 | J174: 26 | K174: 34 | L174: 21795 | M174: https://www.fueleconomy.gov/feg/Find.do?action=sbs&id=35988 | O174: 2017 CHEVROLET TRAX ICE | P174: 2017 | Q174: CHEVROLET | R174: TRAX | S174: ICE | U174: 0 | V174: 0 | W174: 0 | X174: 9.3 | Y174: 7.2 | Z174: 20095 | AC174: 2017 Ford Focus Electric BEV | AD174: 7500 | AH174: 2500 | AK174: 5000 | AL174: 0 | AM174: 3500 | AW174: 1500 | AX174: 7500 | AY174: 3000 | BM174: 1700 | BP174: 2500 | BQ174: 1750 | BV174: 2500 | CE174: 2017 KIA SOUL EV BEV | CF174: 5000
A175: 2016 Mazda CX-5 2WD ICE | B175: 2016 | C175: Mazda | D175: CX-5 2WD | E175: ICE | G175: 0 | J175: 26 | K175: 33 | L175: 21795 | M175: https://www.fueleconomy.gov/feg/Find.do?action=sbs&id=35989 | O175: 2017 CHEVROLET TRAX ICE | P175: 2017 | Q175: CHEVROLET | R175: TRAX | S175: ICE | U175: 0 | V175: 0 | W175: 0 | X175: 9.2 | Y175: 7.1 | Z175: 20095 | AC175: 2017 Honda Clarity EV BEV | AD175: 7500 | AH175: 2500 | AK175: 5000 | AL175: 0 | AM175: 3500 | AW175: 1500 | AX175: 7500 | AY175: 2550 | BM175: 1700 | BP175: 2500 | BQ175: 1750 | BV175: 2500 | CE175: 2017 KIA OPTIMA PLUG-IN PHEV | CF175: 2500 | CG175: 4000
A176: 2016 Kia Sorento AWD ICE | B176: 2016 | C176: Kia | D176: Sorento AWD | E176: ICE | G176: 0 | J176: 19 | K176: 25 | L176: 28200 | M176: https://www.fueleconomy.gov/feg/Find.do?action=sbs&id=35990 | O176: 2017 CHEVROLET SUBURBAN ICE | P176: 2017 | Q176: CHEVROLET | R176: SUBURBAN | S176: ICE | U176: 0 | V176: 0 | W176: 0 | X176: 15.1 | Y176: 10.4 | Z176: 57645 | AC176: 2017 Chrysler Pacifica Hybrid PHEV | AD176: 7500 | AH176: 1500 | AK176: 5000 | AL176: 2000 | AM176: 1500 | AW176: 1500 | AX176: 5000 | AY176: 1600 | BM176: 1100 | BP176: 2500 | BQ176: 1000 | BV176: 2500 | BY176: 1200 | CE176: 2017 MITSUBISHI i-MiEV BEV | CF176: 5000
A177: 2016 Kia Sorento AWD ICE | B177: 2016 | C177: Kia | D177: Sorento AWD | E177: ICE | G177: 0 | J177: 21 | K177: 25 | L177: 28200 | M177: https://www.fueleconomy.gov/feg/Find.do?action=sbs&id=35991 | O177: 2017 CHEVROLET SPARK ICE | P177: 2017 | Q177: CHEVROLET | R177: SPARK | S177: ICE | U177: 0 | V177: 0 | W177: 0 | X177: 7.8 | Y177: 6.2 | Z177: 10095 | AC177: 2017 Fiat 500e BEV | AD177: 7500 | AH177: 2500 | AK177: 5000 | AL177: 0 | AM177: 3500 | AW177: 1500 | AX177: 7500 | AY177: 2400 | BM177: 1700 | BP177: 2500 | BQ177: 1750 | BV177: 2500 | CE177: 2017 NISSAN LEAF BEV | CF177: 5000
A178: 2016 Kia Sorento AWD ICE | B178: 2016 | C178: Kia | D178: Sorento AWD | E178: ICE | G178: 0 | J178: 17 | K178: 23 | L178: 28200 | M178: https://www.fueleconomy.gov/feg/Find.do?action=sbs&id=35992 | O178: 2017 CHEVROLET SPARK ICE | P178: 2017 | Q178: CHEVROLET | R178: SPARK | S178: ICE | U178: 0 | V178: 0 | W178: 0 | X178: 8 | Y178: 6.2 | Z178: 10095 | AC178: 2017 Mitsubishi i-MiEV BEV | AD178: 7500 | AH178: 2500 | AK178: 5000 | AL178: 0 | AM178: 3500 | AW178: 1500 | AX178: 7500 | AY178: 1600 | BM178: 1700 | BP178: 2500 | BQ178: 1750 | BV178: 2500 | CE178: 2017 TOYOTA PRIUS PRIME PHEV | CF178: 2500 | CG178: 4000
A179: 2016 Mazda CX-5 4WD ICE | B179: 2016 | C179: Mazda | D179: CX-5 4WD | E179: ICE | G179: 0 | J179: 24 | K179: 29 | L179: 24445 | M179: https://www.fueleconomy.gov/feg/Find.do?action=sbs&id=35993 | O179: 2017 CHEVROLET VOLT PHEV | P179: 2017 | Q179: CHEVROLET | R179: VOLT | S179: PHEV | T179: 18 | U179: 85 | V179: 2.2 | W179: 2.2 | X179: 5.5 | Y179: 5.6 | Z179: 38890 | AC179: 2017 Nissan Leaf BEV | AD179: 7500 | AH179: 2500 | AK179: 5000 | AL179: 0 | AM179: 3500 | AW179: 1500 | AX179: 7500 | AY179: 3000 | BM179: 1700 | BP179: 2500 | BQ179: 1750 | BV179: 2500 | CE179: 2017 VOLKSWAGEN e-GOLF BEV | CF179: 5000
A180: 2016 Honda HR-V 2WD ICE | B180: 2016 | C180: Honda | D180: HR-V 2WD | E180: ICE | G180: 0 | J180: 25 | K180: 33 | L180: 19215 | M180: https://www.fueleconomy.gov/feg/Find.do?action=sbs&id=35998 | O180: 2017 CHEVROLET CRUZE ICE | P180: 2017 | Q180: CHEVROLET | R180: CRUZE | S180: ICE | U180: 0 | V180: 0 | W180: 0 | X180: 8.3 | Y180: 6 | Z180: 16295 | AC180: 2017 Hyundai Ioniq Electric BEV | AD180: 7500 | AH180: 2500 | AK180: 5000 | AL180: 0 | AM180: 3500 | AW180: 1500 | AX180: 7500 | AY180: 2800 | BM180: 2000 | BP180: 2500 | BQ180: 1750 | BV180: 2500 | CE180: 2017 VOLVO XC90 T8 AWD PHEV | CF180: 2500 | CG180: 4000
A181: 2016 Honda HR-V 2WD ICE | B181: 2016 | C181: Honda | D181: HR-V 2WD | E181: ICE | G181: 0 | J181: 28 | K181: 34 | L181: 19215 | M181: https://www.fueleconomy.gov/feg/Find.do?action=sbs&id=35999 | O181: 2017 CHEVROLET CRUZE HATCHBACK ICE | P181: 2017 | Q181: CHEVROLET | R181: CRUZE HATCHBACK | S181: ICE | U181: 0 | V181: 0 | W181: 0 | X181: 8.1 | Y181: 6.2 | Z181: 20995 | AC181: 2017 Kia Soul Electric BEV | AD181: 7500 | AH181: 2500 | AK181: 5000 | AL181: 0 | AM181: 3500 | AW181: 1500 | AX181: 7500 | AY181: 2700 | BM181: 1700 | BP181: 2500 | BQ181: 1750 | BV181: 2500 | CE181: 2018 BMW i3 BEV | CF181: 5000
A182: 2016 Honda HR-V 2WD ICE | B182: 2016 | C182: Honda | D182: HR-V 2WD | E182: ICE | G182: 0 | J182: 28 | K182: 34 | L182: 19215 | M182: https://www.fueleconomy.gov/feg/Find.do?action=sbs&id=36000 | O182: 2017 CHEVROLET BOLT EV BEV | P182: 2017 | Q182: CHEVROLET | R182: BOLT EV | S182: BEV | T182: 60 | U182: 383 | V182: 1.842696629 | W182: 2.134831461 | X182: 0 | Y182: 0 | Z182: 43195 | AC182: 2017 Tesla Model X AWD - 60D BEV | AD182: 7500 | AH182: 2500 | AK182: 5000 | AL182: 0 | AM182: 3500 | AW182: 1500 | AX182: 7500 | AY182: 3000 | BM182: 2000 | BP182: 2500 | BQ182: 1750 | BV182: 2500 | CE182: 2018 CHEVROLET VOLT PHEV | CG182: 8000
A183: 2016 Honda HR-V 4WD ICE | B183: 2016 | C183: Honda | D183: HR-V 4WD | E183: ICE | G183: 0 | J183: 27 | K183: 32 | L183: 21315 | M183: https://www.fueleconomy.gov/feg/Find.do?action=sbs&id=36001 | O183: 2017 CHEVROLET CRUZE ICE | P183: 2017 | Q183: CHEVROLET | R183: CRUZE | S183: ICE | U183: 0 | V183: 0 | W183: 0 | X183: 7.9 | Y183: 5.9 | Z183: 16295 | AC183: 2018 Honda Clarity Plug-in Hybrid PHEV | AD183: 7500 | AH183: 1500 | AK183: 5000 | AL183: 2000 | AM183: 1500 | AW183: 1500 | AX183: 5000 | AY183: 1700 | BM183: 1700 | BP183: 2500 | BQ183: 1000 | BV183: 2500 | BY183: 1200 | CE183: 2018 CHEVROLET BOLT EV BEV | CF183: 5000
A184: 2016 Honda HR-V 4WD ICE | B184: 2016 | C184: Honda | D184: HR-V 4WD | E184: ICE | G184: 0 | J184: 27 | K184: 32 | L184: 21315 | M184: https://www.fueleconomy.gov/feg/Find.do?action=sbs&id=36002 | O184: 2017 CHEVROLET CRUZE HATCHBACK ICE | P184: 2017 | Q184: CHEVROLET | R184: CRUZE HATCHBACK | S184: ICE | U184: 0 | V184: 0 | W184: 0 | X184: 8.3 | Y184: 6.4 | Z184: 20995 | AC184: 2018 Hyundai Ioniq Electric BEV | AD184: 7500 | AH184: 2500 | AK184: 5000 | AL184: 0 | AM184: 3500 | AW184: 1500 | AX184: 7500 | AY184: 2800 | BM184: 2000 | BP184: 2500 | BQ184: 1750 | BV184: 2500 | CE184: 2018 CHRYSLER PACIFICA HYBRID PHEV | CG184: 8000
A185: 2016 Hyundai Veloster ICE | B185: 2016 | C185: Hyundai | D185: Veloster | E185: ICE | G185: 0 | J185: 28 | K185: 35 | L185: 18000 | M185: https://www.fueleconomy.gov/feg/Find.do?action=sbs&id=36020 | O185: 2017 CHEVROLET EQUINOX ICE | P185: 2017 | Q185: CHEVROLET | R185: EQUINOX | S185: ICE | U185: 0 | V185: 0 | W185: 0 | X185: 14.1 | Y185: 9.7 | Z185: 27270 | AC185: 2018 Chrysler Pacifica Hybrid PHEV | AD185: 7500 | AH185: 1500 | AK185: 5000 | AL185: 2000 | AM185: 1500 | AW185: 1500 | AX185: 5000 | AY185: 1600 | BM185: 1100 | BP185: 2500 | BQ185: 1000 | BV185: 2500 | BY185: 1200 | CE185: 2018 FORD FUSION ENERGI PHEV | CF185: 2500 | CG185: 4000
A186: 2016 Hyundai Veloster ICE | B186: 2016 | C186: Hyundai | D186: Veloster | E186: ICE | G186: 0 | J186: 27 | K186: 34 | L186: 18000 | M186: https://www.fueleconomy.gov/feg/Find.do?action=sbs&id=36021 | O186: 2017 CHEVROLET IMPALA ICE | P186: 2017 | Q186: CHEVROLET | R186: IMPALA | S186: ICE | U186: 0 | V186: 0 | W186: 0 | X186: 10.9 | Y186: 7.9 | Z186: 30295 | AC186: 2018 Ford Focus Electric BEV | AD186: 7500 | AH186: 2500 | AK186: 5000 | AL186: 0 | AM186: 3500 | AW186: 1500 | AX186: 7500 | AY186: 3000 | BM186: 1700 | BP186: 2500 | BQ186: 1750 | BV186: 2500 | CE186: 2018 FORD FOCUS ELECTRIC BEV | CF186: 5000
A187: 2016 Hyundai Elantra GT ICE | B187: 2016 | C187: Hyundai | D187: Elantra GT | E187: ICE | G187: 0 | J187: 24 | K187: 32 | L187: 18800 | M187: https://www.fueleconomy.gov/feg/Find.do?action=sbs&id=36022 | O187: 2017 CHEVROLET EQUINOX ICE | P187: 2017 | Q187: CHEVROLET | R187: EQUINOX | S187: ICE | U187: 0 | V187: 0 | W187: 0 | X187: 11 | Y187: 7.5 | Z187: 27270 | AC187: 2018 smart fortwo electric drive coupe BEV | AD187: 7500 | AH187: 2500 | AK187: 5000 | AL187: 0 | AM187: 3500 | AW187: 1500 | AX187: 7500 | AY187: 1760 | BM187: 1700 | BP187: 2500 | BQ187: 1750 | BV187: 2500 | CE187: 2018 HONDA CLARITY PLUG-IN PHEV | CG187: 8000
A188: 2016 Mitsubishi i-MiEV BEV | B188: 2016 | C188: Mitsubishi | D188: i-MiEV | E188: BEV | F188: 16 | G188: 62 | H188: 126 | I188: 99 | L188: 22995 | M188: https://www.fueleconomy.gov/feg/Find.do?action=sbs&id=36023 | O188: 2017 CHRYSLER PACIFICA HYBRID PHEV | P188: 2017 | Q188: CHRYSLER | R188: PACIFICA HYBRID | S188: PHEV | T188: 17 | U188: 53 | V188: 2.8 | W188: 2.8 | X188: 7.3 | Y188: 7.2 | Z188: 52495 | AC188: 2016 BYD e6 BEV | AD188: 7500 | AH188: 2500 | AK188: 5000 | AL188: 0 | AM188: 3500 | AW188: 1500 | AX188: 7500 | AY188: 3000 | BM188: 2000 | BP188: 2500 | BQ188: 1750 | BV188: 2500 | CE188: 2018 HYUNDAI IONIQ EV BEV | CF188: 5000
A189: 2016 Hyundai Elantra GT ICE | B189: 2016 | C189: Hyundai | D189: Elantra GT | E189: ICE | G189: 0 | J189: 24 | K189: 32 | L189: 18800 | M189: https://www.fueleconomy.gov/feg/Find.do?action=sbs&id=36036 | O189: 2017 DODGE DURANGO AWD ICE | P189: 2017 | Q189: DODGE | R189: DURANGO AWD | S189: ICE | U189: 0 | V189: 0 | W189: 0 | X189: 16.6 | Y189: 10.7 | Z189: 44195 | AC189: 2018 Kia Soul Electric BEV | AD189: 7500 | AH189: 2500 | AK189: 5000 | AL189: 0 | AM189: 3500 | AW189: 1500 | AX189: 7500 | AY189: 3000 | BM189: 1700 | BP189: 2500 | BQ189: 1750 | BV189: 2500 | CE189: 2018 KIA SOUL EV BEV | CF189: 5000
A190: 2016 Nissan GT-R ICE | B190: 2016 | C190: Nissan | D190: GT-R | E190: ICE | G190: 0 | M190: https://www.fueleconomy.gov/feg/Find.do?action=sbs&id=36052 | O190: 2017 DODGE DURANGO AWD ICE | P190: 2017 | Q190: DODGE | R190: DURANGO AWD | S190: ICE | U190: 0 | V190: 0 | W190: 0 | X190: 12.7 | Y190: 9.6 | Z190: 44195 | AC190: 2018 smart fortwo electric drive convertible BEV | AD190: 7500 | AH190: 2500 | AK190: 5000 | AL190: 0 | AM190: 3500 | AW190: 1500 | AX190: 7500 | AY190: 1760 | BM190: 1700 | BP190: 2500 | BQ190: 1750 | BV190: 2500 | CE190: 2018 KIA OPTIMA PLUG-IN PHEV | CF190: 2500 | CG190: 4000
A191: 2016 Hyundai Veloster ICE | B191: 2016 | C191: Hyundai | D191: Veloster | E191: ICE | G191: 0 | J191: 26 | K191: 32 | L191: 18000 | M191: https://www.fueleconomy.gov/feg/Find.do?action=sbs&id=36053 | O191: 2017 DODGE JOURNEY FFV ICE | P191: 2017 | Q191: DODGE | R191: JOURNEY FFV | S191: ICE | U191: 0 | V191: 0 | W191: 0 | X191: 19.1 | Y191: 13.2 | Z191: 20195 | AC191: 2018 Chevrolet Volt PHEV | AD191: 7500 | AH191: 1500 | AK191: 5000 | AL191: 2000 | AM191: 1500 | AW191: 1500 | AX191: 5000 | AY191: 1840 | BM191: 1700 | BP191: 2500 | BQ191: 1000 | BV191: 2500 | BY191: 1200 | CE191: 2018 MINI COOPER S E COUNTRYMAN ALL4 PHEV | CF191: 2500 | CG191: 4000
A192: 2016 Hyundai Veloster ICE | B192: 2016 | C192: Hyundai | D192: Veloster | E192: ICE | G192: 0 | J192: 25 | K192: 33 | L192: 18000 | M192: https://www.fueleconomy.gov/feg/Find.do?action=sbs&id=36054 | O192: 2017 DODGE GRAND CARAVAN FFV ICE | P192: 2017 | Q192: DODGE | R192: GRAND CARAVAN FFV | S192: ICE | U192: 0 | V192: 0 | W192: 0 | X192: 13.7 | Y192: 9.4 | Z192: 22395 | AC192: 2017 Tesla Model X AWD - P100D BEV | AD192: 7500 | AH192: 2500 | AK192: 5000 | AL192: 0 | AM192: 3500 | AW192: 1500 | AX192: 7500 | AY192: 3000 | BM192: 2000 | BP192: 2500 | BQ192: 1750 | BV192: 2500 | CE192: 2018 MITSUBISHI OUTLANDER PHEV AWD PHEV | CF192: 2500 | CG192: 4000
A193: 2016 Hyundai Equus ICE | B193: 2016 | C193: Hyundai | D193: Equus | E193: ICE | G193: 0 | L193: 61500 | M193: https://www.fueleconomy.gov/feg/Find.do?action=sbs&id=36056 | O193: 2017 DODGE GRAND CARAVAN FFV ICE | P193: 2017 | Q193: DODGE | R193: GRAND CARAVAN FFV | S193: ICE | U193: 0 | V193: 0 | W193: 0 | X193: 19.4 | Y193: 13.3 | Z193: 22395 | AC193: 2017 Tesla Model X AWD - P90D BEV | AD193: 7500 | AH193: 2500 | AK193: 5000 | AL193: 0 | AM193: 3500 | AW193: 1500 | AX193: 7500 | AY193: 3000 | BM193: 2000 | BP193: 2500 | BQ193: 1750 | BV193: 2500 | CE193: 2018 NISSAN LEAF BEV | CF193: 5000
A194: 2016 Kia Sedona ICE | B194: 2016 | C194: Kia | D194: Sedona | E194: ICE | G194: 0 | J194: 18 | K194: 24 | L194: 26400 | M194: https://www.fueleconomy.gov/feg/Find.do?action=sbs&id=36057 | O194: 2017 DODGE JOURNEY FFV ICE | P194: 2017 | Q194: DODGE | R194: JOURNEY FFV | S194: ICE | U194: 0 | V194: 0 | W194: 0 | X194: 14.2 | Y194: 9.5 | Z194: 20195 | AC194: 2017 Tesla Model X AWD - 75D BEV | AD194: 7500 | AH194: 2500 | AK194: 5000 | AL194: 0 | AM194: 1000 | AW194: 1500 | AX194: 7500 | AY194: 0 | BM194: 500 | BP194: 0 | BQ194: 1750 | BV194: 2500 | CE194: 2018 SMART FORTWO ELECTRIC DRIVE COUPE BEV | CF194: 5000
A195: 2016 Kia Sedona SX ICE | B195: 2016 | C195: Kia | D195: Sedona SX | E195: ICE | G195: 0 | J195: 18 | K195: 25 | L195: 36400 | M195: https://www.fueleconomy.gov/feg/Find.do?action=sbs&id=36058 | O195: 2017 FIAT 500 CABRIO ICE | P195: 2017 | Q195: FIAT | R195: 500 CABRIO | S195: ICE | U195: 0 | V195: 0 | W195: 0 | X195: 8 | Y195: 6.5 | Z195: 22995 | AC195: 2017 Tesla Model X AWD - 90D BEV | AD195: 7500 | AH195: 2500 | AK195: 5000 | AL195: 0 | AM195: 1000 | AW195: 1500 | AX195: 7500 | AY195: 0 | BM195: 500 | BP195: 0 | BQ195: 1750 | BV195: 2500 | CE195: 2018 SMART FORTWO ELECTRIC DRIVE CABRIOLET BEV | CF195: 5000
A196: 2016 Kia Sedona SXL ICE | B196: 2016 | C196: Kia | D196: Sedona SXL | E196: ICE | G196: 0 | J196: 17 | K196: 22 | L196: 39900 | M196: https://www.fueleconomy.gov/feg/Find.do?action=sbs&id=36059 | O196: 2017 FIAT 500 ABARTH CABRIO ICE | P196: 2017 | Q196: FIAT | R196: 500 ABARTH CABRIO | S196: ICE | U196: 0 | V196: 0 | W196: 0 | X196: 8.5 | Y196: 7.1 | Z196: 27995 | AC196: 2017 smart fortwo electric drive coupe BEV | AD196: 7500 | AH196: 2500 | AK196: 5000 | AL196: 0 | AM196: 3500 | AW196: 1500 | AX196: 7500 | AY196: 1720 | BM196: 1700 | BP196: 2500 | BQ196: 1750 | BV196: 2500 | CE196: 2018 TOYOTA PRIUS PRIME PHEV | CF196: 2500 | CG196: 4000
A197: 2016 Kia Rio Eco ICE | B197: 2016 | C197: Kia | D197: Rio Eco | E197: ICE | G197: 0 | J197: 27 | K197: 36 | L197: 18355 | M197: https://www.fueleconomy.gov/feg/Find.do?action=sbs&id=36066 | O197: 2017 FIAT 500 ABARTH HATCHBACK ICE | P197: 2017 | Q197: FIAT | R197: 500 ABARTH HATCHBACK | S197: ICE | U197: 0 | V197: 0 | W197: 0 | X197: 9.7 | Y197: 7.4 | Z197: 27995 | AC197: 2018 Chevrolet Bolt EV BEV | AD197: 7500 | AH197: 2500 | AK197: 5000 | AL197: 0 | AM197: 3500 | AW197: 1500 | AX197: 7500 | AY197: 3000 | BM197: 2000 | BP197: 2500 | BQ197: 1750 | BV197: 2500 | CE197: 2018 VOLKSWAGEN e-GOLF BEV | CF197: 5000
A198: 2016 Kia Rio ICE | B198: 2016 | C198: Kia | D198: Rio | E198: ICE | G198: 0 | J198: 27 | K198: 36 | L198: 14165 | M198: https://www.fueleconomy.gov/feg/Find.do?action=sbs&id=36067 | O198: 2017 FIAT 500 ABARTH HATCHBACK ICE | P198: 2017 | Q198: FIAT | R198: 500 ABARTH HATCHBACK | S198: ICE | U198: 0 | V198: 0 | W198: 0 | X198: 8.5 | Y198: 7.1 | Z198: 27995 | AC198: 2017 Volkswagen e-Golf BEV | AD198: 7500 | AH198: 2500 | AK198: 5000 | AL198: 0 | AM198: 3500 | AW198: 1500 | AX198: 7500 | AY198: 3000 | BM198: 2000 | BP198: 2500 | BQ198: 1750 | BV198: 2500 | CE198: 2018 VOLVO XC60 T8 AWD PHEV | CF198: 2500 | CG198: 4000
A199: 2016 Kia Rio ICE | B199: 2016 | C199: Kia | D199: Rio | E199: ICE | G199: 0 | J199: 27 | K199: 36 | L199: 14165 | M199: https://www.fueleconomy.gov/feg/Find.do?action=sbs&id=36068 | O199: 2017 FIAT 500 ABARTH CABRIO ICE | P199: 2017 | Q199: FIAT | R199: 500 ABARTH CABRIO | S199: ICE | U199: 0 | V199: 0 | W199: 0 | X199: 9.7 | Y199: 7.4 | Z199: 27995 | AC199: 2017 smart fortwo electric drive convertible BEV | AD199: 7500 | AH199: 2500 | AK199: 5000 | AL199: 0 | AM199: 3500 | AW199: 1500 | AX199: 7500 | AY199: 1720 | BM199: 1700 | BP199: 2500 | BQ199: 1750 | BV199: 2500 | CE199: 2018 VOLVO XC90 T8 AWD PHEV | CF199: 2500 | CG199: 4000
A200: 2016 Nissan 370Z ICE | B200: 2016 | C200: Nissan | D200: 370Z | E200: ICE | G200: 0 | M200: https://www.fueleconomy.gov/feg/Find.do?action=sbs&id=36072 | O200: 2017 FIAT 500X ICE | P200: 2017 | Q200: FIAT | R200: 500X | S200: ICE | U200: 0 | V200: 0 | W200: 0 | X200: 10.7 | Y200: 7.7 | Z200: 20245 | AC200: 2017 Chevrolet Volt PHEV | AD200: 7500 | AH200: 1500 | AK200: 5000 | AL200: 2000 | AM200: 1500 | AW200: 1500 | AX200: 5000 | AY200: 1840 | BM200: 1700 | BP200: 2500 | BQ200: 1000 | BV200: 2500 | BY200: 1200 | CE200: 2018 VOLVO S90 T8 AWD PHEV | CF200: 2500 | CG200: 4000
A201: 2016 Nissan 370Z ICE | B201: 2016 | C201: Nissan | D201: 370Z | E201: ICE | G201: 0 | M201: https://www.fueleconomy.gov/feg/Find.do?action=sbs&id=36073 | O201: 2017 FIAT 500X ICE | P201: 2017 | Q201: FIAT | R201: 500X | S201: ICE | U201: 0 | V201: 0 | W201: 0 | X201: 9.5 | Y201: 7.1 | Z201: 20245 | AC201: 2016 Tesla Model S (85 kW-hr battery pack) BEV | AD201: 7500 | AH201: 2500 | AK201: 5000 | AL201: 0 | AM201: 3500 | AW201: 1500 | AX201: 7500 | AY201: 3000 | BM201: 2000 | BP201: 2500 | BQ201: 1750 | BV201: 2500
A202: 2016 Nissan 370Z Roadster ICE | B202: 2016 | C202: Nissan | D202: 370Z Roadster | E202: ICE | G202: 0 | M202: https://www.fueleconomy.gov/feg/Find.do?action=sbs&id=36074 | O202: 2017 FIAT 500L ICE | P202: 2017 | Q202: FIAT | R202: 500L | S202: ICE | U202: 0 | V202: 0 | W202: 0 | X202: 10.7 | Y202: 7.9 | Z202: 22245 | AC202: 2016 Tesla Model S (90 kW-hr battery pack) BEV | AD202: 7500 | AH202: 2500 | AK202: 5000 | AL202: 0 | AM202: 3500 | AW202: 1500 | AX202: 7500 | AY202: 3000 | BM202: 2000 | BP202: 2500 | BQ202: 1750 | BV202: 2500
A203: 2016 Nissan 370Z Roadster ICE | B203: 2016 | C203: Nissan | D203: 370Z Roadster | E203: ICE | G203: 0 | M203: https://www.fueleconomy.gov/feg/Find.do?action=sbs&id=36075 | O203: 2017 FIAT 500 CABRIO ICE | P203: 2017 | Q203: FIAT | R203: 500 CABRIO | S203: ICE | U203: 0 | V203: 0 | W203: 0 | X203: 8.7 | Y203: 7.1 | Z203: 22995 | AC203: 2016 Tesla Model S (70 kW-hr battery pack) BEV | AD203: 7500 | AH203: 2500 | AK203: 5000 | AL203: 0 | AM203: 1000 | AW203: 1500 | AX203: 7500 | AY203: 0 | BM203: 500 | BP203: 0 | BQ203: 1750 | BV203: 2500
A204: 2016 Subaru WRX ICE | B204: 2016 | C204: Subaru | D204: WRX | E204: ICE | G204: 0 | L204: 26595 | M204: https://www.fueleconomy.gov/feg/Find.do?action=sbs&id=36091 | O204: 2017 FORD F-150 FFV 4X4 ICE | P204: 2017 | Q204: FORD | R204: F-150 FFV 4X4 | S204: ICE | U204: 0 | V204: 0 | W204: 0 | X204: 19 | Y204: 14.3 | Z204: 29499 | AC204: 2016 Tesla Model S (75 kW-hr battery pack) BEV | AD204: 7500 | AH204: 2500 | AK204: 5000 | AL204: 0 | AM204: 1000 | AW204: 1500 | AX204: 7500 | AY204: 0 | BM204: 500 | BP204: 0 | BQ204: 1750 | BV204: 2500
A205: 2016 Subaru WRX ICE | B205: 2016 | C205: Subaru | D205: WRX | E205: ICE | G205: 0 | L205: 26595 | M205: https://www.fueleconomy.gov/feg/Find.do?action=sbs&id=36092 | O205: 2017 FORD F-150 FFV 4X4 ICE | P205: 2017 | Q205: FORD | R205: F-150 FFV 4X4 | S205: ICE | U205: 0 | V205: 0 | W205: 0 | X205: 15.9 | Y205: 11.3 | Z205: 29499 | AC205: 2016 Tesla Model S AWD - 60D BEV | AD205: 7500 | AH205: 2500 | AK205: 5000 | AL205: 0 | AM205: 1000 | AW205: 1500 | AX205: 7500 | AY205: 0 | BM205: 500 | BP205: 0 | BQ205: 1750 | BV205: 2500
A206: 2016 Hyundai Elantra Limited ICE | B206: 2016 | C206: Hyundai | D206: Elantra Limited | E206: ICE | G206: 0 | J206: 27 | K206: 36 | L206: 21700 | M206: https://www.fueleconomy.gov/feg/Find.do?action=sbs&id=36095 | O206: 2017 FORD F-150 FFV 4X4 ICE | P206: 2017 | Q206: FORD | R206: F-150 FFV 4X4 | S206: ICE | U206: 0 | V206: 0 | W206: 0 | X206: 21.5 | Y206: 15.1 | Z206: 29499 | AC206: 2016 Tesla Model S AWD - 85D BEV | AD206: 7500 | AH206: 2500 | AK206: 5000 | AL206: 0 | AM206: 3500 | AW206: 1500 | AX206: 7500 | AY206: 3000 | BM206: 2000 | BP206: 2500 | BQ206: 1750 | BV206: 2500
A207: 2016 Hyundai Elantra ICE | B207: 2016 | C207: Hyundai | D207: Elantra | E207: ICE | G207: 0 | J207: 28 | K207: 37 | L207: 17250 | M207: https://www.fueleconomy.gov/feg/Find.do?action=sbs&id=36096 | O207: 2017 FORD EXPLORER FFV AWD ICE | P207: 2017 | Q207: FORD | R207: EXPLORER FFV AWD | S207: ICE | U207: 0 | V207: 0 | W207: 0 | X207: 14.4 | Y207: 10.5 | Z207: 33749 | AC207: 2016 Tesla Model S AWD - 90D BEV | AD207: 7500 | AH207: 2500 | AK207: 5000 | AL207: 0 | AM207: 1000 | AW207: 1500 | AX207: 7500 | AY207: 0 | BM207: 500 | BP207: 0 | BQ207: 1750 | BV207: 2500
A208: 2016 Hyundai Elantra ICE | B208: 2016 | C208: Hyundai | D208: Elantra | E208: ICE | G208: 0 | J208: 27 | K208: 36 | L208: 17250 | M208: https://www.fueleconomy.gov/feg/Find.do?action=sbs&id=36097 | O208: 2017 FORD EXPLORER FFV AWD ICE | P208: 2017 | Q208: FORD | R208: EXPLORER FFV AWD | S208: ICE | U208: 0 | V208: 0 | W208: 0 | X208: 19.6 | Y208: 14.2 | Z208: 33749 | AC208: 2016 Tesla Model S AWD - 70D BEV | AD208: 7500 | AH208: 2500 | AK208: 5000 | AL208: 0 | AM208: 3500 | AW208: 1500 | AX208: 7500 | AY208: 3000 | BM208: 2000 | BP208: 2500 | BQ208: 1750 | BV208: 2500
A209: 2016 Hyundai Elantra ICE | B209: 2016 | C209: Hyundai | D209: Elantra | E209: ICE | G209: 0 | J209: 24 | K209: 35 | L209: 17250 | M209: https://www.fueleconomy.gov/feg/Find.do?action=sbs&id=36098 | O209: 2017 FORD F-150 FFV 4X4 ICE | P209: 2017 | Q209: FORD | R209: F-150 FFV 4X4 | S209: ICE | U209: 0 | V209: 0 | W209: 0 | X209: 14 | Y209: 10.6 | Z209: 29499 | AC209: 2016 Tesla Model S AWD - 75D BEV | AD209: 7500 | AH209: 2500 | AK209: 5000 | AL209: 0 | AM209: 1000 | AW209: 1500 | AX209: 7500 | AY209: 0 | BM209: 500 | BP209: 0 | BQ209: 1750 | BV209: 2500
A210: 2016 Hyundai Elantra ICE | B210: 2016 | C210: Hyundai | D210: Elantra | E210: ICE | G210: 0 | J210: 24 | K210: 34 | L210: 17250 | M210: https://www.fueleconomy.gov/feg/Find.do?action=sbs&id=36099 | O210: 2017 FORD FIESTA ST ICE | P210: 2017 | Q210: FORD | R210: FIESTA ST | S210: ICE | U210: 0 | V210: 0 | W210: 0 | X210: 9 | Y210: 7.1 | Z210: 15848 | AC210: 2016 Fiat 500e BEV | AD210: 7500 | AH210: 2500 | AK210: 5000 | AL210: 0 | AM210: 3500 | AW210: 1500 | AX210: 7500 | AY210: 2400 | BM210: 1700 | BP210: 2500 | BQ210: 1750 | BV210: 2500
A211: 2016 Hyundai Sonata Hybrid ICE | B211: 2016 | C211: Hyundai | D211: Sonata Hybrid | E211: ICE | G211: 0 | J211: 38 | K211: 41 | L211: 26000 | M211: https://www.fueleconomy.gov/feg/Find.do?action=sbs&id=36100 | O211: 2017 FORD FUSION ICE | P211: 2017 | Q211: FORD | R211: FUSION | S211: ICE | U211: 0 | V211: 0 | W211: 0 | X211: 11.3 | Y211: 7.5 | Z211: 23888 | AC211: 2016 Ford Focus Electric BEV | AD211: 7500 | AH211: 2500 | AK211: 5000 | AL211: 0 | AM211: 3500 | AW211: 1500 | AX211: 7500 | AY211: 2300 | BM211: 1700 | BP211: 2500 | BQ211: 1750 | BV211: 2500
A212: 2016 Hyundai Sonata Hybrid SE ICE | B212: 2016 | C212: Hyundai | D212: Sonata Hybrid SE | E212: ICE | G212: 0 | J212: 39 | K212: 42 | L212: 26000 | M212: https://www.fueleconomy.gov/feg/Find.do?action=sbs&id=36101 | O212: 2017 FORD FUSION HYBRID ICE | P212: 2017 | Q212: FORD | R212: FUSION HYBRID | S212: ICE | U212: 0 | V212: 0 | W212: 0 | X212: 5.5 | Y212: 5.7 | Z212: 29588 | AC212: 2016 Chevrolet Spark EV BEV | AD212: 7500 | AH212: 2500 | AK212: 5000 | AL212: 0 | AM212: 3500 | AW212: 1500 | AX212: 7500 | AY212: 1900 | BM212: 1700 | BP212: 2500 | BQ212: 1750 | BV212: 2500
A213: 2016 Mazda 2 ICE | B213: 2016 | C213: Mazda | D213: 2 | E213: ICE | G213: 0 | J213: 31 | K213: 40 | M213: https://www.fueleconomy.gov/feg/Find.do?action=sbs&id=36127 | O213: 2017 FORD TAURUS ICE | P213: 2017 | Q213: FORD | R213: TAURUS | S213: ICE | U213: 0 | V213: 0 | W213: 0 | X213: 11.8 | Y213: 8.1 | Z213: 30498 | AC213: 2016 Chevrolet Volt PHEV | AD213: 7500 | AH213: 1500 | AK213: 5000 | AL213: 2000 | AM213: 1500 | AW213: 1500 | AX213: 5000 | AY213: 1840 | BM213: 1700 | BP213: 2500 | BQ213: 1000 | BV213: 2500 | BY213: 1200
A214: 2016 Mazda 2 ICE | B214: 2016 | C214: Mazda | D214: 2 | E214: ICE | G214: 0 | J214: 33 | K214: 41 | M214: https://www.fueleconomy.gov/feg/Find.do?action=sbs&id=36128 | O214: 2017 FORD FOCUS ST ICE | P214: 2017 | Q214: FORD | R214: FOCUS ST | S214: ICE | U214: 0 | V214: 0 | W214: 0 | X214: 10.5 | Y214: 7.8 | Z214: 16078 | AC214: 2016 Kia Soul Electric BEV | AD214: 7500 | AH214: 2500 | AK214: 5000 | AL214: 0 | AM214: 3500 | AW214: 1500 | AX214: 7500 | AY214: 2700 | BM214: 1700 | BP214: 2500 | BQ214: 1750 | BV214: 2500
A215: 2016 Subaru WRX ICE | B215: 2016 | C215: Subaru | D215: WRX | E215: ICE | G215: 0 | L215: 26595 | M215: https://www.fueleconomy.gov/feg/Find.do?action=sbs&id=36129 | O215: 2017 FORD FUSION ICE | P215: 2017 | Q215: FORD | R215: FUSION | S215: ICE | U215: 0 | V215: 0 | W215: 0 | X215: 10 | Y215: 7 | Z215: 23888 | AC215: 2016 Nissan Leaf (30 kW-hr battery pack) BEV | AD215: 7500 | AH215: 2500 | AK215: 5000 | AL215: 0 | AM215: 3500 | AW215: 1500 | AX215: 7500 | AY215: 3000 | BM215: 1700 | BP215: 2500 | BQ215: 1750 | BV215: 2500
... 1833 more rows

Sheet Version
A1: Version History - Fleet Procurement Analysis Tool
B2: Developed By
B4: Philip Quebe | E4: Nick Nigro
B5: philip.quebe@cadmusgroup.com | E5: nick.nigro@atlaspolicy.com
B7: Version | C7: Date | D7: Author | E7: Organization | F7: Revisions
B8: 1 | C8: 42885 | D8: Philip Quebe | E8: The Cadmus Group, Inc. | F8: First launch
B9: 1.05 | C9: 42887 | D9: Philip Quebe | E9: The Cadmus Group, Inc. | F9: Minor bug fixes: sensitivity analysis and EV infrastructure inputs
B10: 1.06 | C10: 42919 | D10: Nick Nigro | E10: Atlas Public Policy | F10: Added support for U.S. average emissions and fuel prices. Use ZIP Code 00000 to set to U.S. average. Added support for more comprehensive vehicle selection and vehicle incentives. Improved robustness of some table lookup calculations. Added link to vehicle details on fueleconomy.gov.
B11: 1.07 | C11: 42983 | D11: Nick Nigro | E11: Atlas Public Policy | F11: Fix to allow users to add custom vehicles to "DB_Vehicles" table.
B12: 1.08 | C12: 43028 | D12: Nick Nigro | E12: Atlas Public Policy | F12: Added support for Canadian market (metric system, Canadian province-specific data, etc.). Moved remaining hardcoded defaults to Data tab to make it easier for users to customize them. Speed up user experience when editing inputs. Updated GREET figures for gasoline emissions. Updated U.S. insurance costs. Argument files created with previous version of the tool will not work correctly.
B13: 1.09 | C13: 43056 | D13: Philip Quebe | E13: The Cadmus Group, Inc. | F13: Improvements to sensitivity analysis functionality. Added ability to model both baseline and comparison scenarios in a single sensitivity chart. Simplified and organized sensitivity selection options.
B14: 1.1 | C14: 43073 | D14: Philip Quebe | E14: The Cadmus Group, Inc. | F14: Backend code improvements
B15: 1.11 | C15: 43117 | D15: Nick Nigro | E15: Atlas Public Policy | F15: Add significantly more U.S.-based light-duty vehicles (over 2,000). Updated fuel price data for 2017.
B16: 1.12 | C16: 43567 | D16: Nick Nigro | E16: Atlas Public Policy | F16: Update data through 2018 for U.S. and Canadian markets.

Sheet Automated Inputs (hidden)
A1: Index | B1: _Zip_Code | C1: Gasoline_Price | D1: Electricity_Price | E1: Carbon_Price | F1: _Base_V1_Vehicle_Drivetrain | G1: _Base_V1_Vehicle_Year | H1: _Base_V1_Vehicle_Make | I1: _Base_V1_Vehicle_Model | J1: Base_V1_Years_Usage | K1: Base_V1_VMT | L1: Base_V1_Num_Vehicles | M1: Base_V1_Discounts | N1: Base_V1_Federal_Tax_Incentives | O1: _Base_Include_Charging | P1: _Base_V1_Ownership_Structure | Q1: Base_V1_Loan_Term | R1: Base_V1_Loan_APR | S1: Base_V1_Lease_Term | T1: Base_V1_Lease_APR | U1: Base_V1_Lease_Acquisition_Fee | V1: Base_V1_Lease_Disposition_Fee | W1: Base_V1_Lease_Residual_Price | X1: Base_V1_Lease_Mileage_Inc | Y1: Base_V1_Lease_Mileage_Cost

Sheet Automated Outputs (hidden)
D2: Start/resume on this index number:
D3: 8
A5: Index | B5: Base_V1_Result_Depreciation_CPM_Ex | C5: Base_V1_Result_Financing_CPM_Ex | D5: Base_V1_Result_Fuel_CPM_Ex | E5: Base_V1_Result_Maint_CPM_Ex | F5: Base_V1_Result_Taxes_Fees_CPM_Ex | G5: Base_V1_Result_Insurance_CPM_Ex | H5: Base_V1_Result_Carbon_CPM_Ex | I5: Base_V1_Result_Charging_CPM_Ex | J5: Base_V1_Result_Total_CPM_Ex | K5: Base_V1_Result_Total_NPV_CPM_Ex | L5: Base_V1_Result_Total_NPV_Ex | M5: Base_V1_Result_Env_CO2_CPM_Ex | N5: Base_V1_Result_Env_NOX_CPM_Ex | O5: Base_V1_Result_Env_SOX_CPM_Ex | P5: Base_V1_Result_Env_VOC_CPM_Ex | Q5: Base_V1_Result_Env_PM10_CPM_Ex | R5: Base_V1_Result_Env_PM2_5_CPM_Ex

Sheet Lists_Hidden (hidden)
A1: Lists (Hidden Tab) - EV Fleet Procurement Analysis Tool
A3: Ownership Structures | C3: Pricing Approaches | E3: Input Fields | F3: Field Range Name Base | G3: Field Range Name Comp | I3: Help Description Field | J3: U.S. | K3: Canada | M3: Representative City | N3: Province | P3: Constants | Q3: Value | R3: Source
A4: Purchase (Cash) | C4: MSRP Less Discounts | E4: =IF(IFERROR(FIND("Comp",G4,1)>0,FALSE),OFFSET(INDIRECT(G4),0,-3),IF(IFERROR(FIND("Base",G4,1)>0,FALSE),OFFSET(INDIRECT(G4),0,-3),OFFSET(INDIRECT(G4),0,-1))) -> Electricity Cost ($/kWh) | F4: Electricity_Price | G4: Electricity_Price | I4: Gasoline_Price | J4: Default gasoline cost is average price for last year available from U.S. Energy Information Administration and set based on ZIP code. Some prices are available at state level, while others are available at regional level (PADD). | K4: Default gasoline cost is average price for the last year available from Natural Resources Canada and set based on a representative city from each province or territory. | M4: Charlottetown | N4: Prince Edward Island | P4: Grams per Weight | Q4: =IF(_Market="U.S.", 453.592, 1000) -> 1000
A5: Purchase (Loan) | C5: Dealer Cost Plus Markup | E5: Gasoline Cost ($/Liter) | F5: Gasoline_Price | G5: Gasoline_Price | I5: Electricity_Price | J5: Default electricity cost is aggregated by state and the price is calculated based on revenue and energy delivered for commercial customers for last year available from U.S. Energy Information Administration’s survey of electric utilities (EIA-861M). | K5: Default electricity cost is the price for a representative city from each province or territory, as defined by an annual report from Hydro Quebec. | M5: Edmonton | N5: Alberta | P5: Kilometers per Mile | Q5: 1.6093
A6: FMV (Closed-End) Lease | E6: Cost of Carbon ($/Tonne) | F6: Carbon_Price | G6: Carbon_Price | I6: Carbon_Price | J6: The default cost of carbon is the social cost of carbon using a 3% discount rate, as defined by the U.S. federal government. | K6: The default cost of carbon is the social cost of carbon using a 3% discount rate as defined by the Environment and Climate Change Canada. | M6: Halifax | N6: Nova Scotia | P6: Gigajoules per Kilowatt-hours | Q6: 0.0036
A7: FMV (Closed-End) Lease w/ Cash Purchase | E7: Inflation Rate (Excluding Fuel) (%/Year) | F7: Inflation_Rate_General | G7: Inflation_Rate_General | I7: Inflation_Rate_General | J7: Inflation rate is used for maintenance and other operating costs, excluding fuel. Default inflation rate is based on Federal Reserve’s medium term target. Inflation for fuel is based on data from U.S. Energy Information Administration. | K7: Inflation rate is used for maintenance and other operating costs, excluding fuel. Default inflation rate is average from 2017-2027 from Canada's Energy Future Report. | M7: Moncton | N7: New Brunswick | P7: Distance Metric | Q7: =IF(_Market="U.S.","Mile","Kilometer") -> Kilometer
A8: FMV (Closed-End) Lease w/ Loan Purchase | E8: Fuel Consumption Electric City (Le/100 km) | F8: Base_V1_Fuel_Economy_Electric_City | G8: Comp_V1_Fuel_Economy_Electric_City | I8: Base_V1_Fuel_Economy_Gas_City | J8: The default value is the city fuel economy when powered by gasoline for the selected vehicle from www.fueleconomy.gov. This field is not relevant for battery electric vehicles. | K8: The default value is the city fuel consumption when powered by gasoline for the selected vehicle from the Fuel Consumption Report. This field is not relevant for battery electric vehicles. | M8: Montreal | N8: Quebec | P8: Distance Metric Abbreviation | Q8: =IF(_Market="U.S.","mi","km") -> km
A9: TRAC (Open-End) Lease | E9: Fuel Consumption Electric Hwy (Le/100 km) | F9: Base_V1_Fuel_Economy_Electric_Hwy | G9: Comp_V1_Fuel_Economy_Electric_Hwy | I9: Base_V1_Fuel_Economy_Gas_Hwy | J9: The default value is the highway fuel economy when powered by gasoline for the selected vehicle from www.fueleconomy.gov. This field is not relevant for battery electric vehicles. | K9: The default value is the highway fuel consumption when powered by gasoline for the selected vehicle from the Fuel Consumption Report. This field is not relevant for battery electric vehicles. | M9: Regina | N9: Saskatchewan | P9: Volume Metric | Q9: =IF(_Market="U.S.", "Gallon", "Liter") -> Liter
A10: TRAC (Open-End) Lease w/ Cash Purchase | E10: Fuel Consumption Gas City (L/100 km) | F10: Base_V1_Fuel_Economy_Gas_City | G10: Comp_V1_Fuel_Economy_Gas_City | I10: Base_V1_Fuel_Economy_Electric_City | J10: The default value is the city fuel economy when powered by batteries for the selected vehicle from www.fueleconomy.gov. This field is not relevant for gasoline vehicles. | K10: The default value is the city fuel consumption when powered by batteries for the selected vehicle from the Fuel Consumption Report. This field is not relevant for gasoline vehicles. | M10: St. John's | N10: Newfoundland and Labrador | P10: Volume Metric Abbreviation | Q10: L
A11: TRAC (Open-End) Lease w/ Loan Purchase | E11: Fuel Consumption Gas Hwy (L/100 km) | F11: Base_V1_Fuel_Economy_Gas_Hwy | G11: Comp_V1_Fuel_Economy_Gas_Hwy | I11: Base_V1_Fuel_Economy_Electric_Hwy | J11: The default value is the highway fuel economy when powered by batteries for the selected vehicle from www.fueleconomy.gov. This field is not relevant for gasoline vehicles. | K11: The default value is the highway fuel consumption when powered by batteries for the selected vehicle from the Fuel Consumption Report. This field is not relevant for gasoline vehicles. | M11: Toronto | N11: Ontario | P11: Fuel Use Metric | Q11: =IF(_Market="U.S.", "Fuel Economy", "Fuel Consumption") -> Fuel Consumption
A12: Tax-Exempt Lease Purchase (Cash) | E12: Expected Years of Use/Ownership (Years) | F12: Base_V1_Years_Usage | G12: Comp_V1_Years_Usage | I12: Base_V1_VMT | J12: The default value is 15,000 and users can customize this value to their expected number of miles traveled per year. The 15,000 value for annual vehicle mileage is the assumption used by Edmunds True Cost to Own calculator. | K12: The default value is 24,135 km and users can customize this value to their expected number of kilometers traveled per year. | M12: Vancouver | N12: British Columbia | P12: kWh per Gasoline Volume | Q12: =IF(_Market="U.S.", 33.7, 8.9) -> 8.9 | R12: EPA figure for U.S. market. From 2017 Fuel Consumption Guide for Canada market.
E13: Annual Vehicle Mileage (VKT/Year) | F13: Base_V1_VMT | G13: Comp_V1_VMT | I13: Base_V1_Miles_Gas | J13: Default value is 100% for gasoline vehicles and 0% for battery electric vehicles. For plug-in hybrids, value is a function of electric range and expected daily vehicle miles traveled. It is assumed the vehicle only charges once per day. | K13: Default value is 100% for gasoline vehicles and 0% for battery electric vehicles. For plug-in hybrids, value is a function of electric range and expected daily vehicle miles traveled. It is assumed the vehicle only charges once per day. | M13: Winnipeg | N13: Manitoba | P13: MJ per Gasoline Volume | Q13: =Constant_kWh_Per_Volume/0.277778 -> 32.03997437 | R13: 1 kWh is 0.277778 Megajoules. (EPA uses 121 MJ/gasoline-gallon)
E14: % of Annual Kilometers City Driving | F14: Base_V1_Miles_City | G14: Comp_V1_Miles_City | I14: Base_V1_Miles_City | J14: The default value is 55%, based on the U.S. Environmental Protection Agency’s method for calculating fuel economy. | K14: The default value is 55%, based on the U.S. Environmental Protection Agency’s method for calculating fuel economy. | M14: Yellowknife | N14: Northwest Territories | P14: Weight Metric Abbreviation | Q14: =IF(_Market="U.S.", "lb", "kg") -> kg
E15: % of Annual Kilometers on Gasoline | F15: Base_V1_Miles_Gas | G15: Comp_V1_Miles_Gas | I15: Base_V1_Insurance_Cost | J15: Average passenger car insurance costs from AAA 2016 Your Driving Cost Study. Users can set custom values that are more accurate. | K15: Average passenger car insurance costs from Table 3 of 2016 study on Auto Insurance System in Ontario. | M15: Iqaluit | N15: Nunavut | P15: CO2 Intensity (Electricity) | Q15: =(VLOOKUP(eGrid_Region_Ex,DB_Electricity_Emissions[],COLUMN(DB_Electricity_Emissions[[#Headers],[eGRID subregion annual CO2 total output emission rate (lb/MWh)]])-COLUMN(DB_Electricity_Emissions[[#Headers],[eGRID subregion acronym]])+1,FALSE)+VLOOKUP(eGrid_Region_Ex,DB_Electricity_Emissions[], COLUMN(DB_Electricity_Emissions[[#Headers],[Upstream Emissions After Transmission Loss (lb/MWh)]])-COLUMN(DB_Electricity_Emissions[[#Headers],[eGRID subregion acronym]])+1,FALSE))/1000 -> 0.71072374
E16: Cost to Insure ($/Year) | F16: Base_V1_Insurance_Cost | G16: Comp_V1_Insurance_Cost | I16: Comp_V1_Fuel_Economy_Gas_City | J16: The default value is the city fuel economy when powered by gasoline for the selected vehicle from www.fueleconomy.gov. This field is not relevant for battery electric vehicles. | K16: The default value is the city fuel consumption when powered by gasoline for the selected vehicle from the Fuel Consumption Report. This field is not relevant for battery electric vehicles. | M16: Whitehorse | N16: Yukon | P16: NOx Intensity (Electricity) | Q16: =IF(_Market="U.S.", VLOOKUP(eGrid_Region_Ex,DB_Electricity_Emissions[],COLUMN(DB_Electricity_Emissions[[#Headers],[eGRID subregion annual NOx total output emission rate (lb/MWh)]])-COLUMN(DB_Electricity_Emissions[[#Headers],[eGRID subregion acronym]])+1,FALSE)*Constant_Grams_Per_Weight, VLOOKUP(Province_Ex, DB_Electricity_Emissions_Canada[], COLUMN(DB_Electricity_Emissions_Canada[[#Headers],[NOx as NO2]])-COLUMN(DB_Electricity_Emissions_Canada[[#Headers],[Province]])+1,FALSE)*Constant_Gigajoule_Per_Kilowatt_Hour*1000) -> 137.3525983
E17: =IF(IFERROR(FIND("Comp",G17,1)>0,FALSE),OFFSET(INDIRECT(G17),0,-3),IF(IFERROR(FIND("Base",G17,1)>0,FALSE),OFFSET(INDIRECT(G17),0,-3),OFFSET(INDIRECT(G17),0,-1))) -> Maintenance and Repair Cost - Years 1 - 5 ($/Kilometer) | F17: Base_V1_Maint_Repair_Cost_Year_1 | G17: Comp_V1_Maint_Repair_Cost_Year_1 | I17: Comp_V1_Fuel_Economy_Gas_Hwy | J17: The default value is the highway fuel economy when powered by gasoline for the selected vehicle from www.fueleconomy.gov. This field is not relevant for battery electric vehicles. | K17: The default value is the highway fuel consumption when powered by gasoline for the selected vehicle from the Fuel Consumption Report. This field is not relevant for battery electric vehicles. | M17: Canada | N17: Canada Avg | P17: SOx Intensity (Electricity) | Q17: =IF(_Market="U.S.", VLOOKUP(eGrid_Region_Ex,DB_Electricity_Emissions[],COLUMN(DB_Electricity_Emissions[[#Headers],[eGRID subregion annual SO2 total output emission rate (lb/MWh)]])-COLUMN(DB_Electricity_Emissions[[#Headers],[eGRID subregion acronym]])+1,FALSE)*Constant_Grams_Per_Weight, VLOOKUP(Province_Ex, DB_Electricity_Emissions_Canada[], COLUMN(DB_Electricity_Emissions_Canada[[#Headers],[SOx]])-COLUMN(DB_Electricity_Emissions_Canada[[#Headers],[Province]])+1,FALSE)*Constant_Gigajoule_Per_Kilowatt_Hour*1000) -> 126.8252169
E18: Maintenance and Repair Cost - Years 5+ ($/Kilometer) | F18: Base_V1_Maint_Repair_Cost_Year_5 | G18: Comp_V1_Maint_Repair_Cost_Year_5 | I18: Comp_V1_Fuel_Economy_Electric_City | J18: The default value is the city fuel economy when powered by batteries for the selected vehicle from www.fueleconomy.gov. This field is not relevant for gasoline vehicles. | K18: The default value is the city fuel consumption when powered by batteries for the selected vehicle from the Fuel Consumption Report. This field is not relevant for gasoline vehicles. | P18: PM10 Intensity (Electricity) | Q18: =IF(_Market="U.S.", VLOOKUP(eGrid_Region_Ex,DB_Electricity_Emissions[],COLUMN(DB_Electricity_Emissions[[#Headers],[EPA PM10 total direct plant output emission rate based on national average (lb/M]])-COLUMN(DB_Electricity_Emissions[[#Headers],[eGRID subregion acronym]])+1,FALSE)*Constant_Grams_Per_Weight, VLOOKUP(Province_Ex, DB_Electricity_Emissions_Canada[], COLUMN(DB_Electricity_Emissions_Canada[[#Headers],[PM10]])-COLUMN(DB_Electricity_Emissions_Canada[[#Headers],[Province]])+1,FALSE)*Constant_Gigajoule_Per_Kilowatt_Hour*1000) -> 43.12161167
E19: Recurring Taxes and Fees ($/Year) | F19: Base_V1_Taxes_Fees | G19: Comp_V1_Taxes_Fees | I19: Comp_V1_Fuel_Economy_Electric_Hwy | J19: The default value is the highway fuel economy when powered by batteries for the selected vehicle from www.fueleconomy.gov. This field is not relevant for gasoline vehicles. | K19: The default value is the highway fuel consumption when powered by batteries for the selected vehicle from the Fuel Consumption Report. This field is not relevant for gasoline vehicles. | P19: PM2.5 Intensity (Electricity) | Q19: =IF(_Market="U.S.", VLOOKUP(eGrid_Region_Ex,DB_Electricity_Emissions[],COLUMN(DB_Electricity_Emissions[[#Headers],[EPA PM2.5 total direct plant output emission rate based on national average (lb/]])-COLUMN(DB_Electricity_Emissions[[#Headers],[eGRID subregion acronym]])+1,FALSE)*Constant_Grams_Per_Weight, VLOOKUP(Province_Ex, DB_Electricity_Emissions_Canada[], COLUMN(DB_Electricity_Emissions_Canada[[#Headers],[PM2.5]])-COLUMN(DB_Electricity_Emissions_Canada[[#Headers],[Province]])+1,FALSE)*Constant_Gigajoule_Per_Kilowatt_Hour*1000) -> 37.1490113
E20: Number of Vehicles to Procure (#) | F20: Base_V1_Num_Vehicles | G20: Comp_V1_Num_Vehicles | I20: Comp_V1_VMT | J20: The default value is 15,000 and users can customize this value to their expected number of miles traveled per year. The 15,000 value for annual vehicle mileage is the assumption used by Edmunds True Cost to Own calculator. | K20: The default value is 24,135 km and users can customize this value to their expected number of kilometers traveled per year. | P20: VOC Intensity (Electricity) | Q20: =IF(_Market="U.S.", VLOOKUP(eGrid_Region_Ex,DB_Electricity_Emissions[],COLUMN(DB_Electricity_Emissions[[#Headers],[EPA VOC total direct plant output emission rate based on national average (lb/MW]])-COLUMN(DB_Electricity_Emissions[[#Headers],[eGRID subregion acronym]])+1,FALSE)*Constant_Grams_Per_Weight, 0) -> 0
E21: MSRP ($) | F21: Base_V1_MSRP | G21: Comp_V1_MSRP | I21: Comp_V1_Miles_Gas | J21: Default value is 100% for gasoline vehicles and 0% for battery electric vehicles. For plug-in hybrids, value is a function of electric range and expected daily vehicle miles traveled. It is assumed the vehicle only charges once per day. | K21: Default value is 100% for gasoline vehicles and 0% for battery electric vehicles. For plug-in hybrids, value is a function of electric range and expected daily vehicle miles traveled. It is assumed the vehicle only charges once per day. | P21: CO2 Intensity (Gasoline) | Q21: =IF(_Market="U.S.", Data!$C$136, Data!E136)*Constant_Megajoule_Per_Gasoline_Volume/Constant_Grams_Per_Weight -> 2.875040331
E22: Value of Negotiated Discounts off MSRP ($/Vehicle) | F22: Base_V1_Discounts | G22: Comp_V1_Discounts | I22: Comp_V1_Miles_City | J22: The default value is 55%, based on the U.S. Environmental Protection Agency’s method for calculating fuel economy. | K22: The default value is 55%, based on the U.S. Environmental Protection Agency’s method for calculating fuel economy. | P22: NOx Intensity (Gasoline) | Q22: =IF(_Market="U.S.", Data!$C138, Data!E138) -> 61.22
E23: Dealer Triple Net Price ($/Vehicle) | F23: Base_V1_List_Price | G23: Comp_V1_List_Price | I23: Comp_V1_Insurance_Cost | J23: Average passenger car insurance costs from AAA 2016 Your Driving Cost Study. Users can set custom values that are more accurate. | K23: Average passenger car insurance costs from Table 3 of 2016 study on Auto Insurance System in Ontario. | P23: SOx Intensity (Gasoline) | Q23: =IF(_Market="U.S.", Data!$C139, Data!E139) -> 23.61
E24: Dealer Markup ($/Vehicle) | F24: Base_V1_List_Price_Markup | G24: Comp_V1_List_Price_Markup | I24: Base_V1_Lease_Mileage_Cost | J24: Cost per mile above the mileage included in the lease agreement. | K24: Cost per kilometer above the mileage included in the lease agreement. | P24: PM10 Intensity (Gasoline) | Q24: =IF(_Market="U.S.", Data!$C141, Data!E141) -> 4.62
E25: Value of Federal Tax Credits ($/Vehicle) | F25: Base_V1_Federal_Tax_Incentives | G25: Comp_V1_Federal_Tax_Incentives | I25: Comp_V1_Lease_Mileage_Cost | J25: Cost per mile above the mileage included in the lease agreement. | K25: Cost per kilometer above the mileage included in the lease agreement. | P25: PM2.5 Intensity (Gasoline) | Q25: =IF(_Market="U.S.", Data!$C142, Data!$E142) -> 3.37
E26: Value of State Tax Incentives ($/Vehicle) | F26: Base_V1_State_Tax_Incentives | G26: Comp_V1_State_Tax_Incentives | P26: VOC Intensity (Gasoline) | Q26: =IF(_Market="U.S.", Data!$C140, Data!E140) -> 54.22
E27: State Tax Incentive Cap ($) | F27: Base_V1_State_Tax_Incentive_Cap | G27: Comp_V1_State_Tax_Incentive_Cap | P27: Baseline Vehicle Electric Range | Q27: =IF(_Market="U.S.", VLOOKUP(Base_V1_Type_Ex,DB_Vehicles[],COLUMN(DB_Vehicles[[#Headers],[Electric Range]]),FALSE), VLOOKUP(Base_V1_Type_Ex, DB_Vehicles__Canada[], COLUMN(DB_Vehicles__Canada[[#Headers],[Electric Range]])-COLUMN(DB_Vehicles__Canada[[#Headers],[Selection Name]])+1,FALSE)/Constant_Kilometers_Per_Mile) -> 237.9916734
E28: Value of Non-tax Incentives ($/Vehicle) | F28: Base_V1_Other_Incentives | G28: Comp_V1_Other_Incentives | P28: Baseline Vehicle Mileage | Q28: =IF(_Market="U.S.",Base_V1_Fuel_Economy_Gas_City,IFERROR(CONVERT(1/CONVERT(Base_V1_Fuel_Economy_Gas_City/100,"l","gal"),"km","mi"),0)) -> 0
E29: Initial Tax, Title, and Registration Cost ($/Vehicle) | F29: Base_V1_Initial_Taxes_Fees | G29: Comp_V1_Initial_Taxes_Fees | P29: Comparison Vehicle Electric Range | Q29: =IF(_Market="U.S.", VLOOKUP(Comp_V1_Type_Ex,DB_Vehicles[],COLUMN(DB_Vehicles[[#Headers],[Electric Range]]),FALSE), VLOOKUP(Comp_V1_Type_Ex, DB_Vehicles__Canada[], COLUMN(DB_Vehicles__Canada[[#Headers],[Electric Range]])-COLUMN(DB_Vehicles__Canada[[#Headers],[Selection Name]])+1,FALSE)/Constant_Kilometers_Per_Mile) -> 0
E30: Initial Fee as Percent of Vehicle Base Price (%) | F30: Base_V1_Initial_Percent_Base_Price | G30: Comp_V1_Initial_Percent_Base_Price | P30: Comparison Vehicle Mileage | Q30: =IF(_Market="U.S.", Comp_V1_Fuel_Economy_Gas_City, IFERROR(CONVERT(1/CONVERT(Comp_V1_Fuel_Economy_Gas_City/100,"l","gal"),"km","mi"),0)) -> 27.35053295
E31: Down Payment ($/Vehicle) | F31: Base_V1_Down_Payment | G31: Comp_V1_Down_Payment
E32: Lease Term (Years) | F32: Base_V1_Lease_Term | G32: Comp_V1_Lease_Term
E33: Lease Interest Rate (APR - %) | F33: Base_V1_Lease_APR | G33: Comp_V1_Lease_APR
E34: Money Factor (#) | F34: Base_V1_Lease_Money_Factor | G34: Comp_V1_Lease_Money_Factor
E35: =IF(IFERROR(FIND("Comp",G35,1)>0,FALSE),OFFSET(INDIRECT(G35),0,-3),IF(IFERROR(FIND("Base",G35,1)>0,FALSE),OFFSET(INDIRECT(G35),0,-3),OFFSET(INDIRECT(G35),0,-1))) -> Acquisition Fee ($/Vehicle) | F35: Base_V1_Lease_Acquisition_Fee | G35: Comp_V1_Lease_Acquisition_Fee
E36: Disposition Charge ($/Vehicle) | F36: Base_V1_Lease_Disposition_Fee | G36: Comp_V1_Lease_Disposition_Fee
E37: Negotiated Residual Value ($/Vehicle) | F37: Base_V1_Lease_Residual_Price | G37: Comp_V1_Lease_Residual_Price
E38: Mileage Included (Closed-End Only) | F38: Base_V1_Lease_Mileage_Inc | G38: Comp_V1_Lease_Mileage_Inc
E39: Excess Mileage Cost ($/Kilometer) | F39: Base_V1_Lease_Mileage_Cost | G39: Comp_V1_Lease_Mileage_Cost
E40: Loan Term (Years) | F40: Base_V1_Loan_Term | G40: Comp_V1_Loan_Term
E41: Loan Interest Rate (APR - %) | F41: Base_V1_Loan_APR | G41: Comp_V1_Loan_APR
E42: Number of Level 2 EV Stations Needed (#) | F42: Base_Num_Stations | G42: Comp_Num_Stations
E43: Equipment and Installation Cost ($/Station) | F43: Base_Station_Cost | G43: Comp_Station_Cost
E44: Maintenance Cost ($/Station/Year) | F44: Base_Station_Maint_Cost | G44: Comp_Station_Maint_Cost

Sheet Results Tables (hidden)
A1: Results Tables - EV Fleet Procurement Analysis Tool
B3: Total Cost per Vehicle
C4: =Base_V1_Type_Ex&" (Baseline)" -> 2018 CHEVROLET BOLT EV BEV (Baseline) | D4: =Comp_V1_Type_Ex&" (Comparison)" -> 2018 CHEVROLET CRUZE ICE (Comparison)
B5: Depreciation (less tax credits and incentives) | C5: =SUM('Financial Model'!D31:AC31)-SUM('Financial Model'!D19:AC19)-SUM('Financial Model'!D27:AC27) -> -38517.70039 | D5: =SUM('Financial Model'!D101:AC101)-SUM('Financial Model'!D89:AC89)-SUM('Financial Model'!D97:AC97) -> -17758.14307
B6: Financing | C6: =SUM('Financial Model'!E19:AC19)+SUM('Financial Model'!E27:AC27) -> 0 | D6: =SUM('Financial Model'!E89:AC89)+SUM('Financial Model'!E97:AC97) -> 0
B7: Fuel | C7: =SUM('Financial Model'!D34:AC34) -> -4263.877459 | D7: =SUM('Financial Model'!D104:AC104) -> -26759.07127
B8: Maintenance and Repairs | C8: =SUM('Financial Model'!D35:AC35) -> -7822.98022 | D8: =SUM('Financial Model'!D105:AC105) -> -15645.96044
B9: Taxes & Fees | C9: =SUM('Financial Model'!D36:AC36) -> -1074.342834 | D9: =SUM('Financial Model'!D106:AC106) -> -1074.342834
B10: Insurance | C10: =SUM('Financial Model'!D37:AC37) -> -7897.439237 | D10: =SUM('Financial Model'!D107:AC107) -> -7897.439237
B11: Carbon | C11: =SUM('Financial Model'!D41:AC41) -> 0 | D11: =SUM('Financial Model'!D111:AC111) -> 0
B12: Vehicle Total | C12: =SUM(C5:C11) -> -59576.34014 | D12: =SUM(D5:D11) -> -69134.95685
B13: Vehicle Total - Check | C13: =SUM('Financial Model'!D45:AC45) -> -59576.34014 | D13: =SUM('Financial Model'!D115:AC115) -> -69134.95685
B14: Infrastructure per Vehicle | C14: =SUM('Financial Model'!D67:AC67)/Base_V1_Num_Vehicles_Modeled -> 0 | D14: =SUM('Financial Model'!D137:AC137)/Comp_V1_Num_Vehicles_Modeled -> 0
B15: Grand Total | C15: =C12+C14 -> -59576.34014 | D15: =D12+D14 -> -69134.95685
B17: Vehicle Cost per Mile
C18: =C4 -> 2018 CHEVROLET BOLT EV BEV (Baseline) | D18: =D4 -> 2018 CHEVROLET CRUZE ICE (Comparison)
B19: Depreciation (less tax credits and incentives) | C19: =-C5/(Base_V1_VMT_Modeled*Base_V1_Years_Usage_Modeled) -> 0.2279895847 | D19: =-D5/(Comp_V1_VMT_Modeled*Comp_V1_Years_Usage_Modeled) -> 0.1051119777
B20: Financing | C20: 0 | D20: 0
B21: Fuel | C21: 0.02523825777 | D21: 0.1583892466
B22: Maintenance and Repairs | C22: 0.04630489342 | D22: 0.09260978685
B23: Taxes & Fees | C23: 0.006359127727 | D23: 0.006359127727
B24: Insurance | C24: 0.04674562276 | D24: 0.04674562276
B25: Carbon | C25: 0 | D25: 0
B26: Vehicle Total | C26: =SUM(C19:C25) -> 0.3526374864 | D26: =SUM(D19:D25) -> 0.4092157616
B27: Vehicle Total - Check | C27: =-C13/(Base_V1_VMT_Modeled*Base_V1_Years_Usage_Modeled) -> 0.3526374864 | D27: =-D13/(Comp_V1_VMT_Modeled*Comp_V1_Years_Usage_Modeled) -> 0.4092157616
B28: Charging Infrastructure | C28: =-C14/(Base_V1_VMT_Modeled*Base_V1_Years_Usage_Modeled) -> 0 | D28: =-D14/(Comp_V1_VMT_Modeled*Comp_V1_Years_Usage_Modeled) -> 0
B29: Grand Total | C29: =-C15/(Base_V1_VMT_Modeled*Base_V1_Years_Usage_Modeled) -> 0.3526374864 | D29: =-D15/(Comp_V1_VMT_Modeled*Comp_V1_Years_Usage_Modeled) -> 0.4092157616
B31: Gasoline Displaced
C32: =C4 -> 2018 CHEVROLET BOLT EV BEV (Baseline) | D32: =D4 -> 2018 CHEVROLET CRUZE ICE (Comparison)
B33: Gallons of Gasoline / Year / Vehicle | C33: =Base_V1_Gas_Usage_Ex -> 0 | D33: =Comp_V1_Gas_Usage_Ex -> 1771.509
B34: Number of Years | C34: =Base_V1_Years_Usage_Modeled -> 7 | D34: =Comp_V1_Years_Usage_Modeled -> 7
B35: Number of Vehicles | C35: =Base_V1_Num_Vehicles_Modeled -> 19 | D35: =Comp_V1_Num_Vehicles_Modeled -> 19
B36: Total Gasoline Consumption (Gallons) | C36: =C33*C34*C35 -> 0 | D36: =D33*D34*D35 -> 235610.697
B37: Gasoline Consumption / Mile (Average) | C37: =C33/Base_V1_VMT_Modeled -> 0 | D37: =D33/Comp_V1_VMT_Modeled -> 0.0734
B39: Cash Flow Chart
B41: =Base_V1_Type_Ex&" (Baseline)" -> 2018 CHEVROLET BOLT EV BEV (Baseline)
C42: Year 0 | D42: Year 1 | E42: Year 2 | F42: Year 3 | G42: Year 4 | H42: Year 5 | I42: Year 6 | J42: Year 7 | K42: Year 8 | L42: Year 9 | M42: Year 10 | N42: Year 11 | O42: Year 12 | P42: Year 13 | Q42: Year 14 | R42: Year 15 | S42: Year 16 | T42: Year 17 | U42: Year 18 | V42: Year 19 | W42: Year 20 | X42: Year 21 | Y42: Year 22 | Z42: Year 23 | AA42: Year 24 | AB42: Year 25 | AC42: Totals
B43: Principal (less tax credits and incentives) | C43: =('Financial Model'!D31-'Financial Model'!D27-'Financial Model'!D29)*Base_V1_Num_Vehicles_Modeled -> -746700 | D43: =('Financial Model'!E31-'Financial Model'!E27-'Financial Model'!E29)*Base_V1_Num_Vehicles_Modeled -> 0 | E43: =('Financial Model'!F31-'Financial Model'!F27-'Financial Model'!F29)*Base_V1_Num_Vehicles_Modeled -> 0 | F43: =('Financial Model'!G31-'Financial Model'!G27-'Financial Model'!G29)*Base_V1_Num_Vehicles_Modeled -> 0 | G43: =('Financial Model'!H31-'Financial Model'!H27-'Financial Model'!H29)*Base_V1_Num_Vehicles_Modeled -> 0 | H43: =('Financial Model'!I31-'Financial Model'!I27-'Financial Model'!I29)*Base_V1_Num_Vehicles_Modeled -> 0 | I43: =('Financial Model'!J31-'Financial Model'!J27-'Financial Model'!J29)*Base_V1_Num_Vehicles_Modeled -> 0 | J43: =('Financial Model'!K31-'Financial Model'!K27-'Financial Model'!K29)*Base_V1_Num_Vehicles_Modeled -> 0 | K43: =('Financial Model'!L31-'Financial Model'!L27-'Financial Model'!L29)*Base_V1_Num_Vehicles_Modeled -> 0 | L43: =('Financial Model'!M31-'Financial Model'!M27-'Financial Model'!M29)*Base_V1_Num_Vehicles_Modeled -> 0 | M43: =('Financial Model'!N31-'Financial Model'!N27-'Financial Model'!N29)*Base_V1_Num_Vehicles_Modeled -> 0 | N43: =('Financial Model'!O31-'Financial Model'!O27-'Financial Model'!O29)*Base_V1_Num_Vehicles_Modeled -> 0 | O43: =('Financial Model'!P31-'Financial Model'!P27-'Financial Model'!P29)*Base_V1_Num_Vehicles_Modeled -> 0 | P43: =('Financial Model'!Q31-'Financial Model'!Q27-'Financial Model'!Q29)*Base_V1_Num_Vehicles_Modeled -> 0 | Q43: =('Financial Model'!R31-'Financial Model'!R27-'Financial Model'!R29)*Base_V1_Num_Vehicles_Modeled -> 0 | R43: =('Financial Model'!S31-'Financial Model'!S27-'Financial Model'!S29)*Base_V1_Num_Vehicles_Modeled -> 0 | S43: =('Financial Model'!T31-'Financial Model'!T27-'Financial Model'!T29)*Base_V1_Num_Vehicles_Modeled -> 0 | T43: =('Financial Model'!U31-'Financial Model'!U27-'Financial Model'!U29)*Base_V1_Num_Vehicles_Modeled -> 0 | U43: =('Financial Model'!V31-'Financial Model'!V27-'Financial Model'!V29)*Base_V1_Num_Vehicles_Modeled -> 0 | V43: =('Financial Model'!W31-'Financial Model'!W27-'Financial Model'!W29)*Base_V1_Num_Vehicles_Modeled -> 0 | W43: =('Financial Model'!X31-'Financial Model'!X27-'Financial Model'!X29)*Base_V1_Num_Vehicles_Modeled -> 0 | X43: =('Financial Model'!Y31-'Financial Model'!Y27-'Financial Model'!Y29)*Base_V1_Num_Vehicles_Modeled -> 0 | Y43: =('Financial Model'!Z31-'Financial Model'!Z27-'Financial Model'!Z29)*Base_V1_Num_Vehicles_Modeled -> 0 | Z43: =('Financial Model'!AA31-'Financial Model'!AA27-'Financial Model'!AA29)*Base_V1_Num_Vehicles_Modeled -> 0 | AA43: =('Financial Model'!AB31-'Financial Model'!AB27-'Financial Model'!AB29)*Base_V1_Num_Vehicles_Modeled -> 0 | AB43: =('Financial Model'!AC31-'Financial Model'!AC27-'Financial Model'!AC29)*Base_V1_Num_Vehicles_Modeled -> 0 | AC43: =SUM(C43:AB43) -> -746700
B44: Financing | C44: ='Financial Model'!D27*Base_V1_Num_Vehicles_Modeled -> 0 | D44: ='Financial Model'!E27*Base_V1_Num_Vehicles_Modeled -> 0 | E44: ='Financial Model'!F27*Base_V1_Num_Vehicles_Modeled -> 0 | F44: ='Financial Model'!G27*Base_V1_Num_Vehicles_Modeled -> 0 | G44: ='Financial Model'!H27*Base_V1_Num_Vehicles_Modeled -> 0 | H44: ='Financial Model'!I27*Base_V1_Num_Vehicles_Modeled -> 0 | I44: ='Financial Model'!J27*Base_V1_Num_Vehicles_Modeled -> 0 | J44: ='Financial Model'!K27*Base_V1_Num_Vehicles_Modeled -> 0 | K44: ='Financial Model'!L27*Base_V1_Num_Vehicles_Modeled -> 0 | L44: ='Financial Model'!M27*Base_V1_Num_Vehicles_Modeled -> 0 | M44: ='Financial Model'!N27*Base_V1_Num_Vehicles_Modeled -> 0 | N44: ='Financial Model'!O27*Base_V1_Num_Vehicles_Modeled -> 0 | O44: ='Financial Model'!P27*Base_V1_Num_Vehicles_Modeled -> 0 | P44: ='Financial Model'!Q27*Base_V1_Num_Vehicles_Modeled -> 0 | Q44: ='Financial Model'!R27*Base_V1_Num_Vehicles_Modeled -> 0 | R44: ='Financial Model'!S27*Base_V1_Num_Vehicles_Modeled -> 0 | S44: ='Financial Model'!T27*Base_V1_Num_Vehicles_Modeled -> 0 | T44: ='Financial Model'!U27*Base_V1_Num_Vehicles_Modeled -> 0 | U44: ='Financial Model'!V27*Base_V1_Num_Vehicles_Modeled -> 0 | V44: ='Financial Model'!W27*Base_V1_Num_Vehicles_Modeled -> 0 | W44: ='Financial Model'!X27*Base_V1_Num_Vehicles_Modeled -> 0 | X44: ='Financial Model'!Y27*Base_V1_Num_Vehicles_Modeled -> 0 | Y44: ='Financial Model'!Z27*Base_V1_Num_Vehicles_Modeled -> 0 | Z44: ='Financial Model'!AA27*Base_V1_Num_Vehicles_Modeled -> 0 | AA44: ='Financial Model'!AB27*Base_V1_Num_Vehicles_Modeled -> 0 | AB44: ='Financial Model'!AC27*Base_V1_Num_Vehicles_Modeled -> 0 | AC44: =SUM(C44:AB44) -> 0
B45: Residual Value (Vehicle Sale) | C45: ='Financial Model'!D29*Base_V1_Num_Vehicles_Modeled -> 0 | D45: ='Financial Model'!E29*Base_V1_Num_Vehicles_Modeled -> 0 | E45: ='Financial Model'!F29*Base_V1_Num_Vehicles_Modeled -> 0 | F45: ='Financial Model'!G29*Base_V1_Num_Vehicles_Modeled -> 0 | G45: ='Financial Model'!H29*Base_V1_Num_Vehicles_Modeled -> 0 | H45: ='Financial Model'!I29*Base_V1_Num_Vehicles_Modeled -> 0 | I45: ='Financial Model'!J29*Base_V1_Num_Vehicles_Modeled -> 0 | J45: ='Financial Model'!K29*Base_V1_Num_Vehicles_Modeled -> 14863.69251 | K45: ='Financial Model'!L29*Base_V1_Num_Vehicles_Modeled -> 0 | L45: ='Financial Model'!M29*Base_V1_Num_Vehicles_Modeled -> 0 | M45: ='Financial Model'!N29*Base_V1_Num_Vehicles_Modeled -> 0 | N45: ='Financial Model'!O29*Base_V1_Num_Vehicles_Modeled -> 0 | O45: ='Financial Model'!P29*Base_V1_Num_Vehicles_Modeled -> 0 | P45: ='Financial Model'!Q29*Base_V1_Num_Vehicles_Modeled -> 0 | Q45: ='Financial Model'!R29*Base_V1_Num_Vehicles_Modeled -> 0 | R45: ='Financial Model'!S29*Base_V1_Num_Vehicles_Modeled -> 0 | S45: ='Financial Model'!T29*Base_V1_Num_Vehicles_Modeled -> 0 | T45: ='Financial Model'!U29*Base_V1_Num_Vehicles_Modeled -> 0 | U45: ='Financial Model'!V29*Base_V1_Num_Vehicles_Modeled -> 0 | V45: ='Financial Model'!W29*Base_V1_Num_Vehicles_Modeled -> 0 | W45: ='Financial Model'!X29*Base_V1_Num_Vehicles_Modeled -> 0 | X45: ='Financial Model'!Y29*Base_V1_Num_Vehicles_Modeled -> 0 | Y45: ='Financial Model'!Z29*Base_V1_Num_Vehicles_Modeled -> 0 | Z45: ='Financial Model'!AA29*Base_V1_Num_Vehicles_Modeled -> 0 | AA45: ='Financial Model'!AB29*Base_V1_Num_Vehicles_Modeled -> 0 | AB45: ='Financial Model'!AC29*Base_V1_Num_Vehicles_Modeled -> 0 | AC45: 14863.69251
B46: Fuel | C46: ='Financial Model'!D34*Base_V1_Num_Vehicles_Modeled -> 0 | D46: ='Financial Model'!E34*Base_V1_Num_Vehicles_Modeled -> -9668.38446 | E46: ='Financial Model'!F34*Base_V1_Num_Vehicles_Modeled -> -11059.10719 | F46: ='Financial Model'!G34*Base_V1_Num_Vehicles_Modeled -> -11728.31771 | G46: ='Financial Model'!H34*Base_V1_Num_Vehicles_Modeled -> -11845.9186 | H46: ='Financial Model'!I34*Base_V1_Num_Vehicles_Modeled -> -12005.52204 | I46: ='Financial Model'!J34*Base_V1_Num_Vehicles_Modeled -> -12247.82957 | J46: ='Financial Model'!K34*Base_V1_Num_Vehicles_Modeled -> -12458.59216 | K46: ='Financial Model'!L34*Base_V1_Num_Vehicles_Modeled -> 0 | L46: ='Financial Model'!M34*Base_V1_Num_Vehicles_Modeled -> 0 | M46: ='Financial Model'!N34*Base_V1_Num_Vehicles_Modeled -> 0 | N46: ='Financial Model'!O34*Base_V1_Num_Vehicles_Modeled -> 0 | O46: ='Financial Model'!P34*Base_V1_Num_Vehicles_Modeled -> 0 | P46: ='Financial Model'!Q34*Base_V1_Num_Vehicles_Modeled -> 0 | Q46: ='Financial Model'!R34*Base_V1_Num_Vehicles_Modeled -> 0 | R46: ='Financial Model'!S34*Base_V1_Num_Vehicles_Modeled -> 0 | S46: ='Financial Model'!T34*Base_V1_Num_Vehicles_Modeled -> 0 | T46: ='Financial Model'!U34*Base_V1_Num_Vehicles_Modeled -> 0 | U46: ='Financial Model'!V34*Base_V1_Num_Vehicles_Modeled -> 0 | V46: ='Financial Model'!W34*Base_V1_Num_Vehicles_Modeled -> 0 | W46: ='Financial Model'!X34*Base_V1_Num_Vehicles_Modeled -> 0 | X46: ='Financial Model'!Y34*Base_V1_Num_Vehicles_Modeled -> 0 | Y46: ='Financial Model'!Z34*Base_V1_Num_Vehicles_Modeled -> 0 | Z46: ='Financial Model'!AA34*Base_V1_Num_Vehicles_Modeled -> 0 | AA46: ='Financial Model'!AB34*Base_V1_Num_Vehicles_Modeled -> 0 | AB46: ='Financial Model'!AC34*Base_V1_Num_Vehicles_Modeled -> 0 | AC46: -81013.67172
B47: Maintenance and Repairs | C47: ='Financial Model'!D35*Base_V1_Num_Vehicles_Modeled -> 0 | D47: ='Financial Model'!E35*Base_V1_Num_Vehicles_Modeled -> -18342.6 | E47: ='Financial Model'!F35*Base_V1_Num_Vehicles_Modeled -> -18709.452 | F47: ='Financial Model'!G35*Base_V1_Num_Vehicles_Modeled -> -19083.64104 | G47: ='Financial Model'!H35*Base_V1_Num_Vehicles_Modeled -> -19465.31386 | H47: ='Financial Model'!I35*Base_V1_Num_Vehicles_Modeled -> -19854.62014 | I47: ='Financial Model'!J35*Base_V1_Num_Vehicles_Modeled -> -26327.2263 | J47: ='Financial Model'!K35*Base_V1_Num_Vehicles_Modeled -> -26853.77083 | K47: ='Financial Model'!L35*Base_V1_Num_Vehicles_Modeled -> 0 | L47: ='Financial Model'!M35*Base_V1_Num_Vehicles_Modeled -> 0 | M47: ='Financial Model'!N35*Base_V1_Num_Vehicles_Modeled -> 0 | N47: ='Financial Model'!O35*Base_V1_Num_Vehicles_Modeled -> 0 | O47: ='Financial Model'!P35*Base_V1_Num_Vehicles_Modeled -> 0 | P47: ='Financial Model'!Q35*Base_V1_Num_Vehicles_Modeled -> 0 | Q47: ='Financial Model'!R35*Base_V1_Num_Vehicles_Modeled -> 0 | R47: ='Financial Model'!S35*Base_V1_Num_Vehicles_Modeled -> 0 | S47: ='Financial Model'!T35*Base_V1_Num_Vehicles_Modeled -> 0 | T47: ='Financial Model'!U35*Base_V1_Num_Vehicles_Modeled -> 0 | U47: ='Financial Model'!V35*Base_V1_Num_Vehicles_Modeled -> 0 | V47: ='Financial Model'!W35*Base_V1_Num_Vehicles_Modeled -> 0 | W47: ='Financial Model'!X35*Base_V1_Num_Vehicles_Modeled -> 0 | X47: ='Financial Model'!Y35*Base_V1_Num_Vehicles_Modeled -> 0 | Y47: ='Financial Model'!Z35*Base_V1_Num_Vehicles_Modeled -> 0 | Z47: ='Financial Model'!AA35*Base_V1_Num_Vehicles_Modeled -> 0 | AA47: ='Financial Model'!AB35*Base_V1_Num_Vehicles_Modeled -> 0 | AB47: ='Financial Model'!AC35*Base_V1_Num_Vehicles_Modeled -> 0 | AC47: -148636.6242
B48: Taxes & Fees | C48: ='Financial Model'!D36*Base_V1_Num_Vehicles_Modeled -> -19000 | D48: ='Financial Model'!E36*Base_V1_Num_Vehicles_Modeled -> -190 | E48: ='Financial Model'!F36*Base_V1_Num_Vehicles_Modeled -> -193.8 | F48: ='Financial Model'!G36*Base_V1_Num_Vehicles_Modeled -> -197.676 | G48: ='Financial Model'!H36*Base_V1_Num_Vehicles_Modeled -> -201.62952 | H48: ='Financial Model'!I36*Base_V1_Num_Vehicles_Modeled -> -205.6621104 | I48: ='Financial Model'!J36*Base_V1_Num_Vehicles_Modeled -> -209.7753526 | J48: ='Financial Model'!K36*Base_V1_Num_Vehicles_Modeled -> -213.9708597 | K48: ='Financial Model'!L36*Base_V1_Num_Vehicles_Modeled -> 0 | L48: ='Financial Model'!M36*Base_V1_Num_Vehicles_Modeled -> 0 | M48: ='Financial Model'!N36*Base_V1_Num_Vehicles_Modeled -> 0 | N48: ='Financial Model'!O36*Base_V1_Num_Vehicles_Modeled -> 0 | O48: ='Financial Model'!P36*Base_V1_Num_Vehicles_Modeled -> 0 | P48: ='Financial Model'!Q36*Base_V1_Num_Vehicles_Modeled -> 0 | Q48: ='Financial Model'!R36*Base_V1_Num_Vehicles_Modeled -> 0 | R48: ='Financial Model'!S36*Base_V1_Num_Vehicles_Modeled -> 0 | S48: ='Financial Model'!T36*Base_V1_Num_Vehicles_Modeled -> 0 | T48: ='Financial Model'!U36*Base_V1_Num_Vehicles_Modeled -> 0 | U48: ='Financial Model'!V36*Base_V1_Num_Vehicles_Modeled -> 0 | V48: ='Financial Model'!W36*Base_V1_Num_Vehicles_Modeled -> 0 | W48: ='Financial Model'!X36*Base_V1_Num_Vehicles_Modeled -> 0 | X48: ='Financial Model'!Y36*Base_V1_Num_Vehicles_Modeled -> 0 | Y48: ='Financial Model'!Z36*Base_V1_Num_Vehicles_Modeled -> 0 | Z48: ='Financial Model'!AA36*Base_V1_Num_Vehicles_Modeled -> 0 | AA48: ='Financial Model'!AB36*Base_V1_Num_Vehicles_Modeled -> 0 | AB48: ='Financial Model'!AC36*Base_V1_Num_Vehicles_Modeled -> 0 | AC48: -20412.51384
B49: Insurance | C49: ='Financial Model'!D37*Base_V1_Num_Vehicles_Modeled -> 0 | D49: ='Financial Model'!E37*Base_V1_Num_Vehicles_Modeled -> -20183.7 | E49: ='Financial Model'!F37*Base_V1_Num_Vehicles_Modeled -> -20587.374 | F49: ='Financial Model'!G37*Base_V1_Num_Vehicles_Modeled -> -20999.12148 | G49: ='Financial Model'!H37*Base_V1_Num_Vehicles_Modeled -> -21419.10391 | H49: ='Financial Model'!I37*Base_V1_Num_Vehicles_Modeled -> -21847.48599 | I49: ='Financial Model'!J37*Base_V1_Num_Vehicles_Modeled -> -22284.43571 | J49: ='Financial Model'!K37*Base_V1_Num_Vehicles_Modeled -> -22730.12442 | K49: ='Financial Model'!L37*Base_V1_Num_Vehicles_Modeled -> 0 | L49: ='Financial Model'!M37*Base_V1_Num_Vehicles_Modeled -> 0 | M49: ='Financial Model'!N37*Base_V1_Num_Vehicles_Modeled -> 0 | N49: ='Financial Model'!O37*Base_V1_Num_Vehicles_Modeled -> 0 | O49: ='Financial Model'!P37*Base_V1_Num_Vehicles_Modeled -> 0 | P49: ='Financial Model'!Q37*Base_V1_Num_Vehicles_Modeled -> 0 | Q49: ='Financial Model'!R37*Base_V1_Num_Vehicles_Modeled -> 0 | R49: ='Financial Model'!S37*Base_V1_Num_Vehicles_Modeled -> 0 | S49: ='Financial Model'!T37*Base_V1_Num_Vehicles_Modeled -> 0 | T49: ='Financial Model'!U37*Base_V1_Num_Vehicles_Modeled -> 0 | U49: ='Financial Model'!V37*Base_V1_Num_Vehicles_Modeled -> 0 | V49: ='Financial Model'!W37*Base_V1_Num_Vehicles_Modeled -> 0 | W49: ='Financial Model'!X37*Base_V1_Num_Vehicles_Modeled -> 0 | X49: ='Financial Model'!Y37*Base_V1_Num_Vehicles_Modeled -> 0 | Y49: ='Financial Model'!Z37*Base_V1_Num_Vehicles_Modeled -> 0 | Z49: ='Financial Model'!AA37*Base_V1_Num_Vehicles_Modeled -> 0 | AA49: ='Financial Model'!AB37*Base_V1_Num_Vehicles_Modeled -> 0 | AB49: ='Financial Model'!AC37*Base_V1_Num_Vehicles_Modeled -> 0 | AC49: -150051.3455
B50: Carbon | C50: ='Financial Model'!D42*Base_V1_Num_Vehicles_Modeled -> 0 | D50: ='Financial Model'!E42*Base_V1_Num_Vehicles_Modeled -> 0 | E50: ='Financial Model'!F42*Base_V1_Num_Vehicles_Modeled -> 0 | F50: ='Financial Model'!G42*Base_V1_Num_Vehicles_Modeled -> 0 | G50: ='Financial Model'!H42*Base_V1_Num_Vehicles_Modeled -> 0 | H50: ='Financial Model'!I42*Base_V1_Num_Vehicles_Modeled -> 0 | I50: ='Financial Model'!J42*Base_V1_Num_Vehicles_Modeled -> 0 | J50: ='Financial Model'!K42*Base_V1_Num_Vehicles_Modeled -> 0 | K50: ='Financial Model'!L42*Base_V1_Num_Vehicles_Modeled -> 0 | L50: ='Financial Model'!M42*Base_V1_Num_Vehicles_Modeled -> 0 | M50: ='Financial Model'!N42*Base_V1_Num_Vehicles_Modeled -> 0 | N50: ='Financial Model'!O42*Base_V1_Num_Vehicles_Modeled -> 0 | O50: ='Financial Model'!P42*Base_V1_Num_Vehicles_Modeled -> 0 | P50: ='Financial Model'!Q42*Base_V1_Num_Vehicles_Modeled -> 0 | Q50: ='Financial Model'!R42*Base_V1_Num_Vehicles_Modeled -> 0 | R50: ='Financial Model'!S42*Base_V1_Num_Vehicles_Modeled -> 0 | S50: ='Financial Model'!T42*Base_V1_Num_Vehicles_Modeled -> 0 | T50: ='Financial Model'!U42*Base_V1_Num_Vehicles_Modeled -> 0 | U50: ='Financial Model'!V42*Base_V1_Num_Vehicles_Modeled -> 0 | V50: ='Financial Model'!W42*Base_V1_Num_Vehicles_Modeled -> 0 | W50: ='Financial Model'!X42*Base_V1_Num_Vehicles_Modeled -> 0 | X50: ='Financial Model'!Y42*Base_V1_Num_Vehicles_Modeled -> 0 | Y50: ='Financial Model'!Z42*Base_V1_Num_Vehicles_Modeled -> 0 | Z50: ='Financial Model'!AA42*Base_V1_Num_Vehicles_Modeled -> 0 | AA50: ='Financial Model'!AB42*Base_V1_Num_Vehicles_Modeled -> 0 | AB50: ='Financial Model'!AC42*Base_V1_Num_Vehicles_Modeled -> 0 | AC50: 0
B51: Vehicle Total | C51: =SUM(C43:C50) -> -765700 | D51: -48384.68446 | E51: -50549.73319 | F51: -52008.75623 | G51: -52931.96589 | H51: -53913.29028 | I51: -61069.26693 | J51: -47392.76576 | K51: 0 | L51: 0 | M51: 0 | N51: 0 | O51: 0 | P51: 0 | Q51: 0 | R51: 0 | S51: 0 | T51: 0 | U51: 0 | V51: 0 | W51: 0 | X51: 0 | Y51: 0 | Z51: 0 | AA51: 0 | AB51: 0 | AC51: -1131950.463
B52: Vehicle Total - Check | C52: ='Financial Model'!D45*Base_V1_Num_Vehicles_Modeled -> -765700 | D52: ='Financial Model'!E45*Base_V1_Num_Vehicles_Modeled -> -48384.68446 | E52: ='Financial Model'!F45*Base_V1_Num_Vehicles_Modeled -> -50549.73319 | F52: ='Financial Model'!G45*Base_V1_Num_Vehicles_Modeled -> -52008.75623 | G52: ='Financial Model'!H45*Base_V1_Num_Vehicles_Modeled -> -52931.96589 | H52: ='Financial Model'!I45*Base_V1_Num_Vehicles_Modeled -> -53913.29028 | I52: ='Financial Model'!J45*Base_V1_Num_Vehicles_Modeled -> -61069.26693 | J52: ='Financial Model'!K45*Base_V1_Num_Vehicles_Modeled -> -47392.76576 | K52: ='Financial Model'!L45*Base_V1_Num_Vehicles_Modeled -> 0 | L52: ='Financial Model'!M45*Base_V1_Num_Vehicles_Modeled -> 0 | M52: ='Financial Model'!N45*Base_V1_Num_Vehicles_Modeled -> 0 | N52: ='Financial Model'!O45*Base_V1_Num_Vehicles_Modeled -> 0 | O52: ='Financial Model'!P45*Base_V1_Num_Vehicles_Modeled -> 0 | P52: ='Financial Model'!Q45*Base_V1_Num_Vehicles_Modeled -> 0 | Q52: ='Financial Model'!R45*Base_V1_Num_Vehicles_Modeled -> 0 | R52: ='Financial Model'!S45*Base_V1_Num_Vehicles_Modeled -> 0 | S52: ='Financial Model'!T45*Base_V1_Num_Vehicles_Modeled -> 0 | T52: ='Financial Model'!U45*Base_V1_Num_Vehicles_Modeled -> 0 | U52: ='Financial Model'!V45*Base_V1_Num_Vehicles_Modeled -> 0 | V52: ='Financial Model'!W45*Base_V1_Num_Vehicles_Modeled -> 0 | W52: ='Financial Model'!X45*Base_V1_Num_Vehicles_Modeled -> 0 | X52: ='Financial Model'!Y45*Base_V1_Num_Vehicles_Modeled -> 0 | Y52: ='Financial Model'!Z45*Base_V1_Num_Vehicles_Modeled -> 0 | Z52: ='Financial Model'!AA45*Base_V1_Num_Vehicles_Modeled -> 0 | AA52: ='Financial Model'!AB45*Base_V1_Num_Vehicles_Modeled -> 0 | AB52: ='Financial Model'!AC45*Base_V1_Num_Vehicles_Modeled -> 0 | AC52: -1131950.463
B53: Charging Infrastructure | C53: ='Financial Model'!D67 -> 0 | D53: ='Financial Model'!E67 -> 0 | E53: ='Financial Model'!F67 -> 0 | F53: ='Financial Model'!G67 -> 0 | G53: ='Financial Model'!H67 -> 0 | H53: ='Financial Model'!I67 -> 0 | I53: ='Financial Model'!J67 -> 0 | J53: ='Financial Model'!K67 -> 0 | K53: ='Financial Model'!L67 -> 0 | L53: ='Financial Model'!M67 -> 0 | M53: ='Financial Model'!N67 -> 0 | N53: ='Financial Model'!O67 -> 0 | O53: ='Financial Model'!P67 -> 0 | P53: ='Financial Model'!Q67 -> 0 | Q53: ='Financial Model'!R67 -> 0 | R53: ='Financial Model'!S67 -> 0 | S53: ='Financial Model'!T67 -> 0 | T53: ='Financial Model'!U67 -> 0 | U53: ='Financial Model'!V67 -> 0 | V53: ='Financial Model'!W67 -> 0 | W53: ='Financial Model'!X67 -> 0 | X53: ='Financial Model'!Y67 -> 0 | Y53: ='Financial Model'!Z67 -> 0 | Z53: ='Financial Model'!AA67 -> 0 | AA53: ='Financial Model'!AB67 -> 0 | AB53: ='Financial Model'!AC67 -> 0 | AC53: 0
B54: Grand Total | C54: =C51+C53 -> -765700 | D54: =D51+D53 -> -48384.68446 | E54: -50549.73319 | F54: -52008.75623 | G54: -52931.96589 | H54: -53913.29028 | I54: -61069.26693 | J54: -47392.76576 | K54: 0 | L54: 0 | M54: 0 | N54: 0 | O54: 0 | P54: 0 | Q54: 0 | R54: 0 | S54: 0 | T54: 0 | U54: 0 | V54: 0 | W54: 0 | X54: 0 | Y54: 0 | Z54: 0 | AA54: 0 | AB54: 0 | AC54: -1131950.463
B55: Discount Factor | C55: ='Financial Model'!D46 -> 1 | D55: ='Financial Model'!E46 -> 1 | E55: ='Financial Model'!F46 -> 1 | F55: ='Financial Model'!G46 -> 1 | G55: ='Financial Model'!H46 -> 1 | H55: ='Financial Model'!I46 -> 1 | I55: ='Financial Model'!J46 -> 1 | J55: ='Financial Model'!K46 -> 1 | K55: ='Financial Model'!L46 -> 1 | L55: ='Financial Model'!M46 -> 1 | M55: ='Financial Model'!N46 -> 1 | N55: ='Financial Model'!O46 -> 1 | O55: ='Financial Model'!P46 -> 1 | P55: ='Financial Model'!Q46 -> 1 | Q55: ='Financial Model'!R46 -> 1 | R55: ='Financial Model'!S46 -> 1 | S55: ='Financial Model'!T46 -> 1 | T55: ='Financial Model'!U46 -> 1 | U55: ='Financial Model'!V46 -> 1 | V55: ='Financial Model'!W46 -> 1 | W55: ='Financial Model'!X46 -> 1 | X55: ='Financial Model'!Y46 -> 1 | Y55: ='Financial Model'!Z46 -> 1 | Z55: ='Financial Model'!AA46 -> 1 | AA55: ='Financial Model'!AB46 -> 1 | AB55: ='Financial Model'!AC46 -> 1
B56: NPV Total | C56: =C54*C55 -> -765700 | D56: =D54*D55 -> -48384.68446 | E56: -50549.73319 | F56: -52008.75623 | G56: -52931.96589 | H56: -53913.29028 | I56: -61069.26693 | J56: -47392.76576 | K56: 0 | L56: 0 | M56: 0 | N56: 0 | O56: 0 | P56: 0 | Q56: 0 | R56: 0 | S56: 0 | T56: 0 | U56: 0 | V56: 0 | W56: 0 | X56: 0 | Y56: 0 | Z56: 0 | AA56: 0 | AB56: 0 | AC56: -1131950.463
B58: =Comp_V1_Type_Ex&" (Comparison)" -> 2018 CHEVROLET CRUZE ICE (Comparison)
C59: Year 0 | D59: Year 1 | E59: Year 2 | F59: Year 3 | G59: Year 4 | H59: Year 5 | I59: Year 6 | J59: Year 7 | K59: Year 8 | L59: Year 9 | M59: Year 10 | N59: Year 11 | O59: Year 12 | P59: Year 13 | Q59: Year 14 | R59: Year 15 | S59: Year 16 | T59: Year 17 | U59: Year 18 | V59: Year 19 | W59: Year 20 | X59: Year 21 | Y59: Year 22 | Z59: Year 23 | AA59: Year 24 | AB59: Year 25 | AC59: Totals
B60: Principal (less tax credits and incentives) | C60: =('Financial Model'!D101-'Financial Model'!D97-'Financial Model'!D99)*Comp_V1_Num_Vehicles_Modeled -> -636994 | D60: =('Financial Model'!E101-'Financial Model'!E97-'Financial Model'!E99)*Comp_V1_Num_Vehicles_Modeled -> 0 | E60: =('Financial Model'!F101-'Financial Model'!F97-'Financial Model'!F99)*Comp_V1_Num_Vehicles_Modeled -> 0 | F60: =('Financial Model'!G101-'Financial Model'!G97-'Financial Model'!G99)*Comp_V1_Num_Vehicles_Modeled -> 0 | G60: =('Financial Model'!H101-'Financial Model'!H97-'Financial Model'!H99)*Comp_V1_Num_Vehicles_Modeled -> 0 | H60: =('Financial Model'!I101-'Financial Model'!I97-'Financial Model'!I99)*Comp_V1_Num_Vehicles_Modeled -> 0 | I60: =('Financial Model'!J101-'Financial Model'!J97-'Financial Model'!J99)*Comp_V1_Num_Vehicles_Modeled -> 0 | J60: =('Financial Model'!K101-'Financial Model'!K97-'Financial Model'!K99)*Comp_V1_Num_Vehicles_Modeled -> 0 | K60: =('Financial Model'!L101-'Financial Model'!L97-'Financial Model'!L99)*Comp_V1_Num_Vehicles_Modeled -> 0 | L60: =('Financial Model'!M101-'Financial Model'!M97-'Financial Model'!M99)*Comp_V1_Num_Vehicles_Modeled -> 0 | M60: =('Financial Model'!N101-'Financial Model'!N97-'Financial Model'!N99)*Comp_V1_Num_Vehicles_Modeled -> 0 | N60: =('Financial Model'!O101-'Financial Model'!O97-'Financial Model'!O99)*Comp_V1_Num_Vehicles_Modeled -> 0 | O60: =('Financial Model'!P101-'Financial Model'!P97-'Financial Model'!P99)*Comp_V1_Num_Vehicles_Modeled -> 0 | P60: =('Financial Model'!Q101-'Financial Model'!Q97-'Financial Model'!Q99)*Comp_V1_Num_Vehicles_Modeled -> 0 | Q60: =('Financial Model'!R101-'Financial Model'!R97-'Financial Model'!R99)*Comp_V1_Num_Vehicles_Modeled -> 0 | R60: =('Financial Model'!S101-'Financial Model'!S97-'Financial Model'!S99)*Comp_V1_Num_Vehicles_Modeled -> 0 | S60: =('Financial Model'!T101-'Financial Model'!T97-'Financial Model'!T99)*Comp_V1_Num_Vehicles_Modeled -> 0 | T60: =('Financial Model'!U101-'Financial Model'!U97-'Financial Model'!U99)*Comp_V1_Num_Vehicles_Modeled -> 0 | U60: =('Financial Model'!V101-'Financial Model'!V97-'Financial Model'!V99)*Comp_V1_Num_Vehicles_Modeled -> 0 | V60: =('Financial Model'!W101-'Financial Model'!W97-'Financial Model'!W99)*Comp_V1_Num_Vehicles_Modeled -> 0 | W60: =('Financial Model'!X101-'Financial Model'!X97-'Financial Model'!X99)*Comp_V1_Num_Vehicles_Modeled -> 0 | X60: =('Financial Model'!Y101-'Financial Model'!Y97-'Financial Model'!Y99)*Comp_V1_Num_Vehicles_Modeled -> 0 | Y60: =('Financial Model'!Z101-'Financial Model'!Z97-'Financial Model'!Z99)*Comp_V1_Num_Vehicles_Modeled -> 0 | Z60: =('Financial Model'!AA101-'Financial Model'!AA97-'Financial Model'!AA99)*Comp_V1_Num_Vehicles_Modeled -> 0 | AA60: =('Financial Model'!AB101-'Financial Model'!AB97-'Financial Model'!AB99)*Comp_V1_Num_Vehicles_Modeled -> 0 | AB60: =('Financial Model'!AC101-'Financial Model'!AC97-'Financial Model'!AC99)*Comp_V1_Num_Vehicles_Modeled -> 0 | AC60: =SUM(C60:AB60) -> -636994
B61: Financing | C61: ='Financial Model'!D97*Comp_V1_Num_Vehicles_Modeled -> 0 | D61: ='Financial Model'!E97*Comp_V1_Num_Vehicles_Modeled -> 0 | E61: ='Financial Model'!F97*Comp_V1_Num_Vehicles_Modeled -> 0 | F61: ='Financial Model'!G97*Comp_V1_Num_Vehicles_Modeled -> 0 | G61: ='Financial Model'!H97*Comp_V1_Num_Vehicles_Modeled -> 0 | H61: ='Financial Model'!I97*Comp_V1_Num_Vehicles_Modeled -> 0 | I61: ='Financial Model'!J97*Comp_V1_Num_Vehicles_Modeled -> 0 | J61: ='Financial Model'!K97*Comp_V1_Num_Vehicles_Modeled -> 0 | K61: ='Financial Model'!L97*Comp_V1_Num_Vehicles_Modeled -> 0 | L61: ='Financial Model'!M97*Comp_V1_Num_Vehicles_Modeled -> 0 | M61: ='Financial Model'!N97*Comp_V1_Num_Vehicles_Modeled -> 0 | N61: ='Financial Model'!O97*Comp_V1_Num_Vehicles_Modeled -> 0 | O61: ='Financial Model'!P97*Comp_V1_Num_Vehicles_Modeled -> 0 | P61: ='Financial Model'!Q97*Comp_V1_Num_Vehicles_Modeled -> 0 | Q61: ='Financial Model'!R97*Comp_V1_Num_Vehicles_Modeled -> 0 | R61: ='Financial Model'!S97*Comp_V1_Num_Vehicles_Modeled -> 0 | S61: ='Financial Model'!T97*Comp_V1_Num_Vehicles_Modeled -> 0 | T61: ='Financial Model'!U97*Comp_V1_Num_Vehicles_Modeled -> 0 | U61: ='Financial Model'!V97*Comp_V1_Num_Vehicles_Modeled -> 0 | V61: ='Financial Model'!W97*Comp_V1_Num_Vehicles_Modeled -> 0 | W61: ='Financial Model'!X97*Comp_V1_Num_Vehicles_Modeled -> 0 | X61: ='Financial Model'!Y97*Comp_V1_Num_Vehicles_Modeled -> 0 | Y61: ='Financial Model'!Z97*Comp_V1_Num_Vehicles_Modeled -> 0 | Z61: ='Financial Model'!AA97*Comp_V1_Num_Vehicles_Modeled -> 0 | AA61: ='Financial Model'!AB97*Comp_V1_Num_Vehicles_Modeled -> 0 | AB61: ='Financial Model'!AC97*Comp_V1_Num_Vehicles_Modeled -> 0 | AC61: =SUM(C61:AB61) -> 0
B62: Residual Value (Vehicle Sale) | C62: ='Financial Model'!D99*Comp_V1_Num_Vehicles_Modeled -> 0 | D62: ='Financial Model'!E99*Comp_V1_Num_Vehicles_Modeled -> 0 | E62: ='Financial Model'!F99*Comp_V1_Num_Vehicles_Modeled -> 0 | F62: ='Financial Model'!G99*Comp_V1_Num_Vehicles_Modeled -> 0 | G62: ='Financial Model'!H99*Comp_V1_Num_Vehicles_Modeled -> 0 | H62: ='Financial Model'!I99*Comp_V1_Num_Vehicles_Modeled -> 0 | I62: ='Financial Model'!J99*Comp_V1_Num_Vehicles_Modeled -> 0 | J62: ='Financial Model'!K99*Comp_V1_Num_Vehicles_Modeled -> 299589.2817 | K62: ='Financial Model'!L99*Comp_V1_Num_Vehicles_Modeled -> 0 | L62: ='Financial Model'!M99*Comp_V1_Num_Vehicles_Modeled -> 0 | M62: ='Financial Model'!N99*Comp_V1_Num_Vehicles_Modeled -> 0 | N62: ='Financial Model'!O99*Comp_V1_Num_Vehicles_Modeled -> 0 | O62: ='Financial Model'!P99*Comp_V1_Num_Vehicles_Modeled -> 0 | P62: ='Financial Model'!Q99*Comp_V1_Num_Vehicles_Modeled -> 0 | Q62: ='Financial Model'!R99*Comp_V1_Num_Vehicles_Modeled -> 0 | R62: ='Financial Model'!S99*Comp_V1_Num_Vehicles_Modeled -> 0 | S62: ='Financial Model'!T99*Comp_V1_Num_Vehicles_Modeled -> 0 | T62: ='Financial Model'!U99*Comp_V1_Num_Vehicles_Modeled -> 0 | U62: ='Financial Model'!V99*Comp_V1_Num_Vehicles_Modeled -> 0 | V62: ='Financial Model'!W99*Comp_V1_Num_Vehicles_Modeled -> 0 | W62: ='Financial Model'!X99*Comp_V1_Num_Vehicles_Modeled -> 0 | X62: ='Financial Model'!Y99*Comp_V1_Num_Vehicles_Modeled -> 0 | Y62: ='Financial Model'!Z99*Comp_V1_Num_Vehicles_Modeled -> 0 | Z62: ='Financial Model'!AA99*Comp_V1_Num_Vehicles_Modeled -> 0 | AA62: ='Financial Model'!AB99*Comp_V1_Num_Vehicles_Modeled -> 0 | AB62: ='Financial Model'!AC99*Comp_V1_Num_Vehicles_Modeled -> 0 | AC62: 299589.2817
B63: Fuel | C63: ='Financial Model'!D104*Comp_V1_Num_Vehicles_Modeled -> 0 | D63: ='Financial Model'!E104*Comp_V1_Num_Vehicles_Modeled -> -50525.03104 | E63: ='Financial Model'!F104*Comp_V1_Num_Vehicles_Modeled -> -61343.33044 | F63: ='Financial Model'!G104*Comp_V1_Num_Vehicles_Modeled -> -81915.89775 | G63: ='Financial Model'!H104*Comp_V1_Num_Vehicles_Modeled -> -78442.43212 | H63: ='Financial Model'!I104*Comp_V1_Num_Vehicles_Modeled -> -78442.43212 | I63: ='Financial Model'!J104*Comp_V1_Num_Vehicles_Modeled -> -78442.43212 | J63: ='Financial Model'!K104*Comp_V1_Num_Vehicles_Modeled -> -79310.79853 | K63: ='Financial Model'!L104*Comp_V1_Num_Vehicles_Modeled -> 0 | L63: ='Financial Model'!M104*Comp_V1_Num_Vehicles_Modeled -> 0 | M63: ='Financial Model'!N104*Comp_V1_Num_Vehicles_Modeled -> 0 | N63: ='Financial Model'!O104*Comp_V1_Num_Vehicles_Modeled -> 0 | O63: ='Financial Model'!P104*Comp_V1_Num_Vehicles_Modeled -> 0 | P63: ='Financial Model'!Q104*Comp_V1_Num_Vehicles_Modeled -> 0 | Q63: ='Financial Model'!R104*Comp_V1_Num_Vehicles_Modeled -> 0 | R63: ='Financial Model'!S104*Comp_V1_Num_Vehicles_Modeled -> 0 | S63: ='Financial Model'!T104*Comp_V1_Num_Vehicles_Modeled -> 0 | T63: ='Financial Model'!U104*Comp_V1_Num_Vehicles_Modeled -> 0 | U63: ='Financial Model'!V104*Comp_V1_Num_Vehicles_Modeled -> 0 | V63: ='Financial Model'!W104*Comp_V1_Num_Vehicles_Modeled -> 0 | W63: ='Financial Model'!X104*Comp_V1_Num_Vehicles_Modeled -> 0 | X63: ='Financial Model'!Y104*Comp_V1_Num_Vehicles_Modeled -> 0 | Y63: ='Financial Model'!Z104*Comp_V1_Num_Vehicles_Modeled -> 0 | Z63: ='Financial Model'!AA104*Comp_V1_Num_Vehicles_Modeled -> 0 | AA63: ='Financial Model'!AB104*Comp_V1_Num_Vehicles_Modeled -> 0 | AB63: ='Financial Model'!AC104*Comp_V1_Num_Vehicles_Modeled -> 0 | AC63: -508422.3541
B64: Maintenance and Repairs | C64: ='Financial Model'!D105*Comp_V1_Num_Vehicles_Modeled -> 0 | D64: ='Financial Model'!E105*Comp_V1_Num_Vehicles_Modeled -> -36685.2 | E64: ='Financial Model'!F105*Comp_V1_Num_Vehicles_Modeled -> -37418.904 | F64: ='Financial Model'!G105*Comp_V1_Num_Vehicles_Modeled -> -38167.28208 | G64: ='Financial Model'!H105*Comp_V1_Num_Vehicles_Modeled -> -38930.62772 | H64: ='Financial Model'!I105*Comp_V1_Num_Vehicles_Modeled -> -39709.24028 | I64: ='Financial Model'!J105*Comp_V1_Num_Vehicles_Modeled -> -52654.45261 | J64: ='Financial Model'!K105*Comp_V1_Num_Vehicles_Modeled -> -53707.54166 | K64: ='Financial Model'!L105*Comp_V1_Num_Vehicles_Modeled -> 0 | L64: ='Financial Model'!M105*Comp_V1_Num_Vehicles_Modeled -> 0 | M64: ='Financial Model'!N105*Comp_V1_Num_Vehicles_Modeled -> 0 | N64: ='Financial Model'!O105*Comp_V1_Num_Vehicles_Modeled -> 0 | O64: ='Financial Model'!P105*Comp_V1_Num_Vehicles_Modeled -> 0 | P64: ='Financial Model'!Q105*Comp_V1_Num_Vehicles_Modeled -> 0 | Q64: ='Financial Model'!R105*Comp_V1_Num_Vehicles_Modeled -> 0 | R64: ='Financial Model'!S105*Comp_V1_Num_Vehicles_Modeled -> 0 | S64: ='Financial Model'!T105*Comp_V1_Num_Vehicles_Modeled -> 0 | T64: ='Financial Model'!U105*Comp_V1_Num_Vehicles_Modeled -> 0 | U64: ='Financial Model'!V105*Comp_V1_Num_Vehicles_Modeled -> 0 | V64: ='Financial Model'!W105*Comp_V1_Num_Vehicles_Modeled -> 0 | W64: ='Financial Model'!X105*Comp_V1_Num_Vehicles_Modeled -> 0 | X64: ='Financial Model'!Y105*Comp_V1_Num_Vehicles_Modeled -> 0 | Y64: ='Financial Model'!Z105*Comp_V1_Num_Vehicles_Modeled -> 0 | Z64: ='Financial Model'!AA105*Comp_V1_Num_Vehicles_Modeled -> 0 | AA64: ='Financial Model'!AB105*Comp_V1_Num_Vehicles_Modeled -> 0 | AB64: ='Financial Model'!AC105*Comp_V1_Num_Vehicles_Modeled -> 0 | AC64: -297273.2483
B65: Taxes & Fees | C65: ='Financial Model'!D106*Comp_V1_Num_Vehicles_Modeled -> -19000 | D65: ='Financial Model'!E106*Comp_V1_Num_Vehicles_Modeled -> -190 | E65: ='Financial Model'!F106*Comp_V1_Num_Vehicles_Modeled -> -193.8 | F65: ='Financial Model'!G106*Comp_V1_Num_Vehicles_Modeled -> -197.676 | G65: ='Financial Model'!H106*Comp_V1_Num_Vehicles_Modeled -> -201.62952 | H65: ='Financial Model'!I106*Comp_V1_Num_Vehicles_Modeled -> -205.6621104 | I65: ='Financial Model'!J106*Comp_V1_Num_Vehicles_Modeled -> -209.7753526 | J65: ='Financial Model'!K106*Comp_V1_Num_Vehicles_Modeled -> -213.9708597 | K65: ='Financial Model'!L106*Comp_V1_Num_Vehicles_Modeled -> 0 | L65: ='Financial Model'!M106*Comp_V1_Num_Vehicles_Modeled -> 0 | M65: ='Financial Model'!N106*Comp_V1_Num_Vehicles_Modeled -> 0 | N65: ='Financial Model'!O106*Comp_V1_Num_Vehicles_Modeled -> 0 | O65: ='Financial Model'!P106*Comp_V1_Num_Vehicles_Modeled -> 0 | P65: ='Financial Model'!Q106*Comp_V1_Num_Vehicles_Modeled -> 0 | Q65: ='Financial Model'!R106*Comp_V1_Num_Vehicles_Modeled -> 0 | R65: ='Financial Model'!S106*Comp_V1_Num_Vehicles_Modeled -> 0 | S65: ='Financial Model'!T106*Comp_V1_Num_Vehicles_Modeled -> 0 | T65: ='Financial Model'!U106*Comp_V1_Num_Vehicles_Modeled -> 0 | U65: ='Financial Model'!V106*Comp_V1_Num_Vehicles_Modeled -> 0 | V65: ='Financial Model'!W106*Comp_V1_Num_Vehicles_Modeled -> 0 | W65: ='Financial Model'!X106*Comp_V1_Num_Vehicles_Modeled -> 0 | X65: ='Financial Model'!Y106*Comp_V1_Num_Vehicles_Modeled -> 0 | Y65: ='Financial Model'!Z106*Comp_V1_Num_Vehicles_Modeled -> 0 | Z65: ='Financial Model'!AA106*Comp_V1_Num_Vehicles_Modeled -> 0 | AA65: ='Financial Model'!AB106*Comp_V1_Num_Vehicles_Modeled -> 0 | AB65: ='Financial Model'!AC106*Comp_V1_Num_Vehicles_Modeled -> 0 | AC65: -20412.51384
B66: Insurance | C66: ='Financial Model'!D107*Comp_V1_Num_Vehicles_Modeled -> 0 | D66: ='Financial Model'!E107*Comp_V1_Num_Vehicles_Modeled -> -20183.7 | E66: ='Financial Model'!F107*Comp_V1_Num_Vehicles_Modeled -> -20587.374 | F66: ='Financial Model'!G107*Comp_V1_Num_Vehicles_Modeled -> -20999.12148 | G66: ='Financial Model'!H107*Comp_V1_Num_Vehicles_Modeled -> -21419.10391 | H66: ='Financial Model'!I107*Comp_V1_Num_Vehicles_Modeled -> -21847.48599 | I66: ='Financial Model'!J107*Comp_V1_Num_Vehicles_Modeled -> -22284.43571 | J66: ='Financial Model'!K107*Comp_V1_Num_Vehicles_Modeled -> -22730.12442 | K66: ='Financial Model'!L107*Comp_V1_Num_Vehicles_Modeled -> 0 | L66: ='Financial Model'!M107*Comp_V1_Num_Vehicles_Modeled -> 0 | M66: ='Financial Model'!N107*Comp_V1_Num_Vehicles_Modeled -> 0 | N66: ='Financial Model'!O107*Comp_V1_Num_Vehicles_Modeled -> 0 | O66: ='Financial Model'!P107*Comp_V1_Num_Vehicles_Modeled -> 0 | P66: ='Financial Model'!Q107*Comp_V1_Num_Vehicles_Modeled -> 0 | Q66: ='Financial Model'!R107*Comp_V1_Num_Vehicles_Modeled -> 0 | R66: ='Financial Model'!S107*Comp_V1_Num_Vehicles_Modeled -> 0 | S66: ='Financial Model'!T107*Comp_V1_Num_Vehicles_Modeled -> 0 | T66: ='Financial Model'!U107*Comp_V1_Num_Vehicles_Modeled -> 0 | U66: ='Financial Model'!V107*Comp_V1_Num_Vehicles_Modeled -> 0 | V66: ='Financial Model'!W107*Comp_V1_Num_Vehicles_Modeled -> 0 | W66: ='Financial Model'!X107*Comp_V1_Num_Vehicles_Modeled -> 0 | X66: ='Financial Model'!Y107*Comp_V1_Num_Vehicles_Modeled -> 0 | Y66: ='Financial Model'!Z107*Comp_V1_Num_Vehicles_Modeled -> 0 | Z66: ='Financial Model'!AA107*Comp_V1_Num_Vehicles_Modeled -> 0 | AA66: ='Financial Model'!AB107*Comp_V1_Num_Vehicles_Modeled -> 0 | AB66: ='Financial Model'!AC107*Comp_V1_Num_Vehicles_Modeled -> 0 | AC66: -150051.3455
B67: Carbon | C67: ='Financial Model'!D112*Comp_V1_Num_Vehicles_Modeled -> 0 | D67: ='Financial Model'!E112*Comp_V1_Num_Vehicles_Modeled -> 0 | E67: ='Financial Model'!F112*Comp_V1_Num_Vehicles_Modeled -> 0 | F67: ='Financial Model'!G112*Comp_V1_Num_Vehicles_Modeled -> 0 | G67: ='Financial Model'!H112*Comp_V1_Num_Vehicles_Modeled -> 0 | H67: ='Financial Model'!I112*Comp_V1_Num_Vehicles_Modeled -> 0 | I67: ='Financial Model'!J112*Comp_V1_Num_Vehicles_Modeled -> 0 | J67: ='Financial Model'!K112*Comp_V1_Num_Vehicles_Modeled -> 0 | K67: ='Financial Model'!L112*Comp_V1_Num_Vehicles_Modeled -> 0 | L67: ='Financial Model'!M112*Comp_V1_Num_Vehicles_Modeled -> 0 | M67: ='Financial Model'!N112*Comp_V1_Num_Vehicles_Modeled -> 0 | N67: ='Financial Model'!O112*Comp_V1_Num_Vehicles_Modeled -> 0 | O67: ='Financial Model'!P112*Comp_V1_Num_Vehicles_Modeled -> 0 | P67: ='Financial Model'!Q112*Comp_V1_Num_Vehicles_Modeled -> 0 | Q67: ='Financial Model'!R112*Comp_V1_Num_Vehicles_Modeled -> 0 | R67: ='Financial Model'!S112*Comp_V1_Num_Vehicles_Modeled -> 0 | S67: ='Financial Model'!T112*Comp_V1_Num_Vehicles_Modeled -> 0 | T67: ='Financial Model'!U112*Comp_V1_Num_Vehicles_Modeled -> 0 | U67: ='Financial Model'!V112*Comp_V1_Num_Vehicles_Modeled -> 0 | V67: ='Financial Model'!W112*Comp_V1_Num_Vehicles_Modeled -> 0 | W67: ='Financial Model'!X112*Comp_V1_Num_Vehicles_Modeled -> 0 | X67: ='Financial Model'!Y112*Comp_V1_Num_Vehicles_Modeled -> 0 | Y67: ='Financial Model'!Z112*Comp_V1_Num_Vehicles_Modeled -> 0 | Z67: ='Financial Model'!AA112*Comp_V1_Num_Vehicles_Modeled -> 0 | AA67: ='Financial Model'!AB112*Comp_V1_Num_Vehicles_Modeled -> 0 | AB67: ='Financial Model'!AC112*Comp_V1_Num_Vehicles_Modeled -> 0 | AC67: 0
B68: Vehicle Total | C68: =SUM(C60:C67) -> -655994 | D68: -107583.931 | E68: -119543.4084 | F68: -141279.9773 | G68: -138993.7933 | H68: -140204.8205 | I68: -153591.0958 | J68: 143626.8462 | K68: 0 | L68: 0 | M68: 0 | N68: 0 | O68: 0 | P68: 0 | Q68: 0 | R68: 0 | S68: 0 | T68: 0 | U68: 0 | V68: 0 | W68: 0 | X68: 0 | Y68: 0 | Z68: 0 | AA68: 0 | AB68: 0 | AC68: -1313564.18
B69: Vehicle Total - Check | C69: ='Financial Model'!D115*Comp_V1_Num_Vehicles_Modeled -> -655994 | D69: ='Financial Model'!E115*Comp_V1_Num_Vehicles_Modeled -> -107583.931 | E69: ='Financial Model'!F115*Comp_V1_Num_Vehicles_Modeled -> -119543.4084 | F69: ='Financial Model'!G115*Comp_V1_Num_Vehicles_Modeled -> -141279.9773 | G69: ='Financial Model'!H115*Comp_V1_Num_Vehicles_Modeled -> -138993.7933 | H69: ='Financial Model'!I115*Comp_V1_Num_Vehicles_Modeled -> -140204.8205 | I69: ='Financial Model'!J115*Comp_V1_Num_Vehicles_Modeled -> -153591.0958 | J69: ='Financial Model'!K115*Comp_V1_Num_Vehicles_Modeled -> 143626.8462 | K69: ='Financial Model'!L115*Comp_V1_Num_Vehicles_Modeled -> 0 | L69: ='Financial Model'!M115*Comp_V1_Num_Vehicles_Modeled -> 0 | M69: ='Financial Model'!N115*Comp_V1_Num_Vehicles_Modeled -> 0 | N69: ='Financial Model'!O115*Comp_V1_Num_Vehicles_Modeled -> 0 | O69: ='Financial Model'!P115*Comp_V1_Num_Vehicles_Modeled -> 0 | P69: ='Financial Model'!Q115*Comp_V1_Num_Vehicles_Modeled -> 0 | Q69: ='Financial Model'!R115*Comp_V1_Num_Vehicles_Modeled -> 0 | R69: ='Financial Model'!S115*Comp_V1_Num_Vehicles_Modeled -> 0 | S69: ='Financial Model'!T115*Comp_V1_Num_Vehicles_Modeled -> 0 | T69: ='Financial Model'!U115*Comp_V1_Num_Vehicles_Modeled -> 0 | U69: ='Financial Model'!V115*Comp_V1_Num_Vehicles_Modeled -> 0 | V69: ='Financial Model'!W115*Comp_V1_Num_Vehicles_Modeled -> 0 | W69: ='Financial Model'!X115*Comp_V1_Num_Vehicles_Modeled -> 0 | X69: ='Financial Model'!Y115*Comp_V1_Num_Vehicles_Modeled -> 0 | Y69: ='Financial Model'!Z115*Comp_V1_Num_Vehicles_Modeled -> 0 | Z69: ='Financial Model'!AA115*Comp_V1_Num_Vehicles_Modeled -> 0 | AA69: ='Financial Model'!AB115*Comp_V1_Num_Vehicles_Modeled -> 0 | AB69: ='Financial Model'!AC115*Comp_V1_Num_Vehicles_Modeled -> 0 | AC69: -1313564.18
B70: Charging Infrastructure | C70: ='Financial Model'!D137 -> 0 | D70: ='Financial Model'!E137 -> 0 | E70: ='Financial Model'!F137 -> 0 | F70: ='Financial Model'!G137 -> 0 | G70: ='Financial Model'!H137 -> 0 | H70: ='Financial Model'!I137 -> 0 | I70: ='Financial Model'!J137 -> 0 | J70: ='Financial Model'!K137 -> 0 | K70: ='Financial Model'!L137 -> 0 | L70: ='Financial Model'!M137 -> 0 | M70: ='Financial Model'!N137 -> 0 | N70: ='Financial Model'!O137 -> 0 | O70: ='Financial Model'!P137 -> 0 | P70: ='Financial Model'!Q137 -> 0 | Q70: ='Financial Model'!R137 -> 0 | R70: ='Financial Model'!S137 -> 0 | S70: ='Financial Model'!T137 -> 0 | T70: ='Financial Model'!U137 -> 0 | U70: ='Financial Model'!V137 -> 0 | V70: ='Financial Model'!W137 -> 0 | W70: ='Financial Model'!X137 -> 0 | X70: ='Financial Model'!Y137 -> 0 | Y70: ='Financial Model'!Z137 -> 0 | Z70: ='Financial Model'!AA137 -> 0 | AA70: ='Financial Model'!AB137 -> 0 | AB70: ='Financial Model'!AC137 -> 0 | AC70: 0
B71: Grand Total | C71: =C68+C70 -> -655994 | D71: -107583.931 | E71: -119543.4084 | F71: -141279.9773 | G71: -138993.7933 | H71: -140204.8205 | I71: -153591.0958 | J71: 143626.8462 | K71: 0 | L71: 0 | M71: 0 | N71: 0 | O71: 0 | P71: 0 | Q71: 0 | R71: 0 | S71: 0 | T71: 0 | U71: 0 | V71: 0 | W71: 0 | X71: 0 | Y71: 0 | Z71: 0 | AA71: 0 | AB71: 0 | AC71: -1313564.18
B72: Discount Factor | C72: ='Financial Model'!D116 -> 1 | D72: ='Financial Model'!E116 -> 1 | E72: ='Financial Model'!F116 -> 1 | F72: ='Financial Model'!G116 -> 1 | G72: ='Financial Model'!H116 -> 1 | H72: ='Financial Model'!I116 -> 1 | I72: ='Financial Model'!J116 -> 1 | J72: ='Financial Model'!K116 -> 1 | K72: ='Financial Model'!L116 -> 1 | L72: ='Financial Model'!M116 -> 1 | M72: ='Financial Model'!N116 -> 1 | N72: ='Financial Model'!O116 -> 1 | O72: ='Financial Model'!P116 -> 1 | P72: ='Financial Model'!Q116 -> 1 | Q72: ='Financial Model'!R116 -> 1 | R72: ='Financial Model'!S116 -> 1 | S72: ='Financial Model'!T116 -> 1 | T72: ='Financial Model'!U116 -> 1 | U72: ='Financial Model'!V116 -> 1 | V72: ='Financial Model'!W116 -> 1 | W72: ='Financial Model'!X116 -> 1 | X72: ='Financial Model'!Y116 -> 1 | Y72: ='Financial Model'!Z116 -> 1 | Z72: ='Financial Model'!AA116 -> 1 | AA72: ='Financial Model'!AB116 -> 1 | AB72: ='Financial Model'!AC116 -> 1
B73: NPV Total | C73: =C71*C72 -> -655994 | D73: -107583.931 | E73: -119543.4084 | F73: -141279.9773 | G73: -138993.7933 | H73: -140204.8205 | I73: -153591.0958 | J73: 143626.8462 | K73: 0 | L73: 0 | M73: 0 | N73: 0 | O73: 0 | P73: 0 | Q73: 0 | R73: 0 | S73: 0 | T73: 0 | U73: 0 | V73: 0 | W73: 0 | X73: 0 | Y73: 0 | Z73: 0 | AA73: 0 | AB73: 0 | AC73: =SUM(C73:AB73) -> -1313564.18

Sheet Zipcode Data (hidden)
A1: Zipcode Data - EV Fleet Procurement Analysis Tool
A3: Zip Code Lookup Table
A4: PostalCodeStandardized | B4: City | C4: StateCode | D4: State Name | E4: PADD Region | F4: Primary eGRID Subregion
A5: 0 | B5: Anytown | C5: U.S. Avg | D5: National Average | E5: U.S. Avg | F5: U.S. Avg
A6: 705 | B6: AIBONITO | C6: PR | D6: Puerto Rico
A7: 610 | B7: ANASCO | C7: PR | D7: Puerto Rico
A8: 611 | B8: ANGELES | C8: PR | D8: Puerto Rico
A9: 612 | B9: ARECIBO | C9: PR | D9: Puerto Rico
A10: 601 | B10: ADJUNTAS | C10: PR | D10: Puerto Rico
A11: 631 | B11: CASTANER | C11: PR | D11: Puerto Rico
A12: 602 | B12: AGUADA | C12: PR | D12: Puerto Rico
A13: 603 | B13: AGUADILLA | C13: PR | D13: Puerto Rico
A14: 604 | B14: AGUADILLA | C14: PR | D14: Puerto Rico
A15: 605 | B15: AGUADILLA | C15: PR | D15: Puerto Rico
A16: 703 | B16: AGUAS BUENAS | C16: PR | D16: Puerto Rico
A17: 704 | B17: AGUIRRE | C17: PR | D17: Puerto Rico
A18: 7675 | B18: WESTWOOD | C18: NJ | D18: New Jersey | E18: 1b | F18: NYUP
A19: 7677 | B19: WOODCLIFF LAKE | C19: NJ | D19: New Jersey | E19: 1b | F19: RFCE
A20: 7885 | B20: WHARTON | C20: NJ | D20: New Jersey | E20: 1b | F20: RFCE
A21: 7981 | B21: WHIPPANY | C21: NJ | D21: New Jersey | E21: 1b | F21: RFCE
A22: 7999 | B22: WHIPPANY | C22: NJ | D22: New Jersey | E22: 1b | F22: RFCE
A23: 8888 | B23: WHITEHOUSE | C23: NJ | D23: New Jersey | E23: 1b | F23: RFCE
A24: 8889 | B24: WHITEHOUSE STATION | C24: NJ | D24: New Jersey | E24: 1b | F24: RFCE
A25: 7095 | B25: WOODBRIDGE | C25: NJ | D25: New Jersey | E25: 1b | F25: RFCE
A26: 7481 | B26: WYCKOFF | C26: NJ | D26: New Jersey | E26: 1b | F26: NYUP
A27: 10451 | B27: BRONX | C27: NY | D27: New York | E27: 1b | F27: NYCW
A28: 10452 | B28: BRONX | C28: NY | D28: New York | E28: 1b | F28: NYCW
A29: 10453 | B29: BRONX | C29: NY | D29: New York | E29: 1b | F29: NYCW
A30: 10454 | B30: BRONX | C30: NY | D30: New York | E30: 1b | F30: NYCW
A31: 10455 | B31: BRONX | C31: NY | D31: New York | E31: 1b | F31: NYCW
A32: 10456 | B32: BRONX | C32: NY | D32: New York | E32: 1b | F32: NYCW
A33: 10457 | B33: BRONX | C33: NY | D33: New York | E33: 1b | F33: NYCW
A34: 10458 | B34: BRONX | C34: NY | D34: New York | E34: 1b | F34: NYCW
A35: 10459 | B35: BRONX | C35: NY | D35: New York | E35: 1b | F35: NYCW
A36: 10460 | B36: BRONX | C36: NY | D36: New York | E36: 1b | F36: NYCW
A37: 10461 | B37: BRONX | C37: NY | D37: New York | E37: 1b | F37: NYCW
A38: 10462 | B38: BRONX | C38: NY | D38: New York | E38: 1b | F38: NYCW
A39: 10463 | B39: BRONX | C39: NY | D39: New York | E39: 1b | F39: NYCW
A40: 10464 | B40: BRONX | C40: NY | D40: New York | E40: 1b | F40: NYCW
A41: 10465 | B41: BRONX | C41: NY | D41: New York | E41: 1b | F41: NYCW
A42: 10466 | B42: BRONX | C42: NY | D42: New York | E42: 1b | F42: NYCW
A43: 10467 | B43: BRONX | C43: NY | D43: New York | E43: 1b | F43: NYCW
A44: 10468 | B44: BRONX | C44: NY | D44: New York | E44: 1b | F44: NYCW
A45: 10469 | B45: BRONX | C45: NY | D45: New York | E45: 1b | F45: NYCW
A46: 10470 | B46: BRONX | C46: NY | D46: New York | E46: 1b | F46: NYCW
A47: 10471 | B47: BRONX | C47: NY | D47: New York | E47: 1b | F47: NYCW
A48: 10472 | B48: BRONX | C48: NY | D48: New York | E48: 1b | F48: NYCW
A49: 10473 | B49: BRONX | C49: NY | D49: New York | E49: 1b | F49: NYCW
A50: 10474 | B50: BRONX | C50: NY | D50: New York | E50: 1b | F50: NYCW
A51: 10475 | B51: BRONX | C51: NY | D51: New York | E51: 1b | F51: NYCW
A52: 10499 | B52: BRONX | C52: NY | D52: New York | E52: 1b | F52: NYCW
A53: 10001 | B53: NEW YORK | C53: NY | D53: New York | E53: 1b | F53: NYCW
A54: 10002 | B54: NEW YORK | C54: NY | D54: New York | E54: 1b | F54: NYCW
A55: 10003 | B55: NEW YORK | C55: NY | D55: New York | E55: 1b | F55: NYCW
A56: 10004 | B56: NEW YORK | C56: NY | D56: New York | E56: 1b | F56: NYCW
A57: 10005 | B57: NEW YORK | C57: NY | D57: New York | E57: 1b | F57: NYCW
A58: 10006 | B58: NEW YORK | C58: NY | D58: New York | E58: 1b | F58: NYCW
A59: 10007 | B59: NEW YORK | C59: NY | D59: New York | E59: 1b | F59: NYCW
A60: 10008 | B60: NEW YORK | C60: NY | D60: New York | E60: 1b | F60: NYCW
A61: 10009 | B61: NEW YORK | C61: NY | D61: New York | E61: 1b | F61: NYCW
A62: 10010 | B62: NEW YORK | C62: NY | D62: New York | E62: 1b | F62: NYCW
A63: 10011 | B63: NEW YORK | C63: NY | D63: New York | E63: 1b | F63: NYCW
A64: 10012 | B64: NEW YORK | C64: NY | D64: New York | E64: 1b | F64: NYCW
A65: 10013 | B65: NEW YORK | C65: NY | D65: New York | E65: 1b | F65: NYCW
A66: 10014 | B66: NEW YORK | C66: NY | D66: New York | E66: 1b | F66: NYCW
A67: 10016 | B67: NEW YORK | C67: NY | D67: New York | E67: 1b | F67: NYCW
A68: 10017 | B68: NEW YORK | C68: NY | D68: New York | E68: 1b | F68: NYCW
A69: 10018 | B69: NEW YORK | C69: NY | D69: New York | E69: 1b | F69: NYCW
A70: 10019 | B70: NEW YORK | C70: NY | D70: New York | E70: 1b | F70: NYCW
A71: 10020 | B71: NEW YORK | C71: NY | D71: New York | E71: 1b | F71: NYCW
A72: 10021 | B72: NEW YORK | C72: NY | D72: New York | E72: 1b | F72: NYCW
A73: 10022 | B73: NEW YORK | C73: NY | D73: New York | E73: 1b | F73: NYCW
A74: 10023 | B74: NEW YORK | C74: NY | D74: New York | E74: 1b | F74: NYCW
A75: 10024 | B75: NEW YORK | C75: NY | D75: New York | E75: 1b | F75: NYCW
A76: 10025 | B76: NEW YORK | C76: NY | D76: New York | E76: 1b | F76: NYCW
A77: 10026 | B77: NEW YORK | C77: NY | D77: New York | E77: 1b | F77: NYCW
A78: 10027 | B78: NEW YORK | C78: NY | D78: New York | E78: 1b | F78: NYCW
A79: 10028 | B79: NEW YORK | C79: NY | D79: New York | E79: 1b | F79: NYCW
A80: 10029 | B80: NEW YORK | C80: NY | D80: New York | E80: 1b | F80: NYCW
A81: 10030 | B81: NEW YORK | C81: NY | D81: New York | E81: 1b | F81: NYCW
A82: 10031 | B82: NEW YORK | C82: NY | D82: New York | E82: 1b | F82: NYCW
A83: 10032 | B83: NEW YORK | C83: NY | D83: New York | E83: 1b | F83: NYCW
A84: 10033 | B84: NEW YORK | C84: NY | D84: New York | E84: 1b | F84: NYCW
A85: 10034 | B85: NEW YORK | C85: NY | D85: New York | E85: 1b | F85: NYCW
A86: 613 | B86: ARECIBO | C86: PR | D86: Puerto Rico
A87: 614 | B87: ARECIBO | C87: PR | D87: Puerto Rico
A88: 714 | B88: ARROYO | C88: PR | D88: Puerto Rico
A89: 616 | B89: BAJADERO | C89: PR | D89: Puerto Rico
A90: 617 | B90: BARCELONETA | C90: PR | D90: Puerto Rico
A91: 794 | B91: BARRANQUITAS | C91: PR | D91: Puerto Rico
A92: 622 | B92: BOQUERON | C92: PR | D92: Puerto Rico
A93: 623 | B93: CABO ROJO | C93: PR | D93: Puerto Rico
A94: 627 | B94: CAMUY | C94: PR | D94: Puerto Rico
A95: 729 | B95: CANOVANAS | C95: PR | D95: Puerto Rico
A96: 979 | B96: CAROLINA | C96: PR | D96: Puerto Rico
A97: 981 | B97: CAROLINA | C97: PR | D97: Puerto Rico
A98: 982 | B98: CAROLINA | C98: PR | D98: Puerto Rico
A99: 983 | B99: CAROLINA | C99: PR | D99: Puerto Rico
A100: 984 | B100: CAROLINA | C100: PR | D100: Puerto Rico
A101: 985 | B101: CAROLINA | C101: PR | D101: Puerto Rico
A102: 986 | B102: CAROLINA | C102: PR | D102: Puerto Rico
A103: 987 | B103: CAROLINA | C103: PR | D103: Puerto Rico
A104: 988 | B104: CAROLINA | C104: PR | D104: Puerto Rico
A105: 736 | B105: CAYEY | C105: PR | D105: Puerto Rico
A106: 739 | B106: CIDRA | C106: PR | D106: Puerto Rico
A107: 769 | B107: COAMO | C107: PR | D107: Puerto Rico
A108: 782 | B108: COMERIO | C108: PR | D108: Puerto Rico
A109: 783 | B109: COROZAL | C109: PR | D109: Puerto Rico
A110: 9848 | B110: APO | C110: AE | D110: U.S. Armed Forces – Europe
A111: 10200 | B111: NEW YORK | C111: NY | D111: New York | E111: 1b | F111: NYCW
A112: 9323 | B112: APO | C112: AE | D112: U.S. Armed Forces – Europe
A113: 659 | B113: HATILLO | C113: PR | D113: Puerto Rico
A114: 660 | B114: HORMIGUEROS | C114: PR | D114: Puerto Rico
A115: 791 | B115: HUMACAO | C115: PR | D115: Puerto Rico
A116: 792 | B116: HUMACAO | C116: PR | D116: Puerto Rico
A117: 662 | B117: ISABELA | C117: PR | D117: Puerto Rico
A118: 664 | B118: JAYUYA | C118: PR | D118: Puerto Rico
A119: 795 | B119: JUANA DIAZ | C119: PR | D119: Puerto Rico
A120: 777 | B120: JUNCOS | C120: PR | D120: Puerto Rico
A121: 728 | B121: PONCE | C121: PR | D121: Puerto Rico
A122: 725 | B122: CAGUAS | C122: PR | D122: Puerto Rico
A123: 726 | B123: CAGUAS | C123: PR | D123: Puerto Rico
A124: 727 | B124: CAGUAS | C124: PR | D124: Puerto Rico
A125: 737 | B125: CAYEY | C125: PR | D125: Puerto Rico
A126: 735 | B126: CEIBA | C126: PR | D126: Puerto Rico
A127: 742 | B127: ROOSEVELT ROADS | C127: PR | D127: Puerto Rico
A128: 638 | B128: CIALES | C128: PR | D128: Puerto Rico
A129: 780 | B129: COTO LAUREL | C129: PR | D129: Puerto Rico
A130: 775 | B130: CULEBRA | C130: PR | D130: Puerto Rico
A131: 646 | B131: DORADO | C131: PR | D131: Puerto Rico
A132: 647 | B132: ENSENADA | C132: PR | D132: Puerto Rico
A133: 738 | B133: FAJARDO | C133: PR | D133: Puerto Rico
A134: 650 | B134: FLORIDA | C134: PR | D134: Puerto Rico
A135: 652 | B135: GARROCHALES | C135: PR | D135: Puerto Rico
A136: 653 | B136: GUANICA | C136: PR | D136: Puerto Rico
A137: 784 | B137: GUAYAMA | C137: PR | D137: Puerto Rico
A138: 785 | B138: GUAYAMA | C138: PR | D138: Puerto Rico
A139: 965 | B139: GUAYNABO | C139: PR | D139: Puerto Rico
A140: 966 | B140: GUAYNABO | C140: PR | D140: Puerto Rico
A141: 968 | B141: GUAYNABO | C141: PR | D141: Puerto Rico
A142: 969 | B142: GUAYNABO | C142: PR | D142: Puerto Rico
A143: 970 | B143: GUAYNABO | C143: PR | D143: Puerto Rico
A144: 971 | B144: GUAYNABO | C144: PR | D144: Puerto Rico
A145: 778 | B145: GURABO | C145: PR | D145: Puerto Rico
A146: 667 | B146: LAJAS | C146: PR | D146: Puerto Rico
A147: 786 | B147: LA PLATA | C147: PR | D147: Puerto Rico
